Workbook

Sheet Disclaimer
B4: Disclaimer
B5: 1 | C5: Neither the U.S. Department of Energy (DOE) National Energy Technology Laboratory (NETL) nor any person acting on behalf of these organizations:
C6: A. Makes any warranty or representation, express or implied, with respect to the accuracy, completeness, or usefulness of the information contained in this document, or that the use of any information, apparatus, method, or process disclosed in this document may not infringe on privately owned rights; or
C7: B. Assumes any liability with this report as to its use, or damages resulting from the use of any information, apparatus, method, or process disclosed in this document.
B8: 2 | C8: Reference herein to any specific commercial product, process, or service by trade name, trademark, manufacturer, or otherwise, does not necessarily constitute or imply its endorsement, recommendation, or favoring by NETL. The views and opinions of the authors expressed herein do not necessarily state or reflect those of NETL.
B9: 3 | C9: Developed by the U.S. Department of Energy (DOE) National Energy Technology Laboratory (NETL) for the Connecticut Center for Advanced Technology, Inc. (CCAT) with funding from the Defense Logistics Agency (DLA) Energy
B10: Contact Information

Sheet TOC
B4: Table of Contents
B5: WorkSheet Name | C5: Description
B6: Disclaimer | C6: Model disclaimer and contact information
B7: TOC | C7: Table of contents
B8: Instruction | C8: Model instructions
B9: CBTL Model | C9: Economic and environmental uncertainty results
B10: CBTL Plant Data | C10: Mass, energy, and cost data for each plant configuration
B11: Environmental Results | C11: Greenhouse gas drilldown figures and tornado plots for each scenario
B12: Economic Results | C12: Cost drilldown figures and tornado plots for each scenario
B13: Unit Reference | C13: Conversion factors and constants
B14: Stats | C14: Detailed statistics for each scenario
B15: RiskSerializationData | C15: @RISK internal use
B16: Data | C16: @RISK simulation of the environmental model based on parameter choices and co-product management scheme
B17: Combination | C17: @RISK simulation for combined allocation scheme
B18: System Expansion | C18: @RISK simulation for system expansion scheme
B19: Energy Allocation | C19: @RISK simulation for energy allocation scheme
B20: Cost Model | C20: @RISK simulation for the cost model for each plant scenario
B21: ChartData | C21: Data for the box and whisker plot on the CBTL Model tab
B22: Tornado | C22: Data for the tornado plots on the Environmental and Economic Results tabs
B23: Cost Model Constants | C23: Ultimate analyses of the feedstocks and other constants
B24: Parameters | C24: Parameters used for calculation and user interface
B25: Plant I-O | C25: High level input and output flows for each plant scenario
B26: Version | C26: Model version history
B27: PlantData | C27: Translation of data from supporting tabs to complete the CBTL Plant Data tab
B28: SimulationData | C28: ASPEN simulation stream table results for each plant scenario
B29: EconomicsData | C29: Cost model results for each plant scenario
B30: OutputProcess | C30: Intermediate data holder for presentation on the CBTL Model tab
B31: RMA - S6 SE | C31: GaBi life cycle model output for raw material acquistion - system expansion - scenario 6
B32: RMT - S6 SE | C32: GaBi life cycle model output for raw material transport - system expansion - scenario 6
B33: ECF - S6 SE | C33: GaBi life cycle model output for energy conversion facility - system expansion - scenario 6
B34: PT - S6 SE | C34: GaBi life cycle model output for product transport - system expansion - scenario 6
B35: EU - S6 SE | C35: GaBi life cycle model output for end use - system expansion - scenario 6
B36: RMA - S6 EA | C36: GaBi life cycle model output for raw material acquistion - energy allocation - scenario 6
B37: RMT - S6 EA | C37: GaBi life cycle model output for raw material transport - energy allocation - scenario 6
B38: ECF - S6 EA | C38: GaBi life cycle model output for energy conversion facility - energy allocation - scenario 6
B39: PT - S6 EA | C39: GaBi life cycle model output for product transport - energy allocation - scenario 6
B40: EU - S6 EA | C40: GaBi life cycle model output for end use - energy allocation - scenario 6
B41: RMA - S5 SE | C41: GaBi life cycle model output for raw material acquistion - system expansion - scenario 5
B42: RMT - S5 SE | C42: GaBi life cycle model output for raw material transport - system expansion - scenario 5
B43: ECF - S5 SE | C43: GaBi life cycle model output for energy conversion facility - system expansion - scenario 5
B44: PT - S5 SE | C44: GaBi life cycle model output for product transport - system expansion - scenario 5
B45: EU - S5 SE | C45: GaBi life cycle model output for end use - system expansion - scenario 5
B46: RMA - S5 EA | C46: GaBi life cycle model output for raw material acquistion - energy allocation - scenario 5
B47: RMT - S5 EA | C47: GaBi life cycle model output for raw material transport - energy allocation - scenario 5
B48: ECF - S5 EA | C48: GaBi life cycle model output for energy conversion facility - energy allocation - scenario 5
B49: PT - S5 EA | C49: GaBi life cycle model output for product transport - energy allocation - scenario 5
B50: EU - S5 EA | C50: GaBi life cycle model output for end use - energy allocation - scenario 5
B51: RMA - S4 SE | C51: GaBi life cycle model output for raw material acquistion - system expansion - scenario 4
B52: RMT - S4 SE | C52: GaBi life cycle model output for raw material transport - system expansion - scenario 4
B53: ECF - S4 SE | C53: GaBi life cycle model output for energy conversion facility - system expansion - scenario 4
B54: PT - S4 SE | C54: GaBi life cycle model output for product transport - system expansion - scenario 4
B55: EU - S4 SE | C55: GaBi life cycle model output for end use - system expansion - scenario 4
B56: RMA - S4 EA | C56: GaBi life cycle model output for raw material acquistion - energy allocation - scenario 4
B57: RMT - S4 EA | C57: GaBi life cycle model output for raw material transport - energy allocation - scenario 4
B58: ECF - S4 EA | C58: GaBi life cycle model output for energy conversion facility - energy allocation - scenario 4
B59: PT - S4 EA | C59: GaBi life cycle model output for product transport - energy allocation - scenario 4
B60: EU - S4 EA | C60: GaBi life cycle model output for end use - energy allocation - scenario 4
B61: RMA - S3 SE | C61: GaBi life cycle model output for raw material acquistion - system expansion - scenario 3
B62: RMT - S3 SE | C62: GaBi life cycle model output for raw material transport - system expansion - scenario 3
B63: ECF - S3 SE | C63: GaBi life cycle model output for energy conversion facility - system expansion - scenario 3
B64: PT - S3 SE | C64: GaBi life cycle model output for product transport - system expansion - scenario 3
B65: EU - S3 SE | C65: GaBi life cycle model output for end use - system expansion - scenario 3
B66: RMA - S3 EA | C66: GaBi life cycle model output for raw material acquistion - energy allocation - scenario 3
B67: RMT - S3 EA | C67: GaBi life cycle model output for raw material transport - energy allocation - scenario 3
B68: ECF - S3 EA | C68: GaBi life cycle model output for energy conversion facility - energy allocation - scenario 3
B69: PT - S3 EA | C69: GaBi life cycle model output for product transport - energy allocation - scenario 3
B70: EU - S3 EA | C70: GaBi life cycle model output for end use - energy allocation - scenario 3
B71: RMA - S2 SE | C71: GaBi life cycle model output for raw material acquistion - system expansion - scenario 2
B72: RMT - S2 SE | C72: GaBi life cycle model output for raw material transport - system expansion - scenario 2
B73: ECF - S2 SE | C73: GaBi life cycle model output for energy conversion facility - system expansion - scenario 2
B74: PT - S2 SE | C74: GaBi life cycle model output for product transport - system expansion - scenario 2
B75: EU - S2 SE | C75: GaBi life cycle model output for end use - system expansion - scenario 2
B76: RMA - S2 EA | C76: GaBi life cycle model output for raw material acquistion - energy allocation - scenario 2
B77: RMT - S2 EA | C77: GaBi life cycle model output for raw material transport - energy allocation - scenario 2
B78: ECF - S2 EA | C78: GaBi life cycle model output for energy conversion facility - energy allocation - scenario 2
B79: PT - S2 EA | C79: GaBi life cycle model output for product transport - energy allocation - scenario 2
B80: EU - S2 EA | C80: GaBi life cycle model output for end use - energy allocation - scenario 2
B81: RMA - S1 SE | C81: GaBi life cycle model output for raw material acquistion - system expansion - scenario 1
B82: RMT - S1 SE | C82: GaBi life cycle model output for raw material transport - system expansion - scenario 1
B83: ECF - S1 SE | C83: GaBi life cycle model output for energy conversion facility - system expansion - scenario 1
B84: PT - S1 SE | C84: GaBi life cycle model output for product transport - system expansion - scenario 1
B85: EU - S1 SE | C85: GaBi life cycle model output for end use - system expansion - scenario 1
B86: RMA - S1 EA | C86: GaBi life cycle model output for raw material acquistion - energy allocation - scenario 1
B87: RMT - S1 EA | C87: GaBi life cycle model output for raw material transport - energy allocation - scenario 1
B88: ECF - S1 EA | C88: GaBi life cycle model output for energy conversion facility - energy allocation - scenario 1
B89: PT - S1 EA | C89: GaBi life cycle model output for product transport - energy allocation - scenario 1
B90: EU - S1 EA | C90: GaBi life cycle model output for end use - energy allocation - scenario 1
B91: Comparisons | C91: QA check of GaBi life cycle results
B92: S1 - SE Full GaBi | C92: Full GaBi life cycle model output for scenario 1, system expansion
B93: S2 - SE - Full GaBi | C93: Full GaBi life cycle model output for scenario 2, system expansion
B94: S3 - SE - Full GaBi | C94: Full GaBi life cycle model output for scenario 3, system expansion
B95: S4 - SE - Full GaBi | C95: Full GaBi life cycle model output for scenario 4, system expansion
B96: S5 - SE Full GaBi | C96: Full GaBi life cycle model output for scenario 5, system expansion
B97: S6 - SE - Full GaBi | C97: Full GaBi life cycle model output for scenario 6, system expansion
B98: S1 - EA - Full GaBi | C98: Full GaBi life cycle model output for scenario 1, energy allocation
B99: S2 - EA - Full GaBi | C99: Full GaBi life cycle model output for scenario 2, energy allocation
B100: S3 - EA - Full GaBi | C100: Full GaBi life cycle model output for scenario 3, energy allocation
B101: S4 - EA - Full GaBi | C101: Full GaBi life cycle model output for scenario 4, energy allocation
B102: S5 - EA - Full GaBi | C102: Full GaBi life cycle model output for scenario 5, energy allocation
B103: S6 - EA - Full GaBi | C103: Full GaBi life cycle model output for scenario 6, energy allocation

Sheet Instruction
B1: Instructions
B2: Please read these instruction before using the model. This model requires the @RISK add-in to be installed, macros enabled, and access to the VBA project object model allowed.
B3: Quick links >>> | D3: Go to CBTL Model | F3: Go To Trust Center Settings | H3: Go to Enabling Macros | J3: Go to CBTL ribbon
B4: Trust Center Settings
B5: This model requires @RISK to be installed on your computer. Since the default installation folder for @RISK may vary depending on your computer's architecture (i.e., 32-bit or 64-bit), enabling the "access to the VBA project object model" will allow the model to check whether you have the essential components required in the simulation and analysis.
B6: How?
B7: For Excel 2002 and for later versions of Excel, you must turn on access to the VBA project object model. To do this, use one of the following methods:
B8: 1. In Excel 2010, click the File tab from the top ribbon area, and then click Options. Click Trust Center, and then click Trust Center Settings. Click Macro Settings, click to select the Trust Access to the VBA project object model check box, and click OK twice.
B9: 2. In Excel 2007, click the Microsoft Office Button, and then click Excel Options. Click Trust Center, and then click Trust Center Settings. Click Macro Settings, click to select the Trust Access to the VBA project object model check box, and click OK twice.
B10: 3. In Excel 2003 and in earlier versions of Excel, point to Macro on the Tools menu, and then click Security. In the Security dialog box, click the Trusted Sources tab, and then click to select the Trust access to Visual Basic Project check box.
B12: Enabling Macros
B13: This model has built-in functions to calculate and update results. In order to let the model operate functionally, the macros have to be enabled.
B33: CBTL Ribbon
B34: This model has a built-in ribbon tab (CBTL Fuel) that collectively locates the model functions to help you find them easily.
B35: It contains six groups: Scenarios, Environmental Reporting Metrics, Dashboard Controls, Baseline Values, Analysis Settings, and @Risk Simulation.
B44: Scenarios - Scenario Selector
B45: This dropdown menu allows you to select the scenarios you would like to compare in the CBTL Model charts.
B47: Scenarios - Scenario Editor
B48: The scenario editor allows you to change a parameter's distribution and values within each scenario or the global study level. Please note that you have to hit the save button whenever you change a parameter since the save function is parameter based.
B74: Environmental Reporting Metrics
B75: If you would like to change the environmental reporting units, you can change the numerator and denominator units. Environmental charts and tables will be updated accordingly.
B77: Dashboard Controls
B78: The three buttons change the table below the charts in the 'CBTL Model' tab to show the technical, environmental, or economic summary.
B80: Baseline Values
B81: If you would like to change the baseline values in the GHG and RSP charts, you can change the values in the text boxes.
B83: Analysis Settings
B84: You can select one of the three allocation methods for the environmental life cycle analysis simulation: Combined, System Expansion, or Energy Allocation.
B85: You can also change the GWP Factor used in the simulation. Currently, this model supports IPCC 2001 and 2007, including 20, 100 and 500 year time horizons.
B96: @Risk Simulation
B97: The settings to control the @Risk add-in:
C98: 1 | D98: Iterations: Number of iterations run in the simulation
C99: 2 | D99: Live update: If the button is pressed, there will be a live progress dialog during the simulation.
C100: 3 | D100: Report: If the button is pressed, a standard @Risk report will be generated at the end of the simulation. Please note that this process will take some time.
C101: 4 | D101: Statistics: It will take you to the output statistics page.
C102: 5 | D102: Reset: To reset values and distributions back to default values.

Sheet CBTL Model
B31: =$B$61 -> Technical Performance
B32: =B62 -> Proprety | C32: =C62 -> Units | D32: Scenario 1: 0% Biomass | E32: Scenario 2: 10% Biomass, Chipped | F32: Scenario 3: 20% Biomass, Chipped | G32: Scenario 4: 10% Biomass, Torrefied | H32: Scenario 5: 20% Biomass, Torrefied | I32: Scenario 6: 10% Biomass, Microchipped, Separate Gasifiers
B33: =B63 -> Plant Design Capactity | C33: bbl/day | D33: 50000 | E33: 50000 | F33: 50000 | G33: 50000 | H33: 50000 | I33: 50000
B34: =B64 -> Plant Capacity Factor | C34: percent | D34: 90 | E34: 90 | F34: 90 | G34: 90 | H34: 90 | I34: 90
B35: =B65 -> Plant Efficiency, HHV | C35: percent | D35: 53.4 | E35: 53.1 | F35: 52.8 | G35: 53.8 | H35: 54.2 | I35: 51.9
B36: =B66 -> Coal Feed, Montana Rosebud, As Received | C36: tons/day | D36: 30483 | E36: 28121 | F36: 25637 | G36: 27173 | H36: 23927 | I36: 28652
B37: =B67 -> Biomass Feed, Southern Pine, As Received | C37: tons/day | D37: 0 | E37: 4091 | F37: 8391 | G37: 2733 | H37: 5415 | I37: 4320
B38: =B68 -> F-T Jet Fuel Production | C38: bbl/day | D38: 24647 | E38: 24647 | F38: 24647 | G38: 24647 | H38: 24647 | I38: 24652
B39: =B69 -> F-T Diesel Fuel Production | C39: bbl/day | D39: 4767 | E39: 4767 | F39: 4767 | G39: 4767 | H39: 4767 | I39: 4767
B40: =B70 -> F-T Naphtha Production | C40: bbl/day | D40: 16972 | E40: 16972 | F40: 16972 | G40: 16971 | H40: 16971 | I40: 16975
B41: =B71 -> LPG Production | C41: bbl/day | D41: 3615 | E41: 3615 | F41: 3614 | G41: 3615 | H41: 3615 | I41: 3606
B42: =B72 -> Total Liquid Product Output | C42: bbl/day | D42: 50000 | E42: 50000 | F42: 50000 | G42: 50000 | H42: 50000 | I42: 50000
B43: =B73 -> Export Power | C43: MW | D43: 232 | E43: 214 | F43: 194 | G43: 234 | H43: 238 | I43: 207
B44: =B74 -> CO₂ Captured and Compressed | C44: tons/day | D44: 30875 | E44: 31099 | F44: 31334 | G44: 30846 | H44: 30823 | I44: 29401
B45: =B75 -> Jet Fuel Delivered to Airport (50/50 by vol. blend) | C45: bbl/day | D45: 49294 | E45: 49294 | F45: 49294 | G45: 49294 | H45: 49294 | I45: 49304
B61: Technical Performance
B62: Proprety | C62: Units | D62: Scenario 1: 0% Biomass | E62: Scenario 2: 10% Biomass, Chipped | F62: Scenario 3: 20% Biomass, Chipped | G62: Scenario 4: 10% Biomass, Torrefied | H62: Scenario 5: 20% Biomass, Torrefied | I62: Scenario 6: 10% Biomass, Microchipped, Separate Gasifiers
B63: Plant Design Capactity | C63: bbl/day | D63: 50000 | E63: 50000 | F63: 50000 | G63: 50000 | H63: 50000 | I63: 50000
B64: Plant Capacity Factor | C64: percent | D64: 90 | E64: 90 | F64: 90 | G64: 90 | H64: 90 | I64: 90
B65: Plant Efficiency, HHV | C65: percent | D65: 53.4 | E65: 53.1 | F65: 52.8 | G65: 53.8 | H65: 54.2 | I65: 51.9
B66: Coal Feed, Montana Rosebud, As Received | C66: tons/day | D66: 30483 | E66: 28121 | F66: 25637 | G66: 27173 | H66: 23927 | I66: 28652
B67: Biomass Feed, Southern Pine, As Received | C67: tons/day | D67: 0 | E67: 4091 | F67: 8391 | G67: 2733 | H67: 5415 | I67: 4320
B68: F-T Jet Fuel Production | C68: bbl/day | D68: 24647 | E68: 24647 | F68: 24647 | G68: 24647 | H68: 24647 | I68: 24652
B69: F-T Diesel Fuel Production | C69: bbl/day | D69: 4767 | E69: 4767 | F69: 4767 | G69: 4767 | H69: 4767 | I69: 4767
B70: F-T Naphtha Production | C70: bbl/day | D70: 16972 | E70: 16972 | F70: 16972 | G70: 16971 | H70: 16971 | I70: 16975
B71: LPG Production | C71: bbl/day | D71: 3615 | E71: 3615 | F71: 3614 | G71: 3615 | H71: 3615 | I71: 3606
B72: Total Liquid Product Output | C72: bbl/day | D72: 50000 | E72: 50000 | F72: 50000 | G72: 50000 | H72: 50000 | I72: 50000
B73: Export Power | C73: MW | D73: 232 | E73: 214 | F73: 194 | G73: 234 | H73: 238 | I73: 207
B74: CO₂ Captured and Compressed | C74: tons/day | D74: 30875 | E74: 31099 | F74: 31334 | G74: 30846 | H74: 30823 | I74: 29401
B75: Jet Fuel Delivered to Airport (50/50 by vol. blend) | C75: bbl/day | D75: 49294 | E75: 49294 | F75: 49294 | G75: 49294 | H75: 49294 | I75: 49304
B78: Economic Performance (all costs represent June 2007$)
B79: Proprety | C79: Units | D79: Scenario 1: 0% Biomass | E79: Scenario 2: 10% Biomass, Chipped | F79: Scenario 3: 20% Biomass, Chipped | G79: Scenario 4: 10% Biomass, Torrefied | H79: Scenario 5: 20% Biomass, Torrefied | I79: Scenario 6: 10% Biomass, Microchipped, Separate Gasifiers
B80: Fixed Operating and Maintenance Cost (FOM) | C80: $MM/yr | D80: =Stats!F138 -> 262.5789151 | E80: =Stats!F152 -> 272.45872 | F80: =Stats!F166 -> 282.4040313 | G80: =Stats!F180 -> 257.952776 | H80: =Stats!F194 -> 252.9008821 | I80: =Stats!F208 -> 277.8791004
B81: Variable Operating and Maintenance Cost (VOM) | C81: $MM/yr | D81: =Stats!F139 -> 163.5669382 | E81: =Stats!F153 -> 165.3856168 | F81: =Stats!F167 -> 166.9638374 | G81: =Stats!F181 -> 161.8536686 | H81: =Stats!F195 -> 159.7684786 | I81: =Stats!F209 -> 167.0075828
B82: Capital: Total Overnight Cost (TOC) | C82: $MM | D82: =Stats!F140 -> 7265.021578 | E82: =Stats!F154 -> 7370.036381 | F82: =Stats!F168 -> 7454.156069 | G82: =Stats!F182 -> 7166.945754 | H82: =Stats!F196 -> 7039.777951 | I82: =Stats!F210 -> 7482.22835
B83: Coal Cost, Montana Rosebud, As Received | C83: $MM/yr | D83: =Stats!F141 -> 363.1007239 | E83: =Stats!F155 -> 334.9622505 | F83: =Stats!F169 -> 305.3718367 | G83: =Stats!F183 -> 323.6719676 | H83: =Stats!F197 -> 285.0040017 | I83: =Stats!F211 -> 341.2883012
B84: Biomass Cost, Southern Pine, Chips, As Received | C84: $MM/yr | D84: =Stats!F142 -> 0 | E84: =Stats!F156 -> 33.26014228 | F84: =Stats!F170 -> 68.22440178 | G84: =Stats!F184 -> 0 | H84: =Stats!F198 -> 0 | I84: =Stats!F212 -> 35.12810446
B85: Biomass Cost, Southern Pine, Torrefied, As Received | C85: $MM/yr | D85: =Stats!F143 -> 0 | E85: =Stats!F157 -> 0 | F85: =Stats!F171 -> 0 | G85: =Stats!F185 -> 119.976371 | H85: =Stats!F199 -> 239.5341206 | I85: =Stats!F213 -> 0
B86: Power Credit | C86: $MM/yr | D86: =Stats!F144 -> 129.1153219 | E86: =Stats!F158 -> 119.0977538 | F86: =Stats!F172 -> 107.9671226 | G86: =Stats!F186 -> 130.228385 | H86: =Stats!F200 -> 130.228385 | I86: =Stats!F214 -> 115.2020329
B87: Credit @ $40/ton for CO₂ | C87: $MM/yr | D87: =Stats!F145 -> 368.043568 | E87: =Stats!F159 -> 370.7152578 | F87: =Stats!F173 -> 373.5104019 | G87: =Stats!F187 -> 367.6980249 | H87: =Stats!F201 -> 367.6980249 | I87: =Stats!F215 -> 350.474885
B88: Annual Revenue Required | C88: $MM/yr | D88: =Stats!F146 -> 2010.26529 | E88: =Stats!F160 -> 2059.267322 | F88: =Stats!F174 -> 2104.394493 | G88: =Stats!F188 -> 2060.511044 | H88: =Stats!F202 -> 2104.188558 | I88: =Stats!F216 -> 2125.173176
B89: Reqiured Selling Price per Barrel of F-T Jet (RSP F-T Jet) | C89: $/bbl | D89: =Stats!F147 -> 143.9129761 | E89: =Stats!F161 -> 147.4198783 | F89: =Stats!F175 -> 150.6504196 | G89: =Stats!F189 -> 147.511419 | H89: =Stats!F203 -> 150.6371164 | I89: =Stats!F217 -> 152.1239448 | M89: `
B90: Required Selling Price per Barrel of F-T Diesel (RSP F-T Diesel) | C90: $/bbl | D90: =Stats!F148 -> 142.4738463 | E90: =Stats!F162 -> 145.9456795 | F90: =Stats!F176 -> 149.1439154 | G90: =Stats!F190 -> 146.0363048 | H90: =Stats!F204 -> 149.1307453 | I90: =Stats!F218 -> 150.6027054
B91: Required Selling Price per Barrel of F-T Naphtha (RSP F-T Naphtha) | C91: $/bbl | D91: =Stats!F149 -> 99.29995348 | E91: =Stats!F163 -> 101.719716 | F91: =Stats!F177 -> 103.9487895 | G91: =Stats!F191 -> 101.7828791 | H91: =Stats!F205 -> 103.9396103 | I91: =Stats!F219 -> 104.9655219
B92: Required Selling Price per Barrel of LPG (RSP LPG) | C92: $/bbl | D92: =Stats!F150 -> 57.56519042 | E92: =Stats!F164 -> 58.96795132 | F92: =Stats!F178 -> 60.26016783 | G92: =Stats!F192 -> 59.00456761 | H92: =Stats!F206 -> 60.25484657 | I92: =Stats!F220 -> 60.84957793
B93: Crude Oil Equivalent Selling Price of F-T Jet (COE) | C93: $/bbl | D93: =Stats!F151 -> 118.7282052 | E93: =Stats!F165 -> 121.6213996 | F93: =Stats!F179 -> 124.2865961 | G93: =Stats!F193 -> 121.6969207 | H93: =Stats!F207 -> 124.275621 | I93: =Stats!F221 -> 125.5022545
B95: Environmental (Greenhouse Gas) Performance
B96: Proprety | C96: Units | D96: Scenario 1: 0% Biomass | E96: Scenario 2: 10% Biomass, Chipped | F96: Scenario 3: 20% Biomass, Chipped | G96: Scenario 4: 10% Biomass, Torrefied | H96: Scenario 5: 20% Biomass, Torrefied | I96: Scenario 6: 10% Biomass, Microchipped, Separate Gasifiers
B97: Raw Material Acquisition | C97: =UnitLabel -> g CO₂e / MJ | D97: =Stats!F3 -> 3.259742703 | E97: =Stats!F25 -> -10.63275909 | F97: =Stats!F47 -> -25.23806654 | G97: =Stats!F69 -> -7.018620931 | H97: =Stats!F91 -> -17.10450558 | I97: =Stats!F113 -> -11.34000367
B98: Coal Mining, Surface | C98: g CO₂e / MJ | D98: =Stats!F4 -> 3.259742703 | E98: =Stats!F26 -> 0.4901855501 | F98: =Stats!F48 -> 0.4456324027 | G98: =Stats!F70 -> 0.4751933276 | H98: =Stats!F92 -> 0.4184542438 | I98: =Stats!F114 -> 0.5184937196
B99: Biomass Production and Field Chipping | C99: g CO₂e / MJ | D99: =Stats!F5 -> 0 | E99: =Stats!F27 -> -2.517164808 | F99: =Stats!F49 -> -31.67364314 | G99: =Stats!F71 -> -11.23475782 | H99: =Stats!F93 -> -22.25928328 | I99: =Stats!F115 -> -16.30501766
B100: Biomass Direct Land Use Change | C100: g CO₂e / MJ | D100: =Stats!F6 -> 0 | E100: =Stats!F28 -> 0.06205762721 | F100: =Stats!F50 -> 0.7808750277 | G100: =Stats!F72 -> 0.0452995768 | H100: =Stats!F94 -> 0.08975369162 | I100: =Stats!F116 -> 0.06804291798
B101: Biomass Indirect Land Use Change | C101: g CO₂e / MJ | D101: =Stats!F7 -> 0 | E101: =Stats!F29 -> 1.420189945 | F101: =Stats!F51 -> 0.4735735084 | G101: =Stats!F73 -> 1.033337488 | H101: =Stats!F95 -> 0.3348476657 | I101: =Stats!F117 -> 1.499683951
B102: Raw Material Transport | C102: g CO₂e / MJ | D102: =Stats!F8 -> 5.5634327 | E102: =Stats!F30 -> 0.8453781336 | F102: =Stats!F52 -> 4.789278391 | G102: =Stats!F74 -> 0.9346702147 | H102: =Stats!F96 -> 0.9591797364 | I102: =Stats!F118 -> 5.285080674
B103: Biomass Transport to Torrefaction Facility | C103: g CO₂e / MJ | D103: =Stats!F9 -> 0 | E103: =Stats!F31 -> 0 | F103: =Stats!F53 -> 0 | G103: =Stats!F75 -> 0.00523269089 | H103: =Stats!F97 -> 0.01036776735 | I103: =Stats!F119 -> 0
B104: Biomass Torrefaction | C104: g CO₂e / MJ | D104: =Stats!F10 -> 0 | E104: =Stats!F32 -> 0 | F104: =Stats!F54 -> 0 | G104: =Stats!F76 -> 0.1120160776 | H104: =Stats!F98 -> 0.2219425256 | I104: =Stats!F120 -> 0
B105: Transport of Chipped or Torrefied Biomass to CBTL Plant | C105: g CO₂e / MJ | D105: =Stats!F11 -> 0 | E105: =Stats!F33 -> 0.05382108403 | F105: =Stats!F55 -> 0.01794706383 | G105: =Stats!F77 -> 0.006404645661 | H105: =Stats!F99 -> 0.01268975633 | I105: =Stats!F121 -> 0.05683367652
B106: Transport of Coal to CBTL Plant | C106: g CO₂e / MJ | D106: =Stats!F12 -> 5.5634327 | E106: =Stats!F34 -> 5.132267726 | F106: =Stats!F56 -> 4.678874979 | G106: =Stats!F78 -> 4.959389841 | H106: =Stats!F100 -> 0.7141796871 | I106: =Stats!F122 -> 5.228246997
B107: Energy Conversion Facility | C107: g CO₂e / MJ | D107: =Stats!F13 -> 17.47318932 | E107: =Stats!F35 -> 19.98701196 | F107: =Stats!F57 -> 22.69699417 | G107: =Stats!F79 -> 2.550500213 | H107: =Stats!F101 -> 2.524167285 | I107: =Stats!F123 -> 4.551476204
B108: CBTL Plant Operations (includes CO₂ Compression) | C108: g CO₂e / MJ | D108: =Stats!F14 -> -6.476742992 | E108: =Stats!F36 -> -4.136719921 | F108: =Stats!F58 -> -1.608643167 | G108: =Stats!F80 -> 2.421507042 | H108: =Stats!F102 -> -7.123209953 | I108: =Stats!F124 -> 4.42425454
B109: CO₂ Pipeline Transport to CO₂ -EOR Operation | C109: g CO₂e / MJ | D109: =Stats!F15 -> 0.1290637088 | E109: =Stats!F37 -> 0.1296363384 | F109: =Stats!F59 -> 0.1302486996 | G109: =Stats!F81 -> 0.1289931713 | H109: =Stats!F103 -> 0.1289021671 | I109: =Stats!F125 -> 0.1272216641
B110: CO₂-EOR Operation and CO₂ Storage | C110: g CO₂e / MJ | D110: =Stats!F16 -> 0 | E110: =Stats!F38 -> 0 | F110: =Stats!F60 -> 0 | G110: =Stats!F82 -> 0 | H110: =Stats!F104 -> 0 | I110: =Stats!F126 -> 0
B111: Product Transport | C111: g CO₂e / MJ | D111: =Stats!F17 -> 7.255206817 | E111: =Stats!F39 -> 7.255206817 | F111: =Stats!F61 -> 7.255206817 | G111: =Stats!F83 -> 7.255206817 | H111: =Stats!F105 -> 7.255206817 | I111: =Stats!F127 -> 7.255206817
B112: Tansport of Blended Jet Fuel to Airport | C112: g CO₂e / MJ | D112: =Stats!F18 -> 0.1385676828 | E112: =Stats!F40 -> 0.1385676828 | F112: =Stats!F62 -> 0.1385676828 | G112: =Stats!F84 -> 0.1385676828 | H112: =Stats!F106 -> 0.1385676828 | I112: =Stats!F128 -> 0.1385676828
B113: Blending of F-T and Conv. Jet (includes Conv. Jet Fuel Profile) | C113: g CO₂e / MJ | D113: =Stats!F19 -> 7.054462396 | E113: =Stats!F41 -> 7.054462396 | F113: =Stats!F63 -> 7.054462396 | G113: =Stats!F85 -> 7.054462396 | H113: =Stats!F107 -> 7.054462396 | I113: =Stats!F129 -> 7.054462396
B114: Transport of F-T Jet to Blending Facility | C114: g CO₂e / MJ | D114: =Stats!F20 -> 0.06217673864 | E114: =Stats!F42 -> 0.06217673864 | F114: =Stats!F64 -> 0.06217673864 | G114: =Stats!F86 -> 0.06217673864 | H114: =Stats!F108 -> 0.06217673864 | I114: =Stats!F130 -> 0.06217673864
B115: End Use | C115: g CO₂e / MJ | D115: =Stats!F21 -> 72.75801684 | E115: =Stats!F43 -> 72.75801684 | F115: =Stats!F65 -> 72.75801684 | G115: =Stats!F87 -> 72.75801684 | H115: =Stats!F109 -> 72.75801684 | I115: =Stats!F131 -> 72.75801684
B116: Airplane Operation (Fuel Use) | C116: g CO₂e / MJ | D116: =Stats!F22 -> 72.72077201 | E116: =Stats!F44 -> 72.72077201 | F116: =Stats!F66 -> 72.72077201 | G116: =Stats!F88 -> 72.72077201 | H116: =Stats!F110 -> 72.72077201 | I116: =Stats!F132 -> 72.72077201
B117: Airplane Construction | C117: g CO₂e / MJ | D117: =Stats!F23 -> 0.03724482276 | E117: =Stats!F45 -> 0.03724482276 | F117: =Stats!F67 -> 0.03724482276 | G117: =Stats!F89 -> 0.03724482276 | H117: =Stats!F111 -> 0.03724482276 | I117: =Stats!F133 -> 0.03724482276
B118: Total Greenhouse Gas Emissions | C118: g CO₂e / MJ | D118: =Stats!F24 -> 106.3095884 | E118: =Stats!F46 -> 81.88981059 | F118: =Stats!F68 -> 79.65181732 | G118: =Stats!F90 -> 95.9014909 | H118: =Stats!F112 -> 80.69906114 | I118: =Stats!F134 -> 83.53968652

Sheet CBTL Plant Data
C2: Select Scenario Below to View Plant Performance and Cost Data | P2: Select Sensitivity Case Below
D3: Scenario 1: 0% Biomass | I3: Scenario 4: 10% Biomass, Torrefied | Q3: Low Required Selling Price (RSP) Case
D4: Scenario 2: 10% Biomass, Chipped | I4: Scenario 5: 20% Biomass, Torrefied | Q4: Expected Required Selling Price (RSP) Case
D5: Scenario 3: 20% Biomass, Chipped | I5: Scenario 6: 10% Biomass, Microchipped, Separate Gasifiers | Q5: High Required Selling Price (RSP) Case
C7: Quick Links > > > | E7: Scenario (CBTL Plant) Desription | I7: Process Flow Diagram and Detailed Stream Results | O7: Plant Power, Carbon, and Water Balance | T7: Capital and O&M Cost Values
B10: Scenario (CBTL Plant) Desription
C12: Plant Design and Operating Data | G12: Low RSP Case | H12: Expected Value | I12: High RSP Case | J12: Units | L12: Internal Process Streams | P12: Low RSP Case | Q12: Expected Value | R12: High RSP Case | S12: Units | U12: Plant Outputs | Y12: Low RSP Case | Z12: Expected Value | AA12: High RSP Case | AB12: Units
C13: Plant Design Capactity | G13: =INDIRECT("PlantData!D" & (ROW(G13)-9+(PlantDataScen - 1)*136)) -> 50000 | H13: =INDIRECT("PlantData!E" & (ROW(H13)-9+(PlantDataScen - 1)*136)) -> 50000 | I13: =INDIRECT("PlantData!F" & (ROW(I13)-9+(PlantDataScen - 1)*136)) -> 50000 | J13: bbl/day | L13: Coal Feed, Montana Rosebud, Dried | P13: =INDIRECT("PlantData!D" & (ROW(P13)-3+(PlantDataScen - 1)*136)) -> 28286.56632 | Q13: =INDIRECT("PlantData!E" & (ROW(Q13)-3+(PlantDataScen - 1)*136)) -> 27594.67824 | R13: =INDIRECT("PlantData!F" & (ROW(R13)-3+(PlantDataScen - 1)*136)) -> 27285.3948 | S13: tons/day | U13: F-T Jet Fuel Production | Y13: =INDIRECT("PlantData!D" & (ROW(Y13)+10+(PlantDataScen - 1)*136)) -> 24648.79579 | Z13: =INDIRECT("PlantData!E" & (ROW(Z13)+10+(PlantDataScen - 1)*136)) -> 24647.33216 | AA13: =INDIRECT("PlantData!F" & (ROW(AA13)+10+(PlantDataScen - 1)*136)) -> 24644.72078 | AB13: bbl/day
C14: Plant Capacity Factor | G14: =INDIRECT("PlantData!D" & (ROW(G14)-9+(PlantDataScen - 1)*136)) -> 0.85 | H14: =INDIRECT("PlantData!E" & (ROW(H14)-9+(PlantDataScen - 1)*136)) -> 0.9 | I14: =INDIRECT("PlantData!F" & (ROW(I14)-9+(PlantDataScen - 1)*136)) -> 0.92 | J14: percent | L14: Biomass Feed, Southern Pine, Dried | P14: 0 | Q14: 0 | R14: 0 | S14: tons/day | U14: F-T Diesel Fuel Production | Y14: 4767.013419 | Z14: 4766.725912 | AA14: 4766.212967 | AB14: bbl/day
C15: Plant Efficiency, HHV | G15: =INDIRECT("PlantData!D" & (ROW(G15)-9+(PlantDataScen - 1)*136)) -> 53.8129282 | H15: =INDIRECT("PlantData!E" & (ROW(H15)-9+(PlantDataScen - 1)*136)) -> 53.39135217 | I15: =INDIRECT("PlantData!F" & (ROW(I15)-9+(PlantDataScen - 1)*136)) -> 52.20042264 | J15: percent | L15: Oxygen Production (95% Purity) | P15: 19264.72212 | Q15: 18837.7104 | R15: 18565.3872 | S15: tons/day | U15: F-T Naphtha Production | Y15: 16972.76355 | Z15: 16971.75198 | AA15: 16969.94739 | AB15: bbl/day
L16: CO₂ Removed by Selexol | P16: 20233.05792 | Q16: 19842.6066 | R16: 19549.04856 | S16: tons/day | U16: LPG Production | Y16: 3611.662572 | Z16: 3614.597903 | AA16: 3619.350281 | AB16: bbl/day
C17: Plant Inputs | G17: Low RSP Case | H17: Expected Value | I17: High RSP Case | J17: Units | L17: CO₂ Removed by MDEA | P17: 12359.36472 | Q17: 12497.49516 | R17: 12677.0478 | S17: tons/day | U17: Total Liquid Product Output | Y17: 50000.23534 | Z17: 50000.40795 | AA17: 50000.23141 | AB17: bbl/day
C18: Coal Feed, Montana Rosebud, As Received | G18: =INDIRECT("PlantData!D" & (ROW(G18)-11+(PlantDataScen - 1)*136)) -> 30485.31996 | H18: =INDIRECT("PlantData!E" & (ROW(H18)-11+(PlantDataScen - 1)*136)) -> 30483.14184 | I18: =INDIRECT("PlantData!F" & (ROW(I18)-11+(PlantDataScen - 1)*136)) -> 30876.64248 | J18: tons/day | L18: Raw Syngas Flow | P18: 4104327.46 | Q18: 3968427.9 | R18: 3852600.23 | S18: lb/hr | U18: Export Power | Y18: 259.0500806 | Z18: 232.1155949 | AA18: 199.234557 | AB18: MW
C19: Biomass Feed, Southern Pine, As Received | G19: =INDIRECT("PlantData!D" & (ROW(G19)-11+(PlantDataScen - 1)*136)) -> 0 | H19: =INDIRECT("PlantData!E" & (ROW(H19)-11+(PlantDataScen - 1)*136)) -> 0 | I19: =INDIRECT("PlantData!F" & (ROW(I19)-11+(PlantDataScen - 1)*136)) -> 0 | J19: tons/day | L19: Syngas Water Gas Shift Bypass | P19: 108990.904 | Q19: 93591.5326 | R19: 81455.3663 | S19: lbmol/hr | U19: Sulfur Production | Y19: 110.6744882 | Z19: 110.6668523 | AA19: 112.0948422 | AB19: tons/day
C20: Water Feed (Total Water Withdrawal) | G20: =INDIRECT("PlantData!D" & (ROW(G20)-11+(PlantDataScen - 1)*136)) -> 14211737.67 | H20: =INDIRECT("PlantData!E" & (ROW(H20)-11+(PlantDataScen - 1)*136)) -> 13706376.28 | I20: =INDIRECT("PlantData!F" & (ROW(I20)-11+(PlantDataScen - 1)*136)) -> 13261426 | J20: gal/day | L20: Syngas Flow to Water Gas Shift | P20: 90213.2805 | Q20: 98522.908 | R20: 103772.59 | S20: lbmol/hr | U20: Ash Production | Y20: 2759.52426 | Z20: 2911.950492 | AA20: 3258.727452 | AB20: tons/day
L21: Hydrogen Production | P21: 175.4583388 | Q21: 175.5188707 | R21: 175.5882113 | S21: MMSCFD | U21: CO₂ Captured and Compressed | Y21: 31112.11476 | Z21: 30875.28228 | AA21: 30780.7368 | AB21: tons/day
L22: Cooling Tower Make-up Water | P22: 9323.111162 | Q22: 8987.769545 | R22: 8685.471297 | S22: GPM
L23: HC Recovery Feed | P23: 36464.7089 | Q23: 38385.2387 | R23: 41356.8475 | S23: lbmol/hr
L24: Autothermal Reformer (ATR) Output | P24: 2285422.85 | Q24: 2844084.1 | R24: 3678213.5 | S24: acf/hr
L25: Ni-DFB Tar Feed | P25: 0 | Q25: 0 | R25: 0 | S25: lbmol/hr
B27: Process Flow Diagram and Detailed Stream Results
R37: Process Modeling Parameters | W37: Low RSP Case | X37: Expected Value | Y37: High RSP Case | Z37: Units
R38: TRIG Temperature | W38: 1850 | X38: 1800 | Y38: 1750 | Z38: Deg. F
R39: TRIG Steam:Coal/Biomass Ratio | W39: 0.3 | X39: 0.4 | Y39: 0.5 | Z39: Ratio
R40: TRIG Carbon Conversion | W40: 0.99 | X40: 0.98 | Y40: 0.96 | Z40: Fraction
R41: As Fed Coal Moisture | W41: 0.2 | X41: 0.18 | Y41: 0.16 | Z41: Mass Fraction
R42: As Fed Raw Biomass Moisture | W42: 0.2 | X42: 0.18 | Y42: 0.16 | Z42: Mass Fraction
R43: As Fed Coal Average Partic Size | W43: 600 | X43: 400 | Y43: 200 | Z43: Micron
R44: As Fed Raw Biomass Average Partic Size | W44: 1000 | X44: 800 | Y44: 400 | Z44: Micron
R45: Raw Biomass Grinding Energy Factor | W45: 0.7 | X45: 1 | Y45: 1.3 | Z45: factor
R46: Torrefied Biomass Grinding Energy Factor | W46: 0.7 | X46: 1 | Y46: 1.3 | Z46: factor
R47: Clear Fuels Gasifier Biomass Feed Moisture | W47: 0.18 | X47: 0.15 | Y47: 0.12 | Z47: Fraction
R48: Clear Fuels Gasifier Energy Duty Factor | W48: 0.8 | X48: 1 | Y48: 1.2 | Z48: Factor
R49: Tar Reforming Approach to Equilibrium | W49: 0 | X49: -100 | Y49: -200 | Z49: Deg. F
R50: Autothermal Reformer Approach to Equilibrium | W50: 0 | X50: -100 | Y50: -200 | Z50: Deg. F
R51: Hydrocarbon Recovery Refrigeration Duty Factor | W51: 0.9 | X51: 1 | Y51: 1.3 | Z51: Factor
C54: PFD No. | D54: Description | H54: PFD No. | I54: Description | M54: PFD No. | N54: Description | R54: PFD No. | S54: Description | W54: PFD No. | X54: Description
C55: 1 | D55: As received coal feed | H55: 7 | I55: Air to ASU | M55: 13 | N55: CO₂ to Sequestration | R55: 19 | S55: LPG Product | W55: 25 | X55: Air to DFB Reformer
C56: 2 | D56: As fed (dried and milled) coal feed | H56: 8 | I56: Air to Gas Turbine | M56: 14 | N56: Sulfur Product | R56: 20 | S56: Fired Heater Exhaust | W56: 26 | X56: Exhaust from DFB Reformer
C57: 3 | D57: As received raw biomass | H57: 9 | I57: Raw syngas to WGS/COS Hydrolysis | M57: 15 | N57: H2 Produced | R57: 21 | S57: Cooling Tower Makeup
C58: 4 | D58: As fed (dried and milled) biomass | H58: 10 | I58: Oxygen produced from ASU | M58: 16 | N58: FT Naphtha Product | R58: 22 | S58: Stack Gas
C59: 5 | D59: As received torrefied biomass | H59: 11 | I59: CO₂ captured from Selexol | M59: 17 | N59: FT Diesel Product | R59: 23 | S59: Ash Produced from TRIG
C60: 6 | D60: Steam feed to gasifier | H60: 12 | I60: Feed to FT Reactor | M60: 18 | N60: FT Jet Fuel Product | R60: 24 | S60: Ash Produced from ClearFuels
E62: Coal | F62: Dried Coal | G62: Raw Biom | I62: Torr Biom | J62: Steam | K62: ASU Air | L62: GT Air | M62: Raw Syngas | N62: O2 | O62: Selexol CO2 | P62: FT Feed | Q62: CO2 Seq. | R62: Sulfur | S62: H2 to Hydrotr | T62: F-T Naphtha | U62: F-T Diesel | V62: F-T Jet | W62: F-T LPG | X62: Exhaust | Y62: Make-up Water | Z62: Stack Gas | AA62: Ash | AB62: Ash | AC62: Air | AD62: Stack | AE62: Syngas Recycle | AF62: Syngas to WGS | AG62: Syngas to COS | AH62: O2 to Gasifier | AI62: H2 to FT Recycle | AJ62: O2 to ATR | AK62: O2 to Claus | AL62: Light HC from FT | AM62: CO2 from MDEA | AN62: Fuel Gas | AO62: Recycle to FT | AP62: Fuel Gas to GT | AQ62: GT Air Extract | AR62: LP Steam | AS62: CF Fuel Gas | AT62: Ni-DFB Fuel Gas
... 72 more rows

Sheet Environmental Results
A1: 0% Biomass - Drilldown of Life Cycle GHG and Sensitivity of Model Parameters
W2: Proprety | X2: Units | Y2: CO₂ | Z2: N2O | AA2: SF6 | AB2: CH4 | AC2: Mean | AD2: 0.05 | AE2: 0.95
W4: Coal Mining, Surface | X4: =Stats!E4 -> g CO₂e / MJ | Y4: =IF(ResultType="C", Data!C20,IF(ResultType="S",Data!C46,Data!C72))*UnitConv -> 0.4693252112 | Z4: =IF(ResultType="C", Data!D20,IF(ResultType="S",Data!D46,Data!D72))*UnitConv -> 0.0004311056235 | AA4: =IF(ResultType="C", Data!E20,IF(ResultType="S",Data!E46,Data!E72))*UnitConv -> 2.573060473e-10 | AB4: =IF(ResultType="C", Data!F20,IF(ResultType="S",Data!F46,Data!F72))*UnitConv -> 0.05193999528 | AC4: =Stats!F4 -> 3.259742703 | AD4: =Stats!J4 -> 3.259742703 | AE4: =Stats!M4 -> 3.259742703
W5: Biomass Production and Field Chipping | X5: =Stats!E5 -> g CO₂e / MJ | Y5: =IF(ResultType="C", Data!C21,IF(ResultType="S",Data!C47,Data!C73))*UnitConv -> 0 | Z5: =IF(ResultType="C", Data!D21,IF(ResultType="S",Data!D47,Data!D73))*UnitConv -> 0 | AA5: =IF(ResultType="C", Data!E21,IF(ResultType="S",Data!E47,Data!E73))*UnitConv -> 0 | AB5: =IF(ResultType="C", Data!F21,IF(ResultType="S",Data!F47,Data!F73))*UnitConv -> 0 | AC5: =Stats!F5 -> 0 | AD5: =Stats!J5 -> 0 | AE5: =Stats!M5 -> 0
W6: Biomass Direct Land Use Change | X6: =Stats!E6 -> g CO₂e / MJ | Y6: =IF(ResultType="C", Data!C22,IF(ResultType="S",Data!C48,Data!C74))*UnitConv -> 0 | Z6: =IF(ResultType="C", Data!D22,IF(ResultType="S",Data!D48,Data!D74))*UnitConv -> 0 | AA6: =IF(ResultType="C", Data!E22,IF(ResultType="S",Data!E48,Data!E74))*UnitConv -> 0 | AB6: =IF(ResultType="C", Data!F22,IF(ResultType="S",Data!F48,Data!F74))*UnitConv -> 0 | AC6: =Stats!F6 -> 0 | AD6: =Stats!J6 -> 0 | AE6: =Stats!M6 -> 0
W7: Biomass Indirect Land Use Change | X7: =Stats!E7 -> g CO₂e / MJ | Y7: =IF(ResultType="C", Data!C23,IF(ResultType="S",Data!C49,Data!C75))*UnitConv -> 0 | Z7: =IF(ResultType="C", Data!D23,IF(ResultType="S",Data!D49,Data!D75))*UnitConv -> 0 | AA7: =IF(ResultType="C", Data!E23,IF(ResultType="S",Data!E49,Data!E75))*UnitConv -> 0 | AB7: =IF(ResultType="C", Data!F23,IF(ResultType="S",Data!F49,Data!F75))*UnitConv -> 0 | AC7: =Stats!F7 -> 0 | AD7: =Stats!J7 -> 0 | AE7: =Stats!M7 -> 0
W8: Biomass Transport to Torrefaction Facility | X8: =Stats!E9 -> g CO₂e / MJ | Y8: =IF(ResultType="C", Data!C25,IF(ResultType="S",Data!C51,Data!C77))*UnitConv -> 0 | Z8: =IF(ResultType="C", Data!D25,IF(ResultType="S",Data!D51,Data!D77))*UnitConv -> 0 | AA8: =IF(ResultType="C", Data!E25,IF(ResultType="S",Data!E51,Data!E77))*UnitConv -> 0 | AB8: =IF(ResultType="C", Data!F25,IF(ResultType="S",Data!F51,Data!F77))*UnitConv -> 0 | AC8: =Stats!F9 -> 0 | AD8: =Stats!J9 -> 0 | AE8: =Stats!M9 -> 0
W9: Biomass Torrefaction | X9: =Stats!E10 -> g CO₂e / MJ | Y9: =IF(ResultType="C", Data!C26,IF(ResultType="S",Data!C52,Data!C78))*UnitConv -> 0 | Z9: =IF(ResultType="C", Data!D26,IF(ResultType="S",Data!D52,Data!D78))*UnitConv -> 0 | AA9: =IF(ResultType="C", Data!E26,IF(ResultType="S",Data!E52,Data!E78))*UnitConv -> 0 | AB9: =IF(ResultType="C", Data!F26,IF(ResultType="S",Data!F52,Data!F78))*UnitConv -> 0 | AC9: =Stats!F10 -> 0 | AD9: =Stats!J10 -> 0 | AE9: =Stats!M10 -> 0
W10: Transport of Chipped or Torrefied Biomass to CBTL Plant | X10: =Stats!E11 -> g CO₂e / MJ | Y10: =IF(ResultType="C", Data!C27,IF(ResultType="S",Data!C53,Data!C79))*UnitConv -> 0 | Z10: =IF(ResultType="C", Data!D27,IF(ResultType="S",Data!D53,Data!D79))*UnitConv -> 0 | AA10: =IF(ResultType="C", Data!E27,IF(ResultType="S",Data!E53,Data!E79))*UnitConv -> 0 | AB10: =IF(ResultType="C", Data!F27,IF(ResultType="S",Data!F53,Data!F79))*UnitConv -> 0 | AC10: =Stats!F11 -> 0 | AD10: =Stats!J11 -> 0 | AE10: =Stats!M11 -> 0
W11: Transport of Coal to CBTL Plant | X11: =Stats!E12 -> g CO₂e / MJ | Y11: =IF(ResultType="C", Data!C28,IF(ResultType="S",Data!C54,Data!C80))*UnitConv -> 3.124314078 | Z11: =IF(ResultType="C", Data!D28,IF(ResultType="S",Data!D54,Data!D80))*UnitConv -> 7.654118783e-05 | AA11: =IF(ResultType="C", Data!E28,IF(ResultType="S",Data!E54,Data!E80))*UnitConv -> 6.834399262e-12 | AB11: =IF(ResultType="C", Data!F28,IF(ResultType="S",Data!F54,Data!F80))*UnitConv -> 0.003572391926 | AC11: =Stats!F12 -> 5.5634327 | AD11: =Stats!J12 -> 5.5634327 | AE11: =Stats!M12 -> 5.5634327
W12: CBTL Plant Operations (includes CO₂ Compression) | X12: =Stats!E14 -> g CO₂e / MJ | Y12: =IF(ResultType="C", Data!C30,IF(ResultType="S",Data!C56,Data!C82))*UnitConv -> -0.8930373335 | Z12: =IF(ResultType="C", Data!D30,IF(ResultType="S",Data!D56,Data!D82))*UnitConv -> -0.00015403181 | AA12: =IF(ResultType="C", Data!E30,IF(ResultType="S",Data!E56,Data!E82))*UnitConv -> -4.517281491e-09 | AB12: =IF(ResultType="C", Data!F30,IF(ResultType="S",Data!F56,Data!F82))*UnitConv -> -0.04304381606 | AC12: =Stats!F14 -> -6.476742992 | AD12: =Stats!J14 -> -6.476742992 | AE12: =Stats!M14 -> -6.476742992
W13: CO₂ Pipeline Transport to CO₂-EOR Operation | X13: =Stats!E15 -> g CO₂e / MJ | Y13: =IF(ResultType="C", Data!C31,IF(ResultType="S",Data!C57,Data!C83))*UnitConv -> 0.4584104318 | Z13: =IF(ResultType="C", Data!D31,IF(ResultType="S",Data!D57,Data!D83))*UnitConv -> 1.15628731e-06 | AA13: =IF(ResultType="C", Data!E31,IF(ResultType="S",Data!E57,Data!E83))*UnitConv -> 0 | AB13: =IF(ResultType="C", Data!F31,IF(ResultType="S",Data!F57,Data!F83))*UnitConv -> 2.19356887e-05 | AC13: =Stats!F15 -> 0.1290637088 | AD13: =Stats!J15 -> 0.1290637088 | AE13: =Stats!M15 -> 0.1290637088
W14: CO₂-EOR Operation and CO₂ Storage | X14: =Stats!E16 -> g CO₂e / MJ | Y14: =IF(ResultType="C", Data!C32,IF(ResultType="S",Data!C58,Data!C84))*UnitConv -> 12.18954692 | Z14: =IF(ResultType="C", Data!D32,IF(ResultType="S",Data!D58,Data!D84))*UnitConv -> -4.745961557e-05 | AA14: =IF(ResultType="C", Data!E32,IF(ResultType="S",Data!E58,Data!E84))*UnitConv -> 6.750116693e-07 | AB14: =IF(ResultType="C", Data!F32,IF(ResultType="S",Data!F58,Data!F84))*UnitConv -> -0.02442398431 | AC14: =Stats!F16 -> 0 | AD14: =Stats!J16 -> 0 | AE14: =Stats!M16 -> 0
W15: Tansport of Blended Jet Fuel to Airport | X15: =Stats!E18 -> g CO₂e / MJ | Y15: =IF(ResultType="C", Data!C34,IF(ResultType="S",Data!C60,Data!C86))*UnitConv -> 0.1280851974 | Z15: =IF(ResultType="C", Data!D34,IF(ResultType="S",Data!D60,Data!D86))*UnitConv -> 2.308269599e-06 | AA15: =IF(ResultType="C", Data!E34,IF(ResultType="S",Data!E60,Data!E86))*UnitConv -> 2.49243187e-08 | AB15: =IF(ResultType="C", Data!F34,IF(ResultType="S",Data!F60,Data!F86))*UnitConv -> 0.0003690538612 | AC15: =Stats!F18 -> 0.1385676828 | AD15: =Stats!J18 -> 0.1385676828 | AE15: =Stats!M18 -> 0.1385676828
W16: Blending of F-T and Conv. Jet (includes Conv. Jet Fuel Profile) | X16: =Stats!E19 -> g CO₂e / MJ | Y16: =IF(ResultType="C", Data!C35,IF(ResultType="S",Data!C61,Data!C87))*UnitConv -> 5.880426562 | Z16: =IF(ResultType="C", Data!D35,IF(ResultType="S",Data!D61,Data!D87))*UnitConv -> 0.0001218908247 | AA16: =IF(ResultType="C", Data!E35,IF(ResultType="S",Data!E61,Data!E87))*UnitConv -> 1.298511691e-09 | AB16: =IF(ResultType="C", Data!F35,IF(ResultType="S",Data!F61,Data!F87))*UnitConv -> 0.0455073105 | AC16: =Stats!F19 -> 7.054462396 | AD16: =Stats!J19 -> 7.054462396 | AE16: =Stats!M19 -> 7.054462396
W17: Transport of F-T Jet to Blending Facility | X17: =Stats!E20 -> g CO₂e / MJ | Y17: =IF(ResultType="C", Data!C36,IF(ResultType="S",Data!C62,Data!C88))*UnitConv -> 0.05748495151 | Z17: =IF(ResultType="C", Data!D36,IF(ResultType="S",Data!D62,Data!D88))*UnitConv -> 1.045921958e-06 | AA17: =IF(ResultType="C", Data!E36,IF(ResultType="S",Data!E62,Data!E88))*UnitConv -> 1.112339207e-08 | AB17: =IF(ResultType="C", Data!F36,IF(ResultType="S",Data!F62,Data!F88))*UnitConv -> 0.0001650595619 | AC17: =Stats!F20 -> 0.06217673864 | AD17: =Stats!J20 -> 0.06217673864 | AE17: =Stats!M20 -> 0.06217673864
W18: Airplane Operation (Fuel Use) | X18: =Stats!E22 -> g CO₂e / MJ | Y18: =IF(ResultType="C", Data!C38,IF(ResultType="S",Data!C64,Data!C90))*UnitConv -> 72.1440266 | Z18: =IF(ResultType="C", Data!D38,IF(ResultType="S",Data!D64,Data!D90))*UnitConv -> 0.00189563 | AA18: =IF(ResultType="C", Data!E38,IF(ResultType="S",Data!E64,Data!E90))*UnitConv -> 0 | AB18: =IF(ResultType="C", Data!F38,IF(ResultType="S",Data!F64,Data!F90))*UnitConv -> 0.000473907 | AC18: =Stats!F22 -> 72.72077201 | AD18: =Stats!J22 -> 72.72077201 | AE18: =Stats!M22 -> 72.72077201
W19: Airplane Construction | X19: =Stats!E23 -> g CO₂e / MJ | Y19: =IF(ResultType="C", Data!C39,IF(ResultType="S",Data!C65,Data!C91))*UnitConv -> 0.03560016379 | Z19: =IF(ResultType="C", Data!D39,IF(ResultType="S",Data!D65,Data!D91))*UnitConv -> 6.164848853e-07 | AA19: =IF(ResultType="C", Data!E39,IF(ResultType="S",Data!E65,Data!E91))*UnitConv -> 3.611743149e-12 | AB19: =IF(ResultType="C", Data!F39,IF(ResultType="S",Data!F65,Data!F91))*UnitConv -> 5.843456494e-05 | AC19: =Stats!F23 -> 0.03724482276 | AD19: =Stats!J23 -> 0.03724482276 | AE19: =Stats!M23 -> 0.03724482276
W20: Total Greenhouse Gas Emissions | X20: =Stats!E24 -> g CO₂e / MJ | Y20: =IF(ResultType="C", Data!C40,IF(ResultType="S",Data!C66,Data!C92))*UnitConv -> 93.59418278 | Z20: =IF(ResultType="C", Data!D40,IF(ResultType="S",Data!D66,Data!D92))*UnitConv -> 0.002328803174 | AA20: =IF(ResultType="C", Data!E40,IF(ResultType="S",Data!E66,Data!E92))*UnitConv -> 7.081083625e-07 | AB20: =IF(ResultType="C", Data!F40,IF(ResultType="S",Data!F66,Data!F92))*UnitConv -> 0.03464028802 | AC20: =Stats!F24 -> 106.3095884 | AD20: =Stats!J24 -> 106.3095884 | AE20: =Stats!M24 -> 106.3095884
Y21: 1 | Z21: 298 | AA21: 22800 | AB21: 25
Y22: =SUMPRODUCT(Y20:AB20,Y21:AB21) -> 95.1703182
D29: =UnitLabel -> g CO₂e / MJ | E29: CO₂ | F29: CH₄ | G29: N₂O | H29: SF₆ | I29: Total | J29: 5th Percentile | K29: 95th Percentile | L29: H-N | M29: N-L
D30: =W20 -> Total Greenhouse Gas Emissions | E30: =Y20 -> 93.59418278 | F30: =AB20*GWPCH4 -> 0.8660072004 | G30: =Z20*GWPN2O -> 0.6939833459 | H30: =AA20*GWPSF6 -> 0.01614487066 | I30: =AC20 -> 106.3095884 | J30: =AD20 -> 106.3095884 | K30: =AE20 -> 106.3095884 | L30: =K30-I30 -> 0 | M30: =I30-J30 -> 0
D31: =W19 -> Airplane Construction | E31: =Y19 -> 0.03560016379 | F31: =AB19*GWPCH4 -> 0.001460864124 | G31: =Z19*GWPN2O -> 0.0001837124958 | H31: =AA19*GWPSF6 -> 8.23477438e-08 | I31: =AC19 -> 0.03724482276 | J31: =AD19 -> 0.03724482276 | K31: =AE19 -> 0.03724482276 | L31: 0 | M31: 0
D32: =W18 -> Airplane Operation (Fuel Use) | E32: =Y18 -> 72.1440266 | F32: =AB18*GWPCH4 -> 0.011847675 | G32: =Z18*GWPN2O -> 0.56489774 | H32: =AA18*GWPSF6 -> 0 | I32: =AC18 -> 72.72077201 | J32: =AD18 -> 72.72077201 | K32: =AE18 -> 72.72077201 | L32: 0 | M32: 0
D33: =W17 -> Transport of F-T Jet to Blending Facility | E33: =Y17 -> 0.05748495151 | F33: =AB17*GWPCH4 -> 0.004126489047 | G33: =Z17*GWPN2O -> 0.0003116847434 | H33: =AA17*GWPSF6 -> 0.0002536133393 | I33: =AC17 -> 0.06217673864 | J33: =AD17 -> 0.06217673864 | K33: =AE17 -> 0.06217673864 | L33: 0 | M33: 0
D34: =W16 -> Blending of F-T and Conv. Jet (includes Conv. Jet Fuel Profile) | E34: =Y16 -> 5.880426562 | F34: =AB16*GWPCH4 -> 1.137682762 | G34: =Z16*GWPN2O -> 0.03632346578 | H34: =AA16*GWPSF6 -> 2.960606654e-05 | I34: =AC16 -> 7.054462396 | J34: =AD16 -> 7.054462396 | K34: =AE16 -> 7.054462396 | L34: 0 | M34: 0
D35: =W15 -> Tansport of Blended Jet Fuel to Airport | E35: =Y15 -> 0.1280851974 | F35: =AB15*GWPCH4 -> 0.009226346529 | G35: =Z15*GWPN2O -> 0.0006878643404 | H35: =AA15*GWPSF6 -> 0.0005682744664 | I35: =AC15 -> 0.1385676828 | J35: =AD15 -> 0.1385676828 | K35: =AE15 -> 0.1385676828 | L35: 0 | M35: 0
D36: =W14 -> CO₂-EOR Operation and CO₂ Storage | E36: =Y14 -> 12.18954692 | F36: =AB14*GWPCH4 -> -0.6105996076 | G36: =Z14*GWPN2O -> -0.01414296544 | H36: =AA14*GWPSF6 -> 0.01539026606 | I36: =AC14 -> 0 | J36: =AD14 -> 0 | K36: =AE14 -> 0 | L36: 0 | M36: 0
D37: =W13 -> CO₂ Pipeline Transport to CO₂-EOR Operation | E37: =Y13 -> 0.4584104318 | F37: =AB13*GWPCH4 -> 0.0005483922175 | G37: =Z13*GWPN2O -> 0.0003445736184 | H37: =AA13*GWPSF6 -> 0 | I37: =AC13 -> 0.1290637088 | J37: =AD13 -> 0.1290637088 | K37: =AE13 -> 0.1290637088 | L37: 0 | M37: 0
D38: =W12 -> CBTL Plant Operations (includes CO₂ Compression) | E38: =Y12 -> -0.8930373335 | F38: =AB12*GWPCH4 -> -1.076095402 | G38: =Z12*GWPN2O -> -0.04590147937 | H38: =AA12*GWPSF6 -> -0.000102994018 | I38: =AC12 -> -6.476742992 | J38: =AD12 -> -6.476742992 | K38: =AE12 -> -6.476742992 | L38: 0 | M38: 0
D39: =W11 -> Transport of Coal to CBTL Plant | E39: =Y11 -> 3.124314078 | F39: =AB11*GWPCH4 -> 0.08930979814 | G39: =Z11*GWPN2O -> 0.02280927397 | H39: =AA11*GWPSF6 -> 1.558243032e-07 | I39: =AC11 -> 5.5634327 | J39: =AD11 -> 5.5634327 | K39: =AE11 -> 5.5634327 | L39: 0 | M39: 0
D40: =W10 -> Transport of Chipped or Torrefied Biomass to CBTL Plant | E40: =Y10 -> 0 | F40: =AB10*GWPCH4 -> 0 | G40: =Z10*GWPN2O -> 0 | H40: =AA10*GWPSF6 -> 0 | I40: =AC10 -> 0 | J40: =AD10 -> 0 | K40: =AE10 -> 0 | L40: 0 | M40: 0
D41: =W9 -> Biomass Torrefaction | E41: =Y9 -> 0 | F41: =AB9*GWPCH4 -> 0 | G41: =Z9*GWPN2O -> 0 | H41: =AA9*GWPSF6 -> 0 | I41: =AC9 -> 0 | J41: =AD9 -> 0 | K41: =AE9 -> 0 | L41: 0 | M41: 0
D42: =W8 -> Biomass Transport to Torrefaction Facility | E42: =Y8 -> 0 | F42: =AB8*GWPCH4 -> 0 | G42: =Z8*GWPN2O -> 0 | H42: =AA8*GWPSF6 -> 0 | I42: =AC8 -> 0 | J42: =AD8 -> 0 | K42: =AE8 -> 0 | L42: 0 | M42: 0
D43: =W7 -> Biomass Indirect Land Use Change | E43: =Y7 -> 0 | F43: =AB7*GWPCH4 -> 0 | G43: =Z7*GWPN2O -> 0 | H43: =AA7*GWPSF6 -> 0 | I43: =AC7 -> 0 | J43: =AD7 -> 0 | K43: =AE7 -> 0 | L43: 0 | M43: 0
D44: =W6 -> Biomass Direct Land Use Change | E44: =Y6 -> 0 | F44: =AB6*GWPCH4 -> 0 | G44: =Z6*GWPN2O -> 0 | H44: =AA6*GWPSF6 -> 0 | I44: =AC6 -> 0 | J44: =AD6 -> 0 | K44: =AE6 -> 0 | L44: 0 | M44: 0
D45: =W5 -> Biomass Production and Field Chipping | E45: =Y5 -> 0 | F45: =AB5*GWPCH4 -> 0 | G45: =Z5*GWPN2O -> 0 | H45: =AA5*GWPSF6 -> 0 | I45: =AC5 -> 0 | J45: =AD5 -> 0 | K45: =AE5 -> 0 | L45: 0 | M45: 0
D46: =W4 -> Coal Mining, Surface | E46: =Y4 -> 0.4693252112 | F46: =AB4*GWPCH4 -> 1.298499882 | G46: =Z4*GWPN2O -> 0.1284694758 | H46: =AA4*GWPSF6 -> 5.866577879e-06 | I46: =AC4 -> 3.259742703 | J46: =AD4 -> 3.259742703 | K46: =AE4 -> 3.259742703 | L46: 0 | M46: 0
A48: 10% Biomass, Chipped - Drilldown of Life Cycle GHG and Sensitivity of Model Parameters
W49: Proprety | X49: Units | Y49: CO₂ | Z49: N2O | AA49: SF6 | AB49: CH4 | AC49: Mean | AD49: Min | AE49: Max
W51: Coal Mining, Surface | X51: =Stats!E26 -> g CO₂e / MJ | Y51: =IF(ResultType="C",Data!J20,IF(ResultType="S",Data!J46,Data!J72))*UnitConv -> 0.4327822938 | Z51: =IF(ResultType="C",Data!K20,IF(ResultType="S",Data!K46,Data!K72))*UnitConv -> 0.0003975385856 | AA51: =IF(ResultType="C",Data!L20,IF(ResultType="S",Data!L46,Data!L72))*UnitConv -> 2.372715097e-10 | AB51: =IF(ResultType="C",Data!M20,IF(ResultType="S",Data!M46,Data!M72))*UnitConv -> 0.04789580821 | AC51: =Stats!F26 -> 0.4901855501 | AD51: =Stats!J26 -> 0.4901855501 | AE51: =Stats!M26 -> 0.4901855501
W52: Biomass Production and Field Chipping | X52: =Stats!E27 -> g CO₂e / MJ | Y52: =IF(ResultType="C",Data!J21,IF(ResultType="S",Data!J47,Data!J73))*UnitConv -> -9.314220704 | Z52: =IF(ResultType="C",Data!K21,IF(ResultType="S",Data!K47,Data!K73))*UnitConv -> 0.001078704559 | AA52: =IF(ResultType="C",Data!L21,IF(ResultType="S",Data!L47,Data!L73))*UnitConv -> 2.579414578e-09 | AB52: =IF(ResultType="C",Data!M21,IF(ResultType="S",Data!M47,Data!M73))*UnitConv -> 0.0005503256661 | AC52: =Stats!F27 -> -2.517164808 | AD52: =Stats!J27 -> -2.517164808 | AE52: =Stats!M27 -> -2.517164808
W53: Biomass Direct Land Use Change | X53: =Stats!E28 -> g CO₂e / MJ | Y53: =IF(ResultType="C",Data!J22,IF(ResultType="S",Data!J48,Data!J74))*UnitConv -> 0.2213650522 | Z53: =IF(ResultType="C",Data!K22,IF(ResultType="S",Data!K48,Data!K74))*UnitConv -> 0 | AA53: =IF(ResultType="C",Data!L22,IF(ResultType="S",Data!L48,Data!L74))*UnitConv -> 0 | AB53: =IF(ResultType="C",Data!M22,IF(ResultType="S",Data!M48,Data!M74))*UnitConv -> 0 | AC53: =Stats!F28 -> 0.06205762721 | AD53: =Stats!J28 -> 0.06205762721 | AE53: =Stats!M28 -> 0.06205762721
W54: Biomass Indirect Land Use Change | X54: =Stats!E29 -> g CO₂e / MJ | Y54: =IF(ResultType="C",Data!J23,IF(ResultType="S",Data!J49,Data!J75))*UnitConv -> 0.8169584543 | Z54: =IF(ResultType="C",Data!K23,IF(ResultType="S",Data!K49,Data!K75))*UnitConv -> 2.985552627e-05 | AA54: =IF(ResultType="C",Data!L23,IF(ResultType="S",Data!L49,Data!L75))*UnitConv -> 0 | AB54: =IF(ResultType="C",Data!M23,IF(ResultType="S",Data!M49,Data!M75))*UnitConv -> 0 | AC54: =Stats!F29 -> 1.420189945 | AD54: =Stats!J29 -> 1.420189945 | AE54: =Stats!M29 -> 1.420189945
W55: Biomass Transport to Torrefaction Facility | X55: =Stats!E31 -> g CO₂e / MJ | Y55: =IF(ResultType="C",Data!J25,IF(ResultType="S",Data!J51,Data!J77))*UnitConv -> 0 | Z55: =IF(ResultType="C",Data!K25,IF(ResultType="S",Data!K51,Data!K77))*UnitConv -> 0 | AA55: =IF(ResultType="C",Data!L25,IF(ResultType="S",Data!L51,Data!L77))*UnitConv -> 0 | AB55: =IF(ResultType="C",Data!M25,IF(ResultType="S",Data!M51,Data!M77))*UnitConv -> 0 | AC55: =Stats!F31 -> 0 | AD55: =Stats!J31 -> 0 | AE55: =Stats!M31 -> 0
W56: Biomass Torrefaction | X56: =Stats!E32 -> g CO₂e / MJ | Y56: =IF(ResultType="C",Data!J26,IF(ResultType="S",Data!J52,Data!J78))*UnitConv -> 0 | Z56: =IF(ResultType="C",Data!K26,IF(ResultType="S",Data!K52,Data!K78))*UnitConv -> 0 | AA56: =IF(ResultType="C",Data!L26,IF(ResultType="S",Data!L52,Data!L78))*UnitConv -> 0 | AB56: =IF(ResultType="C",Data!M26,IF(ResultType="S",Data!M52,Data!M78))*UnitConv -> 0 | AC56: =Stats!F32 -> 0 | AD56: =Stats!J32 -> 0 | AE56: =Stats!M32 -> 0
W57: Transport of Chipped or Torrefied Biomass to CBTL Plant | X57: =Stats!E33 -> g CO₂e / MJ | Y57: =IF(ResultType="C",Data!J27,IF(ResultType="S",Data!J53,Data!J79))*UnitConv -> 0.02903869414 | Z57: =IF(ResultType="C",Data!K27,IF(ResultType="S",Data!K53,Data!K79))*UnitConv -> 7.106309025e-07 | AA57: =IF(ResultType="C",Data!L27,IF(ResultType="S",Data!L53,Data!L79))*UnitConv -> 4.145541216e-13 | AB57: =IF(ResultType="C",Data!M27,IF(ResultType="S",Data!M53,Data!M79))*UnitConv -> 8.188220979e-05 | AC57: =Stats!F33 -> 0.05382108403 | AD57: =Stats!J33 -> 0.05382108403 | AE57: =Stats!M33 -> 0.05382108403
W58: Transport of Coal to CBTL Plant | X58: =Stats!E34 -> g CO₂e / MJ | Y58: =IF(ResultType="C",Data!J28,IF(ResultType="S",Data!J54,Data!J80))*UnitConv -> 2.88104662 | Z58: =IF(ResultType="C",Data!K28,IF(ResultType="S",Data!K54,Data!K80))*UnitConv -> 7.058148604e-05 | AA58: =IF(ResultType="C",Data!L28,IF(ResultType="S",Data!L54,Data!L80))*UnitConv -> 6.30225464e-12 | AB58: =IF(ResultType="C",Data!M28,IF(ResultType="S",Data!M54,Data!M80))*UnitConv -> 0.003294235927 | AC58: =Stats!F34 -> 5.132267726 | AD58: =Stats!J34 -> 5.132267726 | AE58: =Stats!M34 -> 5.132267726
W59: CBTL Plant Operations (includes CO₂ Compression) | X59: =Stats!E36 -> g CO₂e / MJ | Y59: =IF(ResultType="C",Data!J30,IF(ResultType="S",Data!J56,Data!J82))*UnitConv -> 0.2296410132 | Z59: =IF(ResultType="C",Data!K30,IF(ResultType="S",Data!K56,Data!K82))*UnitConv -> -0.0001419477281 | AA59: =IF(ResultType="C",Data!L30,IF(ResultType="S",Data!L56,Data!L82))*UnitConv -> -3.920347049e-09 | AB59: =IF(ResultType="C",Data!M30,IF(ResultType="S",Data!M56,Data!M82))*UnitConv -> -0.03752498199 | AC59: =Stats!F36 -> -4.136719921 | AD59: =Stats!J36 -> -4.136719921 | AE59: =Stats!M36 -> -4.136719921
W60: CO₂ Pipeline Transport to CO₂-EOR Operation | X60: =Stats!E37 -> g CO₂e / MJ | Y60: =IF(ResultType="C",Data!J31,IF(ResultType="S",Data!J57,Data!J83))*UnitConv -> 0.4615553935 | Z60: =IF(ResultType="C",Data!K31,IF(ResultType="S",Data!K57,Data!K83))*UnitConv -> 1.164220112e-06 | AA60: =IF(ResultType="C",Data!L31,IF(ResultType="S",Data!L57,Data!L83))*UnitConv -> 0 | AB60: =IF(ResultType="C",Data!M31,IF(ResultType="S",Data!M57,Data!M83))*UnitConv -> 2.208618026e-05 | AC60: =Stats!F37 -> 0.1296363384 | AD60: =Stats!J37 -> 0.1296363384 | AE60: =Stats!M37 -> 0.1296363384
W61: CO₂-EOR Operation and CO₂ Storage | X61: =Stats!E38 -> g CO₂e / MJ | Y61: =IF(ResultType="C",Data!J32,IF(ResultType="S",Data!J58,Data!J84))*UnitConv -> 12.27800387 | Z61: =IF(ResultType="C",Data!K32,IF(ResultType="S",Data!K58,Data!K84))*UnitConv -> -4.78040199e-05 | AA61: =IF(ResultType="C",Data!L32,IF(ResultType="S",Data!L58,Data!L84))*UnitConv -> 6.799100854e-07 | AB61: =IF(ResultType="C",Data!M32,IF(ResultType="S",Data!M58,Data!M84))*UnitConv -> -0.02460122396 | AC61: =Stats!F38 -> 0 | AD61: =Stats!J38 -> 0 | AE61: =Stats!M38 -> 0
W62: Tansport of Blended Jet Fuel to Airport | X62: =Stats!E40 -> g CO₂e / MJ | Y62: =IF(ResultType="C",Data!J34,IF(ResultType="S",Data!J60,Data!J86))*UnitConv -> 0.1280851974 | Z62: =IF(ResultType="C",Data!K34,IF(ResultType="S",Data!K60,Data!K86))*UnitConv -> 2.308269599e-06 | AA62: =IF(ResultType="C",Data!L34,IF(ResultType="S",Data!L60,Data!L86))*UnitConv -> 2.49243187e-08 | AB62: =IF(ResultType="C",Data!M34,IF(ResultType="S",Data!M60,Data!M86))*UnitConv -> 0.0003690538612 | AC62: =Stats!F40 -> 0.1385676828 | AD62: =Stats!J40 -> 0.1385676828 | AE62: =Stats!M40 -> 0.1385676828
... 64 more rows

Sheet Economic Results
A1: 0% Biomass - Drilldown and Sensitivity of FT Jet Fuel Required Selling Price | AG1: Proprety | AH1: Units | AI1: Mean | AJ1: Min | AK1: Max | AL1: StdDev | AM1: 0.05 | AN1: 0.25 | AO1: 0.75 | AP1: 0.95
AG3: =Stats!D138 -> Total Fixed O&M | AH3: =Stats!E138 -> $MM/yr | AI3: =Stats!F138 -> 262.5789151 | AJ3: =Stats!G138 -> 262.5789151 | AK3: =Stats!H138 -> 262.5789151 | AL3: =Stats!I138 -> 0 | AM3: =Stats!J138 -> 262.5789151 | AN3: =Stats!K138 -> 262.5789151 | AO3: =Stats!L138 -> 262.5789151 | AP3: =Stats!M138 -> 262.5789151
AG4: =Stats!D139 -> Total Variable O&M | AH4: =Stats!E139 -> $MM/yr | AI4: =Stats!F139 -> 163.5669382 | AJ4: =Stats!G139 -> 163.5669382 | AK4: =Stats!H139 -> 163.5669382 | AL4: =Stats!I139 -> 0 | AM4: =Stats!J139 -> 163.5669382 | AN4: =Stats!K139 -> 163.5669382 | AO4: =Stats!L139 -> 163.5669382 | AP4: =Stats!M139 -> 163.5669382
AG5: =Stats!D140 -> TOTAL OVERNIGHT COST | AH5: =Stats!E140 -> $MM | AI5: =Stats!F140 -> 7265.021578 | AJ5: =Stats!G140 -> 7265.021578 | AK5: =Stats!H140 -> 7265.021578 | AL5: =Stats!I140 -> 0 | AM5: =Stats!J140 -> 7265.021578 | AN5: =Stats!K140 -> 7265.021578 | AO5: =Stats!L140 -> 7265.021578 | AP5: =Stats!M140 -> 7265.021578
AG6: =Stats!D141 -> Coal | AH6: =Stats!E141 -> $MM/yr | AI6: =Stats!F141 -> 363.1007239 | AJ6: =Stats!G141 -> 363.1007239 | AK6: =Stats!H141 -> 363.1007239 | AL6: =Stats!I141 -> 0 | AM6: =Stats!J141 -> 363.1007239 | AN6: =Stats!K141 -> 363.1007239 | AO6: =Stats!L141 -> 363.1007239 | AP6: =Stats!M141 -> 363.1007239
AG7: =Stats!D142 -> Raw Biomass | AH7: =Stats!E142 -> $MM/yr | AI7: =Stats!F142 -> 0 | AJ7: =Stats!G142 -> 0 | AK7: =Stats!H142 -> 0 | AL7: =Stats!I142 -> 0 | AM7: =Stats!J142 -> 0 | AN7: =Stats!K142 -> 0 | AO7: =Stats!L142 -> 0 | AP7: =Stats!M142 -> 0
AG8: =Stats!D143 -> Torrefied Biomass | AH8: =Stats!E143 -> $MM/yr | AI8: =Stats!F143 -> 0 | AJ8: =Stats!G143 -> 0 | AK8: =Stats!H143 -> 0 | AL8: =Stats!I143 -> 0 | AM8: =Stats!J143 -> 0 | AN8: =Stats!K143 -> 0 | AO8: =Stats!L143 -> 0 | AP8: =Stats!M143 -> 0
AG9: =Stats!D144 -> Power Credit | AH9: =Stats!E144 -> $MM/yr | AI9: =Stats!F144 -> 129.1153219 | AJ9: =Stats!G144 -> 129.1153219 | AK9: =Stats!H144 -> 129.1153219 | AL9: =Stats!I144 -> 0 | AM9: =Stats!J144 -> 129.1153219 | AN9: =Stats!K144 -> 129.1153219 | AO9: =Stats!L144 -> 129.1153219 | AP9: =Stats!M144 -> 129.1153219
AG10: =Stats!D145 -> CO₂ for EOR Credit | AH10: =Stats!E145 -> $MM/yr | AI10: =Stats!F145 -> 368.043568 | AJ10: =Stats!G145 -> 368.043568 | AK10: =Stats!H145 -> 368.043568 | AL10: =Stats!I145 -> 0 | AM10: =Stats!J145 -> 368.043568 | AN10: =Stats!K145 -> 368.043568 | AO10: =Stats!L145 -> 368.043568 | AP10: =Stats!M145 -> 368.043568
AG11: =Stats!D146 -> Annual Required Revenue | AH11: =Stats!E146 -> $MM/yr | AI11: =Stats!F146 -> 2010.26529 | AJ11: =Stats!G146 -> 2010.26529 | AK11: =Stats!H146 -> 2010.26529 | AL11: =Stats!I146 -> 0 | AM11: =Stats!J146 -> 2010.26529 | AN11: =Stats!K146 -> 2010.26529 | AO11: =Stats!L146 -> 2010.26529 | AP11: =Stats!M146 -> 2010.26529
AG12: =Stats!D147 -> RSP FT Jet RSP | AH12: =Stats!E147 -> $/bbl | AI12: =Stats!F147 -> 143.9129761 | AJ12: =Stats!G147 -> 143.9129761 | AK12: =Stats!H147 -> 143.9129761 | AL12: =Stats!I147 -> 0 | AM12: =Stats!J147 -> 143.9129761 | AN12: =Stats!K147 -> 143.9129761 | AO12: =Stats!L147 -> 143.9129761 | AP12: =Stats!M147 -> 143.9129761
AG13: =Stats!D148 -> RSP FT Diesel | AH13: =Stats!E148 -> $/bbl | AI13: =Stats!F148 -> 142.4738463 | AJ13: =Stats!G148 -> 142.4738463 | AK13: =Stats!H148 -> 142.4738463 | AL13: =Stats!I148 -> 0 | AM13: =Stats!J148 -> 142.4738463 | AN13: =Stats!K148 -> 142.4738463 | AO13: =Stats!L148 -> 142.4738463 | AP13: =Stats!M148 -> 142.4738463
AG14: =Stats!D149 -> RSP Naphtha | AH14: =Stats!E149 -> $/bbl | AI14: =Stats!F149 -> 99.29995348 | AJ14: =Stats!G149 -> 99.29995348 | AK14: =Stats!H149 -> 99.29995348 | AL14: =Stats!I149 -> 0 | AM14: =Stats!J149 -> 99.29995348 | AN14: =Stats!K149 -> 99.29995348 | AO14: =Stats!L149 -> 99.29995348 | AP14: =Stats!M149 -> 99.29995348
AG15: =Stats!D150 -> RSP LPG | AH15: =Stats!E150 -> $/bbl | AI15: =Stats!F150 -> 57.56519042 | AJ15: =Stats!G150 -> 57.56519042 | AK15: =Stats!H150 -> 57.56519042 | AL15: =Stats!I150 -> 0 | AM15: =Stats!J150 -> 57.56519042 | AN15: =Stats!K150 -> 57.56519042 | AO15: =Stats!L150 -> 57.56519042 | AP15: =Stats!M150 -> 57.56519042
AG16: =Stats!D151 -> Crude Oil Equivalent | AH16: =Stats!E151 -> $/bbl | AI16: =Stats!F151 -> 118.7282052 | AJ16: =Stats!G151 -> 118.7282052 | AK16: =Stats!H151 -> 118.7282052 | AL16: =Stats!I151 -> 0 | AM16: =Stats!J151 -> 118.7282052 | AN16: =Stats!K151 -> 118.7282052 | AO16: =Stats!L151 -> 118.7282052 | AP16: =Stats!M151 -> 118.7282052
AG18: Total | AH18: MM$/yr | AI18: =AI11+AI10+AI9 -> 2507.42418 | AM18: =AM11+AM10+AM9 -> 2507.42418 | AP18: 2507.42418
AG19: Capital | AH19: MM$/yr | AI19: =AI18-(SUM(AI6:AI8,AI3:AI4)) -> 1718.177603 | AM19: =AM18-(SUM(AM6:AM8,AM3:AM4)) -> 1718.177603 | AP19: 1718.177603
C21: $/bbl | D21: Mean | E21: 5th Percentile | F21: 95th Percentile | G21: H-N | H21: N-L | AG21: Capital | AH21: =AI19/AI18 -> 0.6852361147 | AI21: =AH21*$AI$16 -> 81.35685406 | AL21: =AM19/AM18 -> 0.6852361147 | AM21: =AL21*$AM$16 -> 81.35685406 | AO21: =AP19/AP18 -> 0.6852361147 | AP21: =AO21*$AP$16 -> 81.35685406
C22: Total | D22: =AI26 -> 118.7282052 | E22: =AM26 -> 118.7282052 | F22: =AP26 -> 118.7282052 | G22: =AP26-AI26 -> 0 | H22: =AI26-AM26 -> 0 | AG22: Fixed O&M | AH22: =AI3/AI18 -> 0.1047205803 | AI22: =AH22*$AI$16 -> 12.43328655 | AL22: =AM3/AM18 -> 0.1047205803 | AM22: =AL22*$AM$16 -> 12.43328655 | AO22: =AP3/AP18 -> 0.1047205803 | AP22: =AO22*$AP$16 -> 12.43328655
C23: Capital | D23: =AI21 -> 81.35685406 | E23: =AM21 -> 81.35685406 | F23: =AP21 -> 81.35685406 | G23: =AP21-AI21 -> 0 | H23: =AI21-AM21 -> 0 | AG23: Variable O&M | AH23: =AI4/AI18 -> 0.06523305448 | AI23: 7.745003481 | AL23: =AM4/AM18 -> 0.06523305448 | AM23: 7.745003481 | AO23: =AP4/AP18 -> 0.06523305448 | AP23: 7.745003481
C24: Fixed O&M | D24: =AI22 -> 12.43328655 | E24: =AM22 -> 12.43328655 | F24: =AP22 -> 12.43328655 | G24: =AP22-AI22 -> 0 | H24: =AI22-AM22 -> 0 | AG24: Coal | AH24: =AI6/AI18 -> 0.1448102506 | AI24: 17.19306115 | AL24: =AM6/AM18 -> 0.1448102506 | AM24: 17.19306115 | AO24: =AP6/AP18 -> 0.1448102506 | AP24: 17.19306115
C25: Variable O&M | D25: =AI23 -> 7.745003481 | E25: =AM23 -> 7.745003481 | F25: =AP23 -> 7.745003481 | G25: =AP23-AI23 -> 0 | H25: =AI23-AM23 -> 0 | AG25: Biomass | AH25: =AI7/AI18 -> 0 | AI25: 0 | AL25: =AM7/AM18 -> 0 | AM25: 0 | AO25: =AP7/AP18 -> 0 | AP25: 0
C26: Coal | D26: =AI24 -> 17.19306115 | E26: =AM24 -> 17.19306115 | F26: =AP24 -> 17.19306115 | G26: =AP24-AI24 -> 0 | H26: =AI24-AM24 -> 0 | AG26: Total | AI26: =SUM(AI21:AI25) -> 118.7282052 | AM26: =SUM(AM21:AM25) -> 118.7282052 | AP26: 118.7282052
C27: Biomass | D27: =AI25 -> 0 | E27: =AM25 -> 0 | F27: =AP25 -> 0 | G27: =AP25-AI25 -> 0 | H27: =AI25-AM25 -> 0
A37: 10% Biomass, Chipped - Drilldown and Sensitivity of FT Jet Fuel Required Selling Price | AG37: Proprety | AH37: Units | AI37: Mean | AJ37: Min | AK37: Max | AL37: StdDev | AM37: 0.05 | AN37: 0.25 | AO37: 0.75 | AP37: 0.95
AG39: =Stats!D152 -> Total Fixed O&M | AH39: =Stats!E152 -> $MM/yr | AI39: =Stats!F152 -> 272.45872 | AJ39: =Stats!G152 -> 272.45872 | AK39: =Stats!H152 -> 272.45872 | AL39: =Stats!I152 -> 0 | AM39: =Stats!J152 -> 272.45872 | AN39: =Stats!K152 -> 272.45872 | AO39: =Stats!L152 -> 272.45872 | AP39: =Stats!M152 -> 272.45872
AG40: =Stats!D153 -> Total Variable O&M | AH40: =Stats!E153 -> $MM/yr | AI40: =Stats!F153 -> 165.3856168 | AJ40: =Stats!G153 -> 165.3856168 | AK40: =Stats!H153 -> 165.3856168 | AL40: =Stats!I153 -> 0 | AM40: =Stats!J153 -> 165.3856168 | AN40: =Stats!K153 -> 165.3856168 | AO40: =Stats!L153 -> 165.3856168 | AP40: =Stats!M153 -> 165.3856168
AG41: =Stats!D154 -> TOTAL OVERNIGHT COST | AH41: =Stats!E154 -> $MM | AI41: =Stats!F154 -> 7370.036381 | AJ41: =Stats!G154 -> 7370.036381 | AK41: =Stats!H154 -> 7370.036381 | AL41: =Stats!I154 -> 0 | AM41: =Stats!J154 -> 7370.036381 | AN41: =Stats!K154 -> 7370.036381 | AO41: =Stats!L154 -> 7370.036381 | AP41: =Stats!M154 -> 7370.036381
AG42: =Stats!D155 -> Coal | AH42: =Stats!E155 -> $MM/yr | AI42: =Stats!F155 -> 334.9622505 | AJ42: =Stats!G155 -> 334.9622505 | AK42: =Stats!H155 -> 334.9622505 | AL42: =Stats!I155 -> 0 | AM42: =Stats!J155 -> 334.9622505 | AN42: =Stats!K155 -> 334.9622505 | AO42: =Stats!L155 -> 334.9622505 | AP42: =Stats!M155 -> 334.9622505
AG43: =Stats!D156 -> Raw Biomass | AH43: =Stats!E156 -> $MM/yr | AI43: =Stats!F156 -> 33.26014228 | AJ43: =Stats!G156 -> 33.26014228 | AK43: =Stats!H156 -> 33.26014228 | AL43: =Stats!I156 -> 0 | AM43: =Stats!J156 -> 33.26014228 | AN43: =Stats!K156 -> 33.26014228 | AO43: =Stats!L156 -> 33.26014228 | AP43: =Stats!M156 -> 33.26014228
AG44: =Stats!D157 -> Torrefied Biomass | AH44: =Stats!E157 -> $MM/yr | AI44: =Stats!F157 -> 0 | AJ44: =Stats!G157 -> 0 | AK44: =Stats!H157 -> 0 | AL44: =Stats!I157 -> 0 | AM44: =Stats!J157 -> 0 | AN44: =Stats!K157 -> 0 | AO44: =Stats!L157 -> 0 | AP44: =Stats!M157 -> 0
AG45: =Stats!D158 -> Power Credit | AH45: =Stats!E158 -> $MM/yr | AI45: =Stats!F158 -> 119.0977538 | AJ45: =Stats!G158 -> 119.0977538 | AK45: =Stats!H158 -> 119.0977538 | AL45: =Stats!I158 -> 0 | AM45: =Stats!J158 -> 119.0977538 | AN45: =Stats!K158 -> 119.0977538 | AO45: =Stats!L158 -> 119.0977538 | AP45: =Stats!M158 -> 119.0977538
AG46: =Stats!D159 -> CO₂ for EOR Credit | AH46: =Stats!E159 -> $MM/yr | AI46: =Stats!F159 -> 370.7152578 | AJ46: =Stats!G159 -> 370.7152578 | AK46: =Stats!H159 -> 370.7152578 | AL46: =Stats!I159 -> 0 | AM46: =Stats!J159 -> 370.7152578 | AN46: =Stats!K159 -> 370.7152578 | AO46: =Stats!L159 -> 370.7152578 | AP46: =Stats!M159 -> 370.7152578
AG47: =Stats!D160 -> Annual Required Revenue | AH47: =Stats!E160 -> $MM/yr | AI47: =Stats!F160 -> 2059.267322 | AJ47: =Stats!G160 -> 2059.267322 | AK47: =Stats!H160 -> 2059.267322 | AL47: =Stats!I160 -> 0 | AM47: =Stats!J160 -> 2059.267322 | AN47: =Stats!K160 -> 2059.267322 | AO47: =Stats!L160 -> 2059.267322 | AP47: =Stats!M160 -> 2059.267322
AG48: =Stats!D161 -> RSP FT Jet RSP | AH48: =Stats!E161 -> $/bbl | AI48: =Stats!F161 -> 147.4198783 | AJ48: =Stats!G161 -> 147.4198783 | AK48: =Stats!H161 -> 147.4198783 | AL48: =Stats!I161 -> 0 | AM48: =Stats!J161 -> 147.4198783 | AN48: =Stats!K161 -> 147.4198783 | AO48: =Stats!L161 -> 147.4198783 | AP48: =Stats!M161 -> 147.4198783
AG49: =Stats!D162 -> RSP FT Diesel | AH49: =Stats!E162 -> $/bbl | AI49: =Stats!F162 -> 145.9456795 | AJ49: =Stats!G162 -> 145.9456795 | AK49: =Stats!H162 -> 145.9456795 | AL49: =Stats!I162 -> 0 | AM49: =Stats!J162 -> 145.9456795 | AN49: =Stats!K162 -> 145.9456795 | AO49: =Stats!L162 -> 145.9456795 | AP49: =Stats!M162 -> 145.9456795
AG50: =Stats!D163 -> RSP Naphtha | AH50: =Stats!E163 -> $/bbl | AI50: =Stats!F163 -> 101.719716 | AJ50: =Stats!G163 -> 101.719716 | AK50: =Stats!H163 -> 101.719716 | AL50: =Stats!I163 -> 0 | AM50: =Stats!J163 -> 101.719716 | AN50: =Stats!K163 -> 101.719716 | AO50: =Stats!L163 -> 101.719716 | AP50: =Stats!M163 -> 101.719716
AG51: =Stats!D164 -> RSP LPG | AH51: =Stats!E164 -> $/bbl | AI51: =Stats!F164 -> 58.96795132 | AJ51: =Stats!G164 -> 58.96795132 | AK51: =Stats!H164 -> 58.96795132 | AL51: =Stats!I164 -> 0 | AM51: =Stats!J164 -> 58.96795132 | AN51: =Stats!K164 -> 58.96795132 | AO51: =Stats!L164 -> 58.96795132 | AP51: =Stats!M164 -> 58.96795132
AG52: =Stats!D165 -> Crude Oil Equivalent | AH52: =Stats!E165 -> $/bbl | AI52: =Stats!F165 -> 121.6213996 | AJ52: =Stats!G165 -> 121.6213996 | AK52: =Stats!H165 -> 121.6213996 | AL52: =Stats!I165 -> 0 | AM52: =Stats!J165 -> 121.6213996 | AN52: =Stats!K165 -> 121.6213996 | AO52: =Stats!L165 -> 121.6213996 | AP52: =Stats!M165 -> 121.6213996
AG54: Total | AH54: MM$/yr | AI54: =AI47+AI46+AI45 -> 2549.080334 | AM54: =AM47+AM46+AM45 -> 2549.080334 | AP54: =AP47+AP46+AP45 -> 2549.080334
AG55: Capital | AH55: MM$/yr | AI55: =AI54-(SUM(AI42:AI44,AI39:AI40)) -> 1743.013604 | AM55: =AM54-(SUM(AM42:AM44,AM39:AM40)) -> 1743.013604 | AP55: =AP54-(SUM(AP42:AP44,AP39:AP40)) -> 1743.013604
C57: $/bbl | D57: Mean | E57: 5th Percentile | F57: 95th Percentile | G57: H-N | H57: N-L | AG57: Capital | AH57: =AI55/AI54 -> 0.6837813548 | AI57: =AH57*$AI$52 -> 83.1624454 | AL57: =AM55/AM54 -> 0.6837813548 | AM57: =AL57*$AM$52 -> 83.1624454 | AO57: =AP55/AP54 -> 0.6837813548 | AP57: =AO57*$AP$52 -> 83.1624454
C58: Total | D58: =AI62 -> 121.6213996 | E58: =AM62 -> 121.6213996 | F58: =AP62 -> 121.6213996 | G58: =AP62-AI62 -> 0 | H58: =AI62-AM62 -> 0 | AG58: Fixed O&M | AH58: =AI39/AI54 -> 0.1068851053 | AI58: =AH58*$AI$52 -> 12.99951611 | AL58: =AM39/AM54 -> 0.1068851053 | AM58: =AL58*$AM$52 -> 12.99951611 | AO58: =AP39/AP54 -> 0.1068851053 | AP58: =AO58*$AP$52 -> 12.99951611
C59: Capital | D59: =AI57 -> 83.1624454 | E59: =AM57 -> 83.1624454 | F59: =AP57 -> 83.1624454 | G59: =AP57-AI57 -> 0 | H59: =AI57-AM57 -> 0 | AG59: Variable O&M | AH59: =AI40/AI54 -> 0.06488050399 | AI59: 7.890857702 | AL59: =AM40/AM54 -> 0.06488050399 | AM59: 7.890857702 | AO59: =AP40/AP54 -> 0.06488050399 | AP59: 7.890857702
C60: Fixed O&M | D60: =AI58 -> 12.99951611 | E60: =AM58 -> 12.99951611 | F60: =AP58 -> 12.99951611 | G60: =AP58-AI58 -> 0 | H60: =AI58-AM58 -> 0 | AG60: Coal | AH60: =AI42/AI54 -> 0.131405137 | AI60: 15.98167668 | AL60: =AM42/AM54 -> 0.131405137 | AM60: 15.98167668 | AO60: =AP42/AP54 -> 0.131405137 | AP60: 15.98167668
C61: Variable O&M | D61: =AI59 -> 7.890857702 | E61: =AM59 -> 7.890857702 | F61: =AP59 -> 7.890857702 | G61: =AP59-AI59 -> 0 | H61: =AI59-AM59 -> 0 | AG61: Biomass | AH61: =AI43/AI54 -> 0.01304789882 | AI61: 1.586903717 | AL61: =AM43/AM54 -> 0.01304789882 | AM61: 1.586903717 | AO61: =AP43/AP54 -> 0.01304789882 | AP61: 1.586903717
C62: Coal | D62: =AI60 -> 15.98167668 | E62: =AM60 -> 15.98167668 | F62: =AP60 -> 15.98167668 | G62: =AP60-AI60 -> 0 | H62: =AI60-AM60 -> 0 | AG62: Total | AI62: =SUM(AI57:AI61) -> 121.6213996 | AM62: =SUM(AM57:AM61) -> 121.6213996 | AP62: =SUM(AP57:AP61) -> 121.6213996
... 50 more rows

Sheet Unit Reference
B2: Component | C2: Energy Density (LHV) (SI Units) | E2: Energy Density (LHV) (English Units) | H2: Volume Conversion Factors | I2: Density (SI Units) | K2: Density (English Units)
B3: Montana Rosebud Coal* | C3: =E3/$K$16*$I$11 -> 19.194152 | D3: MJ/kg | E3: 8252 | F3: Btu/lb | H3: F-T LPG | I3: =K3/$I$11/$K$14 -> 0.5916401326 | J3: kg/L | K3: 36.939 | L3: lb/cubic feet
B4: Southern Pine** | C4: =E4/$K$16*$I$11 -> 9.718871537 | D4: MJ/kg | E4: 4178.362655 | F4: Btu/lb | H4: F-T Naphtha | I4: =K4/$I$11/$K$14 -> 0.7063884312 | J4: kg/L | K4: 44.1033 | L4: lb/cubic feet
B5: EOR Crude Oil | C5: 44.1 | D5: MJ/kg | E5: =C5/$I$11*$K$16 -> 18959.58727 | F5: Btu/lb | H5: F-T Diesel | I5: 0.7695694277 | J5: kg/L | K5: 48.048 | L5: lb/cubic feet
B6: EOR Natural Gas Liquids | C6: 48.8 | D6: MJ/kg | E6: 20980.22356 | F6: Btu/lb | H6: F-T Jet Fuel | I6: 0.7598953532 | J6: kg/L | K6: 47.444 | L6: lb/cubic feet
B7: F-T LPG | C7: 45.99689937 | D7: MJ/kg | E7: 19775.10721 | F7: Btu/lb | H7: Blended Jet Fuel | I7: 0.805 | J7: kg/L | K7: =I7*$I$11*$K$14 -> 50.26010468 | L7: lb/cubic feet
B8: F-T Naphtha | C8: 43.97972163 | D8: MJ/kg | E8: 18907.87688 | F8: Btu/lb | H8: Conventional Petroleum Jet Fuel | I8: 0.78249 | J8: kg/L | K8: =I8*$I$11*$K$14 -> 48.8546948 | L8: lb/cubic feet
B9: F-T Diesel | C9: 43.05914246 | D9: MJ/kg | E9: 18512.09908 | F9: Btu/lb
B10: F-T Jet Fuel | C10: 43.81077398 | D10: MJ/kg | E10: 18835.24247 | F10: Btu/lb | H10: Mass Conversions Factors | I10: 1 kg = * | K10: Other Conversions
B11: Blended Jet Fuel | C11: 43.50556539 | D11: MJ/kg | E11: 18704.02639 | F11: Btu/lb | H11: Pounds (lb) | I11: 2.204622622 | K11: 0.1781075833 | L11: bbl/cubic feet
B12: Conventional Petroleum Jet Fuel | C12: 43.2 | D12: MJ/kg | E12: 18572.65692 | F12: Btu/lb | H12: Short ton | I12: 0.00110231131 | K12: 42 | L12: gal/barrel
H13: Tonne | I13: 0.001 | K13: =CONVERT(1,"gal","l") -> 3.785411784 | L13: L/gal
B14: IPCC Factor | C14: Vintage | D14: 20 Year | E14: 100 Year | F14: 500 Year | K14: 28.32 | L14: L/cubic feet
B15: CO₂ | C15: 2007 | D15: 1 | E15: 1 | F15: 1 | K15: 7.482 | L15: gal/cubic feet
B16: CH₄ | C16: 2007 | D16: 72 | E16: 25 | F16: 7.6 | K16: =CONVERT(1,"MJ","BTU") -> 947.8171203 | L16: Btu/MJ
B17: N₂O | C17: 2007 | D17: 289 | E17: 298 | F17: 153
B18: SF₆ | C18: 2007 | D18: 16300 | E18: 22800 | F18: 32600
B19: CO₂ | C19: 2001 | D19: 1 | E19: 1 | F19: 1
B20: CH₄ | C20: 2001 | D20: 62 | E20: 23 | F20: 7
B21: N₂O | C21: 2001 | D21: 275 | E21: 296 | F21: 156
B22: SF₆ | C22: 2001 | D22: 15100 | E22: 22200 | F22: 32400
B24: *LHV reported for as received Montana Rosebud Coal with a moisture content of 25.77%
B25: **LHV reported for as received Southern Pine with a moisture content of 43.3%

Sheet Stats
A1: Environmental | C1: =AnalysisSettingLabel -> Analysis Settings: Allocation Method: Combination GWP Factor: IPCC 2007 - 100 Year
A2: Output ID | B2: Scenario | C2: Stage | D2: Proprety | E2: Units | F2: Mean | G2: Min | H2: Max | I2: StdDev | J2: 0.05 | K2: 0.25 | L2: 0.75 | M2: 0.95
A3: ="S" & MID(B3,10,1) & "-" & ResultType & "-" & MOD(ROW(A3)-3,22)+1 -> S1-C-1 | B3: Scenario 1: 0% Biomass | C3: Raw Material Acquisition | D3: Raw Material Acquisition | E3: =UnitLabel -> g CO₂e / MJ | F3: =_xll.RiskMean(Data!$G19)*UnitConv -> 3.259742703 | G3: =_xll.RiskMin(Data!$G19)*UnitConv -> 3.259742703 | H3: =_xll.RiskMax(Data!$G19)*UnitConv -> 3.259742703 | I3: =_xll.RiskStdDev(Data!$G19)*UnitConv -> 0 | J3: =_xll.RiskPercentile(Data!$G19,J$2)*UnitConv -> 3.259742703 | K3: =_xll.RiskPercentile(Data!$G19,K$2)*UnitConv -> 3.259742703 | L3: =_xll.RiskPercentile(Data!$G19,L$2)*UnitConv -> 3.259742703 | M3: =_xll.RiskPercentile(Data!$G19,M$2)*UnitConv -> 3.259742703
A4: S1-C-2 | B4: Scenario 1: 0% Biomass | C4: Raw Material Acquisition | D4: Coal Mining, Surface | E4: g CO₂e / MJ | F4: =_xll.RiskMean(Data!$G20)*UnitConv -> 3.259742703 | G4: =_xll.RiskMin(Data!$G20)*UnitConv -> 3.259742703 | H4: =_xll.RiskMax(Data!$G20)*UnitConv -> 3.259742703 | I4: =_xll.RiskStdDev(Data!$G20)*UnitConv -> 0 | J4: =_xll.RiskPercentile(Data!$G20,J$2)*UnitConv -> 3.259742703 | K4: =_xll.RiskPercentile(Data!$G20,K$2)*UnitConv -> 3.259742703 | L4: =_xll.RiskPercentile(Data!$G20,L$2)*UnitConv -> 3.259742703 | M4: =_xll.RiskPercentile(Data!$G20,M$2)*UnitConv -> 3.259742703
A5: S1-C-3 | B5: Scenario 1: 0% Biomass | C5: Raw Material Acquisition | D5: Biomass Production and Field Chipping | E5: g CO₂e / MJ | F5: =_xll.RiskMean(Data!$G21)*UnitConv -> 0 | G5: =_xll.RiskMin(Data!$G21)*UnitConv -> 0 | H5: =_xll.RiskMax(Data!$G21)*UnitConv -> 0 | I5: =_xll.RiskStdDev(Data!$G21)*UnitConv -> 0 | J5: =_xll.RiskPercentile(Data!$G21,J$2)*UnitConv -> 0 | K5: =_xll.RiskPercentile(Data!$G21,K$2)*UnitConv -> 0 | L5: =_xll.RiskPercentile(Data!$G21,L$2)*UnitConv -> 0 | M5: =_xll.RiskPercentile(Data!$G21,M$2)*UnitConv -> 0
A6: S1-C-4 | B6: Scenario 1: 0% Biomass | C6: Raw Material Acquisition | D6: Biomass Direct Land Use Change | E6: g CO₂e / MJ | F6: =_xll.RiskMean(Data!$G22)*UnitConv -> 0 | G6: =_xll.RiskMin(Data!$G22)*UnitConv -> 0 | H6: =_xll.RiskMax(Data!$G22)*UnitConv -> 0 | I6: =_xll.RiskStdDev(Data!$G22)*UnitConv -> 0 | J6: =_xll.RiskPercentile(Data!$G22,J$2)*UnitConv -> 0 | K6: =_xll.RiskPercentile(Data!$G22,K$2)*UnitConv -> 0 | L6: =_xll.RiskPercentile(Data!$G22,L$2)*UnitConv -> 0 | M6: =_xll.RiskPercentile(Data!$G22,M$2)*UnitConv -> 0
A7: S1-C-5 | B7: Scenario 1: 0% Biomass | C7: Raw Material Acquisition | D7: Biomass Indirect Land Use Change | E7: g CO₂e / MJ | F7: =_xll.RiskMean(Data!$G23)*UnitConv -> 0 | G7: =_xll.RiskMin(Data!$G23)*UnitConv -> 0 | H7: =_xll.RiskMax(Data!$G23)*UnitConv -> 0 | I7: =_xll.RiskStdDev(Data!$G23)*UnitConv -> 0 | J7: =_xll.RiskPercentile(Data!$G23,J$2)*UnitConv -> 0 | K7: =_xll.RiskPercentile(Data!$G23,K$2)*UnitConv -> 0 | L7: =_xll.RiskPercentile(Data!$G23,L$2)*UnitConv -> 0 | M7: =_xll.RiskPercentile(Data!$G23,M$2)*UnitConv -> 0
A8: S1-C-6 | B8: Scenario 1: 0% Biomass | C8: Raw Material Transport | D8: Raw Material Transport | E8: g CO₂e / MJ | F8: =_xll.RiskMean(Data!$G24)*UnitConv -> 5.5634327 | G8: =_xll.RiskMin(Data!$G24)*UnitConv -> 5.5634327 | H8: =_xll.RiskMax(Data!$G24)*UnitConv -> 5.5634327 | I8: =_xll.RiskStdDev(Data!$G24)*UnitConv -> 0 | J8: =_xll.RiskPercentile(Data!$G24,J$2)*UnitConv -> 5.5634327 | K8: =_xll.RiskPercentile(Data!$G24,K$2)*UnitConv -> 5.5634327 | L8: =_xll.RiskPercentile(Data!$G24,L$2)*UnitConv -> 5.5634327 | M8: =_xll.RiskPercentile(Data!$G24,M$2)*UnitConv -> 5.5634327
A9: S1-C-7 | B9: Scenario 1: 0% Biomass | C9: Raw Material Transport | D9: Biomass Transport to Torrefaction Facility | E9: g CO₂e / MJ | F9: =_xll.RiskMean(Data!$G25)*UnitConv -> 0 | G9: =_xll.RiskMin(Data!$G25)*UnitConv -> 0 | H9: =_xll.RiskMax(Data!$G25)*UnitConv -> 0 | I9: =_xll.RiskStdDev(Data!$G25)*UnitConv -> 0 | J9: =_xll.RiskPercentile(Data!$G25,J$2)*UnitConv -> 0 | K9: =_xll.RiskPercentile(Data!$G25,K$2)*UnitConv -> 0 | L9: =_xll.RiskPercentile(Data!$G25,L$2)*UnitConv -> 0 | M9: =_xll.RiskPercentile(Data!$G25,M$2)*UnitConv -> 0
A10: S1-C-8 | B10: Scenario 1: 0% Biomass | C10: Raw Material Transport | D10: Biomass Torrefaction | E10: g CO₂e / MJ | F10: =_xll.RiskMean(Data!$G26)*UnitConv -> 0 | G10: =_xll.RiskMin(Data!$G26)*UnitConv -> 0 | H10: =_xll.RiskMax(Data!$G26)*UnitConv -> 0 | I10: =_xll.RiskStdDev(Data!$G26)*UnitConv -> 0 | J10: =_xll.RiskPercentile(Data!$G26,J$2)*UnitConv -> 0 | K10: =_xll.RiskPercentile(Data!$G26,K$2)*UnitConv -> 0 | L10: =_xll.RiskPercentile(Data!$G26,L$2)*UnitConv -> 0 | M10: =_xll.RiskPercentile(Data!$G26,M$2)*UnitConv -> 0
A11: S1-C-9 | B11: Scenario 1: 0% Biomass | C11: Raw Material Transport | D11: Transport of Chipped or Torrefied Biomass to CBTL Plant | E11: g CO₂e / MJ | F11: =_xll.RiskMean(Data!$G27)*UnitConv -> 0 | G11: =_xll.RiskMin(Data!$G27)*UnitConv -> 0 | H11: =_xll.RiskMax(Data!$G27)*UnitConv -> 0 | I11: =_xll.RiskStdDev(Data!$G27)*UnitConv -> 0 | J11: =_xll.RiskPercentile(Data!$G27,J$2)*UnitConv -> 0 | K11: =_xll.RiskPercentile(Data!$G27,K$2)*UnitConv -> 0 | L11: =_xll.RiskPercentile(Data!$G27,L$2)*UnitConv -> 0 | M11: =_xll.RiskPercentile(Data!$G27,M$2)*UnitConv -> 0
A12: S1-C-10 | B12: Scenario 1: 0% Biomass | C12: Raw Material Transport | D12: Transport of Coal to CBTL Plant | E12: g CO₂e / MJ | F12: =_xll.RiskMean(Data!$G28)*UnitConv -> 5.5634327 | G12: =_xll.RiskMin(Data!$G28)*UnitConv -> 5.5634327 | H12: =_xll.RiskMax(Data!$G28)*UnitConv -> 5.5634327 | I12: =_xll.RiskStdDev(Data!$G28)*UnitConv -> 0 | J12: =_xll.RiskPercentile(Data!$G28,J$2)*UnitConv -> 5.5634327 | K12: =_xll.RiskPercentile(Data!$G28,K$2)*UnitConv -> 5.5634327 | L12: =_xll.RiskPercentile(Data!$G28,L$2)*UnitConv -> 5.5634327 | M12: =_xll.RiskPercentile(Data!$G28,M$2)*UnitConv -> 5.5634327
A13: S1-C-11 | B13: Scenario 1: 0% Biomass | C13: Energy Conversion Facility | D13: Energy Conversion Facility | E13: g CO₂e / MJ | F13: =_xll.RiskMean(Data!$G29)*UnitConv -> 17.47318932 | G13: =_xll.RiskMin(Data!$G29)*UnitConv -> 17.47318932 | H13: =_xll.RiskMax(Data!$G29)*UnitConv -> 17.47318932 | I13: =_xll.RiskStdDev(Data!$G29)*UnitConv -> 0 | J13: =_xll.RiskPercentile(Data!$G29,J$2)*UnitConv -> 17.47318932 | K13: =_xll.RiskPercentile(Data!$G29,K$2)*UnitConv -> 17.47318932 | L13: =_xll.RiskPercentile(Data!$G29,L$2)*UnitConv -> 17.47318932 | M13: =_xll.RiskPercentile(Data!$G29,M$2)*UnitConv -> 17.47318932
A14: S1-C-12 | B14: Scenario 1: 0% Biomass | C14: Energy Conversion Facility | D14: CBTL Plant Operations (includes CO₂ Compression) | E14: g CO₂e / MJ | F14: =_xll.RiskMean(Data!$G30)*UnitConv -> -6.476742992 | G14: =_xll.RiskMin(Data!$G30)*UnitConv -> -6.476742992 | H14: =_xll.RiskMax(Data!$G30)*UnitConv -> -6.476742992 | I14: =_xll.RiskStdDev(Data!$G30)*UnitConv -> 0 | J14: =_xll.RiskPercentile(Data!$G30,J$2)*UnitConv -> -6.476742992 | K14: =_xll.RiskPercentile(Data!$G30,K$2)*UnitConv -> -6.476742992 | L14: =_xll.RiskPercentile(Data!$G30,L$2)*UnitConv -> -6.476742992 | M14: =_xll.RiskPercentile(Data!$G30,M$2)*UnitConv -> -6.476742992
A15: S1-C-13 | B15: Scenario 1: 0% Biomass | C15: Energy Conversion Facility | D15: CO₂ Pipeline Transport to CO₂-EOR Operation | E15: g CO₂e / MJ | F15: =_xll.RiskMean(Data!$G31)*UnitConv -> 0.1290637088 | G15: =_xll.RiskMin(Data!$G31)*UnitConv -> 0.1290637088 | H15: =_xll.RiskMax(Data!$G31)*UnitConv -> 0.1290637088 | I15: =_xll.RiskStdDev(Data!$G31)*UnitConv -> 0 | J15: =_xll.RiskPercentile(Data!$G31,J$2)*UnitConv -> 0.1290637088 | K15: =_xll.RiskPercentile(Data!$G31,K$2)*UnitConv -> 0.1290637088 | L15: =_xll.RiskPercentile(Data!$G31,L$2)*UnitConv -> 0.1290637088 | M15: =_xll.RiskPercentile(Data!$G31,M$2)*UnitConv -> 0.1290637088
A16: S1-C-14 | B16: Scenario 1: 0% Biomass | C16: Energy Conversion Facility | D16: CO₂-EOR Operation and CO₂ Storage | E16: g CO₂e / MJ | F16: =_xll.RiskMean(Data!$G32)*UnitConv -> 0 | G16: =_xll.RiskMin(Data!$G32)*UnitConv -> 0 | H16: =_xll.RiskMax(Data!$G32)*UnitConv -> 0 | I16: =_xll.RiskStdDev(Data!$G32)*UnitConv -> 0 | J16: =_xll.RiskPercentile(Data!$G32,J$2)*UnitConv -> 0 | K16: =_xll.RiskPercentile(Data!$G32,K$2)*UnitConv -> 0 | L16: =_xll.RiskPercentile(Data!$G32,L$2)*UnitConv -> 0 | M16: =_xll.RiskPercentile(Data!$G32,M$2)*UnitConv -> 0
A17: S1-C-15 | B17: Scenario 1: 0% Biomass | C17: Product Transport | D17: Product Transport | E17: g CO₂e / MJ | F17: =_xll.RiskMean(Data!$G33)*UnitConv -> 7.255206817 | G17: =_xll.RiskMin(Data!$G33)*UnitConv -> 7.255206817 | H17: =_xll.RiskMax(Data!$G33)*UnitConv -> 7.255206817 | I17: =_xll.RiskStdDev(Data!$G33)*UnitConv -> 0 | J17: =_xll.RiskPercentile(Data!$G33,J$2)*UnitConv -> 7.255206817 | K17: =_xll.RiskPercentile(Data!$G33,K$2)*UnitConv -> 7.255206817 | L17: =_xll.RiskPercentile(Data!$G33,L$2)*UnitConv -> 7.255206817 | M17: =_xll.RiskPercentile(Data!$G33,M$2)*UnitConv -> 7.255206817
A18: S1-C-16 | B18: Scenario 1: 0% Biomass | C18: Product Transport | D18: Tansport of Blended Jet Fuel to Airport | E18: g CO₂e / MJ | F18: =_xll.RiskMean(Data!$G34)*UnitConv -> 0.1385676828 | G18: =_xll.RiskMin(Data!$G34)*UnitConv -> 0.1385676828 | H18: =_xll.RiskMax(Data!$G34)*UnitConv -> 0.1385676828 | I18: =_xll.RiskStdDev(Data!$G34)*UnitConv -> 0 | J18: =_xll.RiskPercentile(Data!$G34,J$2)*UnitConv -> 0.1385676828 | K18: =_xll.RiskPercentile(Data!$G34,K$2)*UnitConv -> 0.1385676828 | L18: =_xll.RiskPercentile(Data!$G34,L$2)*UnitConv -> 0.1385676828 | M18: =_xll.RiskPercentile(Data!$G34,M$2)*UnitConv -> 0.1385676828
A19: S1-C-17 | B19: Scenario 1: 0% Biomass | C19: Product Transport | D19: Blending of F-T and Conv. Jet (includes Conv. Jet Fuel Profile) | E19: g CO₂e / MJ | F19: =_xll.RiskMean(Data!$G35)*UnitConv -> 7.054462396 | G19: =_xll.RiskMin(Data!$G35)*UnitConv -> 7.054462396 | H19: =_xll.RiskMax(Data!$G35)*UnitConv -> 7.054462396 | I19: =_xll.RiskStdDev(Data!$G35)*UnitConv -> 0 | J19: =_xll.RiskPercentile(Data!$G35,J$2)*UnitConv -> 7.054462396 | K19: =_xll.RiskPercentile(Data!$G35,K$2)*UnitConv -> 7.054462396 | L19: =_xll.RiskPercentile(Data!$G35,L$2)*UnitConv -> 7.054462396 | M19: =_xll.RiskPercentile(Data!$G35,M$2)*UnitConv -> 7.054462396
A20: S1-C-18 | B20: Scenario 1: 0% Biomass | C20: Product Transport | D20: Transport of F-T Jet to Blending Facility | E20: g CO₂e / MJ | F20: =_xll.RiskMean(Data!$G36)*UnitConv -> 0.06217673864 | G20: =_xll.RiskMin(Data!$G36)*UnitConv -> 0.06217673864 | H20: =_xll.RiskMax(Data!$G36)*UnitConv -> 0.06217673864 | I20: =_xll.RiskStdDev(Data!$G36)*UnitConv -> 0 | J20: =_xll.RiskPercentile(Data!$G36,J$2)*UnitConv -> 0.06217673864 | K20: =_xll.RiskPercentile(Data!$G36,K$2)*UnitConv -> 0.06217673864 | L20: =_xll.RiskPercentile(Data!$G36,L$2)*UnitConv -> 0.06217673864 | M20: =_xll.RiskPercentile(Data!$G36,M$2)*UnitConv -> 0.06217673864
A21: S1-C-19 | B21: Scenario 1: 0% Biomass | C21: End Use | D21: End Use | E21: g CO₂e / MJ | F21: =_xll.RiskMean(Data!$G37)*UnitConv -> 72.75801684 | G21: =_xll.RiskMin(Data!$G37)*UnitConv -> 72.75801684 | H21: =_xll.RiskMax(Data!$G37)*UnitConv -> 72.75801684 | I21: =_xll.RiskStdDev(Data!$G37)*UnitConv -> 0 | J21: =_xll.RiskPercentile(Data!$G37,J$2)*UnitConv -> 72.75801684 | K21: =_xll.RiskPercentile(Data!$G37,K$2)*UnitConv -> 72.75801684 | L21: =_xll.RiskPercentile(Data!$G37,L$2)*UnitConv -> 72.75801684 | M21: =_xll.RiskPercentile(Data!$G37,M$2)*UnitConv -> 72.75801684
A22: S1-C-20 | B22: Scenario 1: 0% Biomass | C22: End Use | D22: Airplane Operation (Fuel Use) | E22: g CO₂e / MJ | F22: =_xll.RiskMean(Data!$G38)*UnitConv -> 72.72077201 | G22: =_xll.RiskMin(Data!$G38)*UnitConv -> 72.72077201 | H22: =_xll.RiskMax(Data!$G38)*UnitConv -> 72.72077201 | I22: =_xll.RiskStdDev(Data!$G38)*UnitConv -> 0 | J22: =_xll.RiskPercentile(Data!$G38,J$2)*UnitConv -> 72.72077201 | K22: =_xll.RiskPercentile(Data!$G38,K$2)*UnitConv -> 72.72077201 | L22: =_xll.RiskPercentile(Data!$G38,L$2)*UnitConv -> 72.72077201 | M22: =_xll.RiskPercentile(Data!$G38,M$2)*UnitConv -> 72.72077201
A23: S1-C-21 | B23: Scenario 1: 0% Biomass | C23: End Use | D23: Airplane Construction | E23: g CO₂e / MJ | F23: =_xll.RiskMean(Data!$G39)*UnitConv -> 0.03724482276 | G23: =_xll.RiskMin(Data!$G39)*UnitConv -> 0.03724482276 | H23: =_xll.RiskMax(Data!$G39)*UnitConv -> 0.03724482276 | I23: =_xll.RiskStdDev(Data!$G39)*UnitConv -> 0 | J23: =_xll.RiskPercentile(Data!$G39,J$2)*UnitConv -> 0.03724482276 | K23: =_xll.RiskPercentile(Data!$G39,K$2)*UnitConv -> 0.03724482276 | L23: =_xll.RiskPercentile(Data!$G39,L$2)*UnitConv -> 0.03724482276 | M23: =_xll.RiskPercentile(Data!$G39,M$2)*UnitConv -> 0.03724482276
A24: S1-C-22 | B24: Scenario 1: 0% Biomass | C24: Total | D24: Total Greenhouse Gas Emissions | E24: g CO₂e / MJ | F24: =_xll.RiskMean(Data!$G40)*UnitConv -> 106.3095884 | G24: =_xll.RiskMin(Data!$G40)*UnitConv -> 106.3095884 | H24: =_xll.RiskMax(Data!$G40)*UnitConv -> 106.3095884 | I24: =_xll.RiskStdDev(Data!$G40)*UnitConv -> 0 | J24: =_xll.RiskPercentile(Data!$G40,J$2)*UnitConv -> 106.3095884 | K24: =_xll.RiskPercentile(Data!$G40,K$2)*UnitConv -> 106.3095884 | L24: =_xll.RiskPercentile(Data!$G40,L$2)*UnitConv -> 106.3095884 | M24: =_xll.RiskPercentile(Data!$G40,M$2)*UnitConv -> 106.3095884
A25: S2-C-1 | B25: Scenario 2: 10% Biomass, Chipped | C25: Raw Material Acquisition | D25: Raw Material Acquisition | E25: g CO₂e / MJ | F25: =_xll.RiskMean(Data!$N19)*UnitConv -> -10.63275909 | G25: =_xll.RiskMin(Data!$N19)*UnitConv -> -10.63275909 | H25: =_xll.RiskMax(Data!$N19)*UnitConv -> -10.63275909 | I25: =_xll.RiskStdDev(Data!$N19)*UnitConv -> 0 | J25: =_xll.RiskPercentile(Data!$N19,J$2)*UnitConv -> -10.63275909 | K25: =_xll.RiskPercentile(Data!$N19,K$2)*UnitConv -> -10.63275909 | L25: =_xll.RiskPercentile(Data!$N19,L$2)*UnitConv -> -10.63275909 | M25: =_xll.RiskPercentile(Data!$N19,M$2)*UnitConv -> -10.63275909
A26: S2-C-2 | B26: Scenario 2: 10% Biomass, Chipped | C26: Raw Material Acquisition | D26: Coal Mining, Surface | E26: g CO₂e / MJ | F26: =_xll.RiskMean(Data!$N20)*UnitConv -> 0.4901855501 | G26: =_xll.RiskMin(Data!$N20)*UnitConv -> 0.4901855501 | H26: =_xll.RiskMax(Data!$N20)*UnitConv -> 0.4901855501 | I26: =_xll.RiskStdDev(Data!$N20)*UnitConv -> 0 | J26: =_xll.RiskPercentile(Data!$N20,J$2)*UnitConv -> 0.4901855501 | K26: =_xll.RiskPercentile(Data!$N20,K$2)*UnitConv -> 0.4901855501 | L26: =_xll.RiskPercentile(Data!$N20,L$2)*UnitConv -> 0.4901855501 | M26: =_xll.RiskPercentile(Data!$N20,M$2)*UnitConv -> 0.4901855501
A27: S2-C-3 | B27: Scenario 2: 10% Biomass, Chipped | C27: Raw Material Acquisition | D27: Biomass Production and Field Chipping | E27: g CO₂e / MJ | F27: =_xll.RiskMean(Data!$N21)*UnitConv -> -2.517164808 | G27: =_xll.RiskMin(Data!$N21)*UnitConv -> -2.517164808 | H27: =_xll.RiskMax(Data!$N21)*UnitConv -> -2.517164808 | I27: =_xll.RiskStdDev(Data!$N21)*UnitConv -> 0 | J27: =_xll.RiskPercentile(Data!$N21,J$2)*UnitConv -> -2.517164808 | K27: =_xll.RiskPercentile(Data!$N21,K$2)*UnitConv -> -2.517164808 | L27: =_xll.RiskPercentile(Data!$N21,L$2)*UnitConv -> -2.517164808 | M27: =_xll.RiskPercentile(Data!$N21,M$2)*UnitConv -> -2.517164808
A28: S2-C-4 | B28: Scenario 2: 10% Biomass, Chipped | C28: Raw Material Acquisition | D28: Biomass Direct Land Use Change | E28: g CO₂e / MJ | F28: =_xll.RiskMean(Data!$N22)*UnitConv -> 0.06205762721 | G28: =_xll.RiskMin(Data!$N22)*UnitConv -> 0.06205762721 | H28: =_xll.RiskMax(Data!$N22)*UnitConv -> 0.06205762721 | I28: =_xll.RiskStdDev(Data!$N22)*UnitConv -> 0 | J28: =_xll.RiskPercentile(Data!$N22,J$2)*UnitConv -> 0.06205762721 | K28: =_xll.RiskPercentile(Data!$N22,K$2)*UnitConv -> 0.06205762721 | L28: =_xll.RiskPercentile(Data!$N22,L$2)*UnitConv -> 0.06205762721 | M28: =_xll.RiskPercentile(Data!$N22,M$2)*UnitConv -> 0.06205762721
A29: S2-C-5 | B29: Scenario 2: 10% Biomass, Chipped | C29: Raw Material Acquisition | D29: Biomass Indirect Land Use Change | E29: g CO₂e / MJ | F29: =_xll.RiskMean(Data!$N23)*UnitConv -> 1.420189945 | G29: =_xll.RiskMin(Data!$N23)*UnitConv -> 1.420189945 | H29: =_xll.RiskMax(Data!$N23)*UnitConv -> 1.420189945 | I29: =_xll.RiskStdDev(Data!$N23)*UnitConv -> 0 | J29: =_xll.RiskPercentile(Data!$N23,J$2)*UnitConv -> 1.420189945 | K29: =_xll.RiskPercentile(Data!$N23,K$2)*UnitConv -> 1.420189945 | L29: =_xll.RiskPercentile(Data!$N23,L$2)*UnitConv -> 1.420189945 | M29: =_xll.RiskPercentile(Data!$N23,M$2)*UnitConv -> 1.420189945
A30: S2-C-6 | B30: Scenario 2: 10% Biomass, Chipped | C30: Raw Material Transport | D30: Raw Material Transport | E30: g CO₂e / MJ | F30: =_xll.RiskMean(Data!$N24)*UnitConv -> 0.8453781336 | G30: =_xll.RiskMin(Data!$N24)*UnitConv -> 0.8453781336 | H30: =_xll.RiskMax(Data!$N24)*UnitConv -> 0.8453781336 | I30: =_xll.RiskStdDev(Data!$N24)*UnitConv -> 0 | J30: =_xll.RiskPercentile(Data!$N24,J$2)*UnitConv -> 0.8453781336 | K30: =_xll.RiskPercentile(Data!$N24,K$2)*UnitConv -> 0.8453781336 | L30: =_xll.RiskPercentile(Data!$N24,L$2)*UnitConv -> 0.8453781336 | M30: =_xll.RiskPercentile(Data!$N24,M$2)*UnitConv -> 0.8453781336
A31: S2-C-7 | B31: Scenario 2: 10% Biomass, Chipped | C31: Raw Material Transport | D31: Biomass Transport to Torrefaction Facility | E31: g CO₂e / MJ | F31: =_xll.RiskMean(Data!$N25)*UnitConv -> 0 | G31: =_xll.RiskMin(Data!$N25)*UnitConv -> 0 | H31: =_xll.RiskMax(Data!$N25)*UnitConv -> 0 | I31: =_xll.RiskStdDev(Data!$N25)*UnitConv -> 0 | J31: =_xll.RiskPercentile(Data!$N25,J$2)*UnitConv -> 0 | K31: =_xll.RiskPercentile(Data!$N25,K$2)*UnitConv -> 0 | L31: =_xll.RiskPercentile(Data!$N25,L$2)*UnitConv -> 0 | M31: =_xll.RiskPercentile(Data!$N25,M$2)*UnitConv -> 0
A32: S2-C-8 | B32: Scenario 2: 10% Biomass, Chipped | C32: Raw Material Transport | D32: Biomass Torrefaction | E32: g CO₂e / MJ | F32: =_xll.RiskMean(Data!$N26)*UnitConv -> 0 | G32: =_xll.RiskMin(Data!$N26)*UnitConv -> 0 | H32: =_xll.RiskMax(Data!$N26)*UnitConv -> 0 | I32: =_xll.RiskStdDev(Data!$N26)*UnitConv -> 0 | J32: =_xll.RiskPercentile(Data!$N26,J$2)*UnitConv -> 0 | K32: =_xll.RiskPercentile(Data!$N26,K$2)*UnitConv -> 0 | L32: =_xll.RiskPercentile(Data!$N26,L$2)*UnitConv -> 0 | M32: =_xll.RiskPercentile(Data!$N26,M$2)*UnitConv -> 0
A33: S2-C-9 | B33: Scenario 2: 10% Biomass, Chipped | C33: Raw Material Transport | D33: Transport of Chipped or Torrefied Biomass to CBTL Plant | E33: g CO₂e / MJ | F33: =_xll.RiskMean(Data!$N27)*UnitConv -> 0.05382108403 | G33: =_xll.RiskMin(Data!$N27)*UnitConv -> 0.05382108403 | H33: =_xll.RiskMax(Data!$N27)*UnitConv -> 0.05382108403 | I33: =_xll.RiskStdDev(Data!$N27)*UnitConv -> 0 | J33: =_xll.RiskPercentile(Data!$N27,J$2)*UnitConv -> 0.05382108403 | K33: =_xll.RiskPercentile(Data!$N27,K$2)*UnitConv -> 0.05382108403 | L33: =_xll.RiskPercentile(Data!$N27,L$2)*UnitConv -> 0.05382108403 | M33: =_xll.RiskPercentile(Data!$N27,M$2)*UnitConv -> 0.05382108403
A34: S2-C-10 | B34: Scenario 2: 10% Biomass, Chipped | C34: Raw Material Transport | D34: Transport of Coal to CBTL Plant | E34: g CO₂e / MJ | F34: =_xll.RiskMean(Data!$N28)*UnitConv -> 5.132267726 | G34: =_xll.RiskMin(Data!$N28)*UnitConv -> 5.132267726 | H34: =_xll.RiskMax(Data!$N28)*UnitConv -> 5.132267726 | I34: =_xll.RiskStdDev(Data!$N28)*UnitConv -> 0 | J34: =_xll.RiskPercentile(Data!$N28,J$2)*UnitConv -> 5.132267726 | K34: =_xll.RiskPercentile(Data!$N28,K$2)*UnitConv -> 5.132267726 | L34: =_xll.RiskPercentile(Data!$N28,L$2)*UnitConv -> 5.132267726 | M34: =_xll.RiskPercentile(Data!$N28,M$2)*UnitConv -> 5.132267726
A35: ="S" & MID(B35,10,1) & "-" & ResultType & "-" & MOD(ROW(A35)-3,22)+1 -> S2-C-11 | B35: Scenario 2: 10% Biomass, Chipped | C35: Energy Conversion Facility | D35: Energy Conversion Facility | E35: =UnitLabel -> g CO₂e / MJ | F35: =_xll.RiskMean(Data!$N29)*UnitConv -> 19.98701196 | G35: =_xll.RiskMin(Data!$N29)*UnitConv -> 19.98701196 | H35: =_xll.RiskMax(Data!$N29)*UnitConv -> 19.98701196 | I35: =_xll.RiskStdDev(Data!$N29)*UnitConv -> 0 | J35: =_xll.RiskPercentile(Data!$N29,J$2)*UnitConv -> 19.98701196 | K35: =_xll.RiskPercentile(Data!$N29,K$2)*UnitConv -> 19.98701196 | L35: =_xll.RiskPercentile(Data!$N29,L$2)*UnitConv -> 19.98701196 | M35: =_xll.RiskPercentile(Data!$N29,M$2)*UnitConv -> 19.98701196
A36: S2-C-12 | B36: Scenario 2: 10% Biomass, Chipped | C36: Energy Conversion Facility | D36: CBTL Plant Operations (includes CO₂ Compression) | E36: g CO₂e / MJ | F36: =_xll.RiskMean(Data!$N30)*UnitConv -> -4.136719921 | G36: =_xll.RiskMin(Data!$N30)*UnitConv -> -4.136719921 | H36: =_xll.RiskMax(Data!$N30)*UnitConv -> -4.136719921 | I36: =_xll.RiskStdDev(Data!$N30)*UnitConv -> 0 | J36: =_xll.RiskPercentile(Data!$N30,J$2)*UnitConv -> -4.136719921 | K36: =_xll.RiskPercentile(Data!$N30,K$2)*UnitConv -> -4.136719921 | L36: =_xll.RiskPercentile(Data!$N30,L$2)*UnitConv -> -4.136719921 | M36: =_xll.RiskPercentile(Data!$N30,M$2)*UnitConv -> -4.136719921
A37: S2-C-13 | B37: Scenario 2: 10% Biomass, Chipped | C37: Energy Conversion Facility | D37: CO₂ Pipeline Transport to CO₂-EOR Operation | E37: g CO₂e / MJ | F37: =_xll.RiskMean(Data!$N31)*UnitConv -> 0.1296363384 | G37: =_xll.RiskMin(Data!$N31)*UnitConv -> 0.1296363384 | H37: =_xll.RiskMax(Data!$N31)*UnitConv -> 0.1296363384 | I37: =_xll.RiskStdDev(Data!$N31)*UnitConv -> 0 | J37: =_xll.RiskPercentile(Data!$N31,J$2)*UnitConv -> 0.1296363384 | K37: =_xll.RiskPercentile(Data!$N31,K$2)*UnitConv -> 0.1296363384 | L37: =_xll.RiskPercentile(Data!$N31,L$2)*UnitConv -> 0.1296363384 | M37: =_xll.RiskPercentile(Data!$N31,M$2)*UnitConv -> 0.1296363384
A38: S2-C-14 | B38: Scenario 2: 10% Biomass, Chipped | C38: Energy Conversion Facility | D38: CO₂-EOR Operation and CO₂ Storage | E38: g CO₂e / MJ | F38: =_xll.RiskMean(Data!$N32)*UnitConv -> 0 | G38: =_xll.RiskMin(Data!$N32)*UnitConv -> 0 | H38: =_xll.RiskMax(Data!$N32)*UnitConv -> 0 | I38: =_xll.RiskStdDev(Data!$N32)*UnitConv -> 0 | J38: =_xll.RiskPercentile(Data!$N32,J$2)*UnitConv -> 0 | K38: =_xll.RiskPercentile(Data!$N32,K$2)*UnitConv -> 0 | L38: =_xll.RiskPercentile(Data!$N32,L$2)*UnitConv -> 0 | M38: =_xll.RiskPercentile(Data!$N32,M$2)*UnitConv -> 0
A39: S2-C-15 | B39: Scenario 2: 10% Biomass, Chipped | C39: Product Transport | D39: Product Transport | E39: g CO₂e / MJ | F39: =_xll.RiskMean(Data!$N33)*UnitConv -> 7.255206817 | G39: =_xll.RiskMin(Data!$N33)*UnitConv -> 7.255206817 | H39: =_xll.RiskMax(Data!$N33)*UnitConv -> 7.255206817 | I39: =_xll.RiskStdDev(Data!$N33)*UnitConv -> 0 | J39: =_xll.RiskPercentile(Data!$N33,J$2)*UnitConv -> 7.255206817 | K39: =_xll.RiskPercentile(Data!$N33,K$2)*UnitConv -> 7.255206817 | L39: =_xll.RiskPercentile(Data!$N33,L$2)*UnitConv -> 7.255206817 | M39: =_xll.RiskPercentile(Data!$N33,M$2)*UnitConv -> 7.255206817
A40: S2-C-16 | B40: Scenario 2: 10% Biomass, Chipped | C40: Product Transport | D40: Tansport of Blended Jet Fuel to Airport | E40: g CO₂e / MJ | F40: =_xll.RiskMean(Data!$N34)*UnitConv -> 0.1385676828 | G40: =_xll.RiskMin(Data!$N34)*UnitConv -> 0.1385676828 | H40: =_xll.RiskMax(Data!$N34)*UnitConv -> 0.1385676828 | I40: =_xll.RiskStdDev(Data!$N34)*UnitConv -> 0 | J40: =_xll.RiskPercentile(Data!$N34,J$2)*UnitConv -> 0.1385676828 | K40: =_xll.RiskPercentile(Data!$N34,K$2)*UnitConv -> 0.1385676828 | L40: =_xll.RiskPercentile(Data!$N34,L$2)*UnitConv -> 0.1385676828 | M40: =_xll.RiskPercentile(Data!$N34,M$2)*UnitConv -> 0.1385676828
A41: S2-C-17 | B41: Scenario 2: 10% Biomass, Chipped | C41: Product Transport | D41: Blending of F-T and Conv. Jet (includes Conv. Jet Fuel Profile) | E41: g CO₂e / MJ | F41: =_xll.RiskMean(Data!$N35)*UnitConv -> 7.054462396 | G41: =_xll.RiskMin(Data!$N35)*UnitConv -> 7.054462396 | H41: =_xll.RiskMax(Data!$N35)*UnitConv -> 7.054462396 | I41: =_xll.RiskStdDev(Data!$N35)*UnitConv -> 0 | J41: =_xll.RiskPercentile(Data!$N35,J$2)*UnitConv -> 7.054462396 | K41: =_xll.RiskPercentile(Data!$N35,K$2)*UnitConv -> 7.054462396 | L41: =_xll.RiskPercentile(Data!$N35,L$2)*UnitConv -> 7.054462396 | M41: =_xll.RiskPercentile(Data!$N35,M$2)*UnitConv -> 7.054462396
A42: S2-C-18 | B42: Scenario 2: 10% Biomass, Chipped | C42: Product Transport | D42: Transport of F-T Jet to Blending Facility | E42: g CO₂e / MJ | F42: =_xll.RiskMean(Data!$N36)*UnitConv -> 0.06217673864 | G42: =_xll.RiskMin(Data!$N36)*UnitConv -> 0.06217673864 | H42: =_xll.RiskMax(Data!$N36)*UnitConv -> 0.06217673864 | I42: =_xll.RiskStdDev(Data!$N36)*UnitConv -> 0 | J42: =_xll.RiskPercentile(Data!$N36,J$2)*UnitConv -> 0.06217673864 | K42: =_xll.RiskPercentile(Data!$N36,K$2)*UnitConv -> 0.06217673864 | L42: =_xll.RiskPercentile(Data!$N36,L$2)*UnitConv -> 0.06217673864 | M42: =_xll.RiskPercentile(Data!$N36,M$2)*UnitConv -> 0.06217673864
A43: S2-C-19 | B43: Scenario 2: 10% Biomass, Chipped | C43: End Use | D43: End Use | E43: g CO₂e / MJ | F43: =_xll.RiskMean(Data!$N37)*UnitConv -> 72.75801684 | G43: =_xll.RiskMin(Data!$N37)*UnitConv -> 72.75801684 | H43: =_xll.RiskMax(Data!$N37)*UnitConv -> 72.75801684 | I43: =_xll.RiskStdDev(Data!$N37)*UnitConv -> 0 | J43: =_xll.RiskPercentile(Data!$N37,J$2)*UnitConv -> 72.75801684 | K43: =_xll.RiskPercentile(Data!$N37,K$2)*UnitConv -> 72.75801684 | L43: =_xll.RiskPercentile(Data!$N37,L$2)*UnitConv -> 72.75801684 | M43: =_xll.RiskPercentile(Data!$N37,M$2)*UnitConv -> 72.75801684
A44: S2-C-20 | B44: Scenario 2: 10% Biomass, Chipped | C44: End Use | D44: Airplane Operation (Fuel Use) | E44: g CO₂e / MJ | F44: =_xll.RiskMean(Data!$N38)*UnitConv -> 72.72077201 | G44: =_xll.RiskMin(Data!$N38)*UnitConv -> 72.72077201 | H44: =_xll.RiskMax(Data!$N38)*UnitConv -> 72.72077201 | I44: =_xll.RiskStdDev(Data!$N38)*UnitConv -> 0 | J44: =_xll.RiskPercentile(Data!$N38,J$2)*UnitConv -> 72.72077201 | K44: =_xll.RiskPercentile(Data!$N38,K$2)*UnitConv -> 72.72077201 | L44: =_xll.RiskPercentile(Data!$N38,L$2)*UnitConv -> 72.72077201 | M44: =_xll.RiskPercentile(Data!$N38,M$2)*UnitConv -> 72.72077201
A45: S2-C-21 | B45: Scenario 2: 10% Biomass, Chipped | C45: End Use | D45: Airplane Construction | E45: g CO₂e / MJ | F45: =_xll.RiskMean(Data!$N39)*UnitConv -> 0.03724482276 | G45: =_xll.RiskMin(Data!$N39)*UnitConv -> 0.03724482276 | H45: =_xll.RiskMax(Data!$N39)*UnitConv -> 0.03724482276 | I45: =_xll.RiskStdDev(Data!$N39)*UnitConv -> 0 | J45: =_xll.RiskPercentile(Data!$N39,J$2)*UnitConv -> 0.03724482276 | K45: =_xll.RiskPercentile(Data!$N39,K$2)*UnitConv -> 0.03724482276 | L45: =_xll.RiskPercentile(Data!$N39,L$2)*UnitConv -> 0.03724482276 | M45: =_xll.RiskPercentile(Data!$N39,M$2)*UnitConv -> 0.03724482276
A46: S2-C-22 | B46: Scenario 2: 10% Biomass, Chipped | C46: Total | D46: Total Greenhouse Gas Emissions | E46: g CO₂e / MJ | F46: =_xll.RiskMean(Data!$N40)*UnitConv -> 81.88981059 | G46: =_xll.RiskMin(Data!$N40)*UnitConv -> 81.88981059 | H46: =_xll.RiskMax(Data!$N40)*UnitConv -> 81.88981059 | I46: =_xll.RiskStdDev(Data!$N40)*UnitConv -> 0 | J46: =_xll.RiskPercentile(Data!$N40,J$2)*UnitConv -> 81.88981059 | K46: =_xll.RiskPercentile(Data!$N40,K$2)*UnitConv -> 81.88981059 | L46: =_xll.RiskPercentile(Data!$N40,L$2)*UnitConv -> 81.88981059 | M46: =_xll.RiskPercentile(Data!$N40,M$2)*UnitConv -> 81.88981059
A47: S3-C-1 | B47: Scenario 3: 20% Biomass, Chipped | C47: Raw Material Acquisition | D47: Raw Material Acquisition | E47: g CO₂e / MJ | F47: =_xll.RiskMean(Data!$U19)*UnitConv -> -25.23806654 | G47: =_xll.RiskMin(Data!$U19)*UnitConv -> -25.23806654 | H47: =_xll.RiskMax(Data!$U19)*UnitConv -> -25.23806654 | I47: =_xll.RiskStdDev(Data!$U19)*UnitConv -> 0 | J47: =_xll.RiskPercentile(Data!$U19,J$2)*UnitConv -> -25.23806654 | K47: =_xll.RiskPercentile(Data!$U19,K$2)*UnitConv -> -25.23806654 | L47: =_xll.RiskPercentile(Data!$U19,L$2)*UnitConv -> -25.23806654 | M47: =_xll.RiskPercentile(Data!$U19,M$2)*UnitConv -> -25.23806654
A48: S3-C-2 | B48: Scenario 3: 20% Biomass, Chipped | C48: Raw Material Acquisition | D48: Coal Mining, Surface | E48: g CO₂e / MJ | F48: =_xll.RiskMean(Data!$U20)*UnitConv -> 0.4456324027 | G48: =_xll.RiskMin(Data!$U20)*UnitConv -> 0.4456324027 | H48: =_xll.RiskMax(Data!$U20)*UnitConv -> 0.4456324027 | I48: =_xll.RiskStdDev(Data!$U20)*UnitConv -> 0 | J48: =_xll.RiskPercentile(Data!$U20,J$2)*UnitConv -> 0.4456324027 | K48: =_xll.RiskPercentile(Data!$U20,K$2)*UnitConv -> 0.4456324027 | L48: =_xll.RiskPercentile(Data!$U20,L$2)*UnitConv -> 0.4456324027 | M48: =_xll.RiskPercentile(Data!$U20,M$2)*UnitConv -> 0.4456324027
A49: S3-C-3 | B49: Scenario 3: 20% Biomass, Chipped | C49: Raw Material Acquisition | D49: Biomass Production and Field Chipping | E49: g CO₂e / MJ | F49: =_xll.RiskMean(Data!$U21)*UnitConv -> -31.67364314 | G49: =_xll.RiskMin(Data!$U21)*UnitConv -> -31.67364314 | H49: =_xll.RiskMax(Data!$U21)*UnitConv -> -31.67364314 | I49: =_xll.RiskStdDev(Data!$U21)*UnitConv -> 0 | J49: =_xll.RiskPercentile(Data!$U21,J$2)*UnitConv -> -31.67364314 | K49: =_xll.RiskPercentile(Data!$U21,K$2)*UnitConv -> -31.67364314 | L49: =_xll.RiskPercentile(Data!$U21,L$2)*UnitConv -> -31.67364314 | M49: =_xll.RiskPercentile(Data!$U21,M$2)*UnitConv -> -31.67364314
A50: S3-C-4 | B50: Scenario 3: 20% Biomass, Chipped | C50: Raw Material Acquisition | D50: Biomass Direct Land Use Change | E50: g CO₂e / MJ | F50: =_xll.RiskMean(Data!$U22)*UnitConv -> 0.7808750277 | G50: =_xll.RiskMin(Data!$U22)*UnitConv -> 0.7808750277 | H50: =_xll.RiskMax(Data!$U22)*UnitConv -> 0.7808750277 | I50: =_xll.RiskStdDev(Data!$U22)*UnitConv -> 0 | J50: =_xll.RiskPercentile(Data!$U22,J$2)*UnitConv -> 0.7808750277 | K50: =_xll.RiskPercentile(Data!$U22,K$2)*UnitConv -> 0.7808750277 | L50: =_xll.RiskPercentile(Data!$U22,L$2)*UnitConv -> 0.7808750277 | M50: =_xll.RiskPercentile(Data!$U22,M$2)*UnitConv -> 0.7808750277
A51: S3-C-5 | B51: Scenario 3: 20% Biomass, Chipped | C51: Raw Material Acquisition | D51: Biomass Indirect Land Use Change | E51: g CO₂e / MJ | F51: =_xll.RiskMean(Data!$U23)*UnitConv -> 0.4735735084 | G51: =_xll.RiskMin(Data!$U23)*UnitConv -> 0.4735735084 | H51: =_xll.RiskMax(Data!$U23)*UnitConv -> 0.4735735084 | I51: =_xll.RiskStdDev(Data!$U23)*UnitConv -> 0 | J51: =_xll.RiskPercentile(Data!$U23,J$2)*UnitConv -> 0.4735735084 | K51: =_xll.RiskPercentile(Data!$U23,K$2)*UnitConv -> 0.4735735084 | L51: =_xll.RiskPercentile(Data!$U23,L$2)*UnitConv -> 0.4735735084 | M51: =_xll.RiskPercentile(Data!$U23,M$2)*UnitConv -> 0.4735735084
A52: S3-C-6 | B52: Scenario 3: 20% Biomass, Chipped | C52: Raw Material Transport | D52: Raw Material Transport | E52: g CO₂e / MJ | F52: =_xll.RiskMean(Data!$U24)*UnitConv -> 4.789278391 | G52: =_xll.RiskMin(Data!$U24)*UnitConv -> 4.789278391 | H52: =_xll.RiskMax(Data!$U24)*UnitConv -> 4.789278391 | I52: =_xll.RiskStdDev(Data!$U24)*UnitConv -> 0 | J52: =_xll.RiskPercentile(Data!$U24,J$2)*UnitConv -> 4.789278391 | K52: =_xll.RiskPercentile(Data!$U24,K$2)*UnitConv -> 4.789278391 | L52: =_xll.RiskPercentile(Data!$U24,L$2)*UnitConv -> 4.789278391 | M52: =_xll.RiskPercentile(Data!$U24,M$2)*UnitConv -> 4.789278391
A53: S3-C-7 | B53: Scenario 3: 20% Biomass, Chipped | C53: Raw Material Transport | D53: Biomass Transport to Torrefaction Facility | E53: g CO₂e / MJ | F53: =_xll.RiskMean(Data!$U25)*UnitConv -> 0 | G53: =_xll.RiskMin(Data!$U25)*UnitConv -> 0 | H53: =_xll.RiskMax(Data!$U25)*UnitConv -> 0 | I53: =_xll.RiskStdDev(Data!$U25)*UnitConv -> 0 | J53: =_xll.RiskPercentile(Data!$U25,J$2)*UnitConv -> 0 | K53: =_xll.RiskPercentile(Data!$U25,K$2)*UnitConv -> 0 | L53: =_xll.RiskPercentile(Data!$U25,L$2)*UnitConv -> 0 | M53: =_xll.RiskPercentile(Data!$U25,M$2)*UnitConv -> 0
A54: S3-C-8 | B54: Scenario 3: 20% Biomass, Chipped | C54: Raw Material Transport | D54: Biomass Torrefaction | E54: g CO₂e / MJ | F54: =_xll.RiskMean(Data!$U26)*UnitConv -> 0 | G54: =_xll.RiskMin(Data!$U26)*UnitConv -> 0 | H54: =_xll.RiskMax(Data!$U26)*UnitConv -> 0 | I54: =_xll.RiskStdDev(Data!$U26)*UnitConv -> 0 | J54: =_xll.RiskPercentile(Data!$U26,J$2)*UnitConv -> 0 | K54: =_xll.RiskPercentile(Data!$U26,K$2)*UnitConv -> 0 | L54: =_xll.RiskPercentile(Data!$U26,L$2)*UnitConv -> 0 | M54: =_xll.RiskPercentile(Data!$U26,M$2)*UnitConv -> 0
A55: S3-C-9 | B55: Scenario 3: 20% Biomass, Chipped | C55: Raw Material Transport | D55: Transport of Chipped or Torrefied Biomass to CBTL Plant | E55: g CO₂e / MJ | F55: =_xll.RiskMean(Data!$U27)*UnitConv -> 0.01794706383 | G55: =_xll.RiskMin(Data!$U27)*UnitConv -> 0.01794706383 | H55: =_xll.RiskMax(Data!$U27)*UnitConv -> 0.01794706383 | I55: =_xll.RiskStdDev(Data!$U27)*UnitConv -> 0 | J55: =_xll.RiskPercentile(Data!$U27,J$2)*UnitConv -> 0.01794706383 | K55: =_xll.RiskPercentile(Data!$U27,K$2)*UnitConv -> 0.01794706383 | L55: =_xll.RiskPercentile(Data!$U27,L$2)*UnitConv -> 0.01794706383 | M55: =_xll.RiskPercentile(Data!$U27,M$2)*UnitConv -> 0.01794706383
A56: S3-C-10 | B56: Scenario 3: 20% Biomass, Chipped | C56: Raw Material Transport | D56: Transport of Coal to CBTL Plant | E56: g CO₂e / MJ | F56: =_xll.RiskMean(Data!$U28)*UnitConv -> 4.678874979 | G56: =_xll.RiskMin(Data!$U28)*UnitConv -> 4.678874979 | H56: =_xll.RiskMax(Data!$U28)*UnitConv -> 4.678874979 | I56: =_xll.RiskStdDev(Data!$U28)*UnitConv -> 0 | J56: =_xll.RiskPercentile(Data!$U28,J$2)*UnitConv -> 4.678874979 | K56: =_xll.RiskPercentile(Data!$U28,K$2)*UnitConv -> 4.678874979 | L56: =_xll.RiskPercentile(Data!$U28,L$2)*UnitConv -> 4.678874979 | M56: =_xll.RiskPercentile(Data!$U28,M$2)*UnitConv -> 4.678874979
A57: S3-C-11 | B57: Scenario 3: 20% Biomass, Chipped | C57: Energy Conversion Facility | D57: Energy Conversion Facility | E57: g CO₂e / MJ | F57: =_xll.RiskMean(Data!$U29)*UnitConv -> 22.69699417 | G57: =_xll.RiskMin(Data!$U29)*UnitConv -> 22.69699417 | H57: =_xll.RiskMax(Data!$U29)*UnitConv -> 22.69699417 | I57: =_xll.RiskStdDev(Data!$U29)*UnitConv -> 0 | J57: =_xll.RiskPercentile(Data!$U29,J$2)*UnitConv -> 22.69699417 | K57: =_xll.RiskPercentile(Data!$U29,K$2)*UnitConv -> 22.69699417 | L57: =_xll.RiskPercentile(Data!$U29,L$2)*UnitConv -> 22.69699417 | M57: =_xll.RiskPercentile(Data!$U29,M$2)*UnitConv -> 22.69699417
A58: S3-C-12 | B58: Scenario 3: 20% Biomass, Chipped | C58: Energy Conversion Facility | D58: CBTL Plant Operations (includes CO₂ Compression) | E58: g CO₂e / MJ | F58: =_xll.RiskMean(Data!$U30)*UnitConv -> -1.608643167 | G58: =_xll.RiskMin(Data!$U30)*UnitConv -> -1.608643167 | H58: =_xll.RiskMax(Data!$U30)*UnitConv -> -1.608643167 | I58: =_xll.RiskStdDev(Data!$U30)*UnitConv -> 0 | J58: =_xll.RiskPercentile(Data!$U30,J$2)*UnitConv -> -1.608643167 | K58: =_xll.RiskPercentile(Data!$U30,K$2)*UnitConv -> -1.608643167 | L58: =_xll.RiskPercentile(Data!$U30,L$2)*UnitConv -> -1.608643167 | M58: =_xll.RiskPercentile(Data!$U30,M$2)*UnitConv -> -1.608643167
A59: S3-C-13 | B59: Scenario 3: 20% Biomass, Chipped | C59: Energy Conversion Facility | D59: CO₂ Pipeline Transport to CO₂-EOR Operation | E59: g CO₂e / MJ | F59: =_xll.RiskMean(Data!$U31)*UnitConv -> 0.1302486996 | G59: =_xll.RiskMin(Data!$U31)*UnitConv -> 0.1302486996 | H59: =_xll.RiskMax(Data!$U31)*UnitConv -> 0.1302486996 | I59: =_xll.RiskStdDev(Data!$U31)*UnitConv -> 0 | J59: =_xll.RiskPercentile(Data!$U31,J$2)*UnitConv -> 0.1302486996 | K59: =_xll.RiskPercentile(Data!$U31,K$2)*UnitConv -> 0.1302486996 | L59: =_xll.RiskPercentile(Data!$U31,L$2)*UnitConv -> 0.1302486996 | M59: =_xll.RiskPercentile(Data!$U31,M$2)*UnitConv -> 0.1302486996
A60: S3-C-14 | B60: Scenario 3: 20% Biomass, Chipped | C60: Energy Conversion Facility | D60: CO₂-EOR Operation and CO₂ Storage | E60: g CO₂e / MJ | F60: =_xll.RiskMean(Data!$U32)*UnitConv -> 0 | G60: =_xll.RiskMin(Data!$U32)*UnitConv -> 0 | H60: =_xll.RiskMax(Data!$U32)*UnitConv -> 0 | I60: =_xll.RiskStdDev(Data!$U32)*UnitConv -> 0 | J60: =_xll.RiskPercentile(Data!$U32,J$2)*UnitConv -> 0 | K60: =_xll.RiskPercentile(Data!$U32,K$2)*UnitConv -> 0 | L60: =_xll.RiskPercentile(Data!$U32,L$2)*UnitConv -> 0 | M60: =_xll.RiskPercentile(Data!$U32,M$2)*UnitConv -> 0
A61: S3-C-15 | B61: Scenario 3: 20% Biomass, Chipped | C61: Product Transport | D61: Product Transport | E61: g CO₂e / MJ | F61: =_xll.RiskMean(Data!$U33)*UnitConv -> 7.255206817 | G61: =_xll.RiskMin(Data!$U33)*UnitConv -> 7.255206817 | H61: =_xll.RiskMax(Data!$U33)*UnitConv -> 7.255206817 | I61: =_xll.RiskStdDev(Data!$U33)*UnitConv -> 0 | J61: =_xll.RiskPercentile(Data!$U33,J$2)*UnitConv -> 7.255206817 | K61: =_xll.RiskPercentile(Data!$U33,K$2)*UnitConv -> 7.255206817 | L61: =_xll.RiskPercentile(Data!$U33,L$2)*UnitConv -> 7.255206817 | M61: =_xll.RiskPercentile(Data!$U33,M$2)*UnitConv -> 7.255206817
A62: S3-C-16 | B62: Scenario 3: 20% Biomass, Chipped | C62: Product Transport | D62: Tansport of Blended Jet Fuel to Airport | E62: g CO₂e / MJ | F62: =_xll.RiskMean(Data!$U34)*UnitConv -> 0.1385676828 | G62: =_xll.RiskMin(Data!$U34)*UnitConv -> 0.1385676828 | H62: =_xll.RiskMax(Data!$U34)*UnitConv -> 0.1385676828 | I62: =_xll.RiskStdDev(Data!$U34)*UnitConv -> 0 | J62: =_xll.RiskPercentile(Data!$U34,J$2)*UnitConv -> 0.1385676828 | K62: =_xll.RiskPercentile(Data!$U34,K$2)*UnitConv -> 0.1385676828 | L62: =_xll.RiskPercentile(Data!$U34,L$2)*UnitConv -> 0.1385676828 | M62: =_xll.RiskPercentile(Data!$U34,M$2)*UnitConv -> 0.1385676828
... 76 more rows

Sheet RiskSerializationData
A1: 0 | B1: 1

Sheet Data
A1: S1-P | B1: Name | C1: Unit | D1: Value | E1: Low | F1: Nom | G1: High | H1: S2-P | I1: Name | J1: Unit | K1: Value | L1: Low | M1: Nom | N1: High | O1: S3-P | P1: Name | Q1: Unit | R1: Value | S1: Low | T1: Nom | U1: High | V1: S4-P | W1: Name | X1: Unit | Y1: Value | Z1: Low | AA1: Nom | AB1: High | AC1: S5-P | AD1: Name | AE1: Unit | AF1: Value | AG1: Low | AH1: Nom | AI1: High | AJ1: S6-P | AK1: Name | AL1: Unit | AM1: Value | AN1: Low | AO1: Nom | AP1: High | AQ1: S0-P | AR1: Name | AS1: Unit | AT1: Value | AU1: Low | AV1: Nom | AW1: High
A2: S1-P-1 | B2: Coal Mine Methane | C2: scf/ton | D2: =$AT2 -> 39.98738343 | E2: 31.98990674 | F2: 39.98738343 | G2: 47.98486012 | H2: S2-P-1 | I2: Coal Mine Methane | J2: scf/ton | K2: =$AT2 -> 39.98738343 | L2: 31.98990674 | M2: 39.98738343 | N2: 47.98486012 | O2: S3-P-1 | P2: Coal Mine Methane | Q2: scf/ton | R2: =$AT2 -> 39.98738343 | S2: 31.98990674 | T2: 39.98738343 | U2: 47.98486012 | V2: S4-P-1 | W2: Coal Mine Methane | X2: scf/ton | Y2: =$AT2 -> 39.98738343 | Z2: 31.98990674 | AA2: 39.98738343 | AB2: 47.98486012 | AC2: S5-P-1 | AD2: Coal Mine Methane | AE2: scf/ton | AF2: =$AT2 -> 39.98738343 | AG2: 31.98990674 | AH2: 39.98738343 | AI2: 47.98486012 | AJ2: S6-P-1 | AK2: Coal Mine Methane | AL2: scf/ton | AM2: =$AT2 -> 39.98738343 | AN2: 31.98990674 | AO2: 39.98738343 | AP2: 47.98486012 | AQ2: S0-P-1 | AR2: Coal Mine Methane | AS2: scf/ton | AT2: =_xll.RiskTriang(AU2,AV2,AW2,_xll.RiskStatic(AV2),_xll.RiskName(AQ2),_xll.RiskSeed(1,SeedEnv1)) -> 39.98738343 | AU2: 31.98990674 | AV2: 39.98738343 | AW2: 47.98486012
A3: S1-P-2 | B3: Biomass Yield | C3: kg/acre | D3: 6350.29318 | E3: 2993.709642 | F3: 6350.29318 | G3: 7620.351816 | H3: S2-P-2 | I3: Biomass Yield | J3: kg/acre | K3: 6350.29318 | L3: 2993.709642 | M3: 6350.29318 | N3: 7620.351816 | O3: S3-P-2 | P3: Biomass Yield | Q3: kg/acre | R3: 6350.29318 | S3: 2993.709642 | T3: 6350.29318 | U3: 7620.351816 | V3: S4-P-2 | W3: Biomass Yield | X3: kg/acre | Y3: 6350.29318 | Z3: 2993.709642 | AA3: 6350.29318 | AB3: 7620.351816 | AC3: S5-P-2 | AD3: Biomass Yield | AE3: kg/acre | AF3: 6350.29318 | AG3: 2993.709642 | AH3: 6350.29318 | AI3: 7620.351816 | AJ3: S6-P-2 | AK3: Biomass Yield | AL3: kg/acre | AM3: 6350.29318 | AN3: 2993.709642 | AO3: 6350.29318 | AP3: 7620.351816 | AQ3: S0-P-2 | AR3: Biomass Yield | AS3: kg/acre | AT3: =_xll.RiskTriang(AU3,AV3,AW3,_xll.RiskStatic(AV3),_xll.RiskName(AQ3),_xll.RiskSeed(1,SeedEnv2)) -> 6350.29318 | AU3: 2993.709642 | AV3: 6350.29318 | AW3: 7620.351816
A4: S1-P-3 | B4: Chip Type | C4: 0 = Conventional Chipper; 1 = Microchipper | D4: 0 | E4: 0 | F4: 0 | G4: 1 | H4: S2-P-3 | I4: Chip Type | J4: 0 = Conventional Chipper; 1 = Microchipper | K4: 0 | L4: 0 | M4: 0 | N4: 1 | O4: S3-P-3 | P4: Chip Type | Q4: 0 = Conventional Chipper; 1 = Microchipper | R4: 0 | S4: 0 | T4: 0 | U4: 1 | V4: S4-P-3 | W4: Chip Type | X4: 0 = Conventional Chipper; 1 = Microchipper | Y4: 0 | Z4: 0 | AA4: 0 | AB4: 1 | AC4: S5-P-3 | AD4: Chip Type | AE4: 0 = Conventional Chipper; 1 = Microchipper | AF4: 0 | AG4: 0 | AH4: 0 | AI4: 1 | AJ4: S6-P-3 | AK4: Chip Type | AL4: 0 = Conventional Chipper; 1 = Microchipper | AM4: 0 | AN4: 0 | AO4: 0 | AP4: 1 | AQ4: S0-P-3 | AR4: Chip Type | AS4: 0 = Conventional Chipper; 1 = Microchipper | AT4: =_xll.RiskIntUniform(AU4,AW4,_xll.RiskStatic(AV4),_xll.RiskName(AQ4),_xll.RiskSeed(1,SeedEnv3)) -> 0 | AU4: 0 | AV4: 0 | AW4: 1
A5: S1-P-4 | B5: Direct Land Use | C5: kg/kg biomass | D5: 0.02244381851 | E5: 0.02244381851 | F5: 0.02244381851 | G5: 0.02244381851 | H5: S2-P-4 | I5: Direct Land Use | J5: kg/kg biomass | K5: 0.02244381851 | L5: 0.02244381851 | M5: 0.02244381851 | N5: 0.02244381851 | O5: S3-P-4 | P5: Direct Land Use | Q5: kg/kg biomass | R5: 0.02244381851 | S5: 0.02244381851 | T5: 0.02244381851 | U5: 0.02244381851 | V5: S4-P-4 | W5: Direct Land Use | X5: kg/kg biomass | Y5: 0.02244381851 | Z5: 0.02244381851 | AA5: 0.02244381851 | AB5: 0.02244381851 | AC5: S5-P-4 | AD5: Direct Land Use | AE5: kg/kg biomass | AF5: 0.02244381851 | AG5: 0.02244381851 | AH5: 0.02244381851 | AI5: 0.02244381851 | AJ5: S6-P-4 | AK5: Direct Land Use | AL5: kg/kg biomass | AM5: 0.02244381851 | AN5: 0.02244381851 | AO5: 0.02244381851 | AP5: 0.02244381851 | AQ5: S0-P-4 | AR5: Direct Land Use | AS5: kg/kg biomass | AT5: =_xll.RiskTriang(AU5,AV5,AW5,_xll.RiskStatic(AV5),_xll.RiskName(AQ5),_xll.RiskSeed(1,SeedEnv4)) -> 0.02244381851 | AU5: 0.02244381851 | AV5: 0.02244381851 | AW5: 0.02244381851
A6: S1-P-5 | B6: Indirect Land Use | C6: kg/kg biomass | D6: 0.08283 | E6: 0.05522029866 | F6: 0.08283 | G6: 0.1104405973 | H6: S2-P-5 | I6: Indirect Land Use | J6: kg/kg biomass | K6: 0.08283 | L6: 0.05522029866 | M6: 0.08283 | N6: 0.1104405973 | O6: S3-P-5 | P6: Indirect Land Use | Q6: kg/kg biomass | R6: 0.08283 | S6: 0.05522029866 | T6: 0.08283 | U6: 0.1104405973 | V6: S4-P-5 | W6: Indirect Land Use | X6: kg/kg biomass | Y6: 0.08283 | Z6: 0.05522029866 | AA6: 0.08283 | AB6: 0.1104405973 | AC6: S5-P-5 | AD6: Indirect Land Use | AE6: kg/kg biomass | AF6: 0.08283 | AG6: 0.05522029866 | AH6: 0.08283 | AI6: 0.1104405973 | AJ6: S6-P-5 | AK6: Indirect Land Use | AL6: kg/kg biomass | AM6: 0.08283 | AN6: 0.05522029866 | AO6: 0.08283 | AP6: 0.1104405973 | AQ6: S0-P-5 | AR6: Indirect Land Use | AS6: kg/kg biomass | AT6: =_xll.RiskTriang(AU6,AV6,AW6,_xll.RiskStatic(AV6),_xll.RiskName(AQ6),_xll.RiskSeed(1,SeedEnv5)) -> 0.08283 | AU6: 0.05522029866 | AV6: 0.08283 | AW6: 0.1104405973
A7: S1-P-6 | B7: Rail Distance | C7: miles (one-way) | D7: 1600 | E7: 1280 | F7: 1600 | G7: 1920 | H7: S2-P-6 | I7: Rail Distance | J7: miles (one-way) | K7: 1600 | L7: 1280 | M7: 1600 | N7: 1920 | O7: S3-P-6 | P7: Rail Distance | Q7: miles (one-way) | R7: 1600 | S7: 1280 | T7: 1600 | U7: 1920 | V7: S4-P-6 | W7: Rail Distance | X7: miles (one-way) | Y7: 1600 | Z7: 1280 | AA7: 1600 | AB7: 1920 | AC7: S5-P-6 | AD7: Rail Distance | AE7: miles (one-way) | AF7: 1600 | AG7: 1280 | AH7: 1600 | AI7: 1920 | AJ7: S6-P-6 | AK7: Rail Distance | AL7: miles (one-way) | AM7: 1600 | AN7: 1280 | AO7: 1600 | AP7: 1920 | AQ7: S0-P-6 | AR7: Rail Distance | AS7: miles (one-way) | AT7: =_xll.RiskTriang(AU7,AV7,AW7,_xll.RiskStatic(AV7),_xll.RiskName(AQ7),_xll.RiskSeed(1,SeedEnv6)) -> 1600 | AU7: 1280 | AV7: 1600 | AW7: 1920
A8: S1-P-7 | B8: Biomass Truck Distance (Farm to CBTL or Farm to Torrefaction) | C8: miles (one-way) | D8: 40 | E8: 20 | F8: 40 | G8: 50 | H8: S2-P-7 | I8: Biomass Truck Distance (Farm to CBTL or Farm to Torrefaction) | J8: miles (one-way) | K8: 40 | L8: 20 | M8: 40 | N8: 50 | O8: S3-P-7 | P8: Biomass Truck Distance (Farm to CBTL or Farm to Torrefaction) | Q8: miles (one-way) | R8: 40 | S8: 20 | T8: 40 | U8: 50 | V8: S4-P-7 | W8: Biomass Truck Distance (Farm to CBTL or Farm to Torrefaction) | X8: miles (one-way) | Y8: 40 | Z8: 20 | AA8: 40 | AB8: 50 | AC8: S5-P-7 | AD8: Biomass Truck Distance (Farm to CBTL or Farm to Torrefaction) | AE8: miles (one-way) | AF8: 40 | AG8: 20 | AH8: 40 | AI8: 50 | AJ8: S6-P-7 | AK8: Biomass Truck Distance (Farm to CBTL or Farm to Torrefaction) | AL8: miles (one-way) | AM8: 40 | AN8: 20 | AO8: 40 | AP8: 50 | AQ8: S0-P-7 | AR8: Biomass Truck Distance (Farm to CBTL or Farm to Torrefaction) | AS8: miles (one-way) | AT8: =_xll.RiskTriang(AU8,AV8,AW8,_xll.RiskStatic(AV8),_xll.RiskName(AQ8),_xll.RiskSeed(1,SeedEnv7)) -> 40 | AU8: 20 | AV8: 40 | AW8: 50
A9: S1-P-8 | B9: Biomass Truck Distance (Torrefaction to CBTL) | C9: miles (one-way) | D9: 50 | E9: 40 | F9: 50 | G9: 60 | H9: S2-P-8 | I9: Biomass Truck Distance (Torrefaction to CBTL) | J9: miles (one-way) | K9: 50 | L9: 40 | M9: 50 | N9: 60 | O9: S3-P-8 | P9: Biomass Truck Distance (Torrefaction to CBTL) | Q9: miles (one-way) | R9: 50 | S9: 40 | T9: 50 | U9: 60 | V9: S4-P-8 | W9: Biomass Truck Distance (Torrefaction to CBTL) | X9: miles (one-way) | Y9: 50 | Z9: 40 | AA9: 50 | AB9: 60 | AC9: S5-P-8 | AD9: Biomass Truck Distance (Torrefaction to CBTL) | AE9: miles (one-way) | AF9: 50 | AG9: 40 | AH9: 50 | AI9: 60 | AJ9: S6-P-8 | AK9: Biomass Truck Distance (Torrefaction to CBTL) | AL9: miles (one-way) | AM9: 50 | AN9: 40 | AO9: 50 | AP9: 60 | AQ9: S0-P-8 | AR9: Biomass Truck Distance (Torrefaction to CBTL) | AS9: miles (one-way) | AT9: =_xll.RiskTriang(AU9,AV9,AW9,_xll.RiskStatic(AV9),_xll.RiskName(AQ9),_xll.RiskSeed(1,SeedEnv8)) -> 50 | AU9: 40 | AV9: 50 | AW9: 60
A10: S1-P-9 | B10: CBTL Plant Operations Scenario | C10: Low/Exp/High | D10: Nom | E10: 0.2 | F10: 0.6 | G10: 0.2 | H10: S2-P-9 | I10: CBTL Plant Operations Scenario | J10: Low/Exp/High | K10: Nom | L10: 0.2 | M10: 0.6 | N10: 0.2 | O10: S3-P-9 | P10: CBTL Plant Operations Scenario | Q10: Low/Exp/High | R10: Nom | S10: 0.2 | T10: 0.6 | U10: 0.2 | V10: S4-P-9 | W10: CBTL Plant Operations Scenario | X10: Low/Exp/High | Y10: Nom | Z10: 0.2 | AA10: 0.6 | AB10: 0.2 | AC10: S5-P-9 | AD10: CBTL Plant Operations Scenario | AE10: Low/Exp/High | AF10: Nom | AG10: 0.2 | AH10: 0.6 | AI10: 0.2 | AJ10: S6-P-9 | AK10: CBTL Plant Operations Scenario | AL10: Low/Exp/High | AM10: Nom | AN10: 0.2 | AO10: 0.6 | AP10: 0.2 | AQ10: S0-P-9 | AR10: CBTL Plant Operations Scenario | AS10: Low/Exp/High | AT10: =ConvertOptionType(AT15) -> Nom | AU10: 0.2 | AV10: 0.6 | AW10: 0.2
A11: S1-P-10 | B11: CO₂ Pipe Distance | C11: miles (one-way) | D11: 775 | E11: 620 | F11: 775 | G11: 930 | H11: S2-P-10 | I11: CO₂ Pipe Distance | J11: miles (one-way) | K11: 775 | L11: 620 | M11: 775 | N11: 930 | O11: S3-P-10 | P11: CO₂ Pipe Distance | Q11: miles (one-way) | R11: 775 | S11: 620 | T11: 775 | U11: 930 | V11: S4-P-10 | W11: CO₂ Pipe Distance | X11: miles (one-way) | Y11: 775 | Z11: 620 | AA11: 775 | AB11: 930 | AC11: S5-P-10 | AD11: CO₂ Pipe Distance | AE11: miles (one-way) | AF11: 775 | AG11: 620 | AH11: 775 | AI11: 930 | AJ11: S6-P-10 | AK11: CO₂ Pipe Distance | AL11: miles (one-way) | AM11: 775 | AN11: 620 | AO11: 775 | AP11: 930 | AQ11: S0-P-10 | AR11: CO₂ Pipe Distance | AS11: miles (one-way) | AT11: =_xll.RiskTriang(AU11,AV11,AW11,_xll.RiskStatic(AV11),_xll.RiskName(AQ11),_xll.RiskSeed(1,SeedEnv10)) -> 775 | AU11: 620 | AV11: 775 | AW11: 930
A12: S1-P-11 | B12: CO₂ Pipe Loss Rate | C12: % / km | D12: 2.6e-07 | E12: 1.3e-07 | F12: 2.6e-07 | G12: 3.9e-07 | H12: S2-P-11 | I12: CO₂ Pipe Loss Rate | J12: % / km | K12: 2.6e-07 | L12: 1.3e-07 | M12: 2.6e-07 | N12: 3.9e-07 | O12: S3-P-11 | P12: CO₂ Pipe Loss Rate | Q12: % / km | R12: 2.6e-07 | S12: 1.3e-07 | T12: 2.6e-07 | U12: 3.9e-07 | V12: S4-P-11 | W12: CO₂ Pipe Loss Rate | X12: % / km | Y12: 2.6e-07 | Z12: 1.3e-07 | AA12: 2.6e-07 | AB12: 3.9e-07 | AC12: S5-P-11 | AD12: CO₂ Pipe Loss Rate | AE12: % / km | AF12: 2.6e-07 | AG12: 1.3e-07 | AH12: 2.6e-07 | AI12: 3.9e-07 | AJ12: S6-P-11 | AK12: CO₂ Pipe Loss Rate | AL12: % / km | AM12: 2.6e-07 | AN12: 1.3e-07 | AO12: 2.6e-07 | AP12: 3.9e-07 | AQ12: S0-P-11 | AR12: CO₂ Pipe Loss Rate | AS12: % / km | AT12: =_xll.RiskTriang(AU12,AV12,AW12,_xll.RiskStatic(AV12),_xll.RiskName(AQ12),_xll.RiskSeed(1,SeedEnv11)) -> 2.6e-07 | AU12: 1.3e-07 | AV12: 2.6e-07 | AW12: 3.9e-07
A13: S1-P-12 | B13: Blended Jet Pipe Length | C13: miles (one-way) | D13: 225 | E13: 180 | F13: 225 | G13: 270 | H13: S2-P-12 | I13: Blended Jet Pipe Length | J13: miles (one-way) | K13: 225 | L13: 180 | M13: 225 | N13: 270 | O13: S3-P-12 | P13: Blended Jet Pipe Length | Q13: miles (one-way) | R13: 225 | S13: 180 | T13: 225 | U13: 270 | V13: S4-P-12 | W13: Blended Jet Pipe Length | X13: miles (one-way) | Y13: 225 | Z13: 180 | AA13: 225 | AB13: 270 | AC13: S5-P-12 | AD13: Blended Jet Pipe Length | AE13: miles (one-way) | AF13: 225 | AG13: 180 | AH13: 225 | AI13: 270 | AJ13: S6-P-12 | AK13: Blended Jet Pipe Length | AL13: miles (one-way) | AM13: 225 | AN13: 180 | AO13: 225 | AP13: 270 | AQ13: S0-P-12 | AR13: Blended Jet Pipe Length | AS13: miles (one-way) | AT13: =_xll.RiskTriang(AU13,AV13,AW13,_xll.RiskStatic(AV13),_xll.RiskName(AQ13),_xll.RiskSeed(1,SeedEnv12)) -> 225 | AU13: 180 | AV13: 225 | AW13: 270
A14: S1-P-13 | B14: Blended Jet Alt Transport Scenario | C14: 1 = 100% pipeline; 0 = 60% pipeline; 40% truck | D14: 1 | E14: 1 | F14: 1 | G14: 0 | H14: S2-P-13 | I14: Blended Jet Alt Transport Scenario | J14: 1 = 100% pipeline; 0 = 60% pipeline; 40% truck | K14: 1 | L14: 1 | M14: 1 | N14: 0 | O14: S3-P-13 | P14: Blended Jet Alt Transport Scenario | Q14: 1 = 100% pipeline; 0 = 60% pipeline; 40% truck | R14: 1 | S14: 1 | T14: 1 | U14: 0 | V14: S4-P-13 | W14: Blended Jet Alt Transport Scenario | X14: 1 = 100% pipeline; 0 = 60% pipeline; 40% truck | Y14: 1 | Z14: 1 | AA14: 1 | AB14: 0 | AC14: S5-P-13 | AD14: Blended Jet Alt Transport Scenario | AE14: 1 = 100% pipeline; 0 = 60% pipeline; 40% truck | AF14: 1 | AG14: 1 | AH14: 1 | AI14: 0 | AJ14: S6-P-13 | AK14: Blended Jet Alt Transport Scenario | AL14: 1 = 100% pipeline; 0 = 60% pipeline; 40% truck | AM14: 1 | AN14: 1 | AO14: 1 | AP14: 0 | AQ14: S0-P-13 | AR14: Blended Jet Alt Transport Scenario | AS14: 1 = 100% pipeline; 0 = 60% pipeline; 40% truck | AT14: =_xll.RiskIntUniform(AW14,AU14,_xll.RiskStatic(AV14),_xll.RiskName(AQ14),_xll.RiskSeed(1,SeedEnv13)) -> 1 | AU14: 1 | AV14: 1 | AW14: 0
B15: CBTL Plant Operations Scenario | C15: Distribution Val | D15: 2 | I15: CBTL Plant Operations Scenario | J15: Distribution Val | K15: 2 | P15: CBTL Plant Operations Scenario | Q15: Distribution Val | R15: 2 | W15: CBTL Plant Operations Scenario | X15: Distribution Val | Y15: 2 | AD15: CBTL Plant Operations Scenario | AE15: Distribution Val | AF15: 2 | AK15: CBTL Plant Operations Scenario | AL15: Distribution Val | AM15: 2 | AR15: CBTL Plant Operations Scenario | AS15: Distribution Val | AT15: =_xll.RiskDiscrete({1,2,3},AU10:AW10,_xll.RiskName(AQ10),_xll.RiskSeed(1,SeedEnv9)) -> 2
B17: COMBANATION (50/50)
A18: S1-C | B18: Scenario 1 - 100% Coal | C18: Carbon dioxide | D18: Nitrous oxide (laughing gas) | E18: Sulphur hexafluoride | F18: Methane | G18: GWP | H18: S2-C | I18: Scenario 2 - 10% Dried/Chipped Biomass | J18: Carbon dioxide | K18: Nitrous oxide (laughing gas) | L18: Sulphur hexafluoride | M18: Methane | N18: GWP | O18: S3-C | P18: Scenario 3 - 20% Dried/Chipped Biomass | Q18: Carbon dioxide | R18: Nitrous oxide (laughing gas) | S18: Sulphur hexafluoride | T18: Methane | U18: GWP | V18: S4-C | W18: Scenario 4 - 10% Torrefied Biomass | X18: Carbon dioxide | Y18: Nitrous oxide (laughing gas) | Z18: Sulphur hexafluoride | AA18: Methane | AB18: GWP | AC18: S5-C | AD18: Scenario 5 - 20% Torrefied Biomass | AE18: Carbon dioxide | AF18: Nitrous oxide (laughing gas) | AG18: Sulphur hexafluoride | AH18: Methane | AI18: GWP | AJ18: S6-C | AK18: Scenario 6- 10% Dried/Chipped Biomass | AL18: Carbon dioxide | AM18: Nitrous oxide (laughing gas) | AN18: Sulphur hexafluoride | AO18: Methane | AP18: GWP | AR18: Global
A19: S1-C-1 | B19: Raw Material Acquisition | C19: =SUM(C20:C23) -> 0.0004693252112 | D19: =SUM(D20:D23) -> 4.311056235e-07 | E19: 2.573060473e-13 | F19: 5.193999528e-05 | G19: =Combination!G3+_xll.RiskOutput(A19) -> 0.003259742703 | H19: S2-C-1 | I19: Raw Material Acquisition | J19: =0.5*J45+0.5*J71 -> -0.007843114904 | K19: =0.5*K45+0.5*K71 -> 1.506098671e-06 | L19: 2.816686088e-12 | M19: 4.844613387e-05 | N19: =Combination!N3+_xll.RiskOutput(H19) -> -0.01063275909 | O19: S3-C-1 | P19: Raw Material Acquisition | Q19: =0.5*Q45+0.5*Q71 -> -0.01657524211 | R19: =0.5*R45+0.5*R71 -> 2.635367762e-06 | S19: 5.505287315e-12 | T19: 4.477594237e-05 | U19: =Combination!U3+_xll.RiskOutput(O19) -> -0.02523806654 | V19: S4-C-1 | W19: Raw Material Acquisition | X19: =0.5*X45+0.5*X71 -> -0.005605924552 | Y19: =0.5*Y45+0.5*Y71 -> 1.191280309e-06 | Z19: 2.107028868e-12 | AA19: 4.670387193e-05 | AB19: =Combination!AB3+_xll.RiskOutput(V19) -> -0.007018620931 | AC19: S5-C-1 | AD19: Raw Material Acquisition | AE19: =0.5*AE45+0.5*AE71 -> -0.01156753277 | AF19: =0.5*AF45+0.5*AF71 -> 1.937234504e-06 | AG19: 3.922150653e-12 | AH19: 4.156559653e-05 | AI19: =Combination!AI3+_xll.RiskOutput(AC19) -> -0.01710450558 | AJ19: S6-C-1 | AK19: Raw Material Acquisition | AL19: =0.5*AL45+0.5*AL71 -> -0.008342839711 | AM19: =0.5*AM45+0.5*AM71 -> 1.584048648e-06 | AN19: 2.981435985e-12 | AO19: 4.963790588e-05 | AP19: =Combination!AP3+_xll.RiskOutput(AJ19) -> -0.01134000367
A20: S1-C-2 | B20: Coal Mining, Surface | C20: =0.5*C46+0.5*C72 -> 0.0004693252112 | D20: 4.311056235e-07 | E20: 2.573060473e-13 | F20: 5.193999528e-05 | G20: =Combination!G4+_xll.RiskOutput(A20) -> 0.003259742703 | H20: S2-C-2 | I20: Coal Mining, Surface | J20: =0.5*J46+0.5*J72 -> 0.0004327822938 | K20: 3.975385856e-07 | L20: 2.372715097e-13 | M20: 4.789580821e-05 | N20: =Combination!N4+_xll.RiskOutput(H20) -> 0.0004901855501 | O20: S3-C-2 | P20: Coal Mining, Surface | Q20: =0.5*Q46+0.5*Q72 -> 0.0003943950065 | R20: 3.622773743e-07 | S20: 2.162258021e-13 | T20: 4.364750559e-05 | U20: =Combination!U4+_xll.RiskOutput(O20) -> 0.0004456324027 | V20: S4-C-2 | W20: Coal Mining, Surface | X20: =0.5*X46+0.5*X72 -> 0.0004183922638 | Y20: 3.843204104e-07 | Z20: 2.293822217e-13 | AA20: 4.630327051e-05 | AB20: =Combination!AB4+_xll.RiskOutput(V20) -> 0.0004751933276 | AC20: S5-C-2 | AD20: Coal Mining, Surface | AE20: =0.5*AE46+0.5*AE72 -> 0.0003684111732 | AF20: 3.384095394e-07 | AG20: 2.019802485e-13 | AH20: 4.077188726e-05 | AI20: =Combination!AI4+_xll.RiskOutput(AC20) -> 0.0004184542438 | AJ20: S6-C-2 | AK20: Coal Mining, Surface | AL20: =0.5*AL46+0.5*AL72 -> 0.0004432444871 | AM20: 4.071487882e-07 | AN20: 2.430073737e-13 | AO20: 4.90536541e-05 | AP20: =Combination!AP4+_xll.RiskOutput(AJ20) -> 0.0005184937196
A21: S1-C-3 | B21: Biomass Production and Field Chipping | C21: =0.5*C47+0.5*C73 -> 0 | D21: 0 | E21: 0 | F21: 0 | G21: =Combination!G5+_xll.RiskOutput(A21) -> 0 | H21: S2-C-3 | I21: Biomass Production and Field Chipping | J21: =0.5*J47+0.5*J73 -> -0.009314220704 | K21: 1.078704559e-06 | L21: 2.579414578e-12 | M21: 5.503256661e-07 | N21: =Combination!N5+_xll.RiskOutput(H21) -> -0.002517164808 | O21: S3-C-3 | P21: Biomass Production and Field Chipping | Q21: =0.5*Q47+0.5*Q73 -> -0.01909870816 | R21: 2.211871956e-06 | S21: 5.289061513e-12 | T21: 1.128436787e-06 | U21: =Combination!U5+_xll.RiskOutput(O21) -> -0.03167364314 | V21: S4-C-3 | W21: Biomass Production and Field Chipping | X21: =0.5*X47+0.5*X73 -> -0.006780149036 | Y21: 7.852270105e-07 | Z21: 1.877646646e-12 | AA21: 4.006014194e-07 | AB21: =Combination!AB5+_xll.RiskOutput(V21) -> -0.01123475782 | AC21: S5-C-3 | AD21: Biomass Production and Field Chipping | AE21: =0.5*AE47+0.5*AE73 -> -0.01343346994 | AF21: 1.555765719e-06 | AG21: 3.720170404e-12 | AH21: 7.937092676e-07 | AI21: =Combination!AI5+_xll.RiskOutput(AC21) -> -0.02225928328 | AJ21: S6-C-3 | AK21: Biomass Production and Field Chipping | AL21: =0.5*AL47+0.5*AL73 -> -0.009888417581 | AM21: 1.14520382e-06 | AN21: 2.738428611e-12 | AO21: 5.842517764e-07 | AP21: =Combination!AP5+_xll.RiskOutput(AJ21) -> -0.01630501766
A22: S1-C-4 | B22: Biomass Direct Land Use Change | C22: =0.5*C48+0.5*C74 -> 0 | D22: 0 | E22: 0 | F22: 0 | G22: =Combination!G6+_xll.RiskOutput(A22) -> 0 | H22: S2-C-4 | I22: Biomass Direct Land Use Change | J22: =0.5*J48+0.5*J74 -> 0.0002213650522 | K22: 0 | L22: 0 | M22: 0 | N22: =Combination!N6+_xll.RiskOutput(H22) -> 6.205762721e-05 | O22: S3-C-4 | P22: Biomass Direct Land Use Change | Q22: =0.5*Q48+0.5*Q74 -> 0.0004539066298 | R22: 0 | S22: 0 | T22: 0 | U22: =Combination!U6+_xll.RiskOutput(O22) -> 0.0007808750277 | V22: S4-C-4 | W22: Biomass Direct Land Use Change | X22: =0.5*X48+0.5*X74 -> 0.0001611394118 | Y22: 0 | Z22: 0 | AA22: 0 | AB22: =Combination!AB6+_xll.RiskOutput(V22) -> 4.52995768e-05 | AC22: S5-C-4 | AD22: Biomass Direct Land Use Change | AE22: =0.5*AE48+0.5*AE74 -> 0.0003192645815 | AF22: 0 | AG22: 0 | AH22: 0 | AI22: =Combination!AI6+_xll.RiskOutput(AC22) -> 8.975369162e-05 | AJ22: S6-C-4 | AK22: Biomass Direct Land Use Change | AL22: =0.5*AL48+0.5*AL74 -> 0.0002350116176 | AM22: 0 | AN22: 0 | AO22: 0 | AP22: =Combination!AP6+_xll.RiskOutput(AJ22) -> 6.804291798e-05
A23: S1-C-5 | B23: Biomass Indirect Land Use Change | C23: =0.5*C49+0.5*C75 -> 0 | D23: 0 | E23: 0 | F23: 0 | G23: =Combination!G7+_xll.RiskOutput(A23) -> 0 | H23: S2-C-5 | I23: Biomass Indirect Land Use Change | J23: =0.5*J49+0.5*J75 -> 0.0008169584543 | K23: 2.985552627e-08 | L23: 0 | M23: 0 | N23: =Combination!N7+_xll.RiskOutput(H23) -> 0.001420189945 | O23: S3-C-5 | P23: Biomass Indirect Land Use Change | Q23: =0.5*Q49+0.5*Q75 -> 0.001675164417 | R23: 6.121843161e-08 | S23: 0 | T23: 0 | U23: =Combination!U7+_xll.RiskOutput(O23) -> 0.0004735735084 | V23: S4-C-5 | W23: Biomass Indirect Land Use Change | X23: =0.5*X49+0.5*X75 -> 0.0005946928092 | Y23: 2.173288825e-08 | Z23: 0 | AA23: 0 | AB23: =Combination!AB7+_xll.RiskOutput(V23) -> 0.001033337488 | AC23: S5-C-5 | AD23: Biomass Indirect Land Use Change | AE23: =0.5*AE49+0.5*AE75 -> 0.001178261412 | AF23: 4.305924537e-08 | AG23: 0 | AH23: 0 | AI23: =Combination!AI7+_xll.RiskOutput(AC23) -> 0.0003348476657 | AJ23: S6-C-5 | AK23: Biomass Indirect Land Use Change | AL23: =0.5*AL49+0.5*AL75 -> 0.0008673217652 | AM23: 3.169603988e-08 | AN23: 0 | AO23: 0 | AP23: =Combination!AP7+_xll.RiskOutput(AJ23) -> 0.001499683951
A24: S1-C-6 | B24: Raw Material Transport | C24: =0.5*C50+0.5*C76 -> 0.003124314078 | D24: 7.654118783e-08 | E24: 6.834399262e-15 | F24: 3.572391926e-06 | G24: =Combination!G8+_xll.RiskOutput(A24) -> 0.0055634327 | H24: S2-C-6 | I24: Raw Material Transport | J24: =0.5*J50+0.5*J76 -> 0.002910085315 | K24: 7.129211694e-08 | L24: 6.716808762e-15 | M24: 3.376118137e-06 | N24: =Combination!N8+_xll.RiskOutput(H24) -> 0.0008453781336 | O24: S3-C-6 | P24: Raw Material Transport | Q24: =0.5*Q50+0.5*Q76 -> 0.002685044654 | R24: 6.577813105e-08 | S24: 6.593290679e-15 | T24: 3.169939602e-06 | U24: =Combination!U8+_xll.RiskOutput(O24) -> 0.004789278391 | V24: S4-C-6 | W24: Raw Material Transport | X24: =0.5*X50+0.5*X76 -> 0.003219401676 | Y24: 7.237028113e-08 | Z24: 3.894150279e-12 | AA24: 3.361727071e-06 | AB24: =Combination!AB8+_xll.RiskOutput(V24) -> 0.0009346702147 | AC24: S5-C-6 | AD24: Raw Material Transport | AE24: =0.5*AE50+0.5*AE76 -> 0.003312672097 | AF24: 6.82769647e-08 | AG24: 7.708443941e-12 | AH24: 3.154986868e-06 | AI24: =Combination!AI8+_xll.RiskOutput(AC24) -> 0.0009591797364 | AJ24: S6-C-6 | AK24: Raw Material Transport | AL24: =0.5*AL50+0.5*AL76 -> 0.002981522653 | AM24: 7.30421809e-08 | AN24: 6.894717284e-15 | AO24: 3.460801685e-06 | AP24: =Combination!AP8+_xll.RiskOutput(AJ24) -> 0.005285080674
A25: S1-C-7 | B25: Biomass Transport to Torrefaction Facility | C25: =0.5*C51+0.5*C77 -> 0 | D25: 0 | E25: 0 | F25: 0 | G25: =Combination!G9+_xll.RiskOutput(A25) -> 0 | H25: S2-C-7 | I25: Biomass Transport to Torrefaction Facility | J25: =0.5*J51+0.5*J77 -> 0 | K25: 0 | L25: 0 | M25: 0 | N25: =Combination!N9+_xll.RiskOutput(H25) -> 0 | O25: S3-C-7 | P25: Biomass Transport to Torrefaction Facility | Q25: =0.5*Q51+0.5*Q77 -> 0 | R25: 0 | S25: 0 | T25: 0 | U25: =Combination!U9+_xll.RiskOutput(O25) -> 0 | V25: S4-C-7 | W25: Biomass Transport to Torrefaction Facility | X25: =0.5*X51+0.5*X77 -> 1.703761635e-05 | Y25: 4.118137552e-10 | Z25: 2.346737497e-16 | AA25: 5.820107798e-08 | AB25: =Combination!AB9+_xll.RiskOutput(V25) -> 5.23269089e-06 | AC25: S5-C-7 | AD25: Biomass Transport to Torrefaction Facility | AE25: =0.5*AE51+0.5*AE77 -> 3.375518573e-05 | AF25: 8.158917012e-10 | AG25: 4.649392169e-16 | AH25: 1.153088646e-07 | AI25: =Combination!AI9+_xll.RiskOutput(AC25) -> 1.036776735e-05 | AJ25: S6-C-7 | AK25: Biomass Transport to Torrefaction Facility | AL25: =0.5*AL51+0.5*AL77 -> 0 | AM25: 0 | AN25: 0 | AO25: 0 | AP25: =Combination!AP9+_xll.RiskOutput(AJ25) -> 0
A26: S1-C-8 | B26: Biomass Torrefaction | C26: =0.5*C52+0.5*C78 -> 0 | D26: 0 | E26: 0 | F26: 0 | G26: =Combination!G10+_xll.RiskOutput(A26) -> 0 | H26: S2-C-8 | I26: Biomass Torrefaction | J26: =0.5*J52+0.5*J78 -> 0 | K26: 0 | L26: 0 | M26: 0 | N26: =Combination!N10+_xll.RiskOutput(H26) -> 0 | O26: S3-C-8 | P26: Biomass Torrefaction | Q26: =0.5*Q52+0.5*Q78 -> 0 | R26: 0 | S26: 0 | T26: 0 | U26: =Combination!U10+_xll.RiskOutput(O26) -> 0 | V26: S4-C-8 | W26: Biomass Torrefaction | X26: =0.5*X52+0.5*X78 -> 0.0003959740772 | Y26: 3.206525565e-09 | Z26: 3.887521132e-12 | AA26: 5.921861105e-08 | AB26: =Combination!AB10+_xll.RiskOutput(V26) -> 0.0001120160776 | AC26: S5-C-8 | AD26: Biomass Torrefaction | AE26: =0.5*AE52+0.5*AE78 -> 0.0007845098893 | AF26: 6.35281742e-09 | AG26: 7.702016239e-12 | AH26: 1.173248166e-07 | AI26: =Combination!AI10+_xll.RiskOutput(AC26) -> 0.0002219425256 | AJ26: S6-C-8 | AK26: Biomass Torrefaction | AL26: =0.5*AL52+0.5*AL78 -> 0 | AM26: 0 | AN26: 0 | AO26: 0 | AP26: =Combination!AP10+_xll.RiskOutput(AJ26) -> 0
A27: S1-C-9 | B27: Transport of Chipped or Torrefied Biomass to CBTL Plant | C27: =0.5*C53+0.5*C79 -> 0 | D27: 0 | E27: 0 | F27: 0 | G27: =Combination!G11+_xll.RiskOutput(A27) -> 0 | H27: S2-C-9 | I27: Transport of Chipped or Torrefied Biomass to CBTL Plant | J27: =0.5*J53+0.5*J79 -> 2.903869414e-05 | K27: 7.106309025e-10 | L27: 4.145541216e-16 | M27: 8.188220979e-08 | N27: =Combination!N11+_xll.RiskOutput(H27) -> 5.382108403e-05 | O27: S3-C-9 | P27: Transport of Chipped or Torrefied Biomass to CBTL Plant | Q27: =0.5*Q53+0.5*Q79 -> 5.954352623e-05 | R27: 1.45714093e-09 | S27: 8.500387136e-16 | T27: 1.678985798e-07 | U27: =Combination!U11+_xll.RiskOutput(O27) -> 1.794706383e-05 | V27: S4-C-9 | W27: Transport of Chipped or Torrefied Biomass to CBTL Plant | X27: =0.5*X53+0.5*X79 -> 2.11382874e-05 | Y27: 5.172932424e-10 | Z27: 3.017685341e-16 | AA27: 5.96049421e-08 | AB27: =Combination!AB11+_xll.RiskOutput(V27) -> 6.404645661e-06 | AC27: S5-C-9 | AD27: Transport of Chipped or Torrefied Biomass to CBTL Plant | AE27: =0.5*AE53+0.5*AE79 -> 4.188116615e-05 | AF27: 1.024910099e-09 | AG27: 5.978922455e-16 | AH27: 1.180949259e-07 | AI27: =Combination!AI11+_xll.RiskOutput(AC27) -> 1.268975633e-05 | AJ27: S6-C-9 | AK27: Transport of Chipped or Torrefied Biomass to CBTL Plant | AL27: =0.5*AL53+0.5*AL79 -> 3.082885223e-05 | AM27: 7.544394033e-10 | AN27: 4.401102781e-16 | AO27: 8.693002974e-08 | AP27: =Combination!AP11+_xll.RiskOutput(AJ27) -> 5.683367652e-05
A28: S1-C-10 | B28: Transport of Coal to CBTL Plant | C28: =0.5*C54+0.5*C80 -> 0.003124314078 | D28: 7.654118783e-08 | E28: 6.834399262e-15 | F28: 3.572391926e-06 | G28: =Combination!G12+_xll.RiskOutput(A28) -> 0.0055634327 | H28: S2-C-10 | I28: Transport of Coal to CBTL Plant | J28: =0.5*J54+0.5*J80 -> 0.00288104662 | K28: 7.058148604e-08 | L28: 6.30225464e-15 | M28: 3.294235927e-06 | N28: =Combination!N12+_xll.RiskOutput(H28) -> 0.005132267726 | O28: S3-C-10 | P28: Transport of Coal to CBTL Plant | Q28: =0.5*Q54+0.5*Q80 -> 0.002625501128 | R28: 6.432099012e-08 | S28: 5.743251965e-15 | T28: 3.002041022e-06 | U28: =Combination!U12+_xll.RiskOutput(O28) -> 0.004678874979 | V28: S4-C-10 | W28: Transport of Coal to CBTL Plant | X28: =0.5*X54+0.5*X80 -> 0.002785251695 | Y28: 6.823464857e-08 | Z28: 6.0927044e-15 | AA28: 3.18470244e-06 | AB28: =Combination!AB12+_xll.RiskOutput(V28) -> 0.004959389841 | AC28: S5-C-10 | AD28: Transport of Coal to CBTL Plant | AE28: =0.5*AE54+0.5*AE80 -> 0.002452525856 | AF28: 6.008334548e-08 | AG28: 5.364870649e-15 | AH28: 2.804258261e-06 | AI28: =Combination!AI12+_xll.RiskOutput(AC28) -> 0.0007141796871 | AJ28: S6-C-10 | AK28: Transport of Coal to CBTL Plant | AL28: =0.5*AL54+0.5*AL80 -> 0.002950693801 | AM28: 7.22877415e-08 | AN28: 6.454607005e-15 | AO28: 3.373871655e-06 | AP28: =Combination!AP12+_xll.RiskOutput(AJ28) -> 0.005228246997
A29: S1-C-11 | B29: Energy Conversion Facility | C29: =0.5*C55+0.5*C81 -> 0.01175492002 | D29: -2.003351382e-07 | E29: 6.704943878e-10 | F29: -6.744586468e-05 | G29: =Combination!G13+_xll.RiskOutput(A29) -> 0.01747318932 | H29: S2-C-11 | I29: Energy Conversion Facility | J29: =0.5*J55+0.5*J81 -> 0.01296920028 | K29: -1.885875279e-07 | L29: 6.759897383e-10 | M29: -6.210411977e-05 | N29: =Combination!N13+_xll.RiskOutput(H29) -> 0.01998701196 | O29: S3-C-11 | P29: Energy Conversion Facility | Q29: =0.5*Q55+0.5*Q81 -> 0.01427664144 | R29: -1.757431817e-07 | S29: 6.817655268e-10 | T29: -5.639724474e-05 | U29: =Combination!U13+_xll.RiskOutput(O29) -> 0.02269699417 | V29: S4-C-11 | W29: Energy Conversion Facility | X29: =0.5*X55+0.5*X81 -> 0.01160426265 | Y29: -2.010800182e-07 | Z29: 6.698162081e-10 | AA29: -6.754733188e-05 | AB29: =Combination!AB13+_xll.RiskOutput(V29) -> 0.002550500213 | AC29: S5-C-11 | AD29: Energy Conversion Facility | AE29: =0.5*AE55+0.5*AE81 -> 0.01139560923 | AF29: -2.027531554e-07 | AG29: 6.692088898e-10 | AH29: -6.782697723e-05 | AI29: =Combination!AI13+_xll.RiskOutput(AC29) -> 0.002524167285 | AJ29: S6-C-11 | AK29: Energy Conversion Facility | AL29: =0.5*AL55+0.5*AL81 -> 0.01835110225 | AM29: -1.825657166e-07 | AN29: 6.38849129e-10 | AO29: -5.990507545e-05 | AP29: =Combination!AP13+_xll.RiskOutput(AJ29) -> 0.004551476204
A30: S1-C-12 | B30: CBTL Plant Operations (includes CO₂ Compression) | C30: =0.5*C56+0.5*C82 -> -0.0008930373335 | D30: =0.5*D56+0.5*D82 -> -1.5403181e-07 | E30: -4.517281491e-12 | F30: -4.304381606e-05 | G30: =Combination!G14+_xll.RiskOutput(A30) -> -0.006476742992 | H30: S2-C-12 | I30: CBTL Plant Operations (includes CO₂ Compression) | J30: =0.5*J56+0.5*J82 -> 0.0002296410132 | K30: -1.419477281e-07 | L30: -3.920347049e-12 | M30: -3.752498199e-05 | N30: =Combination!N14+_xll.RiskOutput(H30) -> -0.004136719921 | O30: S3-C-12 | P30: CBTL Plant Operations (includes CO₂ Compression) | Q30: =0.5*Q56+0.5*Q82 -> 0.001441201509 | R30: -1.28751234e-07 | S30: -3.271433531e-12 | T30: -3.163275878e-05 | U30: =Combination!U14+_xll.RiskOutput(O30) -> -0.001608643167 | V30: S4-C-12 | W30: CBTL Plant Operations (includes CO₂ Compression) | X30: =0.5*X56+0.5*X82 -> -0.001031764704 | Y30: -1.548205237e-07 | Z30: -4.557395767e-12 | AA30: -4.316835092e-05 | AB30: =Combination!AB14+_xll.RiskOutput(V30) -> 0.002421507042 | AC30: S5-C-12 | AD30: CBTL Plant Operations (includes CO₂ Compression) | AE30: =0.5*AE56+0.5*AE82 -> -0.001230544402 | AF30: -1.565298382e-07 | AG30: -4.637500427e-12 | AH30: -4.346705556e-05 | AI30: =Combination!AI14+_xll.RiskOutput(AC30) -> -0.007123209953 | AJ30: S6-C-12 | AK30: CBTL Plant Operations (includes CO₂ Compression) | AL30: =0.5*AL56+0.5*AL82 -> 0.006308036841 | AM30: -1.384902881e-07 | AN30: -3.764004265e-12 | AO30: -3.667435593e-05 | AP30: =Combination!AP14+_xll.RiskOutput(AJ30) -> 0.00442425454
A31: S1-C-13 | B31: CO₂ Pipeline Transport to CO₂-EOR Operation | C31: =0.5*C57+0.5*C83 -> 0.0004584104318 | D31: 1.15628731e-09 | E31: 0 | F31: 2.19356887e-08 | G31: =Combination!G15+_xll.RiskOutput(A31) -> 0.0001290637088 | H31: S2-C-13 | I31: CO₂ Pipeline Transport to CO₂-EOR Operation | J31: =0.5*J57+0.5*J83 -> 0.0004615553935 | K31: 1.164220112e-09 | L31: 0 | M31: 2.208618026e-08 | N31: =Combination!N15+_xll.RiskOutput(H31) -> 0.0001296363384 | O31: S3-C-13 | P31: CO₂ Pipeline Transport to CO₂-EOR Operation | Q31: =0.5*Q57+0.5*Q83 -> 0.0004648535336 | R31: 1.17253929e-09 | S31: 0 | T31: 2.224400166e-08 | U31: =Combination!U15+_xll.RiskOutput(O31) -> 0.0001302486996 | V31: S4-C-13 | W31: CO₂ Pipeline Transport to CO₂-EOR Operation | X31: =0.5*X57+0.5*X83 -> 0.0004580027931 | Y31: 1.155259089e-09 | Z31: 0 | AA31: 2.191618252e-08 | AB31: =Combination!AB15+_xll.RiskOutput(V31) -> 0.0001289931713 | AC31: S5-C-13 | AD31: CO₂ Pipeline Transport to CO₂-EOR Operation | AE31: =0.5*AE57+0.5*AE83 -> 0.0004576496451 | AF31: 1.154368314e-09 | AG31: 0 | AH31: 2.189928381e-08 | AI31: =Combination!AI15+_xll.RiskOutput(AC31) -> 0.0001289021671 | AJ31: S6-C-13 | AK31: CO₂ Pipeline Transport to CO₂-EOR Operation | AL31: =0.5*AL57+0.5*AL83 -> 0.0004385801877 | AM31: 1.106267812e-09 | AN31: 0 | AO31: 2.098677909e-08 | AP31: =Combination!AP15+_xll.RiskOutput(AJ31) -> 0.0001272216641
A32: S1-C-14 | B32: CO₂-EOR Operation and CO₂ Storage | C32: =0.5*C58+0.5*C84 -> 0.01218954692 | D32: -4.745961557e-08 | E32: 6.750116693e-10 | F32: -2.442398431e-05 | G32: =Combination!G16+_xll.RiskOutput(A32) -> 0 | H32: S2-C-14 | I32: CO₂-EOR Operation and CO₂ Storage | J32: =0.5*J58+0.5*J84 -> 0.01227800387 | K32: -4.78040199e-08 | L32: 6.799100854e-10 | M32: -2.460122396e-05 | N32: =Combination!N16+_xll.RiskOutput(H32) -> 0 | O32: S3-C-14 | P32: CO₂-EOR Operation and CO₂ Storage | Q32: =0.5*Q58+0.5*Q84 -> 0.01237058639 | R32: -4.816448702e-08 | S32: 6.850369603e-10 | T32: -2.478672996e-05 | U32: =Combination!U16+_xll.RiskOutput(O32) -> 0 | V32: S4-C-14 | W32: CO₂-EOR Operation and CO₂ Storage | X32: =0.5*X58+0.5*X84 -> 0.01217802456 | Y32: -4.741475362e-08 | Z32: 6.743736039e-10 | AA32: -2.440089715e-05 | AB32: =Combination!AB16+_xll.RiskOutput(V32) -> 0 | AC32: S5-C-14 | AD32: CO₂-EOR Operation and CO₂ Storage | AE32: =0.5*AE58+0.5*AE84 -> 0.01216850399 | AF32: -4.737768558e-08 | AG32: 6.738463902e-10 | AH32: -2.438182095e-05 | AI32: =Combination!AI16+_xll.RiskOutput(AC32) -> 0 | AJ32: S6-C-14 | AK32: CO₂-EOR Operation and CO₂ Storage | AL32: =0.5*AL58+0.5*AL84 -> 0.01160448522 | AM32: -4.518169633e-08 | AN32: 6.426131333e-10 | AO32: -2.32517063e-05 | AP32: =Combination!AP16+_xll.RiskOutput(AJ32) -> 0
A33: S1-C-15 | B33: Product Transport | C33: =0.5*C59+0.5*C85 -> 0.006065996711 | D33: 1.252450163e-07 | E33: 3.734622246e-11 | F33: 4.604142392e-05 | G33: =Combination!G17+_xll.RiskOutput(A33) -> 0.007255206817 | H33: S2-C-15 | I33: Product Transport | J33: =0.5*J59+0.5*J85 -> 0.006065996711 | K33: 1.252450163e-07 | L33: 3.734622246e-11 | M33: 4.604142392e-05 | N33: =Combination!N17+_xll.RiskOutput(H33) -> 0.007255206817 | O33: S3-C-15 | P33: Product Transport | Q33: =0.5*Q59+0.5*Q85 -> 0.006065996711 | R33: 1.252450163e-07 | S33: 3.734622246e-11 | T33: 4.604142392e-05 | U33: =Combination!U17+_xll.RiskOutput(O33) -> 0.007255206817 | V33: S4-C-15 | W33: Product Transport | X33: =0.5*X59+0.5*X85 -> 0.006065996711 | Y33: 1.252450163e-07 | Z33: 3.734622246e-11 | AA33: 4.604142392e-05 | AB33: =Combination!AB17+_xll.RiskOutput(V33) -> 0.007255206817 | AC33: S5-C-15 | AD33: Product Transport | AE33: =0.5*AE59+0.5*AE85 -> 0.006065996711 | AF33: 1.252450163e-07 | AG33: 3.734622246e-11 | AH33: 4.604142392e-05 | AI33: =Combination!AI17+_xll.RiskOutput(AC33) -> 0.007255206817 | AJ33: S6-C-15 | AK33: Product Transport | AL33: =0.5*AL59+0.5*AL85 -> 0.006065996711 | AM33: 1.252450163e-07 | AN33: 3.734622246e-11 | AO33: 4.604142392e-05 | AP33: =Combination!AP17+_xll.RiskOutput(AJ33) -> 0.007255206817
A34: S1-C-16 | B34: Tansport of Blended Jet Fuel to Airport | C34: =0.5*C60+0.5*C86 -> 0.0001280851974 | D34: 2.308269599e-09 | E34: 2.49243187e-11 | F34: 3.690538612e-07 | G34: =Combination!G18+_xll.RiskOutput(A34) -> 0.0001385676828 | H34: S2-C-16 | I34: Tansport of Blended Jet Fuel to Airport | J34: =0.5*J60+0.5*J86 -> 0.0001280851974 | K34: 2.308269599e-09 | L34: 2.49243187e-11 | M34: 3.690538612e-07 | N34: =Combination!N18+_xll.RiskOutput(H34) -> 0.0001385676828 | O34: S3-C-16 | P34: Tansport of Blended Jet Fuel to Airport | Q34: =0.5*Q60+0.5*Q86 -> 0.0001280851974 | R34: 2.308269599e-09 | S34: 2.49243187e-11 | T34: 3.690538612e-07 | U34: =Combination!U18+_xll.RiskOutput(O34) -> 0.0001385676828 | V34: S4-C-16 | W34: Tansport of Blended Jet Fuel to Airport | X34: =0.5*X60+0.5*X86 -> 0.0001280851974 | Y34: 2.308269599e-09 | Z34: 2.49243187e-11 | AA34: 3.690538612e-07 | AB34: =Combination!AB18+_xll.RiskOutput(V34) -> 0.0001385676828 | AC34: S5-C-16 | AD34: Tansport of Blended Jet Fuel to Airport | AE34: =0.5*AE60+0.5*AE86 -> 0.0001280851974 | AF34: 2.308269599e-09 | AG34: 2.49243187e-11 | AH34: 3.690538612e-07 | AI34: =Combination!AI18+_xll.RiskOutput(AC34) -> 0.0001385676828 | AJ34: S6-C-16 | AK34: Tansport of Blended Jet Fuel to Airport | AL34: =0.5*AL60+0.5*AL86 -> 0.0001280851974 | AM34: 2.308269599e-09 | AN34: 2.49243187e-11 | AO34: 3.690538612e-07 | AP34: =Combination!AP18+_xll.RiskOutput(AJ34) -> 0.0001385676828
A35: S1-C-17 | B35: Blending of F-T and Conv. Jet (includes Conv. Jet Fuel Profile) | C35: =0.5*C61+0.5*C87 -> 0.005880426562 | D35: 1.218908247e-07 | E35: 1.298511691e-12 | F35: 4.55073105e-05 | G35: =Combination!G19+_xll.RiskOutput(A35) -> 0.007054462396 | H35: S2-C-17 | I35: Blending of F-T and Conv. Jet (includes Conv. Jet Fuel Profile) | J35: =0.5*J61+0.5*J87 -> 0.005880426562 | K35: 1.218908247e-07 | L35: 1.298511691e-12 | M35: 4.55073105e-05 | N35: =Combination!N19+_xll.RiskOutput(H35) -> 0.007054462396 | O35: S3-C-17 | P35: Blending of F-T and Conv. Jet (includes Conv. Jet Fuel Profile) | Q35: =0.5*Q61+0.5*Q87 -> 0.005880426562 | R35: 1.218908247e-07 | S35: 1.298511691e-12 | T35: 4.55073105e-05 | U35: =Combination!U19+_xll.RiskOutput(O35) -> 0.007054462396 | V35: S4-C-17 | W35: Blending of F-T and Conv. Jet (includes Conv. Jet Fuel Profile) | X35: =0.5*X61+0.5*X87 -> 0.005880426562 | Y35: 1.218908247e-07 | Z35: 1.298511691e-12 | AA35: 4.55073105e-05 | AB35: =Combination!AB19+_xll.RiskOutput(V35) -> 0.007054462396 | AC35: S5-C-17 | AD35: Blending of F-T and Conv. Jet (includes Conv. Jet Fuel Profile) | AE35: =0.5*AE61+0.5*AE87 -> 0.005880426562 | AF35: 1.218908247e-07 | AG35: 1.298511691e-12 | AH35: 4.55073105e-05 | AI35: =Combination!AI19+_xll.RiskOutput(AC35) -> 0.007054462396 | AJ35: S6-C-17 | AK35: Blending of F-T and Conv. Jet (includes Conv. Jet Fuel Profile) | AL35: =0.5*AL61+0.5*AL87 -> 0.005880426562 | AM35: 1.218908247e-07 | AN35: 1.298511691e-12 | AO35: 4.55073105e-05 | AP35: =Combination!AP19+_xll.RiskOutput(AJ35) -> 0.007054462396
A36: S1-C-18 | B36: Transport of F-T Jet to Blending Facility | C36: =0.5*C62+0.5*C88 -> 5.748495151e-05 | D36: 1.045921958e-09 | E36: 1.112339207e-11 | F36: 1.650595619e-07 | G36: =Combination!G20+_xll.RiskOutput(A36) -> 6.217673864e-05 | H36: S2-C-18 | I36: Transport of F-T Jet to Blending Facility | J36: =0.5*J62+0.5*J88 -> 5.748495151e-05 | K36: 1.045921958e-09 | L36: 1.112339207e-11 | M36: 1.650595619e-07 | N36: =Combination!N20+_xll.RiskOutput(H36) -> 6.217673864e-05 | O36: S3-C-18 | P36: Transport of F-T Jet to Blending Facility | Q36: =0.5*Q62+0.5*Q88 -> 5.748495151e-05 | R36: 1.045921958e-09 | S36: 1.112339207e-11 | T36: 1.650595619e-07 | U36: =Combination!U20+_xll.RiskOutput(O36) -> 6.217673864e-05 | V36: S4-C-18 | W36: Transport of F-T Jet to Blending Facility | X36: =0.5*X62+0.5*X88 -> 5.748495151e-05 | Y36: 1.045921958e-09 | Z36: 1.112339207e-11 | AA36: 1.650595619e-07 | AB36: =Combination!AB20+_xll.RiskOutput(V36) -> 6.217673864e-05 | AC36: S5-C-18 | AD36: Transport of F-T Jet to Blending Facility | AE36: =0.5*AE62+0.5*AE88 -> 5.748495151e-05 | AF36: 1.045921958e-09 | AG36: 1.112339207e-11 | AH36: 1.650595619e-07 | AI36: =Combination!AI20+_xll.RiskOutput(AC36) -> 6.217673864e-05 | AJ36: S6-C-18 | AK36: Transport of F-T Jet to Blending Facility | AL36: =0.5*AL62+0.5*AL88 -> 5.748495151e-05 | AM36: 1.045921958e-09 | AN36: 1.112339207e-11 | AO36: 1.650595619e-07 | AP36: =Combination!AP20+_xll.RiskOutput(AJ36) -> 6.217673864e-05
A37: S1-C-19 | B37: End Use | C37: =0.5*C63+0.5*C89 -> 0.07217962676 | D37: 1.896246485e-06 | E37: 3.611743149e-15 | F37: 5.323415649e-07 | G37: =Combination!G21+_xll.RiskOutput(A37) -> 0.07275801684 | H37: S2-C-19 | I37: End Use | J37: =0.5*J63+0.5*J89 -> 0.07217962676 | K37: 1.896246485e-06 | L37: 3.611743149e-15 | M37: 5.323415649e-07 | N37: =Combination!N21+_xll.RiskOutput(H37) -> 0.07275801684 | O37: S3-C-19 | P37: End Use | Q37: =0.5*Q63+0.5*Q89 -> 0.07217962676 | R37: 1.896246485e-06 | S37: 3.611743149e-15 | T37: 5.323415649e-07 | U37: =Combination!U21+_xll.RiskOutput(O37) -> 0.07275801684 | V37: S4-C-19 | W37: End Use | X37: =0.5*X63+0.5*X89 -> 0.07217962676 | Y37: 1.896246485e-06 | Z37: 3.611743149e-15 | AA37: 5.323415649e-07 | AB37: =Combination!AB21+_xll.RiskOutput(V37) -> 0.07275801684 | AC37: S5-C-19 | AD37: End Use | AE37: =0.5*AE63+0.5*AE89 -> 0.07217962676 | AF37: 1.896246485e-06 | AG37: 3.611743149e-15 | AH37: 5.323415649e-07 | AI37: =Combination!AI21+_xll.RiskOutput(AC37) -> 0.07275801684 | AJ37: S6-C-19 | AK37: End Use | AL37: =0.5*AL63+0.5*AL89 -> 0.07217962676 | AM37: 1.896246485e-06 | AN37: 3.611743149e-15 | AO37: 5.323415649e-07 | AP37: =Combination!AP21+_xll.RiskOutput(AJ37) -> 0.07275801684
A38: S1-C-20 | B38: Airplane Operation (Fuel Use) | C38: =0.5*C64+0.5*C90 -> 0.0721440266 | D38: 1.89563e-06 | E38: 0 | F38: 4.73907e-07 | G38: =Combination!G22+_xll.RiskOutput(A38) -> 0.07272077201 | H38: S2-C-20 | I38: Airplane Operation (Fuel Use) | J38: =0.5*J64+0.5*J90 -> 0.0721440266 | K38: 1.89563e-06 | L38: 0 | M38: 4.73907e-07 | N38: =Combination!N22+_xll.RiskOutput(H38) -> 0.07272077201 | O38: S3-C-20 | P38: Airplane Operation (Fuel Use) | Q38: =0.5*Q64+0.5*Q90 -> 0.0721440266 | R38: 1.89563e-06 | S38: 0 | T38: 4.73907e-07 | U38: =Combination!U22+_xll.RiskOutput(O38) -> 0.07272077201 | V38: S4-C-20 | W38: Airplane Operation (Fuel Use) | X38: =0.5*X64+0.5*X90 -> 0.0721440266 | Y38: 1.89563e-06 | Z38: 0 | AA38: 4.73907e-07 | AB38: =Combination!AB22+_xll.RiskOutput(V38) -> 0.07272077201 | AC38: S5-C-20 | AD38: Airplane Operation (Fuel Use) | AE38: =0.5*AE64+0.5*AE90 -> 0.0721440266 | AF38: 1.89563e-06 | AG38: 0 | AH38: 4.73907e-07 | AI38: =Combination!AI22+_xll.RiskOutput(AC38) -> 0.07272077201 | AJ38: S6-C-20 | AK38: Airplane Operation (Fuel Use) | AL38: =0.5*AL64+0.5*AL90 -> 0.0721440266 | AM38: 1.89563e-06 | AN38: 0 | AO38: 4.73907e-07 | AP38: =Combination!AP22+_xll.RiskOutput(AJ38) -> 0.07272077201
A39: S1-C-21 | B39: Airplane Construction | C39: =0.5*C65+0.5*C91 -> 3.560016379e-05 | D39: 6.164848853e-10 | E39: 3.611743149e-15 | F39: 5.843456494e-08 | G39: =Combination!G23+_xll.RiskOutput(A39) -> 3.724482276e-05 | H39: S2-C-21 | I39: Airplane Construction | J39: =0.5*J65+0.5*J91 -> 3.560016379e-05 | K39: 6.164848853e-10 | L39: 3.611743149e-15 | M39: 5.843456494e-08 | N39: =Combination!N23+_xll.RiskOutput(H39) -> 3.724482276e-05 | O39: S3-C-21 | P39: Airplane Construction | Q39: =0.5*Q65+0.5*Q91 -> 3.560016379e-05 | R39: 6.164848853e-10 | S39: 3.611743149e-15 | T39: 5.843456494e-08 | U39: =Combination!U23+_xll.RiskOutput(O39) -> 3.724482276e-05 | V39: S4-C-21 | W39: Airplane Construction | X39: =0.5*X65+0.5*X91 -> 3.560016379e-05 | Y39: 6.164848853e-10 | Z39: 3.611743149e-15 | AA39: 5.843456494e-08 | AB39: =Combination!AB23+_xll.RiskOutput(V39) -> 3.724482276e-05 | AC39: S5-C-21 | AD39: Airplane Construction | AE39: =0.5*AE65+0.5*AE91 -> 3.560016379e-05 | AF39: 6.164848853e-10 | AG39: 3.611743149e-15 | AH39: 5.843456494e-08 | AI39: =Combination!AI23+_xll.RiskOutput(AC39) -> 3.724482276e-05 | AJ39: S6-C-21 | AK39: Airplane Construction | AL39: =0.5*AL65+0.5*AL91 -> 3.560016379e-05 | AM39: 6.164848853e-10 | AN39: 3.611743149e-15 | AO39: 5.843456494e-08 | AP39: =Combination!AP23+_xll.RiskOutput(AJ39) -> 3.724482276e-05
A40: S1-C-22 | B40: Total Greenhouse Gas Emissions | C40: =0.5*C66+0.5*C92 -> 0.09359418278 | D40: 2.328803174e-06 | E40: 7.081083625e-10 | F40: 3.464028802e-05 | G40: =Combination!G24+_xll.RiskOutput(A40) -> 0.1063095884 | H40: S2-C-22 | I40: Total Greenhouse Gas Emissions | J40: =0.5*J66+0.5*J92 -> 0.08628179416 | K40: 3.410294762e-06 | L40: 7.161629755e-10 | M40: 3.629189772e-05 | N40: =Combination!N24+_xll.RiskOutput(H40) -> 0.08188981059 | O40: S3-C-22 | P40: Total Greenhouse Gas Emissions | Q40: =0.5*Q66+0.5*Q92 -> 0.07863206746 | R40: 4.546894213e-06 | S40: 7.246272416e-10 | T40: 3.812240272e-05 | U40: =Combination!U24+_xll.RiskOutput(O40) -> 0.07965181732 | V40: S4-C-22 | W40: Total Greenhouse Gas Emissions | X40: =0.5*X66+0.5*X92 -> 0.08746336325 | Y40: 3.084062073e-06 | Z40: 7.131672215e-10 | AA40: 2.90920326e-05 | AB40: =Combination!AB24+_xll.RiskOutput(V40) -> 0.0959014909 | AC40: S5-C-22 | AD40: Total Greenhouse Gas Emissions | AE40: =0.5*AE66+0.5*AE92 -> 0.08138637203 | AF40: 3.824249815e-06 | AG40: 7.181893186e-10 | AH40: 2.346737165e-05 | AI40: =Combination!AI24+_xll.RiskOutput(AC40) -> 0.08069906114 | AJ40: S6-C-22 | AK40: Total Greenhouse Gas Emissions | AL40: =0.5*AL66+0.5*AL92 -> 0.09123540867 | AM40: 3.496016614e-06 | AN40: 6.791872939e-10 | AO40: 3.97673976e-05 | AP40: =Combination!AP24+_xll.RiskOutput(AJ40) -> 0.08353968652
B43: SYSTEM EXPANSION
A44: S1-S | B44: =B$18 -> Scenario 1 - 100% Coal | C44: Carbon dioxide | D44: Nitrous oxide (laughing gas) | E44: Sulphur hexafluoride | F44: Methane | G44: GWP | H44: S2-S | I44: =I$18 -> Scenario 2 - 10% Dried/Chipped Biomass | J44: Carbon dioxide | K44: Nitrous oxide (laughing gas) | L44: Sulphur hexafluoride | M44: Methane | N44: GWP | O44: S3-S | P44: =P$18 -> Scenario 3 - 20% Dried/Chipped Biomass | Q44: Carbon dioxide | R44: Nitrous oxide (laughing gas) | S44: Sulphur hexafluoride | T44: Methane | U44: GWP | V44: S4-S | W44: =W$18 -> Scenario 4 - 10% Torrefied Biomass | X44: Carbon dioxide | Y44: Nitrous oxide (laughing gas) | Z44: Sulphur hexafluoride | AA44: Methane | AB44: GWP | AC44: S5-S | AD44: =AD$18 -> Scenario 5 - 20% Torrefied Biomass | AE44: Carbon dioxide | AF44: Nitrous oxide (laughing gas) | AG44: Sulphur hexafluoride | AH44: Methane | AI44: GWP | AJ44: S6-S | AK44: =AK$18 -> Scenario 6- 10% Dried/Chipped Biomass | AL44: Carbon dioxide | AM44: Nitrous oxide (laughing gas) | AN44: Sulphur hexafluoride | AO44: Methane | AP44: GWP
A45: S1-S-1 | B45: Raw Material Acquisition | C45: ='System Expansion'!B19 -> 0.0008067705958 | D45: ='System Expansion'!C19 -> 7.410710792e-07 | E45: ='System Expansion'!D19 -> 4.423094012e-13 | F45: ='System Expansion'!E19 -> 8.928491363e-05 | G45: ='System Expansion'!F19 -> 0.003259742703 | H45: S2-S-1 | I45: Raw Material Acquisition | J45: ='System Expansion'!I19 -> -0.0134874778 | K45: ='System Expansion'!J19 -> 2.589983905e-06 | L45: ='System Expansion'!K19 -> 4.84374485e-12 | M45: ='System Expansion'!L19 -> 8.33117225e-05 | N45: ='System Expansion'!M19 -> -0.01063275909 | O45: S3-S-1 | P45: Raw Material Acquisition | Q45: ='System Expansion'!P19 -> -0.02851509583 | R45: ='System Expansion'!Q19 -> 4.533739327e-06 | S45: ='System Expansion'!R19 -> 9.470983626e-12 | T45: ='System Expansion'!S19 -> 7.703036114e-05 | U45: ='System Expansion'!T19 -> -0.02523806654 | V45: S4-S-1 | W45: Raw Material Acquisition | X45: ='System Expansion'!W19 -> -0.009635898773 | Y45: ='System Expansion'!X19 -> 2.047677102e-06 | Z45: ='System Expansion'!Y19 -> 3.621734708e-12 | AA45: ='System Expansion'!Z19 -> 8.02794996e-05 | AB45: ='System Expansion'!AA19 -> -0.007018620931 | AC45: S5-S-1 | AD45: Raw Material Acquisition | AE45: ='System Expansion'!AD19 -> -0.01988312241 | AF45: ='System Expansion'!AE19 -> 3.329865617e-06 | AG45: ='System Expansion'!AF19 -> 6.741683915e-12 | AH45: ='System Expansion'!AG19 -> 7.14465267e-05 | AI45: ='System Expansion'!AH19 -> -0.01710450558 | AJ45: S6-S-1 | AK45: Raw Material Acquisition | AL45: ='System Expansion'!AK19 -> -0.014270169 | AM45: ='System Expansion'!AL19 -> 2.709474909e-06 | AN45: ='System Expansion'!AM19 -> 5.099661079e-12 | AO45: ='System Expansion'!AN19 -> 8.490502112e-05 | AP45: ='System Expansion'!AO19 -> -0.01134000367
A46: S1-S-2 | B46: Coal Mining, Surface | C46: ='System Expansion'!B20 -> 0.0008067705958 | D46: ='System Expansion'!C20 -> 7.410710792e-07 | E46: ='System Expansion'!D20 -> 4.423094012e-13 | F46: ='System Expansion'!E20 -> 8.928491363e-05 | G46: ='System Expansion'!F20 -> 0.003259742703 | H46: S2-S-2 | I46: Coal Mining, Surface | J46: ='System Expansion'!I20 -> 0.0007442460284 | K46: ='System Expansion'!J20 -> 6.836382118e-07 | L46: ='System Expansion'!K20 -> 4.080305069e-13 | M46: ='System Expansion'!L20 -> 8.236534984e-05 | N46: ='System Expansion'!M20 -> 0.003007113265 | O46: S3-S-2 | P46: Coal Mining, Surface | Q46: ='System Expansion'!P20 -> 0.0006784981428 | R46: ='System Expansion'!Q20 -> 6.232445178e-07 | S46: ='System Expansion'!R20 -> 3.719844387e-13 | T46: ='System Expansion'!S20 -> 7.508906297e-05 | U46: ='System Expansion'!T20 -> 0.002741460065 | V46: S4-S-2 | W46: Coal Mining, Surface | X46: ='System Expansion'!W20 -> 0.0007191764711 | Y46: ='System Expansion'!X20 -> 6.606101987e-07 | Z46: ='System Expansion'!Y20 -> 3.942862022e-13 | AA46: ='System Expansion'!Z20 -> 7.959091399e-05 | AB46: ='System Expansion'!AA20 -> 0.00290582015 | AC46: S5-S-2 | AD46: Coal Mining, Surface | AE46: ='System Expansion'!AD20 -> 0.0006332569394 | AF46: ='System Expansion'!AE20 -> 5.816875404e-07 | AG46: ='System Expansion'!AF20 -> 3.471810935e-13 | AH46: ='System Expansion'!AG20 -> 7.008224077e-05 | AI46: ='System Expansion'!AH20 -> 0.002558663761 | AJ46: S6-S-2 | AK46: Coal Mining, Surface | AL46: ='System Expansion'!AK20 -> 0.0007581642796 | AM46: ='System Expansion'!AL20 -> 6.964230276e-07 | AN46: ='System Expansion'!AM20 -> 4.156611436e-13 | AO46: ='System Expansion'!AN20 -> 8.3905676e-05 | AP46: ='System Expansion'!AO20 -> 0.003063349719
A47: S1-S-3 | B47: Biomass Production and Field Chipping | C47: ='System Expansion'!B21 -> 0 | D47: ='System Expansion'!C21 -> 0 | E47: ='System Expansion'!D21 -> 0 | F47: ='System Expansion'!E21 -> 0 | G47: ='System Expansion'!F21 -> 0 | H47: S2-S-3 | I47: Biomass Production and Field Chipping | J47: ='System Expansion'!I21 -> -0.01601728653 | K47: ='System Expansion'!J21 -> 1.855004359e-06 | L47: ='System Expansion'!K21 -> 4.435714343e-12 | M47: ='System Expansion'!L21 -> 9.463726658e-07 | N47: ='System Expansion'!M21 -> -0.01544073478 | O47: S3-S-3 | P47: Biomass Production and Field Chipping | Q47: ='System Expansion'!P21 -> -0.03285632613 | R47: ='System Expansion'!Q21 -> 3.805178118e-06 | S47: ='System Expansion'!R21 -> 9.098999187e-12 | T47: ='System Expansion'!S21 -> 1.941298165e-06 | U47: ='System Expansion'!T21 -> -0.03167364314 | V47: S4-S-3 | W47: Biomass Production and Field Chipping | X47: ='System Expansion'!W21 -> -0.01165425983 | Y47: ='System Expansion'!X21 -> 1.349710685e-06 | Z47: ='System Expansion'!Y21 -> 3.227448506e-12 | AA47: ='System Expansion'!Z21 -> 6.885856053e-07 | AB47: ='System Expansion'!AA21 -> -0.01123475782 | AC47: S5-S-3 | AD47: Biomass Production and Field Chipping | AE47: ='System Expansion'!AD21 -> -0.02309043729 | AF47: ='System Expansion'!AE21 -> 2.674164675e-06 | AG47: ='System Expansion'!AF21 -> 6.394502821e-12 | AH47: ='System Expansion'!AG21 -> 1.364285933e-06 | AI47: ='System Expansion'!AH21 -> -0.02225928328 | AJ47: S6-S-3 | AK47: Biomass Production and Field Chipping | AL47: ='System Expansion'!AK21 -> -0.01691384144 | AM47: ='System Expansion'!AL21 -> 1.958836757e-06 | AN47: ='System Expansion'!AM21 -> 4.683999936e-12 | AO47: ='System Expansion'!AN21 -> 9.993451251e-07 | AP47: ='System Expansion'!AO21 -> -0.01630501766
A48: S1-S-4 | B48: Biomass Direct Land Use Change | C48: ='System Expansion'!B22 -> 0 | D48: ='System Expansion'!C22 -> 0 | E48: ='System Expansion'!D22 -> 0 | F48: ='System Expansion'!E22 -> 0 | G48: ='System Expansion'!F22 -> 0 | H48: S2-S-4 | I48: Biomass Direct Land Use Change | J48: ='System Expansion'!I22 -> 0.0003806724772 | K48: ='System Expansion'!J22 -> 0 | L48: ='System Expansion'!K22 -> 0 | M48: ='System Expansion'!L22 -> 0 | N48: ='System Expansion'!M22 -> 0.0003806724772 | O48: S3-S-4 | P48: Biomass Direct Land Use Change | Q48: ='System Expansion'!P22 -> 0.0007808750277 | R48: ='System Expansion'!Q22 -> 0 | S48: ='System Expansion'!R22 -> 0 | T48: ='System Expansion'!S22 -> 0 | U48: ='System Expansion'!T22 -> 0.0007808750277 | V48: S4-S-4 | W48: Biomass Direct Land Use Change | X48: ='System Expansion'!W22 -> 0.0002769792467 | Y48: ='System Expansion'!X22 -> 0 | Z48: ='System Expansion'!Y22 -> 0 | AA48: ='System Expansion'!Z22 -> 0 | AB48: ='System Expansion'!AA22 -> 0.0002769792467 | AC48: S5-S-4 | AD48: Biomass Direct Land Use Change | AE48: ='System Expansion'!AD22 -> 0.0005487754713 | AF48: ='System Expansion'!AE22 -> 0 | AG48: ='System Expansion'!AF22 -> 0 | AH48: ='System Expansion'!AG22 -> 0 | AI48: ='System Expansion'!AH22 -> 0.0005487754713 | AJ48: S6-S-4 | AK48: Biomass Direct Land Use Change | AL48: ='System Expansion'!AK22 -> 0.0004019803172 | AM48: ='System Expansion'!AL22 -> 0 | AN48: ='System Expansion'!AM22 -> 0 | AO48: ='System Expansion'!AN22 -> 0 | AP48: ='System Expansion'!AO22 -> 0.0004019803172
A49: S1-S-5 | B49: Biomass Indirect Land Use Change | C49: ='System Expansion'!B23 -> 0 | D49: ='System Expansion'!C23 -> 0 | E49: ='System Expansion'!D23 -> 0 | F49: ='System Expansion'!E23 -> 0 | G49: ='System Expansion'!F23 -> 0 | H49: S2-S-5 | I49: Biomass Indirect Land Use Change | J49: ='System Expansion'!I23 -> 0.001404890227 | K49: ='System Expansion'!J23 -> 5.134133428e-08 | L49: ='System Expansion'!K23 -> 0 | M49: ='System Expansion'!L23 -> 0 | N49: ='System Expansion'!M23 -> 0.001420189945 | O49: S3-S-5 | P49: Biomass Indirect Land Use Change | Q49: ='System Expansion'!P23 -> 0.002881857137 | R49: ='System Expansion'!Q23 -> 1.053166915e-07 | S49: ='System Expansion'!R23 -> 0 | T49: ='System Expansion'!S23 -> 0 | U49: ='System Expansion'!T23 -> 0.002913241511 | V49: S4-S-5 | W49: Biomass Indirect Land Use Change | X49: ='System Expansion'!W23 -> 0.001022205335 | Y49: ='System Expansion'!X23 -> 3.735621814e-08 | Z49: ='System Expansion'!Y23 -> 0 | AA49: ='System Expansion'!Z23 -> 0 | AB49: ='System Expansion'!AA23 -> 0.001033337488 | AC49: S5-S-5 | AD49: Biomass Indirect Land Use Change | AE49: ='System Expansion'!AD23 -> 0.002025282475 | AF49: ='System Expansion'!AE23 -> 7.401340156e-08 | AG49: ='System Expansion'!AF23 -> 0 | AH49: ='System Expansion'!AG23 -> 0 | AI49: ='System Expansion'!AH23 -> 0.002047338468 | AJ49: S6-S-5 | AK49: Biomass Indirect Land Use Change | AL49: ='System Expansion'!AK23 -> 0.001483527844 | AM49: ='System Expansion'!AL23 -> 5.421512475e-08 | AN49: ='System Expansion'!AM23 -> 0 | AO49: ='System Expansion'!AN23 -> 0 | AP49: ='System Expansion'!AO23 -> 0.001499683951
A50: S1-S-6 | B50: Raw Material Transport | C50: ='System Expansion'!B24 -> 0.005370699614 | D50: ='System Expansion'!C24 -> 1.315743929e-07 | E50: ='System Expansion'!D24 -> 1.174834045e-14 | F50: ='System Expansion'!E24 -> 6.140945966e-06 | G50: ='System Expansion'!F24 -> 0.0055634327 | H50: S2-S-6 | I50: Raw Material Transport | J50: ='System Expansion'!I24 -> 0.005004408079 | K50: ='System Expansion'!J24 -> 1.225994455e-07 | L50: ='System Expansion'!K24 -> 1.155073817e-14 | M50: ='System Expansion'!L24 -> 5.80583333e-06 | N50: ='System Expansion'!M24 -> 0.00518608881 | O50: S3-S-6 | P50: Raw Material Transport | Q50: ='System Expansion'!P24 -> 0.004619220761 | R50: ='System Expansion'!Q24 -> 1.131615104e-07 | S50: ='System Expansion'!R24 -> 1.134277164e-14 | T50: ='System Expansion'!S24 -> 5.453409673e-06 | U50: ='System Expansion'!T24 -> 0.004789278391 | V50: S4-S-6 | W50: Raw Material Transport | X50: ='System Expansion'!W24 -> 0.005533844466 | Y50: ='System Expansion'!X24 -> 1.243976107e-07 | Z50: ='System Expansion'!Y24 -> 6.693673604e-12 | AA50: ='System Expansion'!Z24 -> 5.7784873e-06 | AB50: ='System Expansion'!AA24 -> 0.005715529752 | AC50: S5-S-6 | AD50: Raw Material Transport | AE50: ='System Expansion'!AD24 -> 0.00569410634 | AF50: ='System Expansion'!AE24 -> 1.173603301e-07 | AG50: ='System Expansion'!AF24 -> 1.324993912e-11 | AH50: ='System Expansion'!AG24 -> 5.423062382e-06 | AI50: ='System Expansion'!AH24 -> 0.005864958377 | AJ50: S6-S-6 | AK50: Raw Material Transport | AL50: ='System Expansion'!AK24 -> 0.005099857521 | AM50: ='System Expansion'!AL24 -> 1.249377446e-07 | AN50: ='System Expansion'!AM24 -> 1.179332184e-14 | AO50: ='System Expansion'!AN24 -> 5.91965745e-06 | AP50: ='System Expansion'!AO24 -> 0.005285080674
A51: S1-S-7 | B51: Biomass Transport to Torrefaction Facility | C51: ='System Expansion'!B25 -> 0 | D51: ='System Expansion'!C25 -> 0 | E51: ='System Expansion'!D25 -> 0 | F51: ='System Expansion'!E25 -> 0 | G51: ='System Expansion'!F25 -> 0 | H51: S2-S-7 | I51: Biomass Transport to Torrefaction Facility | J51: ='System Expansion'!I25 -> 0 | K51: ='System Expansion'!J25 -> 0 | L51: ='System Expansion'!K25 -> 0 | M51: ='System Expansion'!L25 -> 0 | N51: ='System Expansion'!M25 -> 0 | O51: S3-S-7 | P51: Biomass Transport to Torrefaction Facility | Q51: ='System Expansion'!P25 -> 0 | R51: ='System Expansion'!Q25 -> 0 | S51: ='System Expansion'!R25 -> 0 | T51: ='System Expansion'!S25 -> 0 | U51: ='System Expansion'!T25 -> 0 | V51: S4-S-7 | W51: Biomass Transport to Torrefaction Facility | X51: ='System Expansion'!W25 -> 2.928604055e-05 | Y51: ='System Expansion'!X25 -> 7.07868641e-10 | Z51: ='System Expansion'!Y25 -> 4.033818351e-16 | AA51: ='System Expansion'!Z25 -> 1.000421124e-07 | AB51: ='System Expansion'!AA25 -> 3.199804741e-05 | AC51: S5-S-7 | AD51: Biomass Transport to Torrefaction Facility | AE51: ='System Expansion'!AD25 -> 5.802132823e-05 | AF51: ='System Expansion'!AE25 -> 1.402425114e-09 | AG51: ='System Expansion'!AF25 -> 7.991776769e-16 | AH51: ='System Expansion'!AG25 -> 1.982028342e-07 | AI51: ='System Expansion'!AH25 -> 6.339433999e-05 | AJ51: S6-S-7 | AK51: Biomass Transport to Torrefaction Facility | AL51: ='System Expansion'!AK25 -> 0 | AM51: ='System Expansion'!AL25 -> 0 | AN51: ='System Expansion'!AM25 -> 0 | AO51: ='System Expansion'!AN25 -> 0 | AP51: ='System Expansion'!AO25 -> 0
A52: S1-S-8 | B52: Biomass Torrefaction | C52: ='System Expansion'!B26 -> 0 | D52: ='System Expansion'!C26 -> 0 | E52: ='System Expansion'!D26 -> 0 | F52: ='System Expansion'!E26 -> 0 | G52: ='System Expansion'!F26 -> 0 | H52: S2-S-8 | I52: Biomass Torrefaction | J52: ='System Expansion'!I26 -> 0 | K52: ='System Expansion'!J26 -> 0 | L52: ='System Expansion'!K26 -> 0 | M52: ='System Expansion'!L26 -> 0 | N52: ='System Expansion'!M26 -> 0 | O52: S3-S-8 | P52: Biomass Torrefaction | Q52: ='System Expansion'!P26 -> 0 | R52: ='System Expansion'!Q26 -> 0 | S52: ='System Expansion'!R26 -> 0 | T52: ='System Expansion'!S26 -> 0 | U52: ='System Expansion'!T26 -> 0 | V52: S4-S-8 | W52: Biomass Torrefaction | X52: ='System Expansion'!W26 -> 0.0006806417426 | Y52: ='System Expansion'!X26 -> 5.511712189e-09 | Z52: ='System Expansion'!Y26 -> 6.682278739e-12 | AA52: ='System Expansion'!Z26 -> 1.017911549e-07 | AB52: ='System Expansion'!AA26 -> 0.0006849813676 | AC52: S5-S-8 | AD52: Biomass Torrefaction | AE52: ='System Expansion'!AD26 -> 0.001348483346 | AF52: ='System Expansion'!AE26 -> 1.091977119e-08 | AG52: ='System Expansion'!AF26 -> 1.323889064e-11 | AH52: ='System Expansion'!AG26 -> 2.016680267e-07 | AI52: ='System Expansion'!AH26 -> 0.001357080985 | AJ52: S6-S-8 | AK52: Biomass Torrefaction | AL52: ='System Expansion'!AK26 -> 0 | AM52: ='System Expansion'!AL26 -> 0 | AN52: ='System Expansion'!AM26 -> 0 | AO52: ='System Expansion'!AN26 -> 0 | AP52: ='System Expansion'!AO26 -> 0
A53: S1-S-9 | B53: Transport of Chipped or Torrefied Biomass to CBTL Plant | C53: ='System Expansion'!B27 -> 0 | D53: ='System Expansion'!C27 -> 0 | E53: ='System Expansion'!D27 -> 0 | F53: ='System Expansion'!E27 -> 0 | G53: ='System Expansion'!F27 -> 0 | H53: S2-S-9 | I53: Transport of Chipped or Torrefied Biomass to CBTL Plant | J53: ='System Expansion'!I27 -> 4.993666129e-05 | K53: ='System Expansion'!J27 -> 1.222043061e-09 | L53: ='System Expansion'!K27 -> 7.128918627e-16 | M53: ='System Expansion'!L27 -> 1.40809506e-07 | N53: ='System Expansion'!M27 -> 5.382108403e-05 | O53: S3-S-9 | P53: Transport of Chipped or Torrefied Biomass to CBTL Plant | Q53: ='System Expansion'!P27 -> 0.0001024352799 | R53: ='System Expansion'!Q27 -> 2.506781988e-09 | S53: ='System Expansion'!R27 -> 1.462358028e-15 | T53: ='System Expansion'!S27 -> 2.888431222e-07 | U53: ='System Expansion'!T27 -> 0.0001104034124 | V53: S4-S-9 | W53: Transport of Chipped or Torrefied Biomass to CBTL Plant | X53: ='System Expansion'!W27 -> 3.633417086e-05 | Y53: ='System Expansion'!X27 -> 8.891647987e-10 | Z53: ='System Expansion'!Y27 -> 5.187037755e-16 | AA53: ='System Expansion'!Z27 -> 1.024537187e-07 | AB53: ='System Expansion'!AA27 -> 3.916049677e-05 | AC53: S5-S-9 | AD53: Transport of Chipped or Torrefied Biomass to CBTL Plant | AE53: ='System Expansion'!AD27 -> 7.198843226e-05 | AF53: ='System Expansion'!AE27 -> 1.761690947e-09 | AG53: ='System Expansion'!AF27 -> 1.027701217e-15 | AH53: ='System Expansion'!AG27 -> 2.029902544e-07 | AI53: ='System Expansion'!AH27 -> 7.758819595e-05 | AJ53: S6-S-9 | AK53: Transport of Chipped or Torrefied Biomass to CBTL Plant | AL53: ='System Expansion'!AK27 -> 5.27318263e-05 | AM53: ='System Expansion'!AL27 -> 1.290445952e-09 | AN53: ='System Expansion'!AM27 -> 7.527954193e-16 | AO53: ='System Expansion'!AN27 -> 1.486912064e-07 | AP53: ='System Expansion'!AO27 -> 5.683367652e-05
A54: S1-S-10 | B54: Transport of Coal to CBTL Plant | C54: ='System Expansion'!B28 -> 0.005370699614 | D54: ='System Expansion'!C28 -> 1.315743929e-07 | E54: ='System Expansion'!D28 -> 1.174834045e-14 | F54: ='System Expansion'!E28 -> 6.140945966e-06 | G54: ='System Expansion'!F28 -> 0.0055634327 | H54: S2-S-10 | I54: Transport of Coal to CBTL Plant | J54: ='System Expansion'!I28 -> 0.004954471418 | K54: ='System Expansion'!J28 -> 1.213774025e-07 | L54: ='System Expansion'!K28 -> 1.083784631e-14 | M54: ='System Expansion'!L28 -> 5.665023824e-06 | N54: ='System Expansion'!M28 -> 0.005132267726 | O54: S3-S-10 | P54: Transport of Coal to CBTL Plant | Q54: ='System Expansion'!P28 -> 0.004516785481 | R54: ='System Expansion'!Q28 -> 1.106547284e-07 | S54: ='System Expansion'!R28 -> 9.880413615e-15 | T54: ='System Expansion'!S28 -> 5.16456655e-06 | U54: ='System Expansion'!T28 -> 0.004678874979 | V54: S4-S-10 | W54: Transport of Coal to CBTL Plant | X54: ='System Expansion'!W28 -> 0.004787582512 | Y54: ='System Expansion'!X28 -> 1.17288865e-07 | Z54: ='System Expansion'!Y28 -> 1.047277885e-14 | AA54: ='System Expansion'!Z28 -> 5.474200314e-06 | AB54: ='System Expansion'!AA28 -> 0.004959389841 | AC54: S5-S-10 | AD54: Transport of Coal to CBTL Plant | AE54: ='System Expansion'!AD28 -> 0.004215613234 | AF54: ='System Expansion'!AE28 -> 1.032764428e-07 | AG54: ='System Expansion'!AF28 -> 9.221602967e-15 | AH54: ='System Expansion'!AG28 -> 4.820201267e-06 | AI54: ='System Expansion'!AH28 -> 0.004366894856 | AJ54: S6-S-10 | AK54: Transport of Coal to CBTL Plant | AL54: ='System Expansion'!AK28 -> 0.005047125695 | AM54: ='System Expansion'!AL28 -> 1.236472986e-07 | AN54: ='System Expansion'!AM28 -> 1.104052642e-14 | AO54: ='System Expansion'!AN28 -> 5.770966243e-06 | AP54: ='System Expansion'!AO28 -> 0.005228246997
A55: S1-S-11 | B55: Energy Conversion Facility | C55: ='System Expansion'!B29 -> 0.02093461272 | D55: ='System Expansion'!C29 -> -4.010343705e-07 | E55: ='System Expansion'!D29 -> 1.340949299e-09 | F55: ='System Expansion'!E29 -> -0.0001348995517 | G55: ='System Expansion'!F29 -> 0.01747318932 | H55: S2-S-11 | I55: Energy Conversion Facility | J55: ='System Expansion'!I29 -> 0.02320188738 | K55: ='System Expansion'!J29 -> -3.785797938e-07 | L55: ='System Expansion'!K29 -> 1.351873893e-09 | M55: ='System Expansion'!L29 -> -0.0001253152548 | N55: ='System Expansion'!M29 -> 0.01998701196 | O55: S3-S-11 | P55: Energy Conversion Facility | Q55: ='System Expansion'!P29 -> 0.02564766313 | R55: ='System Expansion'!Q29 -> -3.53979131e-07 | S55: ='System Expansion'!R29 -> 1.363356349e-09 | T55: ='System Expansion'!S29 -> -0.0001150507082 | U55: ='System Expansion'!T29 -> 0.02269699417 | V55: S4-S-11 | W55: Energy Conversion Facility | X55: ='System Expansion'!W29 -> 0.02065832993 | Y55: ='System Expansion'!X29 -> -4.025239684e-07 | Z55: ='System Expansion'!Y29 -> 1.339592924e-09 | AA55: ='System Expansion'!Z29 -> -0.0001351024834 | AB55: ='System Expansion'!AA29 -> 0.01719135842 | AC55: S5-S-11 | AD55: Energy Conversion Facility | AE55: ='System Expansion'!AD29 -> 0.02026735586 | AF55: ='System Expansion'!AE29 -> -4.058700168e-07 | AG55: ='System Expansion'!AF29 -> 1.338378284e-09 | AH55: ='System Expansion'!AG29 -> -0.0001356617699 | AI55: ='System Expansion'!AH29 -> 0.01678537737 | AJ55: S6-S-11 | AK55: Energy Conversion Facility | AL55: ='System Expansion'!AK29 -> 0.03218150241 | AM55: ='System Expansion'!AL29 -> -3.666318294e-07 | AN55: ='System Expansion'!AM29 -> 1.277584778e-09 | AO55: ='System Expansion'!AN29 -> -0.0001210231271 | AP55: ='System Expansion'!AO29 -> 0.02907579688
A56: S1-S-12 | B56: CBTL Plant Operations (includes CO₂ Compression) | C56: ='System Expansion'!B30 -> -0.004232489205 | D56: ='System Expansion'!C30 -> -3.081027986e-07 | E56: ='System Expansion'!D30 -> -9.074039676e-12 | F56: ='System Expansion'!E30 -> -8.60892906e-05 | G56: ='System Expansion'!F30 -> -0.006476742992 | H56: S2-S-12 | I56: CBTL Plant Operations (includes CO₂ Compression) | J56: ='System Expansion'!I30 -> -0.002147846842 | K56: ='System Expansion'!J30 -> -2.849738372e-07 | L56: ='System Expansion'!K30 -> -7.946278071e-12 | M56: ='System Expansion'!L30 -> -7.615078802e-05 | N56: ='System Expansion'!M30 -> -0.004136719921 | O56: S3-S-12 | P56: CBTL Plant Operations (includes CO₂ Compression) | Q56: ='System Expansion'!P30 -> 0.0001067787539 | R56: ='System Expansion'!Q30 -> -2.59667337e-07 | S56: ='System Expansion'!R30 -> -6.717571469e-12 | T56: ='System Expansion'!S30 -> -6.551551576e-05 | U56: ='System Expansion'!T30 -> -0.001608643167 | V56: S4-S-12 | W56: CBTL Plant Operations (includes CO₂ Compression) | X56: ='System Expansion'!W30 -> -0.004484982391 | Y56: ='System Expansion'!X30 -> -3.096802416e-07 | Z56: ='System Expansion'!Y30 -> -9.154283984e-12 | AA56: ='System Expansion'!Z30 -> -8.633836098e-05 | AB56: ='System Expansion'!AA30 -> -0.006735934846 | AC56: S5-S-12 | AD56: CBTL Plant Operations (includes CO₂ Compression) | AE56: ='System Expansion'!AD30 -> -0.004856299858 | AF56: ='System Expansion'!AE30 -> -3.130988736e-07 | AG56: ='System Expansion'!AF30 -> -9.314496319e-12 | AH56: ='System Expansion'!AG30 -> -8.69357704e-05 | AI56: ='System Expansion'!AH30 -> -0.007123209953 | AJ56: S6-S-12 | AK56: CBTL Plant Operations (includes CO₂ Compression) | AL56: ='System Expansion'!AK30 -> 0.008222345912 | AM56: ='System Expansion'!AL30 -> -2.781606943e-07 | AN56: ='System Expansion'!AM30 -> -7.641488066e-12 | AO56: ='System Expansion'!AN30 -> -7.455561215e-05 | AP56: ='System Expansion'!AO30 -> 0.006275389495
A57: S1-S-13 | B57: CO₂ Pipeline Transport to CO₂-EOR Operation | C57: ='System Expansion'!B31 -> 0.0007880080771 | D57: ='System Expansion'!C31 -> 1.987659261e-09 | E57: ='System Expansion'!D31 -> 0 | F57: ='System Expansion'!E31 -> 3.770747495e-08 | G57: ='System Expansion'!F31 -> 0.0007895430864 | H57: S2-S-13 | I57: CO₂ Pipeline Transport to CO₂-EOR Operation | J57: ='System Expansion'!I31 -> 0.0007937264841 | K57: ='System Expansion'!J31 -> 2.002083281e-09 | L57: ='System Expansion'!K31 -> 0 | M57: ='System Expansion'!L31 -> 3.798111007e-08 | N57: ='System Expansion'!M31 -> 0.0007952726327 | O57: S3-S-13 | P57: CO₂ Pipeline Transport to CO₂-EOR Operation | Q57: ='System Expansion'!P31 -> 0.0007997115938 | R57: ='System Expansion'!Q31 -> 2.017180028e-09 | S57: ='System Expansion'!R31 -> 0 | T57: ='System Expansion'!S31 -> 3.826750736e-08 | U57: ='System Expansion'!T31 -> 0.0008012694011 | V57: S4-S-13 | W57: CO₂ Pipeline Transport to CO₂-EOR Operation | X57: ='System Expansion'!W31 -> 0.0007872632001 | Y57: ='System Expansion'!X31 -> 1.985780394e-09 | Z57: ='System Expansion'!Y31 -> 0 | AA57: ='System Expansion'!Z31 -> 3.767183136e-08 | AB57: ='System Expansion'!AA31 -> 0.0007887967584 | AC57: S5-S-13 | AD57: CO₂ Pipeline Transport to CO₂-EOR Operation | AE57: ='System Expansion'!AD31 -> 0.0007866477313 | AF57: ='System Expansion'!AE31 -> 1.984227946e-09 | AG57: ='System Expansion'!AF31 -> 0 | AH57: ='System Expansion'!AG31 -> 3.764238017e-08 | AI57: ='System Expansion'!AH31 -> 0.0007881800907 | AJ57: S6-S-13 | AK57: CO₂ Pipeline Transport to CO₂-EOR Operation | AL57: ='System Expansion'!AK31 -> 0.0007501860524 | AM57: ='System Expansion'!AL31 -> 1.892257576e-09 | AN57: ='System Expansion'!AM31 -> 0 | AO57: ='System Expansion'!AN31 -> 3.589762922e-08 | AP57: ='System Expansion'!AO31 -> 0.0007516473858
A58: S1-S-14 | B58: CO₂-EOR Operation and CO₂ Storage | C58: ='System Expansion'!B32 -> 0.02437909384 | D58: ='System Expansion'!C32 -> -9.491923113e-08 | E58: ='System Expansion'!D32 -> 1.350023339e-09 | F58: ='System Expansion'!E32 -> -4.884796861e-05 | G58: ='System Expansion'!F32 -> 0.02316038923 | H58: S2-S-14 | I58: CO₂-EOR Operation and CO₂ Storage | J58: ='System Expansion'!I32 -> 0.02455600774 | K58: ='System Expansion'!J32 -> -9.56080398e-08 | L58: ='System Expansion'!K32 -> 1.359820171e-09 | M58: ='System Expansion'!L32 -> -4.920244793e-05 | N58: ='System Expansion'!M32 -> 0.02332845925 | O58: S3-S-14 | P58: CO₂-EOR Operation and CO₂ Storage | Q58: ='System Expansion'!P32 -> 0.02474117279 | R58: ='System Expansion'!Q32 -> -9.632897405e-08 | S58: ='System Expansion'!R32 -> 1.370073921e-09 | T58: ='System Expansion'!S32 -> -4.957345993e-05 | U58: ='System Expansion'!T32 -> 0.02350436794 | V58: S4-S-14 | W58: CO₂-EOR Operation and CO₂ Storage | X58: ='System Expansion'!W32 -> 0.02435604912 | Y58: ='System Expansion'!X32 -> -9.482950724e-08 | Z58: ='System Expansion'!Y32 -> 1.348747208e-09 | AA58: ='System Expansion'!Z32 -> -4.88017943e-05 | AB58: ='System Expansion'!AA32 -> 0.02313849651 | AC58: S5-S-14 | AD58: CO₂-EOR Operation and CO₂ Storage | AE58: ='System Expansion'!AD32 -> 0.02433700798 | AF58: ='System Expansion'!AE32 -> -9.475537116e-08 | AG58: ='System Expansion'!AF32 -> 1.34769278e-09 | AH58: ='System Expansion'!AG32 -> -4.87636419e-05 | AI58: ='System Expansion'!AH32 -> 0.02312040723 | AJ58: S6-S-14 | AK58: CO₂-EOR Operation and CO₂ Storage | AL58: ='System Expansion'!AK32 -> 0.02320897044 | AM58: ='System Expansion'!AL32 -> -9.036339267e-08 | AN58: ='System Expansion'!AM32 -> 1.285226267e-09 | AO58: ='System Expansion'!AN32 -> -4.650341259e-05 | AP58: ='System Expansion'!AO32 -> 0.02204876
A59: S1-S-15 | B59: Product Transport | C59: ='System Expansion'!B33 -> 0.006065996711 | D59: ='System Expansion'!C33 -> 1.252450163e-07 | E59: ='System Expansion'!D33 -> 3.734622246e-11 | F59: ='System Expansion'!E33 -> 4.604142392e-05 | G59: ='System Expansion'!F33 -> 0.007255206817 | H59: S2-S-15 | I59: Product Transport | J59: ='System Expansion'!I33 -> 0.006065996711 | K59: ='System Expansion'!J33 -> 1.252450163e-07 | L59: ='System Expansion'!K33 -> 3.734622246e-11 | M59: ='System Expansion'!L33 -> 4.604142392e-05 | N59: ='System Expansion'!M33 -> 0.007255206817 | O59: S3-S-15 | P59: Product Transport | Q59: ='System Expansion'!P33 -> 0.006065996711 | R59: ='System Expansion'!Q33 -> 1.252450163e-07 | S59: ='System Expansion'!R33 -> 3.734622246e-11 | T59: ='System Expansion'!S33 -> 4.604142392e-05 | U59: ='System Expansion'!T33 -> 0.007255206817 | V59: S4-S-15 | W59: Product Transport | X59: ='System Expansion'!W33 -> 0.006065996711 | Y59: ='System Expansion'!X33 -> 1.252450163e-07 | Z59: ='System Expansion'!Y33 -> 3.734622246e-11 | AA59: ='System Expansion'!Z33 -> 4.604142392e-05 | AB59: ='System Expansion'!AA33 -> 0.007255206817 | AC59: S5-S-15 | AD59: Product Transport | AE59: ='System Expansion'!AD33 -> 0.006065996711 | AF59: ='System Expansion'!AE33 -> 1.252450163e-07 | AG59: ='System Expansion'!AF33 -> 3.734622246e-11 | AH59: ='System Expansion'!AG33 -> 4.604142392e-05 | AI59: ='System Expansion'!AH33 -> 0.007255206817 | AJ59: S6-S-15 | AK59: Product Transport | AL59: ='System Expansion'!AK33 -> 0.006065996711 | AM59: ='System Expansion'!AL33 -> 1.252450163e-07 | AN59: ='System Expansion'!AM33 -> 3.734622246e-11 | AO59: ='System Expansion'!AN33 -> 4.604142392e-05 | AP59: ='System Expansion'!AO33 -> 0.007255206817
A60: S1-S-16 | B60: Tansport of Blended Jet Fuel to Airport | C60: ='System Expansion'!B34 -> 0.0001280851974 | D60: ='System Expansion'!C34 -> 2.308269599e-09 | E60: ='System Expansion'!D34 -> 2.49243187e-11 | F60: ='System Expansion'!E34 -> 3.690538612e-07 | G60: ='System Expansion'!F34 -> 0.0001385676828 | H60: S2-S-16 | I60: Tansport of Blended Jet Fuel to Airport | J60: ='System Expansion'!I34 -> 0.0001280851974 | K60: ='System Expansion'!J34 -> 2.308269599e-09 | L60: ='System Expansion'!K34 -> 2.49243187e-11 | M60: ='System Expansion'!L34 -> 3.690538612e-07 | N60: ='System Expansion'!M34 -> 0.0001385676828 | O60: S3-S-16 | P60: Tansport of Blended Jet Fuel to Airport | Q60: ='System Expansion'!P34 -> 0.0001280851974 | R60: ='System Expansion'!Q34 -> 2.308269599e-09 | S60: ='System Expansion'!R34 -> 2.49243187e-11 | T60: ='System Expansion'!S34 -> 3.690538612e-07 | U60: ='System Expansion'!T34 -> 0.0001385676828 | V60: S4-S-16 | W60: Tansport of Blended Jet Fuel to Airport | X60: ='System Expansion'!W34 -> 0.0001280851974 | Y60: ='System Expansion'!X34 -> 2.308269599e-09 | Z60: ='System Expansion'!Y34 -> 2.49243187e-11 | AA60: ='System Expansion'!Z34 -> 3.690538612e-07 | AB60: ='System Expansion'!AA34 -> 0.0001385676828 | AC60: S5-S-16 | AD60: Tansport of Blended Jet Fuel to Airport | AE60: ='System Expansion'!AD34 -> 0.0001280851974 | AF60: ='System Expansion'!AE34 -> 2.308269599e-09 | AG60: ='System Expansion'!AF34 -> 2.49243187e-11 | AH60: ='System Expansion'!AG34 -> 3.690538612e-07 | AI60: ='System Expansion'!AH34 -> 0.0001385676828 | AJ60: S6-S-16 | AK60: Tansport of Blended Jet Fuel to Airport | AL60: ='System Expansion'!AK34 -> 0.0001280851974 | AM60: ='System Expansion'!AL34 -> 2.308269599e-09 | AN60: ='System Expansion'!AM34 -> 2.49243187e-11 | AO60: ='System Expansion'!AN34 -> 3.690538612e-07 | AP60: ='System Expansion'!AO34 -> 0.0001385676828
A61: S1-S-17 | B61: Blending of F-T and Conv. Jet (includes Conv. Jet Fuel Profile) | C61: ='System Expansion'!B35 -> 0.005880426562 | D61: ='System Expansion'!C35 -> 1.218908247e-07 | E61: ='System Expansion'!D35 -> 1.298511691e-12 | F61: ='System Expansion'!E35 -> 4.55073105e-05 | G61: ='System Expansion'!F35 -> 0.007054462396 | H61: S2-S-17 | I61: Blending of F-T and Conv. Jet (includes Conv. Jet Fuel Profile) | J61: ='System Expansion'!I35 -> 0.005880426562 | K61: ='System Expansion'!J35 -> 1.218908247e-07 | L61: ='System Expansion'!K35 -> 1.298511691e-12 | M61: ='System Expansion'!L35 -> 4.55073105e-05 | N61: ='System Expansion'!M35 -> 0.007054462396 | O61: S3-S-17 | P61: Blending of F-T and Conv. Jet (includes Conv. Jet Fuel Profile) | Q61: ='System Expansion'!P35 -> 0.005880426562 | R61: ='System Expansion'!Q35 -> 1.218908247e-07 | S61: ='System Expansion'!R35 -> 1.298511691e-12 | T61: ='System Expansion'!S35 -> 4.55073105e-05 | U61: ='System Expansion'!T35 -> 0.007054462396 | V61: S4-S-17 | W61: Blending of F-T and Conv. Jet (includes Conv. Jet Fuel Profile) | X61: ='System Expansion'!W35 -> 0.005880426562 | Y61: ='System Expansion'!X35 -> 1.218908247e-07 | Z61: ='System Expansion'!Y35 -> 1.298511691e-12 | AA61: ='System Expansion'!Z35 -> 4.55073105e-05 | AB61: ='System Expansion'!AA35 -> 0.007054462396 | AC61: S5-S-17 | AD61: Blending of F-T and Conv. Jet (includes Conv. Jet Fuel Profile) | AE61: ='System Expansion'!AD35 -> 0.005880426562 | AF61: ='System Expansion'!AE35 -> 1.218908247e-07 | AG61: ='System Expansion'!AF35 -> 1.298511691e-12 | AH61: ='System Expansion'!AG35 -> 4.55073105e-05 | AI61: ='System Expansion'!AH35 -> 0.007054462396 | AJ61: S6-S-17 | AK61: Blending of F-T and Conv. Jet (includes Conv. Jet Fuel Profile) | AL61: ='System Expansion'!AK35 -> 0.005880426562 | AM61: ='System Expansion'!AL35 -> 1.218908247e-07 | AN61: ='System Expansion'!AM35 -> 1.298511691e-12 | AO61: ='System Expansion'!AN35 -> 4.55073105e-05 | AP61: ='System Expansion'!AO35 -> 0.007054462396
A62: S1-S-18 | B62: Transport of F-T Jet to Blending Facility | C62: ='System Expansion'!B36 -> 5.748495151e-05 | D62: ='System Expansion'!C36 -> 1.045921958e-09 | E62: ='System Expansion'!D36 -> 1.112339207e-11 | F62: ='System Expansion'!E36 -> 1.650595619e-07 | G62: ='System Expansion'!F36 -> 6.217673864e-05 | H62: S2-S-18 | I62: Transport of F-T Jet to Blending Facility | J62: ='System Expansion'!I36 -> 5.748495151e-05 | K62: ='System Expansion'!J36 -> 1.045921958e-09 | L62: ='System Expansion'!K36 -> 1.112339207e-11 | M62: ='System Expansion'!L36 -> 1.650595619e-07 | N62: ='System Expansion'!M36 -> 6.217673864e-05 | O62: S3-S-18 | P62: Transport of F-T Jet to Blending Facility | Q62: ='System Expansion'!P36 -> 5.748495151e-05 | R62: ='System Expansion'!Q36 -> 1.045921958e-09 | S62: ='System Expansion'!R36 -> 1.112339207e-11 | T62: ='System Expansion'!S36 -> 1.650595619e-07 | U62: ='System Expansion'!T36 -> 6.217673864e-05 | V62: S4-S-18 | W62: Transport of F-T Jet to Blending Facility | X62: ='System Expansion'!W36 -> 5.748495151e-05 | Y62: ='System Expansion'!X36 -> 1.045921958e-09 | Z62: ='System Expansion'!Y36 -> 1.112339207e-11 | AA62: ='System Expansion'!Z36 -> 1.650595619e-07 | AB62: ='System Expansion'!AA36 -> 6.217673864e-05 | AC62: S5-S-18 | AD62: Transport of F-T Jet to Blending Facility | AE62: ='System Expansion'!AD36 -> 5.748495151e-05 | AF62: ='System Expansion'!AE36 -> 1.045921958e-09 | AG62: ='System Expansion'!AF36 -> 1.112339207e-11 | AH62: ='System Expansion'!AG36 -> 1.650595619e-07 | AI62: ='System Expansion'!AH36 -> 6.217673864e-05 | AJ62: S6-S-18 | AK62: Transport of F-T Jet to Blending Facility | AL62: ='System Expansion'!AK36 -> 5.748495151e-05 | AM62: ='System Expansion'!AL36 -> 1.045921958e-09 | AN62: ='System Expansion'!AM36 -> 1.112339207e-11 | AO62: ='System Expansion'!AN36 -> 1.650595619e-07 | AP62: ='System Expansion'!AO36 -> 6.217673864e-05
A63: S1-S-19 | B63: End Use | C63: ='System Expansion'!B37 -> 0.07217962676 | D63: ='System Expansion'!C37 -> 1.896246485e-06 | E63: ='System Expansion'!D37 -> 3.611743149e-15 | F63: ='System Expansion'!E37 -> 5.323415649e-07 | G63: ='System Expansion'!F37 -> 0.07275801684 | H63: S2-S-19 | I63: End Use | J63: ='System Expansion'!I37 -> 0.07217962676 | K63: ='System Expansion'!J37 -> 1.896246485e-06 | L63: ='System Expansion'!K37 -> 3.611743149e-15 | M63: ='System Expansion'!L37 -> 5.323415649e-07 | N63: ='System Expansion'!M37 -> 0.07275801684 | O63: S3-S-19 | P63: End Use | Q63: ='System Expansion'!P37 -> 0.07217962676 | R63: ='System Expansion'!Q37 -> 1.896246485e-06 | S63: ='System Expansion'!R37 -> 3.611743149e-15 | T63: ='System Expansion'!S37 -> 5.323415649e-07 | U63: ='System Expansion'!T37 -> 0.07275801684 | V63: S4-S-19 | W63: End Use | X63: ='System Expansion'!W37 -> 0.07217962676 | Y63: ='System Expansion'!X37 -> 1.896246485e-06 | Z63: ='System Expansion'!Y37 -> 3.611743149e-15 | AA63: ='System Expansion'!Z37 -> 5.323415649e-07 | AB63: ='System Expansion'!AA37 -> 0.07275801684 | AC63: S5-S-19 | AD63: End Use | AE63: ='System Expansion'!AD37 -> 0.07217962676 | AF63: ='System Expansion'!AE37 -> 1.896246485e-06 | AG63: ='System Expansion'!AF37 -> 3.611743149e-15 | AH63: ='System Expansion'!AG37 -> 5.323415649e-07 | AI63: ='System Expansion'!AH37 -> 0.07275801684 | AJ63: S6-S-19 | AK63: End Use | AL63: ='System Expansion'!AK37 -> 0.07217962676 | AM63: ='System Expansion'!AL37 -> 1.896246485e-06 | AN63: ='System Expansion'!AM37 -> 3.611743149e-15 | AO63: ='System Expansion'!AN37 -> 5.323415649e-07 | AP63: ='System Expansion'!AO37 -> 0.07275801684
A64: S1-S-20 | B64: Airplane Operation (Fuel Use) | C64: ='System Expansion'!B38 -> 0.0721440266 | D64: ='System Expansion'!C38 -> 1.89563e-06 | E64: ='System Expansion'!D38 -> 0 | F64: ='System Expansion'!E38 -> 4.73907e-07 | G64: ='System Expansion'!F38 -> 0.07272077201 | H64: S2-S-20 | I64: Airplane Operation (Fuel Use) | J64: ='System Expansion'!I38 -> 0.0721440266 | K64: ='System Expansion'!J38 -> 1.89563e-06 | L64: ='System Expansion'!K38 -> 0 | M64: ='System Expansion'!L38 -> 4.73907e-07 | N64: ='System Expansion'!M38 -> 0.07272077201 | O64: S3-S-20 | P64: Airplane Operation (Fuel Use) | Q64: ='System Expansion'!P38 -> 0.0721440266 | R64: ='System Expansion'!Q38 -> 1.89563e-06 | S64: ='System Expansion'!R38 -> 0 | T64: ='System Expansion'!S38 -> 4.73907e-07 | U64: ='System Expansion'!T38 -> 0.07272077201 | V64: S4-S-20 | W64: Airplane Operation (Fuel Use) | X64: ='System Expansion'!W38 -> 0.0721440266 | Y64: ='System Expansion'!X38 -> 1.89563e-06 | Z64: ='System Expansion'!Y38 -> 0 | AA64: ='System Expansion'!Z38 -> 4.73907e-07 | AB64: ='System Expansion'!AA38 -> 0.07272077201 | AC64: S5-S-20 | AD64: Airplane Operation (Fuel Use) | AE64: ='System Expansion'!AD38 -> 0.0721440266 | AF64: ='System Expansion'!AE38 -> 1.89563e-06 | AG64: ='System Expansion'!AF38 -> 0 | AH64: ='System Expansion'!AG38 -> 4.73907e-07 | AI64: ='System Expansion'!AH38 -> 0.07272077201 | AJ64: S6-S-20 | AK64: Airplane Operation (Fuel Use) | AL64: ='System Expansion'!AK38 -> 0.0721440266 | AM64: ='System Expansion'!AL38 -> 1.89563e-06 | AN64: ='System Expansion'!AM38 -> 0 | AO64: ='System Expansion'!AN38 -> 4.73907e-07 | AP64: ='System Expansion'!AO38 -> 0.07272077201
A65: S1-S-21 | B65: Airplane Construction | C65: ='System Expansion'!B39 -> 3.560016379e-05 | D65: ='System Expansion'!C39 -> 6.164848853e-10 | E65: ='System Expansion'!D39 -> 3.611743149e-15 | F65: ='System Expansion'!E39 -> 5.843456494e-08 | G65: ='System Expansion'!F39 -> 3.724482276e-05 | H65: S2-S-21 | I65: Airplane Construction | J65: ='System Expansion'!I39 -> 3.560016379e-05 | K65: ='System Expansion'!J39 -> 6.164848853e-10 | L65: ='System Expansion'!K39 -> 3.611743149e-15 | M65: ='System Expansion'!L39 -> 5.843456494e-08 | N65: ='System Expansion'!M39 -> 3.724482276e-05 | O65: S3-S-21 | P65: Airplane Construction | Q65: ='System Expansion'!P39 -> 3.560016379e-05 | R65: ='System Expansion'!Q39 -> 6.164848853e-10 | S65: ='System Expansion'!R39 -> 3.611743149e-15 | T65: ='System Expansion'!S39 -> 5.843456494e-08 | U65: ='System Expansion'!T39 -> 3.724482276e-05 | V65: S4-S-21 | W65: Airplane Construction | X65: ='System Expansion'!W39 -> 3.560016379e-05 | Y65: ='System Expansion'!X39 -> 6.164848853e-10 | Z65: ='System Expansion'!Y39 -> 3.611743149e-15 | AA65: ='System Expansion'!Z39 -> 5.843456494e-08 | AB65: ='System Expansion'!AA39 -> 3.724482276e-05 | AC65: S5-S-21 | AD65: Airplane Construction | AE65: ='System Expansion'!AD39 -> 3.560016379e-05 | AF65: ='System Expansion'!AE39 -> 6.164848853e-10 | AG65: ='System Expansion'!AF39 -> 3.611743149e-15 | AH65: ='System Expansion'!AG39 -> 5.843456494e-08 | AI65: ='System Expansion'!AH39 -> 3.724482276e-05 | AJ65: S6-S-21 | AK65: Airplane Construction | AL65: ='System Expansion'!AK39 -> 3.560016379e-05 | AM65: ='System Expansion'!AL39 -> 6.164848853e-10 | AN65: ='System Expansion'!AM39 -> 3.611743149e-15 | AO65: ='System Expansion'!AN39 -> 5.843456494e-08 | AP65: ='System Expansion'!AO39 -> 3.724482276e-05
A66: S1-S-22 | B66: Total Greenhouse Gas Emissions | C66: ='System Expansion'!B40 -> 0.1053577064 | D66: ='System Expansion'!C40 -> 2.493102603e-06 | E66: ='System Expansion'!D40 -> 1.378753191e-09 | F66: ='System Expansion'!E40 -> 7.100073338e-06 | G66: ='System Expansion'!F40 -> 0.1063095884 | H66: S2-S-22 | I66: Total Greenhouse Gas Emissions | J66: ='System Expansion'!I40 -> 0.09296444114 | K66: ='System Expansion'!J40 -> 4.355495058e-06 | L66: ='System Expansion'!K40 -> 1.394079023e-09 | M66: ='System Expansion'!L40 -> 1.037606648e-05 | N66: ='System Expansion'!M40 -> 0.09455356533 | O66: S3-S-22 | P66: Total Greenhouse Gas Emissions | Q66: ='System Expansion'!P40 -> 0.07999741154 | R66: ='System Expansion'!Q40 -> 6.314413208e-06 | S66: ='System Expansion'!R40 -> 1.41018851e-09 | T66: ='System Expansion'!S40 -> 1.400682812e-05 | U66: ='System Expansion'!T40 -> 0.08226142968 | V66: S4-S-22 | W66: Total Greenhouse Gas Emissions | X66: ='System Expansion'!W40 -> 0.0948018991 | Y66: ='System Expansion'!X40 -> 3.791042246e-06 | Z66: ='System Expansion'!Y40 -> 1.387258166e-09 | AA66: ='System Expansion'!Z40 -> -2.470731062e-06 | AB66: ='System Expansion'!AA40 -> 0.0959014909 | AC66: S5-S-22 | AD66: Total Greenhouse Gas Emissions | AE66: ='System Expansion'!AD40 -> 0.08432396326 | AF66: ='System Expansion'!AE40 -> 5.062847432e-06 | AG66: ='System Expansion'!AF40 -> 1.395719741e-09 | AH66: ='System Expansion'!AG40 -> -1.221841535e-05 | AI66: ='System Expansion'!AH40 -> 0.08555905382 | AJ66: S6-S-22 | AK66: Total Greenhouse Gas Emissions | AL66: ='System Expansion'!AK40 -> 0.1012568144 | AM66: ='System Expansion'!AL40 -> 4.489272325e-06 | AN66: ='System Expansion'!AM40 -> 1.320046067e-09 | AO66: ='System Expansion'!AN40 -> 1.637531694e-05 | AP66: ='System Expansion'!AO40 -> 0.1030340975
B69: ENERGY ALLOCATION
A70: S1-E | B70: =B$18 -> Scenario 1 - 100% Coal | C70: Carbon dioxide | D70: Nitrous oxide (laughing gas) | E70: Sulphur hexafluoride | F70: Methane | G70: GWP | H70: S2-E | I70: =I$18 -> Scenario 2 - 10% Dried/Chipped Biomass | J70: Carbon dioxide | K70: Nitrous oxide (laughing gas) | L70: Sulphur hexafluoride | M70: Methane | N70: GWP | O70: S3-E | P70: =P$18 -> Scenario 3 - 20% Dried/Chipped Biomass | Q70: Carbon dioxide | R70: Nitrous oxide (laughing gas) | S70: Sulphur hexafluoride | T70: Methane | U70: GWP | V70: S4-E | W70: =W$18 -> Scenario 4 - 10% Torrefied Biomass | X70: Carbon dioxide | Y70: Nitrous oxide (laughing gas) | Z70: Sulphur hexafluoride | AA70: Methane | AB70: GWP | AC70: S5-E | AD70: =AD$18 -> Scenario 5 - 20% Torrefied Biomass | AE70: Carbon dioxide | AF70: Nitrous oxide (laughing gas) | AG70: Sulphur hexafluoride | AH70: Methane | AI70: GWP | AJ70: S6-E | AK70: =AK$18 -> Scenario 6- 10% Dried/Chipped Biomass | AL70: Carbon dioxide | AM70: Nitrous oxide (laughing gas) | AN70: Sulphur hexafluoride | AO70: Methane | AP70: GWP
A71: S1-E-1 | B71: Raw Material Acquisition | C71: ='Energy Allocation'!B19 -> 0.0001318798265 | D71: ='Energy Allocation'!C19 -> 1.211401678e-07 | E71: ='Energy Allocation'!D19 -> 7.230269348e-14 | F71: ='Energy Allocation'!E19 -> 1.459507694e-05 | G71: ='Energy Allocation'!F19 -> 0.0005328581685 | H71: S2-E-1 | I71: Raw Material Acquisition | J71: ='Energy Allocation'!I19 -> -0.002198752012 | K71: ='Energy Allocation'!J19 -> 4.222134374e-07 | L71: ='Energy Allocation'!K19 -> 7.896273255e-13 | M71: ='Energy Allocation'!L19 -> 1.358054524e-05 | N71: ='Energy Allocation'!M19 -> -0.001733400773 | O71: S3-E-1 | P71: Raw Material Acquisition | Q71: ='Energy Allocation'!P19 -> -0.004635388386 | R71: ='Energy Allocation'!Q19 -> 7.369961976e-07 | S71: ='Energy Allocation'!R19 -> 1.539591005e-12 | T71: ='Energy Allocation'!S19 -> 1.252152361e-05 | U71: ='Energy Allocation'!T19 -> -0.004102690326 | V71: S4-E-1 | W71: Raw Material Acquisition | X71: ='Energy Allocation'!W19 -> -0.00157595033 | Y71: ='Energy Allocation'!X19 -> 3.348835162e-07 | Z71: ='Energy Allocation'!Y19 -> 5.92323028e-13 | AA71: ='Energy Allocation'!Z19 -> 1.312824426e-05 | AB71: ='Energy Allocation'!AA19 -> -0.001147935431 | AC71: S5-E-1 | AD71: Raw Material Acquisition | AE71: ='Energy Allocation'!AD19 -> -0.003251943141 | AF71: ='Energy Allocation'!AE19 -> 5.446033908e-07 | AG71: ='Energy Allocation'!AF19 -> 1.102617391e-12 | AH71: ='Energy Allocation'!AG19 -> 1.168466635e-05 | AI71: ='Energy Allocation'!AH19 -> -0.002797509532 | AJ71: S6-E-1 | AK71: Raw Material Acquisition | AL71: ='Energy Allocation'!AK19 -> -0.002415510426 | AM71: ='Energy Allocation'!AL19 -> 4.58622387e-07 | AN71: ='Energy Allocation'!AM19 -> 8.632108902e-13 | AO71: ='Energy Allocation'!AN19 -> 1.437079064e-05 | AP71: ='Energy Allocation'!AO19 -> -0.001919551507
A72: S1-E-2 | B72: Coal Mining, Surface | C72: ='Energy Allocation'!B20 -> 0.0001318798265 | D72: ='Energy Allocation'!C20 -> 1.211401678e-07 | E72: ='Energy Allocation'!D20 -> 7.230269348e-14 | F72: ='Energy Allocation'!E20 -> 1.459507694e-05 | G72: ='Energy Allocation'!F20 -> 0.0005328581685 | H72: S2-E-2 | I72: Coal Mining, Surface | J72: ='Energy Allocation'!I20 -> 0.0001213185593 | K72: ='Energy Allocation'!J20 -> 1.114389594e-07 | L72: ='Energy Allocation'!K20 -> 6.651251246e-14 | M72: ='Energy Allocation'!L20 -> 1.342626658e-05 | N72: ='Energy Allocation'!M20 -> 0.0004901855501 | O72: S3-E-2 | P72: Coal Mining, Surface | Q72: ='Energy Allocation'!P20 -> 0.0001102918702 | R72: ='Energy Allocation'!Q20 -> 1.013102308e-07 | S72: ='Energy Allocation'!R20 -> 6.046716541e-14 | T72: ='Energy Allocation'!S20 -> 1.22059482e-05 | U72: ='Energy Allocation'!T20 -> 0.0004456324027 | V72: S4-E-2 | W72: Coal Mining, Surface | X72: ='Energy Allocation'!W20 -> 0.0001176080565 | Y72: ='Energy Allocation'!X20 -> 1.080306221e-07 | Z72: ='Energy Allocation'!Y20 -> 6.447824118e-14 | AA72: ='Energy Allocation'!Z20 -> 1.301562702e-05 | AB72: ='Energy Allocation'!AA20 -> 0.0004751933276 | AC72: S5-E-2 | AD72: Coal Mining, Surface | AE72: ='Energy Allocation'!AD20 -> 0.000103565407 | AF72: ='Energy Allocation'!AE20 -> 9.513153838e-08 | AG72: ='Energy Allocation'!AF20 -> 5.677940343e-14 | AH72: ='Energy Allocation'!AG20 -> 1.146153375e-05 | AI72: ='Energy Allocation'!AH20 -> 0.0004184542438 | AJ72: S6-E-2 | AK72: Coal Mining, Surface | AL72: ='Energy Allocation'!AK20 -> 0.0001283246947 | AM72: ='Energy Allocation'!AL20 -> 1.178745488e-07 | AN72: ='Energy Allocation'!AM20 -> 7.035360381e-14 | AO72: ='Energy Allocation'!AN20 -> 1.420163221e-05 | AP72: ='Energy Allocation'!AO20 -> 0.0005184937196
A73: S1-E-3 | B73: Biomass Production and Field Chipping | C73: ='Energy Allocation'!B21 -> 0 | D73: ='Energy Allocation'!C21 -> 0 | E73: ='Energy Allocation'!D21 -> 0 | F73: ='Energy Allocation'!E21 -> 0 | G73: ='Energy Allocation'!F21 -> 0 | H73: S2-E-3 | I73: Biomass Production and Field Chipping | J73: ='Energy Allocation'!I21 -> -0.00261115488 | K73: ='Energy Allocation'!J21 -> 3.024047597e-07 | L73: ='Energy Allocation'!K21 -> 7.23114813e-13 | M73: ='Energy Allocation'!L21 -> 1.542786664e-07 | N73: ='Energy Allocation'!M21 -> -0.002517164808 | O73: S3-E-3 | P73: Biomass Production and Field Chipping | Q73: ='Energy Allocation'!P21 -> -0.005341090185 | R73: ='Energy Allocation'!Q21 -> 6.18565795e-07 | S73: ='Energy Allocation'!R21 -> 1.479123839e-12 | T73: ='Energy Allocation'!S21 -> 3.155754096e-07 | U73: ='Energy Allocation'!T21 -> -0.005148834469 | V73: S4-E-3 | W73: Biomass Production and Field Chipping | X73: ='Energy Allocation'!W21 -> -0.001906038247 | Y73: ='Energy Allocation'!X21 -> 2.207433357e-07 | Z73: ='Energy Allocation'!Y21 -> 5.278447868e-13 | AA73: ='Energy Allocation'!Z21 -> 1.126172335e-07 | AB73: ='Energy Allocation'!AA21 -> -0.001837429268 | AC73: S5-E-3 | AD73: Biomass Production and Field Chipping | AE73: ='Energy Allocation'!AD21 -> -0.003776502589 | AF73: ='Energy Allocation'!AE21 -> 4.373667632e-07 | AG73: ='Energy Allocation'!AF21 -> 1.045837987e-12 | AH73: ='Energy Allocation'!AG21 -> 2.231326022e-07 | AI73: ='Energy Allocation'!AH21 -> -0.003640565133 | AJ73: S6-E-3 | AK73: Biomass Production and Field Chipping | AL73: ='Energy Allocation'!AK21 -> -0.002862993725 | AM73: ='Energy Allocation'!AL21 -> 3.315708832e-07 | AN73: ='Energy Allocation'!AM21 -> 7.928572863e-13 | AO73: ='Energy Allocation'!AN21 -> 1.691584276e-07 | AP73: ='Energy Allocation'!AO21 -> -0.002759938564
A74: S1-E-4 | B74: Biomass Direct Land Use Change | C74: ='Energy Allocation'!B22 -> 0 | D74: ='Energy Allocation'!C22 -> 0 | E74: ='Energy Allocation'!D22 -> 0 | F74: ='Energy Allocation'!E22 -> 0 | G74: ='Energy Allocation'!F22 -> 0 | H74: S2-E-4 | I74: Biomass Direct Land Use Change | J74: ='Energy Allocation'!I22 -> 6.205762721e-05 | K74: ='Energy Allocation'!J22 -> 0 | L74: ='Energy Allocation'!K22 -> 0 | M74: ='Energy Allocation'!L22 -> 0 | N74: ='Energy Allocation'!M22 -> 6.205762721e-05 | O74: S3-E-4 | P74: Biomass Direct Land Use Change | Q74: ='Energy Allocation'!P22 -> 0.0001269382319 | R74: ='Energy Allocation'!Q22 -> 0 | S74: ='Energy Allocation'!R22 -> 0 | T74: ='Energy Allocation'!S22 -> 0 | U74: ='Energy Allocation'!T22 -> 0.0001269382319 | V74: S4-E-4 | W74: Biomass Direct Land Use Change | X74: ='Energy Allocation'!W22 -> 4.52995768e-05 | Y74: ='Energy Allocation'!X22 -> 0 | Z74: ='Energy Allocation'!Y22 -> 0 | AA74: ='Energy Allocation'!Z22 -> 0 | AB74: ='Energy Allocation'!AA22 -> 4.52995768e-05 | AC74: S5-E-4 | AD74: Biomass Direct Land Use Change | AE74: ='Energy Allocation'!AD22 -> 8.975369162e-05 | AF74: ='Energy Allocation'!AE22 -> 0 | AG74: ='Energy Allocation'!AF22 -> 0 | AH74: ='Energy Allocation'!AG22 -> 0 | AI74: ='Energy Allocation'!AH22 -> 8.975369162e-05 | AJ74: S6-E-4 | AK74: Biomass Direct Land Use Change | AL74: ='Energy Allocation'!AK22 -> 6.804291798e-05 | AM74: ='Energy Allocation'!AL22 -> 0 | AN74: ='Energy Allocation'!AM22 -> 0 | AO74: ='Energy Allocation'!AN22 -> 0 | AP74: ='Energy Allocation'!AO22 -> 6.804291798e-05
A75: S1-E-5 | B75: Biomass Indirect Land Use Change | C75: ='Energy Allocation'!B23 -> 0 | D75: ='Energy Allocation'!C23 -> 0 | E75: ='Energy Allocation'!D23 -> 0 | F75: ='Energy Allocation'!E23 -> 0 | G75: ='Energy Allocation'!F23 -> 0 | H75: S2-E-5 | I75: Biomass Indirect Land Use Change | J75: ='Energy Allocation'!I23 -> 0.000229026681 | K75: ='Energy Allocation'!J23 -> 8.36971826e-09 | L75: ='Energy Allocation'!K23 -> 0 | M75: ='Energy Allocation'!L23 -> 0 | N75: ='Energy Allocation'!M23 -> 0.0002315208571 | O75: S3-E-5 | P75: Biomass Indirect Land Use Change | Q75: ='Energy Allocation'!P23 -> 0.0004684716972 | R75: ='Energy Allocation'!Q23 -> 1.712017177e-08 | S75: ='Energy Allocation'!R23 -> 0 | T75: ='Energy Allocation'!S23 -> 0 | U75: ='Energy Allocation'!T23 -> 0.0004735735084 | V75: S4-E-5 | W75: Biomass Indirect Land Use Change | X75: ='Energy Allocation'!W23 -> 0.0001671802838 | Y75: ='Energy Allocation'!X23 -> 6.10955836e-09 | Z75: ='Energy Allocation'!Y23 -> 0 | AA75: ='Energy Allocation'!Z23 -> 0 | AB75: ='Energy Allocation'!AA23 -> 0.0001690009322 | AC75: S5-E-5 | AD75: Biomass Indirect Land Use Change | AE75: ='Energy Allocation'!AD23 -> 0.0003312403491 | AF75: ='Energy Allocation'!AE23 -> 1.210508918e-08 | AG75: ='Energy Allocation'!AF23 -> 0 | AH75: ='Energy Allocation'!AG23 -> 0 | AI75: ='Energy Allocation'!AH23 -> 0.0003348476657 | AJ75: S6-E-5 | AK75: Biomass Indirect Land Use Change | AL75: ='Energy Allocation'!AK23 -> 0.0002511156867 | AM75: ='Energy Allocation'!AL23 -> 9.176955012e-09 | AN75: ='Energy Allocation'!AM23 -> 0 | AO75: ='Energy Allocation'!AN23 -> 0 | AP75: ='Energy Allocation'!AO23 -> 0.0002538504193
A76: S1-E-6 | B76: Raw Material Transport | C76: ='Energy Allocation'!B24 -> 0.0008779285426 | D76: ='Energy Allocation'!C24 -> 2.15079828e-08 | E76: ='Energy Allocation'!D24 -> 1.92045807e-15 | F76: ='Energy Allocation'!E24 -> 1.003837885e-06 | G76: ='Energy Allocation'!F24 -> 0.0009094339123 | H76: S2-E-6 | I76: Raw Material Transport | J76: ='Energy Allocation'!I24 -> 0.0008157625502 | K76: ='Energy Allocation'!J24 -> 1.998478835e-08 | L76: ='Energy Allocation'!K24 -> 1.882879352e-15 | M76: ='Energy Allocation'!L24 -> 9.464029434e-07 | N76: ='Energy Allocation'!M24 -> 0.0008453781336 | O76: S3-E-6 | P76: Raw Material Transport | Q76: ='Energy Allocation'!P24 -> 0.0007508685471 | R76: ='Energy Allocation'!Q24 -> 1.839475168e-08 | S76: ='Energy Allocation'!R24 -> 1.843809714e-15 | T76: ='Energy Allocation'!S24 -> 8.864695314e-07 | U76: ='Energy Allocation'!T24 -> 0.0007785119634 | V76: S4-E-6 | W76: Raw Material Transport | X76: ='Energy Allocation'!W24 -> 0.0009049588866 | Y76: ='Energy Allocation'!X24 -> 2.034295159e-08 | Z76: ='Energy Allocation'!Y24 -> 1.094626954e-12 | AA76: ='Energy Allocation'!Z24 -> 9.449668413e-07 | AB76: ='Energy Allocation'!AA24 -> 0.0009346702147 | AC76: S5-E-6 | AD76: Raw Material Transport | AE76: ='Energy Allocation'!AD24 -> 0.0009312378535 | AF76: ='Energy Allocation'!AE24 -> 1.919359931e-08 | AG76: ='Energy Allocation'!AF24 -> 2.166948764e-12 | AH76: ='Energy Allocation'!AG24 -> 8.869113541e-07 | AI76: ='Energy Allocation'!AH24 -> 0.0009591797364 | AJ76: S6-E-6 | AK76: Raw Material Transport | AL76: ='Energy Allocation'!AK24 -> 0.0008631877858 | AM76: ='Energy Allocation'!AL24 -> 2.114661724e-08 | AN76: ='Energy Allocation'!AM24 -> 1.996112729e-15 | AO76: ='Energy Allocation'!AN24 -> 1.00194592e-06 | AP76: ='Energy Allocation'!AO24 -> 0.0008945381712
A77: S1-E-7 | B77: Biomass Transport to Torrefaction Facility | C77: ='Energy Allocation'!B25 -> 0 | D77: ='Energy Allocation'!C25 -> 0 | E77: ='Energy Allocation'!D25 -> 0 | F77: ='Energy Allocation'!E25 -> 0 | G77: ='Energy Allocation'!F25 -> 0 | H77: S2-E-7 | I77: Biomass Transport to Torrefaction Facility | J77: ='Energy Allocation'!I25 -> 0 | K77: ='Energy Allocation'!J25 -> 0 | L77: ='Energy Allocation'!K25 -> 0 | M77: ='Energy Allocation'!L25 -> 0 | N77: ='Energy Allocation'!M25 -> 0 | O77: S3-E-7 | P77: Biomass Transport to Torrefaction Facility | Q77: ='Energy Allocation'!P25 -> 0 | R77: ='Energy Allocation'!Q25 -> 0 | S77: ='Energy Allocation'!R25 -> 0 | T77: ='Energy Allocation'!S25 -> 0 | U77: ='Energy Allocation'!T25 -> 0 | V77: S4-E-7 | W77: Biomass Transport to Torrefaction Facility | X77: ='Energy Allocation'!W25 -> 4.789192154e-06 | Y77: ='Energy Allocation'!X25 -> 1.157588693e-10 | Z77: ='Energy Allocation'!Y25 -> 6.596566429e-17 | AA77: ='Energy Allocation'!Z25 -> 1.636004358e-08 | AB77: ='Energy Allocation'!AA25 -> 5.23269089e-06 | AC77: S5-E-7 | AD77: Biomass Transport to Torrefaction Facility | AE77: ='Energy Allocation'!AD25 -> 9.489043224e-06 | AF77: ='Energy Allocation'!AE25 -> 2.293582883e-10 | AG77: ='Energy Allocation'!AF25 -> 1.30700757e-16 | AH77: ='Energy Allocation'!AG25 -> 3.241489497e-08 | AI77: ='Energy Allocation'!AH25 -> 1.036776735e-05 | AJ77: S6-E-7 | AK77: Biomass Transport to Torrefaction Facility | AL77: ='Energy Allocation'!AK25 -> 0 | AM77: ='Energy Allocation'!AL25 -> 0 | AN77: ='Energy Allocation'!AM25 -> 0 | AO77: ='Energy Allocation'!AN25 -> 0 | AP77: ='Energy Allocation'!AO25 -> 0
A78: S1-E-8 | B78: Biomass Torrefaction | C78: ='Energy Allocation'!B26 -> 0 | D78: ='Energy Allocation'!C26 -> 0 | E78: ='Energy Allocation'!D26 -> 0 | F78: ='Energy Allocation'!E26 -> 0 | G78: ='Energy Allocation'!F26 -> 0 | H78: S2-E-8 | I78: Biomass Torrefaction | J78: ='Energy Allocation'!I26 -> 0 | K78: ='Energy Allocation'!J26 -> 0 | L78: ='Energy Allocation'!K26 -> 0 | M78: ='Energy Allocation'!L26 -> 0 | N78: ='Energy Allocation'!M26 -> 0 | O78: S3-E-8 | P78: Biomass Torrefaction | Q78: ='Energy Allocation'!P26 -> 0 | R78: ='Energy Allocation'!Q26 -> 0 | S78: ='Energy Allocation'!R26 -> 0 | T78: ='Energy Allocation'!S26 -> 0 | U78: ='Energy Allocation'!T26 -> 0 | V78: S4-E-8 | W78: Biomass Torrefaction | X78: ='Energy Allocation'!W26 -> 0.0001113064119 | Y78: ='Energy Allocation'!X26 -> 9.013389406e-10 | Z78: ='Energy Allocation'!Y26 -> 1.092763525e-12 | AA78: ='Energy Allocation'!Z26 -> 1.664606724e-08 | AB78: ='Energy Allocation'!AA26 -> 0.0001120160776 | AC78: S5-E-8 | AD78: Biomass Torrefaction | AE78: ='Energy Allocation'!AD26 -> 0.0002205364328 | AF78: ='Energy Allocation'!AE26 -> 1.785863647e-09 | AG78: ='Energy Allocation'!AF26 -> 2.165141842e-12 | AH78: ='Energy Allocation'!AG26 -> 3.29816066e-08 | AI78: ='Energy Allocation'!AH26 -> 0.0002219425256 | AJ78: S6-E-8 | AK78: Biomass Torrefaction | AL78: ='Energy Allocation'!AK26 -> 0 | AM78: ='Energy Allocation'!AL26 -> 0 | AN78: ='Energy Allocation'!AM26 -> 0 | AO78: ='Energy Allocation'!AN26 -> 0 | AP78: ='Energy Allocation'!AO26 -> 0
A79: S1-E-9 | B79: Transport of Chipped or Torrefied Biomass to CBTL Plant | C79: ='Energy Allocation'!B27 -> 0 | D79: ='Energy Allocation'!C27 -> 0 | E79: ='Energy Allocation'!D27 -> 0 | F79: ='Energy Allocation'!E27 -> 0 | G79: ='Energy Allocation'!F27 -> 0 | H79: S2-E-9 | I79: Transport of Chipped or Torrefied Biomass to CBTL Plant | J79: ='Energy Allocation'!I27 -> 8.140726994e-06 | K79: ='Energy Allocation'!J27 -> 1.992187439e-10 | L79: ='Energy Allocation'!K27 -> 1.162163805e-16 | M79: ='Energy Allocation'!L27 -> 2.295491361e-08 | N79: ='Energy Allocation'!M27 -> 8.77396967e-06 | O79: S3-E-9 | P79: Transport of Chipped or Torrefied Biomass to CBTL Plant | Q79: ='Energy Allocation'!P27 -> 1.665177251e-05 | R79: ='Energy Allocation'!Q27 -> 4.074998713e-10 | S79: ='Energy Allocation'!R27 -> 2.377193992e-16 | T79: ='Energy Allocation'!S27 -> 4.695403737e-08 | U79: ='Energy Allocation'!T27 -> 1.794706383e-05 | V79: S4-E-9 | W79: Transport of Chipped or Torrefied Biomass to CBTL Plant | X79: ='Energy Allocation'!W27 -> 5.942403927e-06 | Y79: ='Energy Allocation'!X27 -> 1.454216861e-10 | Z79: ='Energy Allocation'!Y27 -> 8.483329272e-17 | AA79: ='Energy Allocation'!Z27 -> 1.67561655e-08 | AB79: ='Energy Allocation'!AA27 -> 6.404645661e-06 | AC79: S5-E-9 | AD79: Transport of Chipped or Torrefied Biomass to CBTL Plant | AE79: ='Energy Allocation'!AD27 -> 1.177390005e-05 | AF79: ='Energy Allocation'!AE27 -> 2.881292519e-10 | AG79: ='Energy Allocation'!AF27 -> 1.680832743e-16 | AH79: ='Energy Allocation'!AG27 -> 3.319959738e-08 | AI79: ='Energy Allocation'!AH27 -> 1.268975633e-05 | AJ79: S6-E-9 | AK79: Transport of Chipped or Torrefied Biomass to CBTL Plant | AL79: ='Energy Allocation'!AK27 -> 8.925878155e-06 | AM79: ='Energy Allocation'!AL27 -> 2.184328544e-10 | AN79: ='Energy Allocation'!AM27 -> 1.27425137e-16 | AO79: ='Energy Allocation'!AN27 -> 2.516885312e-08 | AP79: ='Energy Allocation'!AO27 -> 9.620195379e-06
A80: S1-E-10 | B80: Transport of Coal to CBTL Plant | C80: ='Energy Allocation'!B28 -> 0.0008779285426 | D80: ='Energy Allocation'!C28 -> 2.15079828e-08 | E80: ='Energy Allocation'!D28 -> 1.92045807e-15 | F80: ='Energy Allocation'!E28 -> 1.003837885e-06 | G80: ='Energy Allocation'!F28 -> 0.0009094339123 | H80: S2-E-10 | I80: Transport of Coal to CBTL Plant | J80: ='Energy Allocation'!I28 -> 0.0008076218232 | K80: ='Energy Allocation'!J28 -> 1.97855696e-08 | L80: ='Energy Allocation'!K28 -> 1.766662971e-15 | M80: ='Energy Allocation'!L28 -> 9.234480298e-07 | N80: ='Energy Allocation'!M28 -> 0.000836604164 | O80: S3-E-10 | P80: Transport of Coal to CBTL Plant | Q80: ='Energy Allocation'!P28 -> 0.0007342167746 | R80: ='Energy Allocation'!Q28 -> 1.798725181e-08 | S80: ='Energy Allocation'!R28 -> 1.606090315e-15 | T80: ='Energy Allocation'!S28 -> 8.395154941e-07 | U80: ='Energy Allocation'!T28 -> 0.0007605648996 | V80: S4-E-10 | W80: Transport of Coal to CBTL Plant | X80: ='Energy Allocation'!W28 -> 0.0007829208787 | Y80: ='Energy Allocation'!X28 -> 1.91804321e-08 | Z80: ='Energy Allocation'!Y28 -> 1.712629954e-15 | AA80: ='Energy Allocation'!Z28 -> 8.95204565e-07 | AB80: ='Energy Allocation'!AA28 -> 0.0008110168006 | AC80: S5-E-10 | AD80: Transport of Coal to CBTL Plant | AE80: ='Energy Allocation'!AD28 -> 0.0006894384774 | AF80: ='Energy Allocation'!AE28 -> 1.689024812e-08 | AG80: ='Energy Allocation'!AF28 -> 1.508138331e-15 | AH80: ='Energy Allocation'!AG28 -> 7.883152551e-07 | AI80: ='Energy Allocation'!AH28 -> 0.0007141796871 | AJ80: S6-E-10 | AK80: Transport of Coal to CBTL Plant | AL80: ='Energy Allocation'!AK28 -> 0.0008542619076 | AM80: ='Energy Allocation'!AL28 -> 2.092818439e-08 | AN80: ='Energy Allocation'!AM28 -> 1.868687592e-15 | AO80: ='Energy Allocation'!AN28 -> 9.767770668e-07 | AP80: ='Energy Allocation'!AO28 -> 0.0008849179758
A81: S1-E-11 | B81: Energy Conversion Facility | C81: ='Energy Allocation'!B29 -> 0.002575227324 | D81: ='Energy Allocation'!C29 -> 3.640939824e-10 | E81: ='Energy Allocation'!D29 -> 3.947669433e-14 | F81: ='Energy Allocation'!E29 -> 7.82238468e-09 | G81: ='Energy Allocation'!F29 -> 0.002575532284 | H81: S2-E-11 | I81: Energy Conversion Facility | J81: ='Energy Allocation'!I29 -> 0.002736513171 | K81: ='Energy Allocation'!J29 -> 1.404737942e-09 | L81: ='Energy Allocation'!K29 -> 1.055839743e-13 | M81: ='Energy Allocation'!L29 -> 1.107015294e-06 | N81: ='Energy Allocation'!M29 -> 0.002764609573 | O81: S3-E-11 | P81: Energy Conversion Facility | Q81: ='Energy Allocation'!P29 -> 0.002905619737 | R81: ='Energy Allocation'!Q29 -> 2.492767613e-09 | S81: ='Energy Allocation'!R29 -> 1.747044068e-13 | T81: ='Energy Allocation'!S29 -> 2.256218694e-06 | U81: ='Energy Allocation'!T29 -> 0.002962772032 | V81: S4-E-11 | W81: Energy Conversion Facility | X81: ='Energy Allocation'!W29 -> 0.002550195369 | Y81: ='Energy Allocation'!X29 -> 3.639320422e-10 | Z81: ='Energy Allocation'!Y29 -> 3.949244989e-14 | AA81: ='Energy Allocation'!Z29 -> 7.819677825e-09 | AB81: ='Energy Allocation'!AA29 -> 0.002550500213 | AC81: S5-E-11 | AD81: Energy Conversion Facility | AE81: ='Energy Allocation'!AD29 -> 0.002523862613 | AF81: ='Energy Allocation'!AE29 -> 3.637059333e-10 | AG81: ='Energy Allocation'!AF29 -> 3.9495465e-14 | AH81: ='Energy Allocation'!AG29 -> 7.815458262e-09 | AI81: ='Energy Allocation'!AH29 -> 0.002524167285 | AJ81: S6-E-11 | AK81: Energy Conversion Facility | AL81: ='Energy Allocation'!AK29 -> 0.004520702093 | AM81: ='Energy Allocation'!AL29 -> 1.500396288e-09 | AN81: ='Energy Allocation'!AM29 -> 1.13479535e-13 | AO81: ='Energy Allocation'!AN29 -> 1.212976225e-06 | AP81: ='Energy Allocation'!AO29 -> 0.004551476204
A82: S1-E-12 | B82: CBTL Plant Operations (includes CO₂ Compression) | C82: ='Energy Allocation'!B30 -> 0.002446414538 | D82: ='Energy Allocation'!C30 -> 3.917862259e-11 | E82: ='Energy Allocation'!D30 -> 3.947669433e-14 | F82: ='Energy Allocation'!E30 -> 1.658482228e-09 | G82: ='Energy Allocation'!F30 -> 0.002446468575 | H82: S2-E-12 | I82: CBTL Plant Operations (includes CO₂ Compression) | J82: ='Energy Allocation'!I30 -> 0.002607128868 | K82: ='Energy Allocation'!J30 -> 1.078380998e-09 | L82: ='Energy Allocation'!K30 -> 1.055839743e-13 | M82: ='Energy Allocation'!L30 -> 1.100824043e-06 | N82: ='Energy Allocation'!M30 -> 0.002634973234 | O82: S3-E-12 | P82: CBTL Plant Operations (includes CO₂ Compression) | Q82: ='Energy Allocation'!P30 -> 0.002775624263 | R82: ='Energy Allocation'!Q30 -> 2.164869062e-09 | S82: ='Energy Allocation'!R30 -> 1.747044068e-13 | T82: ='Energy Allocation'!S30 -> 2.249998198e-06 | U82: ='Energy Allocation'!T30 -> 0.002832523332 | V82: S4-E-12 | W82: CBTL Plant Operations (includes CO₂ Compression) | X82: ='Energy Allocation'!W30 -> 0.002421452983 | Y82: ='Energy Allocation'!X30 -> 3.919425919e-11 | Z82: ='Energy Allocation'!Y30 -> 3.949244989e-14 | AA82: ='Energy Allocation'!Z30 -> 1.659144145e-09 | AB82: ='Energy Allocation'!AA30 -> 0.002421507042 | AC82: S5-E-12 | AD82: CBTL Plant Operations (includes CO₂ Compression) | AE82: ='Energy Allocation'!AD30 -> 0.002395211055 | AF82: ='Energy Allocation'!AE30 -> 3.919725153e-11 | AG82: ='Energy Allocation'!AF30 -> 3.9495465e-14 | AH82: ='Energy Allocation'!AG30 -> 1.659270815e-09 | AI82: ='Energy Allocation'!AH30 -> 0.002395265118 | AJ82: S6-E-12 | AK82: CBTL Plant Operations (includes CO₂ Compression) | AL82: ='Energy Allocation'!AK30 -> 0.00439372777 | AM82: ='Energy Allocation'!AL30 -> 1.18011824e-09 | AN82: ='Energy Allocation'!AM30 -> 1.13479535e-13 | AO82: ='Energy Allocation'!AN30 -> 1.206900296e-06 | AP82: ='Energy Allocation'!AO30 -> 0.00442425454
A83: S1-E-13 | B83: CO₂ Pipeline Transport to CO₂-EOR Operation | C83: ='Energy Allocation'!B31 -> 0.0001288127865 | D83: ='Energy Allocation'!C31 -> 3.249153598e-10 | E83: ='Energy Allocation'!D31 -> 0 | F83: ='Energy Allocation'!E31 -> 6.163902452e-09 | G83: ='Energy Allocation'!F31 -> 0.0001290637088 | H83: S2-E-13 | I83: CO₂ Pipeline Transport to CO₂-EOR Operation | J83: ='Energy Allocation'!I31 -> 0.0001293843028 | K83: ='Energy Allocation'!J31 -> 3.263569437e-10 | L83: ='Energy Allocation'!K31 -> 0 | M83: ='Energy Allocation'!L31 -> 6.191250444e-09 | N83: ='Energy Allocation'!M31 -> 0.0001296363384 | O83: S3-E-13 | P83: CO₂ Pipeline Transport to CO₂-EOR Operation | Q83: ='Energy Allocation'!P31 -> 0.0001299954734 | R83: ='Energy Allocation'!Q31 -> 3.278985509e-10 | S83: ='Energy Allocation'!R31 -> 0 | T83: ='Energy Allocation'!S31 -> 6.220495957e-09 | U83: ='Energy Allocation'!T31 -> 0.0001302486996 | V83: S4-E-13 | W83: CO₂ Pipeline Transport to CO₂-EOR Operation | X83: ='Energy Allocation'!W31 -> 0.0001287423861 | Y83: ='Energy Allocation'!X31 -> 3.247377831e-10 | Z83: ='Energy Allocation'!Y31 -> 0 | AA83: ='Energy Allocation'!Z31 -> 6.16053368e-09 | AB83: ='Energy Allocation'!AA31 -> 0.0001289931713 | AC83: S5-E-13 | AD83: CO₂ Pipeline Transport to CO₂-EOR Operation | AE83: ='Energy Allocation'!AD31 -> 0.0001286515589 | AF83: ='Energy Allocation'!AE31 -> 3.245086818e-10 | AG83: ='Energy Allocation'!AF31 -> 0 | AH83: ='Energy Allocation'!AG31 -> 6.156187447e-09 | AI83: ='Energy Allocation'!AH31 -> 0.0001289021671 | AJ83: S6-E-13 | AK83: CO₂ Pipeline Transport to CO₂-EOR Operation | AL83: ='Energy Allocation'!AK31 -> 0.000126974323 | AM83: ='Energy Allocation'!AL31 -> 3.202780483e-10 | AN83: ='Energy Allocation'!AM31 -> 0 | AO83: ='Energy Allocation'!AN31 -> 6.075928969e-09 | AP83: ='Energy Allocation'!AO31 -> 0.0001272216641
A84: S1-E-14 | B84: CO₂-EOR Operation and CO₂ Storage | C84: ='Energy Allocation'!B32 -> 0 | D84: ='Energy Allocation'!C32 -> 0 | E84: ='Energy Allocation'!D32 -> 0 | F84: ='Energy Allocation'!E32 -> 0 | G84: ='Energy Allocation'!F32 -> 0 | H84: S2-E-14 | I84: CO₂-EOR Operation and CO₂ Storage | J84: ='Energy Allocation'!I32 -> 0 | K84: ='Energy Allocation'!J32 -> 0 | L84: ='Energy Allocation'!K32 -> 0 | M84: ='Energy Allocation'!L32 -> 0 | N84: ='Energy Allocation'!M32 -> 0 | O84: S3-E-14 | P84: CO₂-EOR Operation and CO₂ Storage | Q84: ='Energy Allocation'!P32 -> 0 | R84: ='Energy Allocation'!Q32 -> 0 | S84: ='Energy Allocation'!R32 -> 0 | T84: ='Energy Allocation'!S32 -> 0 | U84: ='Energy Allocation'!T32 -> 0 | V84: S4-E-14 | W84: CO₂-EOR Operation and CO₂ Storage | X84: ='Energy Allocation'!W32 -> 0 | Y84: ='Energy Allocation'!X32 -> 0 | Z84: ='Energy Allocation'!Y32 -> 0 | AA84: ='Energy Allocation'!Z32 -> 0 | AB84: ='Energy Allocation'!AA32 -> 0 | AC84: S5-E-14 | AD84: CO₂-EOR Operation and CO₂ Storage | AE84: ='Energy Allocation'!AD32 -> 0 | AF84: ='Energy Allocation'!AE32 -> 0 | AG84: ='Energy Allocation'!AF32 -> 0 | AH84: ='Energy Allocation'!AG32 -> 0 | AI84: ='Energy Allocation'!AH32 -> 0 | AJ84: S6-E-14 | AK84: CO₂-EOR Operation and CO₂ Storage | AL84: ='Energy Allocation'!AK32 -> 0 | AM84: ='Energy Allocation'!AL32 -> 0 | AN84: ='Energy Allocation'!AM32 -> 0 | AO84: ='Energy Allocation'!AN32 -> 0 | AP84: ='Energy Allocation'!AO32 -> 0
A85: S1-E-15 | B85: Product Transport | C85: ='Energy Allocation'!B33 -> 0.006065996711 | D85: ='Energy Allocation'!C33 -> 1.252450163e-07 | E85: ='Energy Allocation'!D33 -> 3.734622246e-11 | F85: ='Energy Allocation'!E33 -> 4.604142392e-05 | G85: ='Energy Allocation'!F33 -> 0.007255206817 | H85: S2-E-15 | I85: Product Transport | J85: ='Energy Allocation'!I33 -> 0.006065996711 | K85: ='Energy Allocation'!J33 -> 1.252450163e-07 | L85: ='Energy Allocation'!K33 -> 3.734622246e-11 | M85: ='Energy Allocation'!L33 -> 4.604142392e-05 | N85: ='Energy Allocation'!M33 -> 0.007255206817 | O85: S3-E-15 | P85: Product Transport | Q85: ='Energy Allocation'!P33 -> 0.006065996711 | R85: ='Energy Allocation'!Q33 -> 1.252450163e-07 | S85: ='Energy Allocation'!R33 -> 3.734622246e-11 | T85: ='Energy Allocation'!S33 -> 4.604142392e-05 | U85: ='Energy Allocation'!T33 -> 0.007255206817 | V85: S4-E-15 | W85: Product Transport | X85: ='Energy Allocation'!W33 -> 0.006065996711 | Y85: ='Energy Allocation'!X33 -> 1.252450163e-07 | Z85: ='Energy Allocation'!Y33 -> 3.734622246e-11 | AA85: ='Energy Allocation'!Z33 -> 4.604142392e-05 | AB85: ='Energy Allocation'!AA33 -> 0.007255206817 | AC85: S5-E-15 | AD85: Product Transport | AE85: ='Energy Allocation'!AD33 -> 0.006065996711 | AF85: ='Energy Allocation'!AE33 -> 1.252450163e-07 | AG85: ='Energy Allocation'!AF33 -> 3.734622246e-11 | AH85: ='Energy Allocation'!AG33 -> 4.604142392e-05 | AI85: ='Energy Allocation'!AH33 -> 0.007255206817 | AJ85: S6-E-15 | AK85: Product Transport | AL85: ='Energy Allocation'!AK33 -> 0.006065996711 | AM85: ='Energy Allocation'!AL33 -> 1.252450163e-07 | AN85: ='Energy Allocation'!AM33 -> 3.734622246e-11 | AO85: ='Energy Allocation'!AN33 -> 4.604142392e-05 | AP85: ='Energy Allocation'!AO33 -> 0.007255206817
A86: S1-E-16 | B86: Tansport of Blended Jet Fuel to Airport | C86: ='Energy Allocation'!B34 -> 0.0001280851974 | D86: ='Energy Allocation'!C34 -> 2.308269599e-09 | E86: ='Energy Allocation'!D34 -> 2.49243187e-11 | F86: ='Energy Allocation'!E34 -> 3.690538612e-07 | G86: ='Energy Allocation'!F34 -> 0.0001385676828 | H86: S2-E-16 | I86: Tansport of Blended Jet Fuel to Airport | J86: ='Energy Allocation'!I34 -> 0.0001280851974 | K86: ='Energy Allocation'!J34 -> 2.308269599e-09 | L86: ='Energy Allocation'!K34 -> 2.49243187e-11 | M86: ='Energy Allocation'!L34 -> 3.690538612e-07 | N86: ='Energy Allocation'!M34 -> 0.0001385676828 | O86: S3-E-16 | P86: Tansport of Blended Jet Fuel to Airport | Q86: ='Energy Allocation'!P34 -> 0.0001280851974 | R86: ='Energy Allocation'!Q34 -> 2.308269599e-09 | S86: ='Energy Allocation'!R34 -> 2.49243187e-11 | T86: ='Energy Allocation'!S34 -> 3.690538612e-07 | U86: ='Energy Allocation'!T34 -> 0.0001385676828 | V86: S4-E-16 | W86: Tansport of Blended Jet Fuel to Airport | X86: ='Energy Allocation'!W34 -> 0.0001280851974 | Y86: ='Energy Allocation'!X34 -> 2.308269599e-09 | Z86: ='Energy Allocation'!Y34 -> 2.49243187e-11 | AA86: ='Energy Allocation'!Z34 -> 3.690538612e-07 | AB86: ='Energy Allocation'!AA34 -> 0.0001385676828 | AC86: S5-E-16 | AD86: Tansport of Blended Jet Fuel to Airport | AE86: ='Energy Allocation'!AD34 -> 0.0001280851974 | AF86: ='Energy Allocation'!AE34 -> 2.308269599e-09 | AG86: ='Energy Allocation'!AF34 -> 2.49243187e-11 | AH86: ='Energy Allocation'!AG34 -> 3.690538612e-07 | AI86: ='Energy Allocation'!AH34 -> 0.0001385676828 | AJ86: S6-E-16 | AK86: Tansport of Blended Jet Fuel to Airport | AL86: ='Energy Allocation'!AK34 -> 0.0001280851974 | AM86: ='Energy Allocation'!AL34 -> 2.308269599e-09 | AN86: ='Energy Allocation'!AM34 -> 2.49243187e-11 | AO86: ='Energy Allocation'!AN34 -> 3.690538612e-07 | AP86: ='Energy Allocation'!AO34 -> 0.0001385676828
A87: S1-E-17 | B87: Blending of F-T and Conv. Jet (includes Conv. Jet Fuel Profile) | C87: ='Energy Allocation'!B35 -> 0.005880426562 | D87: ='Energy Allocation'!C35 -> 1.218908247e-07 | E87: ='Energy Allocation'!D35 -> 1.298511691e-12 | F87: ='Energy Allocation'!E35 -> 4.55073105e-05 | G87: ='Energy Allocation'!F35 -> 0.007054462396 | H87: S2-E-17 | I87: Blending of F-T and Conv. Jet (includes Conv. Jet Fuel Profile) | J87: ='Energy Allocation'!I35 -> 0.005880426562 | K87: ='Energy Allocation'!J35 -> 1.218908247e-07 | L87: ='Energy Allocation'!K35 -> 1.298511691e-12 | M87: ='Energy Allocation'!L35 -> 4.55073105e-05 | N87: ='Energy Allocation'!M35 -> 0.007054462396 | O87: S3-E-17 | P87: Blending of F-T and Conv. Jet (includes Conv. Jet Fuel Profile) | Q87: ='Energy Allocation'!P35 -> 0.005880426562 | R87: ='Energy Allocation'!Q35 -> 1.218908247e-07 | S87: ='Energy Allocation'!R35 -> 1.298511691e-12 | T87: ='Energy Allocation'!S35 -> 4.55073105e-05 | U87: ='Energy Allocation'!T35 -> 0.007054462396 | V87: S4-E-17 | W87: Blending of F-T and Conv. Jet (includes Conv. Jet Fuel Profile) | X87: ='Energy Allocation'!W35 -> 0.005880426562 | Y87: ='Energy Allocation'!X35 -> 1.218908247e-07 | Z87: ='Energy Allocation'!Y35 -> 1.298511691e-12 | AA87: ='Energy Allocation'!Z35 -> 4.55073105e-05 | AB87: ='Energy Allocation'!AA35 -> 0.007054462396 | AC87: S5-E-17 | AD87: Blending of F-T and Conv. Jet (includes Conv. Jet Fuel Profile) | AE87: ='Energy Allocation'!AD35 -> 0.005880426562 | AF87: ='Energy Allocation'!AE35 -> 1.218908247e-07 | AG87: ='Energy Allocation'!AF35 -> 1.298511691e-12 | AH87: ='Energy Allocation'!AG35 -> 4.55073105e-05 | AI87: ='Energy Allocation'!AH35 -> 0.007054462396 | AJ87: S6-E-17 | AK87: Blending of F-T and Conv. Jet (includes Conv. Jet Fuel Profile) | AL87: ='Energy Allocation'!AK35 -> 0.005880426562 | AM87: ='Energy Allocation'!AL35 -> 1.218908247e-07 | AN87: ='Energy Allocation'!AM35 -> 1.298511691e-12 | AO87: ='Energy Allocation'!AN35 -> 4.55073105e-05 | AP87: ='Energy Allocation'!AO35 -> 0.007054462396
A88: S1-E-18 | B88: Transport of F-T Jet to Blending Facility | C88: ='Energy Allocation'!B36 -> 5.748495151e-05 | D88: ='Energy Allocation'!C36 -> 1.045921958e-09 | E88: ='Energy Allocation'!D36 -> 1.112339207e-11 | F88: ='Energy Allocation'!E36 -> 1.650595619e-07 | G88: ='Energy Allocation'!F36 -> 6.217673864e-05 | H88: S2-E-18 | I88: Transport of F-T Jet to Blending Facility | J88: ='Energy Allocation'!I36 -> 5.748495151e-05 | K88: ='Energy Allocation'!J36 -> 1.045921958e-09 | L88: ='Energy Allocation'!K36 -> 1.112339207e-11 | M88: ='Energy Allocation'!L36 -> 1.650595619e-07 | N88: ='Energy Allocation'!M36 -> 6.217673864e-05 | O88: S3-E-18 | P88: Transport of F-T Jet to Blending Facility | Q88: ='Energy Allocation'!P36 -> 5.748495151e-05 | R88: ='Energy Allocation'!Q36 -> 1.045921958e-09 | S88: ='Energy Allocation'!R36 -> 1.112339207e-11 | T88: ='Energy Allocation'!S36 -> 1.650595619e-07 | U88: ='Energy Allocation'!T36 -> 6.217673864e-05 | V88: S4-E-18 | W88: Transport of F-T Jet to Blending Facility | X88: ='Energy Allocation'!W36 -> 5.748495151e-05 | Y88: ='Energy Allocation'!X36 -> 1.045921958e-09 | Z88: ='Energy Allocation'!Y36 -> 1.112339207e-11 | AA88: ='Energy Allocation'!Z36 -> 1.650595619e-07 | AB88: ='Energy Allocation'!AA36 -> 6.217673864e-05 | AC88: S5-E-18 | AD88: Transport of F-T Jet to Blending Facility | AE88: ='Energy Allocation'!AD36 -> 5.748495151e-05 | AF88: ='Energy Allocation'!AE36 -> 1.045921958e-09 | AG88: ='Energy Allocation'!AF36 -> 1.112339207e-11 | AH88: ='Energy Allocation'!AG36 -> 1.650595619e-07 | AI88: ='Energy Allocation'!AH36 -> 6.217673864e-05 | AJ88: S6-E-18 | AK88: Transport of F-T Jet to Blending Facility | AL88: ='Energy Allocation'!AK36 -> 5.748495151e-05 | AM88: ='Energy Allocation'!AL36 -> 1.045921958e-09 | AN88: ='Energy Allocation'!AM36 -> 1.112339207e-11 | AO88: ='Energy Allocation'!AN36 -> 1.650595619e-07 | AP88: ='Energy Allocation'!AO36 -> 6.217673864e-05
A89: S1-E-19 | B89: End Use | C89: ='Energy Allocation'!B37 -> 0.07217962676 | D89: ='Energy Allocation'!C37 -> 1.896246485e-06 | E89: ='Energy Allocation'!D37 -> 3.611743149e-15 | F89: ='Energy Allocation'!E37 -> 5.323415649e-07 | G89: ='Energy Allocation'!F37 -> 0.07275801684 | H89: S2-E-19 | I89: End Use | J89: ='Energy Allocation'!I37 -> 0.07217962676 | K89: ='Energy Allocation'!J37 -> 1.896246485e-06 | L89: ='Energy Allocation'!K37 -> 3.611743149e-15 | M89: ='Energy Allocation'!L37 -> 5.323415649e-07 | N89: ='Energy Allocation'!M37 -> 0.07275801684 | O89: S3-E-19 | P89: End Use | Q89: ='Energy Allocation'!P37 -> 0.07217962676 | R89: ='Energy Allocation'!Q37 -> 1.896246485e-06 | S89: ='Energy Allocation'!R37 -> 3.611743149e-15 | T89: ='Energy Allocation'!S37 -> 5.323415649e-07 | U89: ='Energy Allocation'!T37 -> 0.07275801684 | V89: S4-E-19 | W89: End Use | X89: ='Energy Allocation'!W37 -> 0.07217962676 | Y89: ='Energy Allocation'!X37 -> 1.896246485e-06 | Z89: ='Energy Allocation'!Y37 -> 3.611743149e-15 | AA89: ='Energy Allocation'!Z37 -> 5.323415649e-07 | AB89: ='Energy Allocation'!AA37 -> 0.07275801684 | AC89: S5-E-19 | AD89: End Use | AE89: ='Energy Allocation'!AD37 -> 0.07217962676 | AF89: ='Energy Allocation'!AE37 -> 1.896246485e-06 | AG89: ='Energy Allocation'!AF37 -> 3.611743149e-15 | AH89: ='Energy Allocation'!AG37 -> 5.323415649e-07 | AI89: ='Energy Allocation'!AH37 -> 0.07275801684 | AJ89: S6-E-19 | AK89: End Use | AL89: ='Energy Allocation'!AK37 -> 0.07217962676 | AM89: ='Energy Allocation'!AL37 -> 1.896246485e-06 | AN89: ='Energy Allocation'!AM37 -> 3.611743149e-15 | AO89: ='Energy Allocation'!AN37 -> 5.323415649e-07 | AP89: ='Energy Allocation'!AO37 -> 0.07275801684
A90: S1-E-20 | B90: Airplane Operation (Fuel Use) | C90: ='Energy Allocation'!B38 -> 0.0721440266 | D90: ='Energy Allocation'!C38 -> 1.89563e-06 | E90: ='Energy Allocation'!D38 -> 0 | F90: ='Energy Allocation'!E38 -> 4.73907e-07 | G90: ='Energy Allocation'!F38 -> 0.07272077201 | H90: S2-E-20 | I90: Airplane Operation (Fuel Use) | J90: ='Energy Allocation'!I38 -> 0.0721440266 | K90: ='Energy Allocation'!J38 -> 1.89563e-06 | L90: ='Energy Allocation'!K38 -> 0 | M90: ='Energy Allocation'!L38 -> 4.73907e-07 | N90: ='Energy Allocation'!M38 -> 0.07272077201 | O90: S3-E-20 | P90: Airplane Operation (Fuel Use) | Q90: ='Energy Allocation'!P38 -> 0.0721440266 | R90: ='Energy Allocation'!Q38 -> 1.89563e-06 | S90: ='Energy Allocation'!R38 -> 0 | T90: ='Energy Allocation'!S38 -> 4.73907e-07 | U90: ='Energy Allocation'!T38 -> 0.07272077201 | V90: S4-E-20 | W90: Airplane Operation (Fuel Use) | X90: ='Energy Allocation'!W38 -> 0.0721440266 | Y90: ='Energy Allocation'!X38 -> 1.89563e-06 | Z90: ='Energy Allocation'!Y38 -> 0 | AA90: ='Energy Allocation'!Z38 -> 4.73907e-07 | AB90: ='Energy Allocation'!AA38 -> 0.07272077201 | AC90: S5-E-20 | AD90: Airplane Operation (Fuel Use) | AE90: ='Energy Allocation'!AD38 -> 0.0721440266 | AF90: ='Energy Allocation'!AE38 -> 1.89563e-06 | AG90: ='Energy Allocation'!AF38 -> 0 | AH90: ='Energy Allocation'!AG38 -> 4.73907e-07 | AI90: ='Energy Allocation'!AH38 -> 0.07272077201 | AJ90: S6-E-20 | AK90: Airplane Operation (Fuel Use) | AL90: ='Energy Allocation'!AK38 -> 0.0721440266 | AM90: ='Energy Allocation'!AL38 -> 1.89563e-06 | AN90: ='Energy Allocation'!AM38 -> 0 | AO90: ='Energy Allocation'!AN38 -> 4.73907e-07 | AP90: ='Energy Allocation'!AO38 -> 0.07272077201
A91: S1-E-21 | B91: Airplane Construction | C91: ='Energy Allocation'!B39 -> 3.560016379e-05 | D91: ='Energy Allocation'!C39 -> 6.164848853e-10 | E91: ='Energy Allocation'!D39 -> 3.611743149e-15 | F91: ='Energy Allocation'!E39 -> 5.843456494e-08 | G91: ='Energy Allocation'!F39 -> 3.724482276e-05 | H91: S2-E-21 | I91: Airplane Construction | J91: ='Energy Allocation'!I39 -> 3.560016379e-05 | K91: ='Energy Allocation'!J39 -> 6.164848853e-10 | L91: ='Energy Allocation'!K39 -> 3.611743149e-15 | M91: ='Energy Allocation'!L39 -> 5.843456494e-08 | N91: ='Energy Allocation'!M39 -> 3.724482276e-05 | O91: S3-E-21 | P91: Airplane Construction | Q91: ='Energy Allocation'!P39 -> 3.560016379e-05 | R91: ='Energy Allocation'!Q39 -> 6.164848853e-10 | S91: ='Energy Allocation'!R39 -> 3.611743149e-15 | T91: ='Energy Allocation'!S39 -> 5.843456494e-08 | U91: ='Energy Allocation'!T39 -> 3.724482276e-05 | V91: S4-E-21 | W91: Airplane Construction | X91: ='Energy Allocation'!W39 -> 3.560016379e-05 | Y91: ='Energy Allocation'!X39 -> 6.164848853e-10 | Z91: ='Energy Allocation'!Y39 -> 3.611743149e-15 | AA91: ='Energy Allocation'!Z39 -> 5.843456494e-08 | AB91: ='Energy Allocation'!AA39 -> 3.724482276e-05 | AC91: S5-E-21 | AD91: Airplane Construction | AE91: ='Energy Allocation'!AD39 -> 3.560016379e-05 | AF91: ='Energy Allocation'!AE39 -> 6.164848853e-10 | AG91: ='Energy Allocation'!AF39 -> 3.611743149e-15 | AH91: ='Energy Allocation'!AG39 -> 5.843456494e-08 | AI91: ='Energy Allocation'!AH39 -> 3.724482276e-05 | AJ91: S6-E-21 | AK91: Airplane Construction | AL91: ='Energy Allocation'!AK39 -> 3.560016379e-05 | AM91: ='Energy Allocation'!AL39 -> 6.164848853e-10 | AN91: ='Energy Allocation'!AM39 -> 3.611743149e-15 | AO91: ='Energy Allocation'!AN39 -> 5.843456494e-08 | AP91: ='Energy Allocation'!AO39 -> 3.724482276e-05
A92: S1-E-22 | B92: Total Greenhouse Gas Emissions | C92: ='Energy Allocation'!B40 -> 0.08183065917 | D92: ='Energy Allocation'!C40 -> 2.164503746e-06 | E92: ='Energy Allocation'!D40 -> 3.746353405e-11 | F92: ='Energy Allocation'!E40 -> 6.21805027e-05 | G92: ='Energy Allocation'!F40 -> 0.08403104802 | H92: S2-E-22 | I92: Total Greenhouse Gas Emissions | J92: ='Energy Allocation'!I40 -> 0.07959914718 | K92: ='Energy Allocation'!J40 -> 2.465094465e-06 | L92: ='Energy Allocation'!K40 -> 3.824692839e-11 | M92: ='Energy Allocation'!L40 -> 6.220772897e-05 | N92: ='Energy Allocation'!M40 -> 0.08188981059 | O92: S3-E-22 | P92: Total Greenhouse Gas Emissions | Q92: ='Energy Allocation'!P40 -> 0.07726672337 | R92: ='Energy Allocation'!Q40 -> 2.779375218e-06 | S92: ='Energy Allocation'!R40 -> 3.906597343e-11 | T92: ='Energy Allocation'!S40 -> 6.223797732e-05 | U92: ='Energy Allocation'!T40 -> 0.07965181732 | V92: S4-E-22 | W92: Total Greenhouse Gas Emissions | X92: ='Energy Allocation'!W40 -> 0.0801248274 | Y92: ='Energy Allocation'!X40 -> 2.377081901e-06 | Z92: ='Energy Allocation'!Y40 -> 3.907627664e-11 | AA92: ='Energy Allocation'!Z40 -> 6.065479626e-05 | AB92: ='Energy Allocation'!AA40 -> 0.08235045865 | AC92: S5-E-22 | AD92: Total Greenhouse Gas Emissions | AE92: ='Energy Allocation'!AD40 -> 0.0784487808 | AF92: ='Energy Allocation'!AE40 -> 2.585652197e-06 | AG92: ='Energy Allocation'!AF40 -> 4.065889583e-11 | AH92: ='Energy Allocation'!AG40 -> 5.915315865e-05 | AI92: ='Energy Allocation'!AH40 -> 0.08069906114 | AJ92: S6-E-22 | AK92: Total Greenhouse Gas Emissions | AL92: ='Energy Allocation'!AK40 -> 0.08121400293 | AM92: ='Energy Allocation'!AL40 -> 2.502760902e-06 | AN92: ='Energy Allocation'!AM40 -> 3.832852075e-11 | AO92: ='Energy Allocation'!AN40 -> 6.315947827e-05 | AP92: ='Energy Allocation'!AO40 -> 0.08353968652

Sheet Combination
B1: COMBANATION (50/50)
A2: S1-CP | B2: =Data!B1 -> Name | C2: Carbon dioxide | D2: Nitrous oxide (laughing gas) | E2: Sulphur hexafluoride | F2: Methane | G2: GWP | H2: S2-CP | I2: =Data!I1 -> Name | J2: Carbon dioxide | K2: Nitrous oxide (laughing gas) | L2: Sulphur hexafluoride | M2: Methane | N2: GWP | O2: S3-CP | P2: =Data!P1 -> Name | Q2: Carbon dioxide | R2: Nitrous oxide (laughing gas) | S2: Sulphur hexafluoride | T2: Methane | U2: GWP | V2: S4-CP | W2: =Data!W1 -> Name | X2: Carbon dioxide | Y2: Nitrous oxide (laughing gas) | Z2: Sulphur hexafluoride | AA2: Methane | AB2: GWP | AC2: S5-CP | AD2: =Data!AD1 -> Name | AE2: Carbon dioxide | AF2: Nitrous oxide (laughing gas) | AG2: Sulphur hexafluoride | AH2: Methane | AI2: GWP | AJ2: S6-CP | AK2: =Data!AK1 -> Name | AL2: Carbon dioxide | AM2: Nitrous oxide (laughing gas) | AN2: Sulphur hexafluoride | AO2: Methane | AP2: GWP
A3: S1-CP-1 | B3: Raw Material Acquisition | G3: =_xll.RiskDiscrete(K28:L28,{0.5,0.5},_xll.RiskName(A3)) -> 0.003259742703 | H3: S2-CP-1 | I3: Raw Material Acquisition | N3: =_xll.RiskDiscrete(W28:X28,{0.5,0.5},_xll.RiskName(H3)) -> -0.01063275909 | O3: S3-CP-1 | P3: Raw Material Acquisition | U3: =_xll.RiskDiscrete(AI28:AJ28,{0.5,0.5},_xll.RiskName(O3)) -> -0.02523806654 | V3: S4-CP-1 | W3: Raw Material Acquisition | AB3: =_xll.RiskDiscrete(AU28:AV28,{0.5,0.5},_xll.RiskName(V3)) -> -0.007018620931 | AC3: S5-CP-1 | AD3: Raw Material Acquisition | AI3: =_xll.RiskDiscrete(BG28:BH28,{0.5,0.5},_xll.RiskName(AC3)) -> -0.01710450558 | AJ3: S6-CP-1 | AK3: Raw Material Acquisition | AP3: =_xll.RiskDiscrete(BS28:BT28,{0.5,0.5},_xll.RiskName(AJ3)) -> -0.01134000367
A4: S1-CP-2 | B4: Coal Mining, Surface | G4: =_xll.RiskDiscrete(K29:L29,{0.5,0.5},_xll.RiskName(A4)) -> 0.003259742703 | H4: S2-CP-2 | I4: Coal Mining, Surface | N4: =_xll.RiskDiscrete(W29:X29,{0.5,0.5},_xll.RiskName(H4)) -> 0.0004901855501 | O4: S3-CP-2 | P4: Coal Mining, Surface | U4: =_xll.RiskDiscrete(AI29:AJ29,{0.5,0.5},_xll.RiskName(O4)) -> 0.0004456324027 | V4: S4-CP-2 | W4: Coal Mining, Surface | AB4: =_xll.RiskDiscrete(AU29:AV29,{0.5,0.5},_xll.RiskName(V4)) -> 0.0004751933276 | AC4: S5-CP-2 | AD4: Coal Mining, Surface | AI4: =_xll.RiskDiscrete(BG29:BH29,{0.5,0.5},_xll.RiskName(AC4)) -> 0.0004184542438 | AJ4: S6-CP-2 | AK4: Coal Mining, Surface | AP4: =_xll.RiskDiscrete(BS29:BT29,{0.5,0.5},_xll.RiskName(AJ4)) -> 0.0005184937196
A5: S1-CP-3 | B5: Biomass Production and Field Chipping | G5: =_xll.RiskDiscrete(K30:L30,{0.5,0.5},_xll.RiskName(A5)) -> 0 | H5: S2-CP-3 | I5: Biomass Production and Field Chipping | N5: =_xll.RiskDiscrete(W30:X30,{0.5,0.5},_xll.RiskName(H5)) -> -0.002517164808 | O5: S3-CP-3 | P5: Biomass Production and Field Chipping | U5: =_xll.RiskDiscrete(AI30:AJ30,{0.5,0.5},_xll.RiskName(O5)) -> -0.03167364314 | V5: S4-CP-3 | W5: Biomass Production and Field Chipping | AB5: =_xll.RiskDiscrete(AU30:AV30,{0.5,0.5},_xll.RiskName(V5)) -> -0.01123475782 | AC5: S5-CP-3 | AD5: Biomass Production and Field Chipping | AI5: =_xll.RiskDiscrete(BG30:BH30,{0.5,0.5},_xll.RiskName(AC5)) -> -0.02225928328 | AJ5: S6-CP-3 | AK5: Biomass Production and Field Chipping | AP5: =_xll.RiskDiscrete(BS30:BT30,{0.5,0.5},_xll.RiskName(AJ5)) -> -0.01630501766
A6: S1-CP-4 | B6: Biomass Direct Land Use Change | G6: =_xll.RiskDiscrete(K31:L31,{0.5,0.5},_xll.RiskName(A6)) -> 0 | H6: S2-CP-4 | I6: Biomass Direct Land Use Change | N6: =_xll.RiskDiscrete(W31:X31,{0.5,0.5},_xll.RiskName(H6)) -> 6.205762721e-05 | O6: S3-CP-4 | P6: Biomass Direct Land Use Change | U6: =_xll.RiskDiscrete(AI31:AJ31,{0.5,0.5},_xll.RiskName(O6)) -> 0.0007808750277 | V6: S4-CP-4 | W6: Biomass Direct Land Use Change | AB6: =_xll.RiskDiscrete(AU31:AV31,{0.5,0.5},_xll.RiskName(V6)) -> 4.52995768e-05 | AC6: S5-CP-4 | AD6: Biomass Direct Land Use Change | AI6: =_xll.RiskDiscrete(BG31:BH31,{0.5,0.5},_xll.RiskName(AC6)) -> 8.975369162e-05 | AJ6: S6-CP-4 | AK6: Biomass Direct Land Use Change | AP6: =_xll.RiskDiscrete(BS31:BT31,{0.5,0.5},_xll.RiskName(AJ6)) -> 6.804291798e-05
A7: S1-CP-5 | B7: Biomass Indirect Land Use Change | G7: =_xll.RiskDiscrete(K32:L32,{0.5,0.5},_xll.RiskName(A7)) -> 0 | H7: S2-CP-5 | I7: Biomass Indirect Land Use Change | N7: =_xll.RiskDiscrete(W32:X32,{0.5,0.5},_xll.RiskName(H7)) -> 0.001420189945 | O7: S3-CP-5 | P7: Biomass Indirect Land Use Change | U7: =_xll.RiskDiscrete(AI32:AJ32,{0.5,0.5},_xll.RiskName(O7)) -> 0.0004735735084 | V7: S4-CP-5 | W7: Biomass Indirect Land Use Change | AB7: =_xll.RiskDiscrete(AU32:AV32,{0.5,0.5},_xll.RiskName(V7)) -> 0.001033337488 | AC7: S5-CP-5 | AD7: Biomass Indirect Land Use Change | AI7: =_xll.RiskDiscrete(BG32:BH32,{0.5,0.5},_xll.RiskName(AC7)) -> 0.0003348476657 | AJ7: S6-CP-5 | AK7: Biomass Indirect Land Use Change | AP7: =_xll.RiskDiscrete(BS32:BT32,{0.5,0.5},_xll.RiskName(AJ7)) -> 0.001499683951
A8: S1-CP-6 | B8: Raw Material Transport | G8: =_xll.RiskDiscrete(K33:L33,{0.5,0.5},_xll.RiskName(A8)) -> 0.0055634327 | H8: S2-CP-6 | I8: Raw Material Transport | N8: =_xll.RiskDiscrete(W33:X33,{0.5,0.5},_xll.RiskName(H8)) -> 0.0008453781336 | O8: S3-CP-6 | P8: Raw Material Transport | U8: =_xll.RiskDiscrete(AI33:AJ33,{0.5,0.5},_xll.RiskName(O8)) -> 0.004789278391 | V8: S4-CP-6 | W8: Raw Material Transport | AB8: =_xll.RiskDiscrete(AU33:AV33,{0.5,0.5},_xll.RiskName(V8)) -> 0.0009346702147 | AC8: S5-CP-6 | AD8: Raw Material Transport | AI8: =_xll.RiskDiscrete(BG33:BH33,{0.5,0.5},_xll.RiskName(AC8)) -> 0.0009591797364 | AJ8: S6-CP-6 | AK8: Raw Material Transport | AP8: =_xll.RiskDiscrete(BS33:BT33,{0.5,0.5},_xll.RiskName(AJ8)) -> 0.005285080674
A9: S1-CP-7 | B9: Biomass Transport to Torrefaction Facility | G9: =_xll.RiskDiscrete(K34:L34,{0.5,0.5},_xll.RiskName(A9)) -> 0 | H9: S2-CP-7 | I9: Biomass Transport to Torrefaction Facility | N9: =_xll.RiskDiscrete(W34:X34,{0.5,0.5},_xll.RiskName(H9)) -> 0 | O9: S3-CP-7 | P9: Biomass Transport to Torrefaction Facility | U9: =_xll.RiskDiscrete(AI34:AJ34,{0.5,0.5},_xll.RiskName(O9)) -> 0 | V9: S4-CP-7 | W9: Biomass Transport to Torrefaction Facility | AB9: =_xll.RiskDiscrete(AU34:AV34,{0.5,0.5},_xll.RiskName(V9)) -> 5.23269089e-06 | AC9: S5-CP-7 | AD9: Biomass Transport to Torrefaction Facility | AI9: =_xll.RiskDiscrete(BG34:BH34,{0.5,0.5},_xll.RiskName(AC9)) -> 1.036776735e-05 | AJ9: S6-CP-7 | AK9: Biomass Transport to Torrefaction Facility | AP9: =_xll.RiskDiscrete(BS34:BT34,{0.5,0.5},_xll.RiskName(AJ9)) -> 0
A10: S1-CP-8 | B10: Biomass Torrefaction | G10: =_xll.RiskDiscrete(K35:L35,{0.5,0.5},_xll.RiskName(A10)) -> 0 | H10: S2-CP-8 | I10: Biomass Torrefaction | N10: =_xll.RiskDiscrete(W35:X35,{0.5,0.5},_xll.RiskName(H10)) -> 0 | O10: S3-CP-8 | P10: Biomass Torrefaction | U10: =_xll.RiskDiscrete(AI35:AJ35,{0.5,0.5},_xll.RiskName(O10)) -> 0 | V10: S4-CP-8 | W10: Biomass Torrefaction | AB10: =_xll.RiskDiscrete(AU35:AV35,{0.5,0.5},_xll.RiskName(V10)) -> 0.0001120160776 | AC10: S5-CP-8 | AD10: Biomass Torrefaction | AI10: =_xll.RiskDiscrete(BG35:BH35,{0.5,0.5},_xll.RiskName(AC10)) -> 0.0002219425256 | AJ10: S6-CP-8 | AK10: Biomass Torrefaction | AP10: =_xll.RiskDiscrete(BS35:BT35,{0.5,0.5},_xll.RiskName(AJ10)) -> 0
A11: S1-CP-9 | B11: Transport of Chipped or Torrefied Biomass to CBTL Plant | G11: =_xll.RiskDiscrete(K36:L36,{0.5,0.5},_xll.RiskName(A11)) -> 0 | H11: S2-CP-9 | I11: Transport of Chipped or Torrefied Biomass to CBTL Plant | N11: =_xll.RiskDiscrete(W36:X36,{0.5,0.5},_xll.RiskName(H11)) -> 5.382108403e-05 | O11: S3-CP-9 | P11: Transport of Chipped or Torrefied Biomass to CBTL Plant | U11: =_xll.RiskDiscrete(AI36:AJ36,{0.5,0.5},_xll.RiskName(O11)) -> 1.794706383e-05 | V11: S4-CP-9 | W11: Transport of Chipped or Torrefied Biomass to CBTL Plant | AB11: =_xll.RiskDiscrete(AU36:AV36,{0.5,0.5},_xll.RiskName(V11)) -> 6.404645661e-06 | AC11: S5-CP-9 | AD11: Transport of Chipped or Torrefied Biomass to CBTL Plant | AI11: =_xll.RiskDiscrete(BG36:BH36,{0.5,0.5},_xll.RiskName(AC11)) -> 1.268975633e-05 | AJ11: S6-CP-9 | AK11: Transport of Chipped or Torrefied Biomass to CBTL Plant | AP11: =_xll.RiskDiscrete(BS36:BT36,{0.5,0.5},_xll.RiskName(AJ11)) -> 5.683367652e-05
A12: S1-CP-10 | B12: Transport of Coal to CBTL Plant | G12: =_xll.RiskDiscrete(K37:L37,{0.5,0.5},_xll.RiskName(A12)) -> 0.0055634327 | H12: S2-CP-10 | I12: Transport of Coal to CBTL Plant | N12: =_xll.RiskDiscrete(W37:X37,{0.5,0.5},_xll.RiskName(H12)) -> 0.005132267726 | O12: S3-CP-10 | P12: Transport of Coal to CBTL Plant | U12: =_xll.RiskDiscrete(AI37:AJ37,{0.5,0.5},_xll.RiskName(O12)) -> 0.004678874979 | V12: S4-CP-10 | W12: Transport of Coal to CBTL Plant | AB12: =_xll.RiskDiscrete(AU37:AV37,{0.5,0.5},_xll.RiskName(V12)) -> 0.004959389841 | AC12: S5-CP-10 | AD12: Transport of Coal to CBTL Plant | AI12: =_xll.RiskDiscrete(BG37:BH37,{0.5,0.5},_xll.RiskName(AC12)) -> 0.0007141796871 | AJ12: S6-CP-10 | AK12: Transport of Coal to CBTL Plant | AP12: =_xll.RiskDiscrete(BS37:BT37,{0.5,0.5},_xll.RiskName(AJ12)) -> 0.005228246997
A13: S1-CP-11 | B13: Energy Conversion Facility | G13: =_xll.RiskDiscrete(K38:L38,{0.5,0.5},_xll.RiskName(A13)) -> 0.01747318932 | H13: S2-CP-11 | I13: Energy Conversion Facility | N13: =_xll.RiskDiscrete(W38:X38,{0.5,0.5},_xll.RiskName(H13)) -> 0.01998701196 | O13: S3-CP-11 | P13: Energy Conversion Facility | U13: =_xll.RiskDiscrete(AI38:AJ38,{0.5,0.5},_xll.RiskName(O13)) -> 0.02269699417 | V13: S4-CP-11 | W13: Energy Conversion Facility | AB13: =_xll.RiskDiscrete(AU38:AV38,{0.5,0.5},_xll.RiskName(V13)) -> 0.002550500213 | AC13: S5-CP-11 | AD13: Energy Conversion Facility | AI13: =_xll.RiskDiscrete(BG38:BH38,{0.5,0.5},_xll.RiskName(AC13)) -> 0.002524167285 | AJ13: S6-CP-11 | AK13: Energy Conversion Facility | AP13: =_xll.RiskDiscrete(BS38:BT38,{0.5,0.5},_xll.RiskName(AJ13)) -> 0.004551476204
A14: S1-CP-12 | B14: CBTL Plant Operations (includes CO₂ Compression) | G14: =_xll.RiskDiscrete(K39:L39,{0.5,0.5},_xll.RiskName(A14)) -> -0.006476742992 | H14: S2-CP-12 | I14: CBTL Plant Operations (includes CO₂ Compression) | N14: =_xll.RiskDiscrete(W39:X39,{0.5,0.5},_xll.RiskName(H14)) -> -0.004136719921 | O14: S3-CP-12 | P14: CBTL Plant Operations (includes CO₂ Compression) | U14: =_xll.RiskDiscrete(AI39:AJ39,{0.5,0.5},_xll.RiskName(O14)) -> -0.001608643167 | V14: S4-CP-12 | W14: CBTL Plant Operations (includes CO₂ Compression) | AB14: =_xll.RiskDiscrete(AU39:AV39,{0.5,0.5},_xll.RiskName(V14)) -> 0.002421507042 | AC14: S5-CP-12 | AD14: CBTL Plant Operations (includes CO₂ Compression) | AI14: =_xll.RiskDiscrete(BG39:BH39,{0.5,0.5},_xll.RiskName(AC14)) -> -0.007123209953 | AJ14: S6-CP-12 | AK14: CBTL Plant Operations (includes CO₂ Compression) | AP14: =_xll.RiskDiscrete(BS39:BT39,{0.5,0.5},_xll.RiskName(AJ14)) -> 0.00442425454
A15: S1-CP-13 | B15: CO₂ Pipeline Transport to CO₂-EOR Operation | G15: =_xll.RiskDiscrete(K40:L40,{0.5,0.5},_xll.RiskName(A15)) -> 0.0001290637088 | H15: S2-CP-13 | I15: CO₂ Pipeline Transport to CO₂-EOR Operation | N15: =_xll.RiskDiscrete(W40:X40,{0.5,0.5},_xll.RiskName(H15)) -> 0.0001296363384 | O15: S3-CP-13 | P15: CO₂ Pipeline Transport to CO₂-EOR Operation | U15: =_xll.RiskDiscrete(AI40:AJ40,{0.5,0.5},_xll.RiskName(O15)) -> 0.0001302486996 | V15: S4-CP-13 | W15: CO₂ Pipeline Transport to CO₂-EOR Operation | AB15: =_xll.RiskDiscrete(AU40:AV40,{0.5,0.5},_xll.RiskName(V15)) -> 0.0001289931713 | AC15: S5-CP-13 | AD15: CO₂ Pipeline Transport to CO₂-EOR Operation | AI15: =_xll.RiskDiscrete(BG40:BH40,{0.5,0.5},_xll.RiskName(AC15)) -> 0.0001289021671 | AJ15: S6-CP-13 | AK15: CO₂ Pipeline Transport to CO₂-EOR Operation | AP15: =_xll.RiskDiscrete(BS40:BT40,{0.5,0.5},_xll.RiskName(AJ15)) -> 0.0001272216641
A16: S1-CP-14 | B16: CO₂-EOR Operation and CO₂ Storage | G16: =_xll.RiskDiscrete(K41:L41,{0.5,0.5},_xll.RiskName(A16)) -> 0 | H16: S2-CP-14 | I16: CO₂-EOR Operation and CO₂ Storage | N16: =_xll.RiskDiscrete(W41:X41,{0.5,0.5},_xll.RiskName(H16)) -> 0 | O16: S3-CP-14 | P16: CO₂-EOR Operation and CO₂ Storage | U16: =_xll.RiskDiscrete(AI41:AJ41,{0.5,0.5},_xll.RiskName(O16)) -> 0 | V16: S4-CP-14 | W16: CO₂-EOR Operation and CO₂ Storage | AB16: =_xll.RiskDiscrete(AU41:AV41,{0.5,0.5},_xll.RiskName(V16)) -> 0 | AC16: S5-CP-14 | AD16: CO₂-EOR Operation and CO₂ Storage | AI16: =_xll.RiskDiscrete(BG41:BH41,{0.5,0.5},_xll.RiskName(AC16)) -> 0 | AJ16: S6-CP-14 | AK16: CO₂-EOR Operation and CO₂ Storage | AP16: =_xll.RiskDiscrete(BS41:BT41,{0.5,0.5},_xll.RiskName(AJ16)) -> 0
A17: S1-CP-15 | B17: Product Transport | G17: =_xll.RiskDiscrete(K42:L42,{0.5,0.5},_xll.RiskName(A17)) -> 0.007255206817 | H17: S2-CP-15 | I17: Product Transport | N17: =_xll.RiskDiscrete(W42:X42,{0.5,0.5},_xll.RiskName(H17)) -> 0.007255206817 | O17: S3-CP-15 | P17: Product Transport | U17: =_xll.RiskDiscrete(AI42:AJ42,{0.5,0.5},_xll.RiskName(O17)) -> 0.007255206817 | V17: S4-CP-15 | W17: Product Transport | AB17: =_xll.RiskDiscrete(AU42:AV42,{0.5,0.5},_xll.RiskName(V17)) -> 0.007255206817 | AC17: S5-CP-15 | AD17: Product Transport | AI17: =_xll.RiskDiscrete(BG42:BH42,{0.5,0.5},_xll.RiskName(AC17)) -> 0.007255206817 | AJ17: S6-CP-15 | AK17: Product Transport | AP17: =_xll.RiskDiscrete(BS42:BT42,{0.5,0.5},_xll.RiskName(AJ17)) -> 0.007255206817
A18: S1-CP-16 | B18: Tansport of Blended Jet Fuel to Airport | G18: =_xll.RiskDiscrete(K43:L43,{0.5,0.5},_xll.RiskName(A18)) -> 0.0001385676828 | H18: S2-CP-16 | I18: Tansport of Blended Jet Fuel to Airport | N18: =_xll.RiskDiscrete(W43:X43,{0.5,0.5},_xll.RiskName(H18)) -> 0.0001385676828 | O18: S3-CP-16 | P18: Tansport of Blended Jet Fuel to Airport | U18: =_xll.RiskDiscrete(AI43:AJ43,{0.5,0.5},_xll.RiskName(O18)) -> 0.0001385676828 | V18: S4-CP-16 | W18: Tansport of Blended Jet Fuel to Airport | AB18: =_xll.RiskDiscrete(AU43:AV43,{0.5,0.5},_xll.RiskName(V18)) -> 0.0001385676828 | AC18: S5-CP-16 | AD18: Tansport of Blended Jet Fuel to Airport | AI18: =_xll.RiskDiscrete(BG43:BH43,{0.5,0.5},_xll.RiskName(AC18)) -> 0.0001385676828 | AJ18: S6-CP-16 | AK18: Tansport of Blended Jet Fuel to Airport | AP18: =_xll.RiskDiscrete(BS43:BT43,{0.5,0.5},_xll.RiskName(AJ18)) -> 0.0001385676828
A19: S1-CP-17 | B19: Blending of F-T and Conv. Jet (includes Conv. Jet Fuel Profile) | G19: =_xll.RiskDiscrete(K44:L44,{0.5,0.5},_xll.RiskName(A19)) -> 0.007054462396 | H19: S2-CP-17 | I19: Blending of F-T and Conv. Jet (includes Conv. Jet Fuel Profile) | N19: =_xll.RiskDiscrete(W44:X44,{0.5,0.5},_xll.RiskName(H19)) -> 0.007054462396 | O19: S3-CP-17 | P19: Blending of F-T and Conv. Jet (includes Conv. Jet Fuel Profile) | U19: =_xll.RiskDiscrete(AI44:AJ44,{0.5,0.5},_xll.RiskName(O19)) -> 0.007054462396 | V19: S4-CP-17 | W19: Blending of F-T and Conv. Jet (includes Conv. Jet Fuel Profile) | AB19: =_xll.RiskDiscrete(AU44:AV44,{0.5,0.5},_xll.RiskName(V19)) -> 0.007054462396 | AC19: S5-CP-17 | AD19: Blending of F-T and Conv. Jet (includes Conv. Jet Fuel Profile) | AI19: =_xll.RiskDiscrete(BG44:BH44,{0.5,0.5},_xll.RiskName(AC19)) -> 0.007054462396 | AJ19: S6-CP-17 | AK19: Blending of F-T and Conv. Jet (includes Conv. Jet Fuel Profile) | AP19: =_xll.RiskDiscrete(BS44:BT44,{0.5,0.5},_xll.RiskName(AJ19)) -> 0.007054462396
A20: S1-CP-18 | B20: Transport of F-T Jet to Blending Facility | G20: =_xll.RiskDiscrete(K45:L45,{0.5,0.5},_xll.RiskName(A20)) -> 6.217673864e-05 | H20: S2-CP-18 | I20: Transport of F-T Jet to Blending Facility | N20: =_xll.RiskDiscrete(W45:X45,{0.5,0.5},_xll.RiskName(H20)) -> 6.217673864e-05 | O20: S3-CP-18 | P20: Transport of F-T Jet to Blending Facility | U20: =_xll.RiskDiscrete(AI45:AJ45,{0.5,0.5},_xll.RiskName(O20)) -> 6.217673864e-05 | V20: S4-CP-18 | W20: Transport of F-T Jet to Blending Facility | AB20: =_xll.RiskDiscrete(AU45:AV45,{0.5,0.5},_xll.RiskName(V20)) -> 6.217673864e-05 | AC20: S5-CP-18 | AD20: Transport of F-T Jet to Blending Facility | AI20: =_xll.RiskDiscrete(BG45:BH45,{0.5,0.5},_xll.RiskName(AC20)) -> 6.217673864e-05 | AJ20: S6-CP-18 | AK20: Transport of F-T Jet to Blending Facility | AP20: =_xll.RiskDiscrete(BS45:BT45,{0.5,0.5},_xll.RiskName(AJ20)) -> 6.217673864e-05
A21: S1-CP-19 | B21: End Use | G21: =_xll.RiskDiscrete(K46:L46,{0.5,0.5},_xll.RiskName(A21)) -> 0.07275801684 | H21: S2-CP-19 | I21: End Use | N21: =_xll.RiskDiscrete(W46:X46,{0.5,0.5},_xll.RiskName(H21)) -> 0.07275801684 | O21: S3-CP-19 | P21: End Use | U21: =_xll.RiskDiscrete(AI46:AJ46,{0.5,0.5},_xll.RiskName(O21)) -> 0.07275801684 | V21: S4-CP-19 | W21: End Use | AB21: =_xll.RiskDiscrete(AU46:AV46,{0.5,0.5},_xll.RiskName(V21)) -> 0.07275801684 | AC21: S5-CP-19 | AD21: End Use | AI21: =_xll.RiskDiscrete(BG46:BH46,{0.5,0.5},_xll.RiskName(AC21)) -> 0.07275801684 | AJ21: S6-CP-19 | AK21: End Use | AP21: =_xll.RiskDiscrete(BS46:BT46,{0.5,0.5},_xll.RiskName(AJ21)) -> 0.07275801684
A22: S1-CP-20 | B22: Airplane Operation (Fuel Use) | G22: =_xll.RiskDiscrete(K47:L47,{0.5,0.5},_xll.RiskName(A22)) -> 0.07272077201 | H22: S2-CP-20 | I22: Airplane Operation (Fuel Use) | N22: =_xll.RiskDiscrete(W47:X47,{0.5,0.5},_xll.RiskName(H22)) -> 0.07272077201 | O22: S3-CP-20 | P22: Airplane Operation (Fuel Use) | U22: =_xll.RiskDiscrete(AI47:AJ47,{0.5,0.5},_xll.RiskName(O22)) -> 0.07272077201 | V22: S4-CP-20 | W22: Airplane Operation (Fuel Use) | AB22: =_xll.RiskDiscrete(AU47:AV47,{0.5,0.5},_xll.RiskName(V22)) -> 0.07272077201 | AC22: S5-CP-20 | AD22: Airplane Operation (Fuel Use) | AI22: =_xll.RiskDiscrete(BG47:BH47,{0.5,0.5},_xll.RiskName(AC22)) -> 0.07272077201 | AJ22: S6-CP-20 | AK22: Airplane Operation (Fuel Use) | AP22: =_xll.RiskDiscrete(BS47:BT47,{0.5,0.5},_xll.RiskName(AJ22)) -> 0.07272077201
A23: S1-CP-21 | B23: Airplane Construction | G23: =_xll.RiskDiscrete(K48:L48,{0.5,0.5},_xll.RiskName(A23)) -> 3.724482276e-05 | H23: S2-CP-21 | I23: Airplane Construction | N23: =_xll.RiskDiscrete(W48:X48,{0.5,0.5},_xll.RiskName(H23)) -> 3.724482276e-05 | O23: S3-CP-21 | P23: Airplane Construction | U23: =_xll.RiskDiscrete(AI48:AJ48,{0.5,0.5},_xll.RiskName(O23)) -> 3.724482276e-05 | V23: S4-CP-21 | W23: Airplane Construction | AB23: =_xll.RiskDiscrete(AU48:AV48,{0.5,0.5},_xll.RiskName(V23)) -> 3.724482276e-05 | AC23: S5-CP-21 | AD23: Airplane Construction | AI23: =_xll.RiskDiscrete(BG48:BH48,{0.5,0.5},_xll.RiskName(AC23)) -> 3.724482276e-05 | AJ23: S6-CP-21 | AK23: Airplane Construction | AP23: =_xll.RiskDiscrete(BS48:BT48,{0.5,0.5},_xll.RiskName(AJ23)) -> 3.724482276e-05
A24: S1-CP-22 | B24: Total Greenhouse Gas Emissions | G24: =_xll.RiskDiscrete(K49:L49,{0.5,0.5},_xll.RiskName(A24)) -> 0.1063095884 | H24: S2-CP-22 | I24: Total Greenhouse Gas Emissions | N24: =_xll.RiskDiscrete(W49:X49,{0.5,0.5},_xll.RiskName(H24)) -> 0.08188981059 | O24: S3-CP-22 | P24: Total Greenhouse Gas Emissions | U24: =_xll.RiskDiscrete(AI49:AJ49,{0.5,0.5},_xll.RiskName(O24)) -> 0.07965181732 | V24: S4-CP-22 | W24: Total Greenhouse Gas Emissions | AB24: =_xll.RiskDiscrete(AU49:AV49,{0.5,0.5},_xll.RiskName(V24)) -> 0.0959014909 | AC24: S5-CP-22 | AD24: Total Greenhouse Gas Emissions | AI24: =_xll.RiskDiscrete(BG49:BH49,{0.5,0.5},_xll.RiskName(AC24)) -> 0.08069906114 | AJ24: S6-CP-22 | AK24: Total Greenhouse Gas Emissions | AP24: =_xll.RiskDiscrete(BS49:BT49,{0.5,0.5},_xll.RiskName(AJ24)) -> 0.08353968652
C26: SE | D26: EA | E26: SE | F26: EA | G26: SE | H26: EA | I26: SE | J26: EA | K26: SE | L26: EA | O26: SE | P26: EA | Q26: SE | R26: EA | S26: SE | T26: EA | U26: SE | V26: EA | W26: SE | X26: EA | AA26: SE | AB26: EA | AC26: SE | AD26: EA | AE26: SE | AF26: EA | AG26: SE | AH26: EA | AI26: SE | AJ26: EA | AM26: SE | AN26: EA | AO26: SE | AP26: EA | AQ26: SE | AR26: EA | AS26: SE | AT26: EA | AU26: SE | AV26: EA | AY26: SE | AZ26: EA | BA26: SE | BB26: EA | BC26: SE | BD26: EA | BE26: SE | BF26: EA | BG26: SE | BH26: EA | BK26: SE | BL26: EA | BM26: SE | BN26: EA | BO26: SE | BP26: EA | BQ26: SE | BR26: EA | BS26: SE | BT26: EA
B27: ='System Expansion'!A18 -> Scenario 1 - 100% Coal | C27: Carbon dioxide | D27: Carbon dioxide | E27: Nitrous oxide (laughing gas) | F27: Nitrous oxide (laughing gas) | G27: Sulphur hexafluoride | H27: Sulphur hexafluoride | I27: Methane | J27: Methane | K27: GWP | L27: GWP | N27: ='System Expansion'!H18 -> Scenario 2 - 10% Dried/Chipped Biomass | O27: Carbon dioxide | P27: Carbon dioxide | Q27: Nitrous oxide (laughing gas) | R27: Nitrous oxide (laughing gas) | S27: Sulphur hexafluoride | T27: Sulphur hexafluoride | U27: Methane | V27: Methane | W27: GWP | X27: GWP | Z27: ='System Expansion'!O18 -> Scenario 3 - 20% Dried/Chipped Biomass | AA27: Carbon dioxide | AB27: Carbon dioxide | AC27: Nitrous oxide (laughing gas) | AD27: Nitrous oxide (laughing gas) | AE27: Sulphur hexafluoride | AF27: Sulphur hexafluoride | AG27: Methane | AH27: Methane | AI27: GWP | AJ27: GWP | AL27: ='System Expansion'!V18 -> Scenario 4 - 10% Torrefied Biomass | AM27: Carbon dioxide | AN27: Carbon dioxide | AO27: Nitrous oxide (laughing gas) | AP27: Nitrous oxide (laughing gas) | AQ27: Sulphur hexafluoride | AR27: Sulphur hexafluoride | AS27: Methane | AT27: Methane | AU27: GWP | AV27: GWP | AX27: ='System Expansion'!AC18 -> Scenario 5 - 20% Torrefied Biomass | AY27: Carbon dioxide | AZ27: Carbon dioxide | BA27: Nitrous oxide (laughing gas) | BB27: Nitrous oxide (laughing gas) | BC27: Sulphur hexafluoride | BD27: Sulphur hexafluoride | BE27: Methane | BF27: Methane | BG27: GWP | BH27: GWP | BJ27: ='System Expansion'!AJ18 -> Scenario 6- 10% Dried/Chipped Biomass | BK27: Carbon dioxide | BL27: Carbon dioxide | BM27: Nitrous oxide (laughing gas) | BN27: Nitrous oxide (laughing gas) | BO27: Sulphur hexafluoride | BP27: Sulphur hexafluoride | BQ27: Methane | BR27: Methane | BS27: GWP | BT27: GWP
B28: ='System Expansion'!A19 -> Raw Material Acquisition | C28: ='System Expansion'!B19 -> 0.0008067705958 | D28: ='Energy Allocation'!B19 -> 0.0001318798265 | E28: ='System Expansion'!C19 -> 7.410710792e-07 | F28: ='Energy Allocation'!C19 -> 1.211401678e-07 | G28: ='System Expansion'!D19 -> 4.423094012e-13 | H28: ='Energy Allocation'!D19 -> 7.230269348e-14 | I28: ='System Expansion'!E19 -> 8.928491363e-05 | J28: ='Energy Allocation'!E19 -> 1.459507694e-05 | K28: ='System Expansion'!F19 -> 0.003259742703 | L28: ='Energy Allocation'!F19 -> 0.0005328581685 | N28: ='System Expansion'!H19 -> Raw Material Acquisition | O28: ='System Expansion'!I19 -> -0.0134874778 | P28: ='Energy Allocation'!I19 -> -0.002198752012 | Q28: ='System Expansion'!J19 -> 2.589983905e-06 | R28: ='Energy Allocation'!J19 -> 4.222134374e-07 | S28: ='System Expansion'!K19 -> 4.84374485e-12 | T28: ='Energy Allocation'!K19 -> 7.896273255e-13 | U28: ='System Expansion'!L19 -> 8.33117225e-05 | V28: ='Energy Allocation'!L19 -> 1.358054524e-05 | W28: ='System Expansion'!M19 -> -0.01063275909 | X28: ='Energy Allocation'!M19 -> -0.001733400773 | Z28: ='System Expansion'!O19 -> Raw Material Acquisition | AA28: ='System Expansion'!P19 -> -0.02851509583 | AB28: ='Energy Allocation'!P19 -> -0.004635388386 | AC28: ='System Expansion'!Q19 -> 4.533739327e-06 | AD28: ='Energy Allocation'!Q19 -> 7.369961976e-07 | AE28: ='System Expansion'!R19 -> 9.470983626e-12 | AF28: ='Energy Allocation'!R19 -> 1.539591005e-12 | AG28: ='System Expansion'!S19 -> 7.703036114e-05 | AH28: ='Energy Allocation'!S19 -> 1.252152361e-05 | AI28: ='System Expansion'!T19 -> -0.02523806654 | AJ28: ='Energy Allocation'!T19 -> -0.004102690326 | AL28: ='System Expansion'!V19 -> Raw Material Acquisition | AM28: ='System Expansion'!W19 -> -0.009635898773 | AN28: ='Energy Allocation'!W19 -> -0.00157595033 | AO28: ='System Expansion'!X19 -> 2.047677102e-06 | AP28: ='Energy Allocation'!X19 -> 3.348835162e-07 | AQ28: ='System Expansion'!Y19 -> 3.621734708e-12 | AR28: ='Energy Allocation'!Y19 -> 5.92323028e-13 | AS28: ='System Expansion'!Z19 -> 8.02794996e-05 | AT28: ='Energy Allocation'!Z19 -> 1.312824426e-05 | AU28: ='System Expansion'!AA19 -> -0.007018620931 | AV28: ='Energy Allocation'!AA19 -> -0.001147935431 | AX28: ='System Expansion'!AC19 -> Raw Material Acquisition | AY28: ='System Expansion'!AD19 -> -0.01988312241 | AZ28: ='Energy Allocation'!AD19 -> -0.003251943141 | BA28: ='System Expansion'!AE19 -> 3.329865617e-06 | BB28: ='Energy Allocation'!AE19 -> 5.446033908e-07 | BC28: ='System Expansion'!AF19 -> 6.741683915e-12 | BD28: ='Energy Allocation'!AF19 -> 1.102617391e-12 | BE28: ='System Expansion'!AG19 -> 7.14465267e-05 | BF28: ='Energy Allocation'!AG19 -> 1.168466635e-05 | BG28: ='System Expansion'!AH19 -> -0.01710450558 | BH28: ='Energy Allocation'!AH19 -> -0.002797509532 | BJ28: ='System Expansion'!AJ19 -> Raw Material Acquisition | BK28: ='System Expansion'!AK19 -> -0.014270169 | BL28: ='Energy Allocation'!AK19 -> -0.002415510426 | BM28: ='System Expansion'!AL19 -> 2.709474909e-06 | BN28: ='Energy Allocation'!AL19 -> 4.58622387e-07 | BO28: ='System Expansion'!AM19 -> 5.099661079e-12 | BP28: ='Energy Allocation'!AM19 -> 8.632108902e-13 | BQ28: ='System Expansion'!AN19 -> 8.490502112e-05 | BR28: ='Energy Allocation'!AN19 -> 1.437079064e-05 | BS28: ='System Expansion'!AO19 -> -0.01134000367 | BT28: ='Energy Allocation'!AO19 -> -0.001919551507
B29: ='System Expansion'!A20 -> Coal Mining, Surface | C29: ='System Expansion'!B20 -> 0.0008067705958 | D29: ='Energy Allocation'!B20 -> 0.0001318798265 | E29: ='System Expansion'!C20 -> 7.410710792e-07 | F29: ='Energy Allocation'!C20 -> 1.211401678e-07 | G29: ='System Expansion'!D20 -> 4.423094012e-13 | H29: ='Energy Allocation'!D20 -> 7.230269348e-14 | I29: ='System Expansion'!E20 -> 8.928491363e-05 | J29: ='Energy Allocation'!E20 -> 1.459507694e-05 | K29: ='System Expansion'!F20 -> 0.003259742703 | L29: ='Energy Allocation'!F20 -> 0.0005328581685 | N29: ='System Expansion'!H20 -> Coal Mining, Surface | O29: ='System Expansion'!I20 -> 0.0007442460284 | P29: ='Energy Allocation'!I20 -> 0.0001213185593 | Q29: ='System Expansion'!J20 -> 6.836382118e-07 | R29: ='Energy Allocation'!J20 -> 1.114389594e-07 | S29: ='System Expansion'!K20 -> 4.080305069e-13 | T29: ='Energy Allocation'!K20 -> 6.651251246e-14 | U29: ='System Expansion'!L20 -> 8.236534984e-05 | V29: ='Energy Allocation'!L20 -> 1.342626658e-05 | W29: ='System Expansion'!M20 -> 0.003007113265 | X29: ='Energy Allocation'!M20 -> 0.0004901855501 | Z29: ='System Expansion'!O20 -> Coal Mining, Surface | AA29: ='System Expansion'!P20 -> 0.0006784981428 | AB29: ='Energy Allocation'!P20 -> 0.0001102918702 | AC29: ='System Expansion'!Q20 -> 6.232445178e-07 | AD29: ='Energy Allocation'!Q20 -> 1.013102308e-07 | AE29: ='System Expansion'!R20 -> 3.719844387e-13 | AF29: ='Energy Allocation'!R20 -> 6.046716541e-14 | AG29: ='System Expansion'!S20 -> 7.508906297e-05 | AH29: ='Energy Allocation'!S20 -> 1.22059482e-05 | AI29: ='System Expansion'!T20 -> 0.002741460065 | AJ29: ='Energy Allocation'!T20 -> 0.0004456324027 | AL29: ='System Expansion'!V20 -> Coal Mining, Surface | AM29: ='System Expansion'!W20 -> 0.0007191764711 | AN29: ='Energy Allocation'!W20 -> 0.0001176080565 | AO29: ='System Expansion'!X20 -> 6.606101987e-07 | AP29: ='Energy Allocation'!X20 -> 1.080306221e-07 | AQ29: ='System Expansion'!Y20 -> 3.942862022e-13 | AR29: ='Energy Allocation'!Y20 -> 6.447824118e-14 | AS29: ='System Expansion'!Z20 -> 7.959091399e-05 | AT29: ='Energy Allocation'!Z20 -> 1.301562702e-05 | AU29: ='System Expansion'!AA20 -> 0.00290582015 | AV29: ='Energy Allocation'!AA20 -> 0.0004751933276 | AX29: ='System Expansion'!AC20 -> Coal Mining, Surface | AY29: ='System Expansion'!AD20 -> 0.0006332569394 | AZ29: ='Energy Allocation'!AD20 -> 0.000103565407 | BA29: ='System Expansion'!AE20 -> 5.816875404e-07 | BB29: ='Energy Allocation'!AE20 -> 9.513153838e-08 | BC29: ='System Expansion'!AF20 -> 3.471810935e-13 | BD29: ='Energy Allocation'!AF20 -> 5.677940343e-14 | BE29: ='System Expansion'!AG20 -> 7.008224077e-05 | BF29: ='Energy Allocation'!AG20 -> 1.146153375e-05 | BG29: ='System Expansion'!AH20 -> 0.002558663761 | BH29: ='Energy Allocation'!AH20 -> 0.0004184542438 | BJ29: ='System Expansion'!AJ20 -> Coal Mining, Surface | BK29: ='System Expansion'!AK20 -> 0.0007581642796 | BL29: ='Energy Allocation'!AK20 -> 0.0001283246947 | BM29: ='System Expansion'!AL20 -> 6.964230276e-07 | BN29: ='Energy Allocation'!AL20 -> 1.178745488e-07 | BO29: ='System Expansion'!AM20 -> 4.156611436e-13 | BP29: ='Energy Allocation'!AM20 -> 7.035360381e-14 | BQ29: ='System Expansion'!AN20 -> 8.3905676e-05 | BR29: ='Energy Allocation'!AN20 -> 1.420163221e-05 | BS29: ='System Expansion'!AO20 -> 0.003063349719 | BT29: ='Energy Allocation'!AO20 -> 0.0005184937196
B30: ='System Expansion'!A21 -> Biomass Production and Field Chipping | C30: ='System Expansion'!B21 -> 0 | D30: ='Energy Allocation'!B21 -> 0 | E30: ='System Expansion'!C21 -> 0 | F30: ='Energy Allocation'!C21 -> 0 | G30: ='System Expansion'!D21 -> 0 | H30: ='Energy Allocation'!D21 -> 0 | I30: ='System Expansion'!E21 -> 0 | J30: ='Energy Allocation'!E21 -> 0 | K30: ='System Expansion'!F21 -> 0 | L30: ='Energy Allocation'!F21 -> 0 | N30: ='System Expansion'!H21 -> Biomass Production and Field Chipping | O30: ='System Expansion'!I21 -> -0.01601728653 | P30: ='Energy Allocation'!I21 -> -0.00261115488 | Q30: ='System Expansion'!J21 -> 1.855004359e-06 | R30: ='Energy Allocation'!J21 -> 3.024047597e-07 | S30: ='System Expansion'!K21 -> 4.435714343e-12 | T30: ='Energy Allocation'!K21 -> 7.23114813e-13 | U30: ='System Expansion'!L21 -> 9.463726658e-07 | V30: ='Energy Allocation'!L21 -> 1.542786664e-07 | W30: ='System Expansion'!M21 -> -0.01544073478 | X30: ='Energy Allocation'!M21 -> -0.002517164808 | Z30: ='System Expansion'!O21 -> Biomass Production and Field Chipping | AA30: ='System Expansion'!P21 -> -0.03285632613 | AB30: ='Energy Allocation'!P21 -> -0.005341090185 | AC30: ='System Expansion'!Q21 -> 3.805178118e-06 | AD30: ='Energy Allocation'!Q21 -> 6.18565795e-07 | AE30: ='System Expansion'!R21 -> 9.098999187e-12 | AF30: ='Energy Allocation'!R21 -> 1.479123839e-12 | AG30: ='System Expansion'!S21 -> 1.941298165e-06 | AH30: ='Energy Allocation'!S21 -> 3.155754096e-07 | AI30: ='System Expansion'!T21 -> -0.03167364314 | AJ30: ='Energy Allocation'!T21 -> -0.005148834469 | AL30: ='System Expansion'!V21 -> Biomass Production and Field Chipping | AM30: ='System Expansion'!W21 -> -0.01165425983 | AN30: ='Energy Allocation'!W21 -> -0.001906038247 | AO30: ='System Expansion'!X21 -> 1.349710685e-06 | AP30: ='Energy Allocation'!X21 -> 2.207433357e-07 | AQ30: ='System Expansion'!Y21 -> 3.227448506e-12 | AR30: ='Energy Allocation'!Y21 -> 5.278447868e-13 | AS30: ='System Expansion'!Z21 -> 6.885856053e-07 | AT30: ='Energy Allocation'!Z21 -> 1.126172335e-07 | AU30: ='System Expansion'!AA21 -> -0.01123475782 | AV30: ='Energy Allocation'!AA21 -> -0.001837429268 | AX30: ='System Expansion'!AC21 -> Biomass Production and Field Chipping | AY30: ='System Expansion'!AD21 -> -0.02309043729 | AZ30: ='Energy Allocation'!AD21 -> -0.003776502589 | BA30: ='System Expansion'!AE21 -> 2.674164675e-06 | BB30: ='Energy Allocation'!AE21 -> 4.373667632e-07 | BC30: ='System Expansion'!AF21 -> 6.394502821e-12 | BD30: ='Energy Allocation'!AF21 -> 1.045837987e-12 | BE30: ='System Expansion'!AG21 -> 1.364285933e-06 | BF30: ='Energy Allocation'!AG21 -> 2.231326022e-07 | BG30: ='System Expansion'!AH21 -> -0.02225928328 | BH30: ='Energy Allocation'!AH21 -> -0.003640565133 | BJ30: ='System Expansion'!AJ21 -> Biomass Production and Field Chipping | BK30: ='System Expansion'!AK21 -> -0.01691384144 | BL30: ='Energy Allocation'!AK21 -> -0.002862993725 | BM30: ='System Expansion'!AL21 -> 1.958836757e-06 | BN30: ='Energy Allocation'!AL21 -> 3.315708832e-07 | BO30: ='System Expansion'!AM21 -> 4.683999936e-12 | BP30: ='Energy Allocation'!AM21 -> 7.928572863e-13 | BQ30: ='System Expansion'!AN21 -> 9.993451251e-07 | BR30: ='Energy Allocation'!AN21 -> 1.691584276e-07 | BS30: ='System Expansion'!AO21 -> -0.01630501766 | BT30: ='Energy Allocation'!AO21 -> -0.002759938564
B31: ='System Expansion'!A22 -> Biomass Direct Land Use Change | C31: ='System Expansion'!B22 -> 0 | D31: ='Energy Allocation'!B22 -> 0 | E31: ='System Expansion'!C22 -> 0 | F31: ='Energy Allocation'!C22 -> 0 | G31: ='System Expansion'!D22 -> 0 | H31: ='Energy Allocation'!D22 -> 0 | I31: ='System Expansion'!E22 -> 0 | J31: ='Energy Allocation'!E22 -> 0 | K31: ='System Expansion'!F22 -> 0 | L31: ='Energy Allocation'!F22 -> 0 | N31: ='System Expansion'!H22 -> Biomass Direct Land Use Change | O31: ='System Expansion'!I22 -> 0.0003806724772 | P31: ='Energy Allocation'!I22 -> 6.205762721e-05 | Q31: ='System Expansion'!J22 -> 0 | R31: ='Energy Allocation'!J22 -> 0 | S31: ='System Expansion'!K22 -> 0 | T31: ='Energy Allocation'!K22 -> 0 | U31: ='System Expansion'!L22 -> 0 | V31: ='Energy Allocation'!L22 -> 0 | W31: ='System Expansion'!M22 -> 0.0003806724772 | X31: ='Energy Allocation'!M22 -> 6.205762721e-05 | Z31: ='System Expansion'!O22 -> Biomass Direct Land Use Change | AA31: ='System Expansion'!P22 -> 0.0007808750277 | AB31: ='Energy Allocation'!P22 -> 0.0001269382319 | AC31: ='System Expansion'!Q22 -> 0 | AD31: ='Energy Allocation'!Q22 -> 0 | AE31: ='System Expansion'!R22 -> 0 | AF31: ='Energy Allocation'!R22 -> 0 | AG31: ='System Expansion'!S22 -> 0 | AH31: ='Energy Allocation'!S22 -> 0 | AI31: ='System Expansion'!T22 -> 0.0007808750277 | AJ31: ='Energy Allocation'!T22 -> 0.0001269382319 | AL31: ='System Expansion'!V22 -> Biomass Direct Land Use Change | AM31: ='System Expansion'!W22 -> 0.0002769792467 | AN31: ='Energy Allocation'!W22 -> 4.52995768e-05 | AO31: ='System Expansion'!X22 -> 0 | AP31: ='Energy Allocation'!X22 -> 0 | AQ31: ='System Expansion'!Y22 -> 0 | AR31: ='Energy Allocation'!Y22 -> 0 | AS31: ='System Expansion'!Z22 -> 0 | AT31: ='Energy Allocation'!Z22 -> 0 | AU31: ='System Expansion'!AA22 -> 0.0002769792467 | AV31: ='Energy Allocation'!AA22 -> 4.52995768e-05 | AX31: ='System Expansion'!AC22 -> Biomass Direct Land Use Change | AY31: ='System Expansion'!AD22 -> 0.0005487754713 | AZ31: ='Energy Allocation'!AD22 -> 8.975369162e-05 | BA31: ='System Expansion'!AE22 -> 0 | BB31: ='Energy Allocation'!AE22 -> 0 | BC31: ='System Expansion'!AF22 -> 0 | BD31: ='Energy Allocation'!AF22 -> 0 | BE31: ='System Expansion'!AG22 -> 0 | BF31: ='Energy Allocation'!AG22 -> 0 | BG31: ='System Expansion'!AH22 -> 0.0005487754713 | BH31: ='Energy Allocation'!AH22 -> 8.975369162e-05 | BJ31: ='System Expansion'!AJ22 -> Biomass Direct Land Use Change | BK31: ='System Expansion'!AK22 -> 0.0004019803172 | BL31: ='Energy Allocation'!AK22 -> 6.804291798e-05 | BM31: ='System Expansion'!AL22 -> 0 | BN31: ='Energy Allocation'!AL22 -> 0 | BO31: ='System Expansion'!AM22 -> 0 | BP31: ='Energy Allocation'!AM22 -> 0 | BQ31: ='System Expansion'!AN22 -> 0 | BR31: ='Energy Allocation'!AN22 -> 0 | BS31: ='System Expansion'!AO22 -> 0.0004019803172 | BT31: ='Energy Allocation'!AO22 -> 6.804291798e-05
B32: ='System Expansion'!A23 -> Biomass Indirect Land Use Change | C32: ='System Expansion'!B23 -> 0 | D32: ='Energy Allocation'!B23 -> 0 | E32: ='System Expansion'!C23 -> 0 | F32: ='Energy Allocation'!C23 -> 0 | G32: ='System Expansion'!D23 -> 0 | H32: ='Energy Allocation'!D23 -> 0 | I32: ='System Expansion'!E23 -> 0 | J32: ='Energy Allocation'!E23 -> 0 | K32: ='System Expansion'!F23 -> 0 | L32: ='Energy Allocation'!F23 -> 0 | N32: ='System Expansion'!H23 -> Biomass Indirect Land Use Change | O32: ='System Expansion'!I23 -> 0.001404890227 | P32: ='Energy Allocation'!I23 -> 0.000229026681 | Q32: ='System Expansion'!J23 -> 5.134133428e-08 | R32: ='Energy Allocation'!J23 -> 8.36971826e-09 | S32: ='System Expansion'!K23 -> 0 | T32: ='Energy Allocation'!K23 -> 0 | U32: ='System Expansion'!L23 -> 0 | V32: ='Energy Allocation'!L23 -> 0 | W32: ='System Expansion'!M23 -> 0.001420189945 | X32: ='Energy Allocation'!M23 -> 0.0002315208571 | Z32: ='System Expansion'!O23 -> Biomass Indirect Land Use Change | AA32: ='System Expansion'!P23 -> 0.002881857137 | AB32: ='Energy Allocation'!P23 -> 0.0004684716972 | AC32: ='System Expansion'!Q23 -> 1.053166915e-07 | AD32: ='Energy Allocation'!Q23 -> 1.712017177e-08 | AE32: ='System Expansion'!R23 -> 0 | AF32: ='Energy Allocation'!R23 -> 0 | AG32: ='System Expansion'!S23 -> 0 | AH32: ='Energy Allocation'!S23 -> 0 | AI32: ='System Expansion'!T23 -> 0.002913241511 | AJ32: ='Energy Allocation'!T23 -> 0.0004735735084 | AL32: ='System Expansion'!V23 -> Biomass Indirect Land Use Change | AM32: ='System Expansion'!W23 -> 0.001022205335 | AN32: ='Energy Allocation'!W23 -> 0.0001671802838 | AO32: ='System Expansion'!X23 -> 3.735621814e-08 | AP32: ='Energy Allocation'!X23 -> 6.10955836e-09 | AQ32: ='System Expansion'!Y23 -> 0 | AR32: ='Energy Allocation'!Y23 -> 0 | AS32: ='System Expansion'!Z23 -> 0 | AT32: ='Energy Allocation'!Z23 -> 0 | AU32: ='System Expansion'!AA23 -> 0.001033337488 | AV32: ='Energy Allocation'!AA23 -> 0.0001690009322 | AX32: ='System Expansion'!AC23 -> Biomass Indirect Land Use Change | AY32: ='System Expansion'!AD23 -> 0.002025282475 | AZ32: ='Energy Allocation'!AD23 -> 0.0003312403491 | BA32: ='System Expansion'!AE23 -> 7.401340156e-08 | BB32: ='Energy Allocation'!AE23 -> 1.210508918e-08 | BC32: ='System Expansion'!AF23 -> 0 | BD32: ='Energy Allocation'!AF23 -> 0 | BE32: ='System Expansion'!AG23 -> 0 | BF32: ='Energy Allocation'!AG23 -> 0 | BG32: ='System Expansion'!AH23 -> 0.002047338468 | BH32: ='Energy Allocation'!AH23 -> 0.0003348476657 | BJ32: ='System Expansion'!AJ23 -> Biomass Indirect Land Use Change | BK32: ='System Expansion'!AK23 -> 0.001483527844 | BL32: ='Energy Allocation'!AK23 -> 0.0002511156867 | BM32: ='System Expansion'!AL23 -> 5.421512475e-08 | BN32: ='Energy Allocation'!AL23 -> 9.176955012e-09 | BO32: ='System Expansion'!AM23 -> 0 | BP32: ='Energy Allocation'!AM23 -> 0 | BQ32: ='System Expansion'!AN23 -> 0 | BR32: ='Energy Allocation'!AN23 -> 0 | BS32: ='System Expansion'!AO23 -> 0.001499683951 | BT32: ='Energy Allocation'!AO23 -> 0.0002538504193
B33: ='System Expansion'!A24 -> Raw Material Transport | C33: ='System Expansion'!B24 -> 0.005370699614 | D33: ='Energy Allocation'!B24 -> 0.0008779285426 | E33: ='System Expansion'!C24 -> 1.315743929e-07 | F33: ='Energy Allocation'!C24 -> 2.15079828e-08 | G33: ='System Expansion'!D24 -> 1.174834045e-14 | H33: ='Energy Allocation'!D24 -> 1.92045807e-15 | I33: ='System Expansion'!E24 -> 6.140945966e-06 | J33: ='Energy Allocation'!E24 -> 1.003837885e-06 | K33: ='System Expansion'!F24 -> 0.0055634327 | L33: ='Energy Allocation'!F24 -> 0.0009094339123 | N33: ='System Expansion'!H24 -> Raw Material Transport | O33: ='System Expansion'!I24 -> 0.005004408079 | P33: ='Energy Allocation'!I24 -> 0.0008157625502 | Q33: ='System Expansion'!J24 -> 1.225994455e-07 | R33: ='Energy Allocation'!J24 -> 1.998478835e-08 | S33: ='System Expansion'!K24 -> 1.155073817e-14 | T33: ='Energy Allocation'!K24 -> 1.882879352e-15 | U33: ='System Expansion'!L24 -> 5.80583333e-06 | V33: ='Energy Allocation'!L24 -> 9.464029434e-07 | W33: ='System Expansion'!M24 -> 0.00518608881 | X33: ='Energy Allocation'!M24 -> 0.0008453781336 | Z33: ='System Expansion'!O24 -> Raw Material Transport | AA33: ='System Expansion'!P24 -> 0.004619220761 | AB33: ='Energy Allocation'!P24 -> 0.0007508685471 | AC33: ='System Expansion'!Q24 -> 1.131615104e-07 | AD33: ='Energy Allocation'!Q24 -> 1.839475168e-08 | AE33: ='System Expansion'!R24 -> 1.134277164e-14 | AF33: ='Energy Allocation'!R24 -> 1.843809714e-15 | AG33: ='System Expansion'!S24 -> 5.453409673e-06 | AH33: ='Energy Allocation'!S24 -> 8.864695314e-07 | AI33: ='System Expansion'!T24 -> 0.004789278391 | AJ33: ='Energy Allocation'!T24 -> 0.0007785119634 | AL33: ='System Expansion'!V24 -> Raw Material Transport | AM33: ='System Expansion'!W24 -> 0.005533844466 | AN33: ='Energy Allocation'!W24 -> 0.0009049588866 | AO33: ='System Expansion'!X24 -> 1.243976107e-07 | AP33: ='Energy Allocation'!X24 -> 2.034295159e-08 | AQ33: ='System Expansion'!Y24 -> 6.693673604e-12 | AR33: ='Energy Allocation'!Y24 -> 1.094626954e-12 | AS33: ='System Expansion'!Z24 -> 5.7784873e-06 | AT33: ='Energy Allocation'!Z24 -> 9.449668413e-07 | AU33: ='System Expansion'!AA24 -> 0.005715529752 | AV33: ='Energy Allocation'!AA24 -> 0.0009346702147 | AX33: ='System Expansion'!AC24 -> Raw Material Transport | AY33: ='System Expansion'!AD24 -> 0.00569410634 | AZ33: ='Energy Allocation'!AD24 -> 0.0009312378535 | BA33: ='System Expansion'!AE24 -> 1.173603301e-07 | BB33: ='Energy Allocation'!AE24 -> 1.919359931e-08 | BC33: ='System Expansion'!AF24 -> 1.324993912e-11 | BD33: ='Energy Allocation'!AF24 -> 2.166948764e-12 | BE33: ='System Expansion'!AG24 -> 5.423062382e-06 | BF33: ='Energy Allocation'!AG24 -> 8.869113541e-07 | BG33: ='System Expansion'!AH24 -> 0.005864958377 | BH33: ='Energy Allocation'!AH24 -> 0.0009591797364 | BJ33: ='System Expansion'!AJ24 -> Raw Material Transport | BK33: ='System Expansion'!AK24 -> 0.005099857521 | BL33: ='Energy Allocation'!AK24 -> 0.0008631877858 | BM33: ='System Expansion'!AL24 -> 1.249377446e-07 | BN33: ='Energy Allocation'!AL24 -> 2.114661724e-08 | BO33: ='System Expansion'!AM24 -> 1.179332184e-14 | BP33: ='Energy Allocation'!AM24 -> 1.996112729e-15 | BQ33: ='System Expansion'!AN24 -> 5.91965745e-06 | BR33: ='Energy Allocation'!AN24 -> 1.00194592e-06 | BS33: ='System Expansion'!AO24 -> 0.005285080674 | BT33: ='Energy Allocation'!AO24 -> 0.0008945381712
B34: ='System Expansion'!A25 -> Biomass Transport to Torrefaction Facility | C34: ='System Expansion'!B25 -> 0 | D34: ='Energy Allocation'!B25 -> 0 | E34: ='System Expansion'!C25 -> 0 | F34: ='Energy Allocation'!C25 -> 0 | G34: ='System Expansion'!D25 -> 0 | H34: ='Energy Allocation'!D25 -> 0 | I34: ='System Expansion'!E25 -> 0 | J34: ='Energy Allocation'!E25 -> 0 | K34: ='System Expansion'!F25 -> 0 | L34: ='Energy Allocation'!F25 -> 0 | N34: ='System Expansion'!H25 -> Biomass Transport to Torrefaction Facility | O34: ='System Expansion'!I25 -> 0 | P34: ='Energy Allocation'!I25 -> 0 | Q34: ='System Expansion'!J25 -> 0 | R34: ='Energy Allocation'!J25 -> 0 | S34: ='System Expansion'!K25 -> 0 | T34: ='Energy Allocation'!K25 -> 0 | U34: ='System Expansion'!L25 -> 0 | V34: ='Energy Allocation'!L25 -> 0 | W34: ='System Expansion'!M25 -> 0 | X34: ='Energy Allocation'!M25 -> 0 | Z34: ='System Expansion'!O25 -> Biomass Transport to Torrefaction Facility | AA34: ='System Expansion'!P25 -> 0 | AB34: ='Energy Allocation'!P25 -> 0 | AC34: ='System Expansion'!Q25 -> 0 | AD34: ='Energy Allocation'!Q25 -> 0 | AE34: ='System Expansion'!R25 -> 0 | AF34: ='Energy Allocation'!R25 -> 0 | AG34: ='System Expansion'!S25 -> 0 | AH34: ='Energy Allocation'!S25 -> 0 | AI34: ='System Expansion'!T25 -> 0 | AJ34: ='Energy Allocation'!T25 -> 0 | AL34: ='System Expansion'!V25 -> Biomass Transport to Torrefaction Facility | AM34: ='System Expansion'!W25 -> 2.928604055e-05 | AN34: ='Energy Allocation'!W25 -> 4.789192154e-06 | AO34: ='System Expansion'!X25 -> 7.07868641e-10 | AP34: ='Energy Allocation'!X25 -> 1.157588693e-10 | AQ34: ='System Expansion'!Y25 -> 4.033818351e-16 | AR34: ='Energy Allocation'!Y25 -> 6.596566429e-17 | AS34: ='System Expansion'!Z25 -> 1.000421124e-07 | AT34: ='Energy Allocation'!Z25 -> 1.636004358e-08 | AU34: ='System Expansion'!AA25 -> 3.199804741e-05 | AV34: ='Energy Allocation'!AA25 -> 5.23269089e-06 | AX34: ='System Expansion'!AC25 -> Biomass Transport to Torrefaction Facility | AY34: ='System Expansion'!AD25 -> 5.802132823e-05 | AZ34: ='Energy Allocation'!AD25 -> 9.489043224e-06 | BA34: ='System Expansion'!AE25 -> 1.402425114e-09 | BB34: ='Energy Allocation'!AE25 -> 2.293582883e-10 | BC34: ='System Expansion'!AF25 -> 7.991776769e-16 | BD34: ='Energy Allocation'!AF25 -> 1.30700757e-16 | BE34: ='System Expansion'!AG25 -> 1.982028342e-07 | BF34: ='Energy Allocation'!AG25 -> 3.241489497e-08 | BG34: ='System Expansion'!AH25 -> 6.339433999e-05 | BH34: ='Energy Allocation'!AH25 -> 1.036776735e-05 | BJ34: ='System Expansion'!AJ25 -> Biomass Transport to Torrefaction Facility | BK34: ='System Expansion'!AK25 -> 0 | BL34: ='Energy Allocation'!AK25 -> 0 | BM34: ='System Expansion'!AL25 -> 0 | BN34: ='Energy Allocation'!AL25 -> 0 | BO34: ='System Expansion'!AM25 -> 0 | BP34: ='Energy Allocation'!AM25 -> 0 | BQ34: ='System Expansion'!AN25 -> 0 | BR34: ='Energy Allocation'!AN25 -> 0 | BS34: ='System Expansion'!AO25 -> 0 | BT34: ='Energy Allocation'!AO25 -> 0
B35: ='System Expansion'!A26 -> Biomass Torrefaction | C35: ='System Expansion'!B26 -> 0 | D35: ='Energy Allocation'!B26 -> 0 | E35: ='System Expansion'!C26 -> 0 | F35: ='Energy Allocation'!C26 -> 0 | G35: ='System Expansion'!D26 -> 0 | H35: ='Energy Allocation'!D26 -> 0 | I35: ='System Expansion'!E26 -> 0 | J35: ='Energy Allocation'!E26 -> 0 | K35: ='System Expansion'!F26 -> 0 | L35: ='Energy Allocation'!F26 -> 0 | N35: ='System Expansion'!H26 -> Biomass Torrefaction | O35: ='System Expansion'!I26 -> 0 | P35: ='Energy Allocation'!I26 -> 0 | Q35: ='System Expansion'!J26 -> 0 | R35: ='Energy Allocation'!J26 -> 0 | S35: ='System Expansion'!K26 -> 0 | T35: ='Energy Allocation'!K26 -> 0 | U35: ='System Expansion'!L26 -> 0 | V35: ='Energy Allocation'!L26 -> 0 | W35: ='System Expansion'!M26 -> 0 | X35: ='Energy Allocation'!M26 -> 0 | Z35: ='System Expansion'!O26 -> Biomass Torrefaction | AA35: ='System Expansion'!P26 -> 0 | AB35: ='Energy Allocation'!P26 -> 0 | AC35: ='System Expansion'!Q26 -> 0 | AD35: ='Energy Allocation'!Q26 -> 0 | AE35: ='System Expansion'!R26 -> 0 | AF35: ='Energy Allocation'!R26 -> 0 | AG35: ='System Expansion'!S26 -> 0 | AH35: ='Energy Allocation'!S26 -> 0 | AI35: ='System Expansion'!T26 -> 0 | AJ35: ='Energy Allocation'!T26 -> 0 | AL35: ='System Expansion'!V26 -> Biomass Torrefaction | AM35: ='System Expansion'!W26 -> 0.0006806417426 | AN35: ='Energy Allocation'!W26 -> 0.0001113064119 | AO35: ='System Expansion'!X26 -> 5.511712189e-09 | AP35: ='Energy Allocation'!X26 -> 9.013389406e-10 | AQ35: ='System Expansion'!Y26 -> 6.682278739e-12 | AR35: ='Energy Allocation'!Y26 -> 1.092763525e-12 | AS35: ='System Expansion'!Z26 -> 1.017911549e-07 | AT35: ='Energy Allocation'!Z26 -> 1.664606724e-08 | AU35: ='System Expansion'!AA26 -> 0.0006849813676 | AV35: ='Energy Allocation'!AA26 -> 0.0001120160776 | AX35: ='System Expansion'!AC26 -> Biomass Torrefaction | AY35: ='System Expansion'!AD26 -> 0.001348483346 | AZ35: ='Energy Allocation'!AD26 -> 0.0002205364328 | BA35: ='System Expansion'!AE26 -> 1.091977119e-08 | BB35: ='Energy Allocation'!AE26 -> 1.785863647e-09 | BC35: ='System Expansion'!AF26 -> 1.323889064e-11 | BD35: ='Energy Allocation'!AF26 -> 2.165141842e-12 | BE35: ='System Expansion'!AG26 -> 2.016680267e-07 | BF35: ='Energy Allocation'!AG26 -> 3.29816066e-08 | BG35: ='System Expansion'!AH26 -> 0.001357080985 | BH35: ='Energy Allocation'!AH26 -> 0.0002219425256 | BJ35: ='System Expansion'!AJ26 -> Biomass Torrefaction | BK35: ='System Expansion'!AK26 -> 0 | BL35: ='Energy Allocation'!AK26 -> 0 | BM35: ='System Expansion'!AL26 -> 0 | BN35: ='Energy Allocation'!AL26 -> 0 | BO35: ='System Expansion'!AM26 -> 0 | BP35: ='Energy Allocation'!AM26 -> 0 | BQ35: ='System Expansion'!AN26 -> 0 | BR35: ='Energy Allocation'!AN26 -> 0 | BS35: ='System Expansion'!AO26 -> 0 | BT35: ='Energy Allocation'!AO26 -> 0
B36: ='System Expansion'!A27 -> Transport of Chipped or Torrefied Biomass to CBTL Plant | C36: ='System Expansion'!B27 -> 0 | D36: ='Energy Allocation'!B27 -> 0 | E36: ='System Expansion'!C27 -> 0 | F36: ='Energy Allocation'!C27 -> 0 | G36: ='System Expansion'!D27 -> 0 | H36: ='Energy Allocation'!D27 -> 0 | I36: ='System Expansion'!E27 -> 0 | J36: ='Energy Allocation'!E27 -> 0 | K36: ='System Expansion'!F27 -> 0 | L36: ='Energy Allocation'!F27 -> 0 | N36: ='System Expansion'!H27 -> Transport of Chipped or Torrefied Biomass to CBTL Plant | O36: ='System Expansion'!I27 -> 4.993666129e-05 | P36: ='Energy Allocation'!I27 -> 8.140726994e-06 | Q36: ='System Expansion'!J27 -> 1.222043061e-09 | R36: ='Energy Allocation'!J27 -> 1.992187439e-10 | S36: ='System Expansion'!K27 -> 7.128918627e-16 | T36: ='Energy Allocation'!K27 -> 1.162163805e-16 | U36: ='System Expansion'!L27 -> 1.40809506e-07 | V36: ='Energy Allocation'!L27 -> 2.295491361e-08 | W36: ='System Expansion'!M27 -> 5.382108403e-05 | X36: ='Energy Allocation'!M27 -> 8.77396967e-06 | Z36: ='System Expansion'!O27 -> Transport of Chipped or Torrefied Biomass to CBTL Plant | AA36: ='System Expansion'!P27 -> 0.0001024352799 | AB36: ='Energy Allocation'!P27 -> 1.665177251e-05 | AC36: ='System Expansion'!Q27 -> 2.506781988e-09 | AD36: ='Energy Allocation'!Q27 -> 4.074998713e-10 | AE36: ='System Expansion'!R27 -> 1.462358028e-15 | AF36: ='Energy Allocation'!R27 -> 2.377193992e-16 | AG36: ='System Expansion'!S27 -> 2.888431222e-07 | AH36: ='Energy Allocation'!S27 -> 4.695403737e-08 | AI36: ='System Expansion'!T27 -> 0.0001104034124 | AJ36: ='Energy Allocation'!T27 -> 1.794706383e-05 | AL36: ='System Expansion'!V27 -> Transport of Chipped or Torrefied Biomass to CBTL Plant | AM36: ='System Expansion'!W27 -> 3.633417086e-05 | AN36: ='Energy Allocation'!W27 -> 5.942403927e-06 | AO36: ='System Expansion'!X27 -> 8.891647987e-10 | AP36: ='Energy Allocation'!X27 -> 1.454216861e-10 | AQ36: ='System Expansion'!Y27 -> 5.187037755e-16 | AR36: ='Energy Allocation'!Y27 -> 8.483329272e-17 | AS36: ='System Expansion'!Z27 -> 1.024537187e-07 | AT36: ='Energy Allocation'!Z27 -> 1.67561655e-08 | AU36: ='System Expansion'!AA27 -> 3.916049677e-05 | AV36: ='Energy Allocation'!AA27 -> 6.404645661e-06 | AX36: ='System Expansion'!AC27 -> Transport of Chipped or Torrefied Biomass to CBTL Plant | AY36: ='System Expansion'!AD27 -> 7.198843226e-05 | AZ36: ='Energy Allocation'!AD27 -> 1.177390005e-05 | BA36: ='System Expansion'!AE27 -> 1.761690947e-09 | BB36: ='Energy Allocation'!AE27 -> 2.881292519e-10 | BC36: ='System Expansion'!AF27 -> 1.027701217e-15 | BD36: ='Energy Allocation'!AF27 -> 1.680832743e-16 | BE36: ='System Expansion'!AG27 -> 2.029902544e-07 | BF36: ='Energy Allocation'!AG27 -> 3.319959738e-08 | BG36: ='System Expansion'!AH27 -> 7.758819595e-05 | BH36: ='Energy Allocation'!AH27 -> 1.268975633e-05 | BJ36: ='System Expansion'!AJ27 -> Transport of Chipped or Torrefied Biomass to CBTL Plant | BK36: ='System Expansion'!AK27 -> 5.27318263e-05 | BL36: ='Energy Allocation'!AK27 -> 8.925878155e-06 | BM36: ='System Expansion'!AL27 -> 1.290445952e-09 | BN36: ='Energy Allocation'!AL27 -> 2.184328544e-10 | BO36: ='System Expansion'!AM27 -> 7.527954193e-16 | BP36: ='Energy Allocation'!AM27 -> 1.27425137e-16 | BQ36: ='System Expansion'!AN27 -> 1.486912064e-07 | BR36: ='Energy Allocation'!AN27 -> 2.516885312e-08 | BS36: ='System Expansion'!AO27 -> 5.683367652e-05 | BT36: ='Energy Allocation'!AO27 -> 9.620195379e-06
B37: ='System Expansion'!A28 -> Transport of Coal to CBTL Plant | C37: ='System Expansion'!B28 -> 0.005370699614 | D37: ='Energy Allocation'!B28 -> 0.0008779285426 | E37: ='System Expansion'!C28 -> 1.315743929e-07 | F37: ='Energy Allocation'!C28 -> 2.15079828e-08 | G37: ='System Expansion'!D28 -> 1.174834045e-14 | H37: ='Energy Allocation'!D28 -> 1.92045807e-15 | I37: ='System Expansion'!E28 -> 6.140945966e-06 | J37: ='Energy Allocation'!E28 -> 1.003837885e-06 | K37: ='System Expansion'!F28 -> 0.0055634327 | L37: ='Energy Allocation'!F28 -> 0.0009094339123 | N37: ='System Expansion'!H28 -> Transport of Coal to CBTL Plant | O37: ='System Expansion'!I28 -> 0.004954471418 | P37: ='Energy Allocation'!I28 -> 0.0008076218232 | Q37: ='System Expansion'!J28 -> 1.213774025e-07 | R37: ='Energy Allocation'!J28 -> 1.97855696e-08 | S37: ='System Expansion'!K28 -> 1.083784631e-14 | T37: ='Energy Allocation'!K28 -> 1.766662971e-15 | U37: ='System Expansion'!L28 -> 5.665023824e-06 | V37: ='Energy Allocation'!L28 -> 9.234480298e-07 | W37: ='System Expansion'!M28 -> 0.005132267726 | X37: ='Energy Allocation'!M28 -> 0.000836604164 | Z37: ='System Expansion'!O28 -> Transport of Coal to CBTL Plant | AA37: ='System Expansion'!P28 -> 0.004516785481 | AB37: ='Energy Allocation'!P28 -> 0.0007342167746 | AC37: ='System Expansion'!Q28 -> 1.106547284e-07 | AD37: ='Energy Allocation'!Q28 -> 1.798725181e-08 | AE37: ='System Expansion'!R28 -> 9.880413615e-15 | AF37: ='Energy Allocation'!R28 -> 1.606090315e-15 | AG37: ='System Expansion'!S28 -> 5.16456655e-06 | AH37: ='Energy Allocation'!S28 -> 8.395154941e-07 | AI37: ='System Expansion'!T28 -> 0.004678874979 | AJ37: ='Energy Allocation'!T28 -> 0.0007605648996 | AL37: ='System Expansion'!V28 -> Transport of Coal to CBTL Plant | AM37: ='System Expansion'!W28 -> 0.004787582512 | AN37: ='Energy Allocation'!W28 -> 0.0007829208787 | AO37: ='System Expansion'!X28 -> 1.17288865e-07 | AP37: ='Energy Allocation'!X28 -> 1.91804321e-08 | AQ37: ='System Expansion'!Y28 -> 1.047277885e-14 | AR37: ='Energy Allocation'!Y28 -> 1.712629954e-15 | AS37: ='System Expansion'!Z28 -> 5.474200314e-06 | AT37: ='Energy Allocation'!Z28 -> 8.95204565e-07 | AU37: ='System Expansion'!AA28 -> 0.004959389841 | AV37: ='Energy Allocation'!AA28 -> 0.0008110168006 | AX37: ='System Expansion'!AC28 -> Transport of Coal to CBTL Plant | AY37: ='System Expansion'!AD28 -> 0.004215613234 | AZ37: ='Energy Allocation'!AD28 -> 0.0006894384774 | BA37: ='System Expansion'!AE28 -> 1.032764428e-07 | BB37: ='Energy Allocation'!AE28 -> 1.689024812e-08 | BC37: ='System Expansion'!AF28 -> 9.221602967e-15 | BD37: ='Energy Allocation'!AF28 -> 1.508138331e-15 | BE37: ='System Expansion'!AG28 -> 4.820201267e-06 | BF37: ='Energy Allocation'!AG28 -> 7.883152551e-07 | BG37: ='System Expansion'!AH28 -> 0.004366894856 | BH37: ='Energy Allocation'!AH28 -> 0.0007141796871 | BJ37: ='System Expansion'!AJ28 -> Transport of Coal to CBTL Plant | BK37: ='System Expansion'!AK28 -> 0.005047125695 | BL37: ='Energy Allocation'!AK28 -> 0.0008542619076 | BM37: ='System Expansion'!AL28 -> 1.236472986e-07 | BN37: ='Energy Allocation'!AL28 -> 2.092818439e-08 | BO37: ='System Expansion'!AM28 -> 1.104052642e-14 | BP37: ='Energy Allocation'!AM28 -> 1.868687592e-15 | BQ37: ='System Expansion'!AN28 -> 5.770966243e-06 | BR37: ='Energy Allocation'!AN28 -> 9.767770668e-07 | BS37: ='System Expansion'!AO28 -> 0.005228246997 | BT37: ='Energy Allocation'!AO28 -> 0.0008849179758
B38: ='System Expansion'!A29 -> Energy Conversion Facility | C38: ='System Expansion'!B29 -> 0.02093461272 | D38: ='Energy Allocation'!B29 -> 0.002575227324 | E38: ='System Expansion'!C29 -> -4.010343705e-07 | F38: ='Energy Allocation'!C29 -> 3.640939824e-10 | G38: ='System Expansion'!D29 -> 1.340949299e-09 | H38: ='Energy Allocation'!D29 -> 3.947669433e-14 | I38: ='System Expansion'!E29 -> -0.0001348995517 | J38: ='Energy Allocation'!E29 -> 7.82238468e-09 | K38: ='System Expansion'!F29 -> 0.01747318932 | L38: ='Energy Allocation'!F29 -> 0.002575532284 | N38: ='System Expansion'!H29 -> Energy Conversion Facility | O38: ='System Expansion'!I29 -> 0.02320188738 | P38: ='Energy Allocation'!I29 -> 0.002736513171 | Q38: ='System Expansion'!J29 -> -3.785797938e-07 | R38: ='Energy Allocation'!J29 -> 1.404737942e-09 | S38: ='System Expansion'!K29 -> 1.351873893e-09 | T38: ='Energy Allocation'!K29 -> 1.055839743e-13 | U38: ='System Expansion'!L29 -> -0.0001253152548 | V38: ='Energy Allocation'!L29 -> 1.107015294e-06 | W38: ='System Expansion'!M29 -> 0.01998701196 | X38: ='Energy Allocation'!M29 -> 0.002764609573 | Z38: ='System Expansion'!O29 -> Energy Conversion Facility | AA38: ='System Expansion'!P29 -> 0.02564766313 | AB38: ='Energy Allocation'!P29 -> 0.002905619737 | AC38: ='System Expansion'!Q29 -> -3.53979131e-07 | AD38: ='Energy Allocation'!Q29 -> 2.492767613e-09 | AE38: ='System Expansion'!R29 -> 1.363356349e-09 | AF38: ='Energy Allocation'!R29 -> 1.747044068e-13 | AG38: ='System Expansion'!S29 -> -0.0001150507082 | AH38: ='Energy Allocation'!S29 -> 2.256218694e-06 | AI38: ='System Expansion'!T29 -> 0.02269699417 | AJ38: ='Energy Allocation'!T29 -> 0.002962772032 | AL38: ='System Expansion'!V29 -> Energy Conversion Facility | AM38: ='System Expansion'!W29 -> 0.02065832993 | AN38: ='Energy Allocation'!W29 -> 0.002550195369 | AO38: ='System Expansion'!X29 -> -4.025239684e-07 | AP38: ='Energy Allocation'!X29 -> 3.639320422e-10 | AQ38: ='System Expansion'!Y29 -> 1.339592924e-09 | AR38: ='Energy Allocation'!Y29 -> 3.949244989e-14 | AS38: ='System Expansion'!Z29 -> -0.0001351024834 | AT38: ='Energy Allocation'!Z29 -> 7.819677825e-09 | AU38: ='System Expansion'!AA29 -> 0.01719135842 | AV38: ='Energy Allocation'!AA29 -> 0.002550500213 | AX38: ='System Expansion'!AC29 -> Energy Conversion Facility | AY38: ='System Expansion'!AD29 -> 0.02026735586 | AZ38: ='Energy Allocation'!AD29 -> 0.002523862613 | BA38: ='System Expansion'!AE29 -> -4.058700168e-07 | BB38: ='Energy Allocation'!AE29 -> 3.637059333e-10 | BC38: ='System Expansion'!AF29 -> 1.338378284e-09 | BD38: ='Energy Allocation'!AF29 -> 3.9495465e-14 | BE38: ='System Expansion'!AG29 -> -0.0001356617699 | BF38: ='Energy Allocation'!AG29 -> 7.815458262e-09 | BG38: ='System Expansion'!AH29 -> 0.01678537737 | BH38: ='Energy Allocation'!AH29 -> 0.002524167285 | BJ38: ='System Expansion'!AJ29 -> Energy Conversion Facility | BK38: ='System Expansion'!AK29 -> 0.03218150241 | BL38: ='Energy Allocation'!AK29 -> 0.004520702093 | BM38: ='System Expansion'!AL29 -> -3.666318294e-07 | BN38: ='Energy Allocation'!AL29 -> 1.500396288e-09 | BO38: ='System Expansion'!AM29 -> 1.277584778e-09 | BP38: ='Energy Allocation'!AM29 -> 1.13479535e-13 | BQ38: ='System Expansion'!AN29 -> -0.0001210231271 | BR38: ='Energy Allocation'!AN29 -> 1.212976225e-06 | BS38: ='System Expansion'!AO29 -> 0.02907579688 | BT38: ='Energy Allocation'!AO29 -> 0.004551476204
B39: ='System Expansion'!A30 -> CBTL Plant Operations (includes CO₂ Compression) | C39: ='System Expansion'!B30 -> -0.004232489205 | D39: ='Energy Allocation'!B30 -> 0.002446414538 | E39: ='System Expansion'!C30 -> -3.081027986e-07 | F39: ='Energy Allocation'!C30 -> 3.917862259e-11 | G39: ='System Expansion'!D30 -> -9.074039676e-12 | H39: ='Energy Allocation'!D30 -> 3.947669433e-14 | I39: ='System Expansion'!E30 -> -8.60892906e-05 | J39: ='Energy Allocation'!E30 -> 1.658482228e-09 | K39: ='System Expansion'!F30 -> -0.006476742992 | L39: ='Energy Allocation'!F30 -> 0.002446468575 | N39: ='System Expansion'!H30 -> CBTL Plant Operations (includes CO₂ Compression) | O39: ='System Expansion'!I30 -> -0.002147846842 | P39: ='Energy Allocation'!I30 -> 0.002607128868 | Q39: ='System Expansion'!J30 -> -2.849738372e-07 | R39: ='Energy Allocation'!J30 -> 1.078380998e-09 | S39: ='System Expansion'!K30 -> -7.946278071e-12 | T39: ='Energy Allocation'!K30 -> 1.055839743e-13 | U39: ='System Expansion'!L30 -> -7.615078802e-05 | V39: ='Energy Allocation'!L30 -> 1.100824043e-06 | W39: ='System Expansion'!M30 -> -0.004136719921 | X39: ='Energy Allocation'!M30 -> 0.002634973234 | Z39: ='System Expansion'!O30 -> CBTL Plant Operations (includes CO₂ Compression) | AA39: ='System Expansion'!P30 -> 0.0001067787539 | AB39: ='Energy Allocation'!P30 -> 0.002775624263 | AC39: ='System Expansion'!Q30 -> -2.59667337e-07 | AD39: ='Energy Allocation'!Q30 -> 2.164869062e-09 | AE39: ='System Expansion'!R30 -> -6.717571469e-12 | AF39: ='Energy Allocation'!R30 -> 1.747044068e-13 | AG39: ='System Expansion'!S30 -> -6.551551576e-05 | AH39: ='Energy Allocation'!S30 -> 2.249998198e-06 | AI39: ='System Expansion'!T30 -> -0.001608643167 | AJ39: ='Energy Allocation'!T30 -> 0.002832523332 | AL39: ='System Expansion'!V30 -> CBTL Plant Operations (includes CO₂ Compression) | AM39: ='System Expansion'!W30 -> -0.004484982391 | AN39: ='Energy Allocation'!W30 -> 0.002421452983 | AO39: ='System Expansion'!X30 -> -3.096802416e-07 | AP39: ='Energy Allocation'!X30 -> 3.919425919e-11 | AQ39: ='System Expansion'!Y30 -> -9.154283984e-12 | AR39: ='Energy Allocation'!Y30 -> 3.949244989e-14 | AS39: ='System Expansion'!Z30 -> -8.633836098e-05 | AT39: ='Energy Allocation'!Z30 -> 1.659144145e-09 | AU39: ='System Expansion'!AA30 -> -0.006735934846 | AV39: ='Energy Allocation'!AA30 -> 0.002421507042 | AX39: ='System Expansion'!AC30 -> CBTL Plant Operations (includes CO₂ Compression) | AY39: ='System Expansion'!AD30 -> -0.004856299858 | AZ39: ='Energy Allocation'!AD30 -> 0.002395211055 | BA39: ='System Expansion'!AE30 -> -3.130988736e-07 | BB39: ='Energy Allocation'!AE30 -> 3.919725153e-11 | BC39: ='System Expansion'!AF30 -> -9.314496319e-12 | BD39: ='Energy Allocation'!AF30 -> 3.9495465e-14 | BE39: ='System Expansion'!AG30 -> -8.69357704e-05 | BF39: ='Energy Allocation'!AG30 -> 1.659270815e-09 | BG39: ='System Expansion'!AH30 -> -0.007123209953 | BH39: ='Energy Allocation'!AH30 -> 0.002395265118 | BJ39: ='System Expansion'!AJ30 -> CBTL Plant Operations (includes CO₂ Compression) | BK39: ='System Expansion'!AK30 -> 0.008222345912 | BL39: ='Energy Allocation'!AK30 -> 0.00439372777 | BM39: ='System Expansion'!AL30 -> -2.781606943e-07 | BN39: ='Energy Allocation'!AL30 -> 1.18011824e-09 | BO39: ='System Expansion'!AM30 -> -7.641488066e-12 | BP39: ='Energy Allocation'!AM30 -> 1.13479535e-13 | BQ39: ='System Expansion'!AN30 -> -7.455561215e-05 | BR39: ='Energy Allocation'!AN30 -> 1.206900296e-06 | BS39: ='System Expansion'!AO30 -> 0.006275389495 | BT39: ='Energy Allocation'!AO30 -> 0.00442425454
